Workbook

Sheet Arş. Gör. Ön. Değ.
A1: T.C.
A2: BAYBURT ÜNİVERSİTESİ
A3: ÖĞRETİM ELEMANI ÖN DEĞERLENDİRME TUTANAĞI
A4: Üniversitemize bağlı birimlere, 2547 sayılı Kanunun ilgili maddeleri ve 09.11.2018 tarihli ve 30590 sayılı Resmi Gazetede yayımlanan "Öğretim Üyesi Dışındaki Öğretim Elemanı Kadrolarına Yapılacak Atamalarda Uygulanacak Merkezi Sınav İle Giriş Sınavlarına İlişkin Usul ve Esaslar Hakkında Yönetmelik” 10. Maddesi Uyarınca Lisans ve Ön Lisans Düzeyindeki Eğitim Veren Yerlere Alınacak Akademik Personele Ait Ön Değerlendirme Sonuç Tutanağı
A5: İlan No: | E5: Birimi: | H5: ….. Fakültesi / Yüksekokulu
A6: İlan Tarihi: | C6: …/.../.... | E6: Bölümü: | H6: ….. Bölümü
A7: Kadro Unvanı: | C7: Araştırma Görevlisi | E7: Anabilim Dalı: | H7: ….. Anabilim Dalı
A8: Kadro Adedi: | E8: Öndeğerlendirme Tarihi: | H8: …/.../....
A9: İlan Özel Şartı:
A10: SINAVIN YAPILACAĞI YER, TARİH ve SAAT : | E10: ……... ../…/…. Günü Saat: …:….
A11: Sıra No | B11: Başvuranın | E11: Başvuru Şartı | H11: Ön Sıralama Değerlendirme Sonuçları
B12: T.C. Kimlik No | C12: Adı | D12: Soyadı | E12: Alanındaki Ales Puanı | F12: Yabancı Dil Puanı | G12: Talep Edilen Lisansüstü Alanda Öğrencilik | H12: ALES (%60) | I12: Yabancı Dil Puanı (%40) | J12: Toplam Puan | K12: Ön Değerlendirme Sonucu
A13: 1 | B13: 11111111111 | C13: Örnek | D13: Örnek | E13: 81.50555 | F13: 81.56 | G13: Mevcut | H13: =E13*0.6 -> 48.90333 | I13: =F13*0.4 -> 32.624 | J13: =H13+I13 -> 81.52733 | K13: Sınava Girebilir
A14: 2 | B14: 11111111111 | C14: Örnek Örnek | D14: Örnek | E14: 80.60743 | F14: 82.03 | G14: Mevcut | H14: 48.364458 | I14: 32.812 | J14: 81.176458 | K14: Sınava Girebilir
A15: 3 | B15: 11111111111 | C15: Örnek | D15: Örnek Örnek | E15: 79.27563 | F15: 82.53 | G15: Mevcut | H15: 47.565378 | I15: 33.012 | J15: 80.577378 | K15: Sınava Girebilir
A16: 4 | B16: 11111111111 | C16: Örnek Örnek | D16: Örnek Örnek | E16: 78.11375 | F16: 81.56 | G16: Mevcut | H16: 46.86825 | I16: 32.624 | J16: 79.49225 | K16: Sınava Girebilir
A17: 5 | B17: 11111111111 | C17: Örnek | D17: Örnek | E17: 77.50555 | F17: 80.56 | G17: Mevcut | H17: 46.50333 | I17: 32.224 | J17: 78.72733 | K17: Sınava Girebilir
A18: 6 | B18: 11111111111 | C18: Örnek | D18: Örnek | E18: 76.60743 | F18: 79.03 | G18: Mevcut | H18: 45.964458 | I18: 31.612 | J18: 77.576458 | K18: Sınava Girebilir
A19: 7 | B19: 11111111111 | C19: Örnek | D19: Örnek | E19: 75.27563 | F19: 78.53 | G19: Mevcut | H19: 45.165378 | I19: 31.412 | J19: 76.577378 | K19: Sınava Girebilir
A20: 8 | B20: 11111111111 | C20: Örnek | D20: Örnek | E20: 74.11375 | F20: 77.56 | G20: Mevcut | H20: 44.46825 | I20: 31.024 | J20: 75.49225 | K20: Sınava Girebilir
A21: 9 | B21: 11111111111 | C21: Örnek | D21: Örnek | E21: 73.50555 | F21: 76.56 | G21: Mevcut | H21: 44.10333 | I21: 30.624 | J21: 74.72733 | K21: Sınava Girebilir
A22: 10 | B22: 11111111111 | C22: Örnek | D22: Örnek | E22: 72.60743 | F22: 75.03 | G22: Mevcut | H22: 43.564458 | I22: 30.012 | J22: 73.576458 | K22: Sınava Girebilir
A23: 11 | B23: 11111111111 | C23: Örnek | D23: Örnek | E23: 71.27563 | F23: 74.53 | G23: Mevcut | H23: 42.765378 | I23: 29.812 | J23: 72.577378 | K23: Yönetmelik Gereği Elendi *
A24: 12 | B24: 11111111111 | C24: Örnek | D24: Örnek | E24: 70.11375 | F24: 73.56 | G24: Mevcut | H24: 42.06825 | I24: 29.424 | J24: 71.49225 | K24: Yönetmelik Gereği Elendi *
A25: 13 | B25: 11111111111 | C25: Örnek | D25: Örnek | E25: 70.50555 | F25: 72.56 | G25: Mevcut | H25: 42.30333 | I25: 29.024 | J25: 71.32733 | K25: Yönetmelik Gereği Elendi *
A26: 14 | B26: 11111111111 | C26: Örnek | D26: Örnek | E26: 70.60743 | F26: 72.03 | G26: Mevcut Değil | H26: 42.364458 | I26: 28.812 | J26: 71.176458 | K26: Başvuru Şartını Sağlamıyor (Talep Edilen alanda yüksek lisans/doktora yapıyor olduğunu gösterir belge yok)
A27: 15 | B27: 11111111111 | C27: Örnek | D27: Örnek | E27: 70.27563 | F27: 71.53 | G27: Mevcut | H27: 42.165378 | I27: 28.612 | J27: 70.777378 | K27: Başvuru Şartını Sağlamıyor (35 yaşını doldurmuş-Arş. Gör.)
A28: 16 | B28: 11111111111 | C28: Örnek | D28: Örnek | E28: 68 | F28: 95 | G28: Mevcut | H28: 40.8 | I28: 38 | J28: 78.8 | K28: Başvuru Şartını Sağlamıyor (Ales puanı yetersiz)
A29: 17 | B29: 11111111111 | C29: Örnek | D29: Örnek | E29: 80 | F29: 75 | G29: Mevcut | H29: 48 | I29: 30 | J29: 78 | K29: Başvuru Şartını Sağlamıyor (Lisans Mezuniyet alanı ilanla uyumlu değil)
A30: 18 | B30: 11111111111 | C30: Örnek | D30: Örnek | E30: 80 | F30: 45 | G30: Uygun Değil | H30: 48 | I30: 18 | J30: 66 | K30: Başvuru Şartını Sağlamıyor (Yabancı Dil Puanı Yetersiz)

Sheet Ön.Değ.Rapor
A1: T.C.
A2: BAYBURT ÜNİVERSİTESİ
A3: ÖĞRETİM ELEMANI ÖN DEĞERLENDİRME TUTANAĞI
A4: Üniversitemize bağlı birimlere, 2547 sayılı Kanunun ilgili maddeleri ve 09.11.2018 tarihli ve 30590 sayılı Resmi Gazetede yayımlanan "Öğretim Üyesi Dışındaki Öğretim Elemanı Kadrolarına Yapılacak Atamalarda Uygulanacak Merkezi Sınav İle Giriş Sınavlarına İlişkin Usul ve Esaslar Hakkında Yönetmelik” 10. Maddesi Uyarınca Lisans ve Ön Lisans Düzeyindeki Eğitim Veren Yerlere Alınacak Akademik Personele Ait Ön Değerlendirme Sonuç Tutanağı
A5: İlan No: | C5: =IF('Arş. Gör. Ön. Değ.'!C5="","",'Arş. Gör. Ön. Değ.'!C5) ->  | E5: Birimi: | H5: =IF('Arş. Gör. Ön. Değ.'!H5="","",'Arş. Gör. Ön. Değ.'!H5) -> ….. Fakültesi / Yüksekokulu
A6: İlan Tarihi: | C6: =IF('Arş. Gör. Ön. Değ.'!C6="","",'Arş. Gör. Ön. Değ.'!C6) -> …/.../.... | E6: Bölümü: | H6: =IF('Arş. Gör. Ön. Değ.'!H6="","",'Arş. Gör. Ön. Değ.'!H6) -> ….. Bölümü
A7: Kadro Unvanı: | C7: =IF('Arş. Gör. Ön. Değ.'!C7="","",'Arş. Gör. Ön. Değ.'!C7) -> Araştırma Görevlisi | E7: Anabilim Dalı: | H7: =IF('Arş. Gör. Ön. Değ.'!H7="","",'Arş. Gör. Ön. Değ.'!H7) -> ….. Anabilim Dalı
A8: Kadro Adedi: | C8: =IF('Arş. Gör. Ön. Değ.'!C8="","",'Arş. Gör. Ön. Değ.'!C8) ->  | E8: Öndeğerlendirme Tarihi: | H8: =IF('Arş. Gör. Ön. Değ.'!H8="","",'Arş. Gör. Ön. Değ.'!H8) -> …/.../....
A9: İlan Özel Şartı: | C9: =IF('Arş. Gör. Ön. Değ.'!C9="","",'Arş. Gör. Ön. Değ.'!C9) -> 
A10: SINAVIN YAPILACAĞI YER, TARİH ve SAAT : | E10: =IF('Arş. Gör. Ön. Değ.'!E10="","",'Arş. Gör. Ön. Değ.'!E10) -> ……... ../…/…. Günü Saat: …:….
A11: Sıra No | B11: Başvuranın | E11: Başvuru Şartı | H11: Ön Sıralama Değerlendirme Sonuçları
B12: T.C. Kimlik No | C12: Adı | D12: Soyadı | E12: Alanındaki Ales Puanı | F12: Yabancı Dil Puanı | G12: Talep Edilen Lisansüstü Alanda Öğrencilik | H12: ALES (%60) | I12: Yabancı Dil Puanı (%40) | J12: Toplam Puan | K12: Ön Değerlendirme Sonucu
A13: =IF('Arş. Gör. Ön. Değ.'!A13="","",'Arş. Gör. Ön. Değ.'!A13) -> 1 | B13: =IF('Arş. Gör. Ön. Değ.'!B13="","",LEFT('Arş. Gör. Ön. Değ.'!B13,3)&REPT("*",4)&RIGHT('Arş. Gör. Ön. Değ.'!B13,2)) -> 111****11 | C13: =IF('Arş. Gör. Ön. Değ.'!C13="","",IF(ISERR(FIND(" ",'Arş. Gör. Ön. Değ.'!C13))=TRUE,LEFT('Arş. Gör. Ön. Değ.'!C13,2)&REPT("*",3),LEFT('Arş. Gör. Ön. Değ.'!C13,2)&REPT("*",3)&" "&MID('Arş. Gör. Ön. Değ.'!C13,FIND(" ",'Arş. Gör. Ön. Değ.'!C13)+1,2)&REPT("*",3))) -> Ör*** | D13: =IF('Arş. Gör. Ön. Değ.'!D13="","",IF(ISERR(FIND(" ",'Arş. Gör. Ön. Değ.'!D13))=TRUE,LEFT('Arş. Gör. Ön. Değ.'!D13,2)&REPT("*",3),LEFT('Arş. Gör. Ön. Değ.'!D13,2)&REPT("*",3)&" "&MID('Arş. Gör. Ön. Değ.'!D13,FIND(" ",'Arş. Gör. Ön. Değ.'!D13)+1,2)&REPT("*",3))) -> Ör*** | E13: =IF('Arş. Gör. Ön. Değ.'!E13="","",'Arş. Gör. Ön. Değ.'!E13) -> 81.50555 | F13: =IF('Arş. Gör. Ön. Değ.'!F13="","",'Arş. Gör. Ön. Değ.'!F13) -> 81.56 | G13: =IF('Arş. Gör. Ön. Değ.'!G13="","",'Arş. Gör. Ön. Değ.'!G13) -> Mevcut | H13: =IF('Arş. Gör. Ön. Değ.'!H13="","",'Arş. Gör. Ön. Değ.'!H13) -> 48.90333 | I13: =IF('Arş. Gör. Ön. Değ.'!I13="","",'Arş. Gör. Ön. Değ.'!I13) -> 32.624 | J13: =IF('Arş. Gör. Ön. Değ.'!J13="","",'Arş. Gör. Ön. Değ.'!J13) -> 81.52733 | K13: =IF('Arş. Gör. Ön. Değ.'!K13="","",'Arş. Gör. Ön. Değ.'!K13) -> Sınava Girebilir
A14: =IF('Arş. Gör. Ön. Değ.'!A14="","",'Arş. Gör. Ön. Değ.'!A14) -> 2 | B14: =IF('Arş. Gör. Ön. Değ.'!B14="","",LEFT('Arş. Gör. Ön. Değ.'!B14,3)&REPT("*",4)&RIGHT('Arş. Gör. Ön. Değ.'!B14,2)) -> 111****11 | C14: =IF('Arş. Gör. Ön. Değ.'!C14="","",IF(ISERR(FIND(" ",'Arş. Gör. Ön. Değ.'!C14))=TRUE,LEFT('Arş. Gör. Ön. Değ.'!C14,2)&REPT("*",3),LEFT('Arş. Gör. Ön. Değ.'!C14,2)&REPT("*",3)&" "&MID('Arş. Gör. Ön. Değ.'!C14,FIND(" ",'Arş. Gör. Ön. Değ.'!C14)+1,2)&REPT("*",3))) -> Ör*** Ör*** | D14: =IF('Arş. Gör. Ön. Değ.'!D14="","",IF(ISERR(FIND(" ",'Arş. Gör. Ön. Değ.'!D14))=TRUE,LEFT('Arş. Gör. Ön. Değ.'!D14,2)&REPT("*",3),LEFT('Arş. Gör. Ön. Değ.'!D14,2)&REPT("*",3)&" "&MID('Arş. Gör. Ön. Değ.'!D14,FIND(" ",'Arş. Gör. Ön. Değ.'!D14)+1,2)&REPT("*",3))) -> Ör*** | E14: =IF('Arş. Gör. Ön. Değ.'!E14="","",'Arş. Gör. Ön. Değ.'!E14) -> 80.60743 | F14: =IF('Arş. Gör. Ön. Değ.'!F14="","",'Arş. Gör. Ön. Değ.'!F14) -> 82.03 | G14: =IF('Arş. Gör. Ön. Değ.'!G14="","",'Arş. Gör. Ön. Değ.'!G14) -> Mevcut | H14: =IF('Arş. Gör. Ön. Değ.'!H14="","",'Arş. Gör. Ön. Değ.'!H14) -> 48.364458 | I14: =IF('Arş. Gör. Ön. Değ.'!I14="","",'Arş. Gör. Ön. Değ.'!I14) -> 32.812 | J14: =IF('Arş. Gör. Ön. Değ.'!J14="","",'Arş. Gör. Ön. Değ.'!J14) -> 81.176458 | K14: =IF('Arş. Gör. Ön. Değ.'!K14="","",'Arş. Gör. Ön. Değ.'!K14) -> Sınava Girebilir
A15: =IF('Arş. Gör. Ön. Değ.'!A15="","",'Arş. Gör. Ön. Değ.'!A15) -> 3 | B15: =IF('Arş. Gör. Ön. Değ.'!B15="","",LEFT('Arş. Gör. Ön. Değ.'!B15,3)&REPT("*",4)&RIGHT('Arş. Gör. Ön. Değ.'!B15,2)) -> 111****11 | C15: =IF('Arş. Gör. Ön. Değ.'!C15="","",IF(ISERR(FIND(" ",'Arş. Gör. Ön. Değ.'!C15))=TRUE,LEFT('Arş. Gör. Ön. Değ.'!C15,2)&REPT("*",3),LEFT('Arş. Gör. Ön. Değ.'!C15,2)&REPT("*",3)&" "&MID('Arş. Gör. Ön. Değ.'!C15,FIND(" ",'Arş. Gör. Ön. Değ.'!C15)+1,2)&REPT("*",3))) -> Ör*** | D15: =IF('Arş. Gör. Ön. Değ.'!D15="","",IF(ISERR(FIND(" ",'Arş. Gör. Ön. Değ.'!D15))=TRUE,LEFT('Arş. Gör. Ön. Değ.'!D15,2)&REPT("*",3),LEFT('Arş. Gör. Ön. Değ.'!D15,2)&REPT("*",3)&" "&MID('Arş. Gör. Ön. Değ.'!D15,FIND(" ",'Arş. Gör. Ön. Değ.'!D15)+1,2)&REPT("*",3))) -> Ör*** Ör*** | E15: =IF('Arş. Gör. Ön. Değ.'!E15="","",'Arş. Gör. Ön. Değ.'!E15) -> 79.27563 | F15: =IF('Arş. Gör. Ön. Değ.'!F15="","",'Arş. Gör. Ön. Değ.'!F15) -> 82.53 | G15: =IF('Arş. Gör. Ön. Değ.'!G15="","",'Arş. Gör. Ön. Değ.'!G15) -> Mevcut | H15: =IF('Arş. Gör. Ön. Değ.'!H15="","",'Arş. Gör. Ön. Değ.'!H15) -> 47.565378 | I15: =IF('Arş. Gör. Ön. Değ.'!I15="","",'Arş. Gör. Ön. Değ.'!I15) -> 33.012 | J15: =IF('Arş. Gör. Ön. Değ.'!J15="","",'Arş. Gör. Ön. Değ.'!J15) -> 80.577378 | K15: =IF('Arş. Gör. Ön. Değ.'!K15="","",'Arş. Gör. Ön. Değ.'!K15) -> Sınava Girebilir
A16: =IF('Arş. Gör. Ön. Değ.'!A16="","",'Arş. Gör. Ön. Değ.'!A16) -> 4 | B16: =IF('Arş. Gör. Ön. Değ.'!B16="","",LEFT('Arş. Gör. Ön. Değ.'!B16,3)&REPT("*",4)&RIGHT('Arş. Gör. Ön. Değ.'!B16,2)) -> 111****11 | C16: =IF('Arş. Gör. Ön. Değ.'!C16="","",IF(ISERR(FIND(" ",'Arş. Gör. Ön. Değ.'!C16))=TRUE,LEFT('Arş. Gör. Ön. Değ.'!C16,2)&REPT("*",3),LEFT('Arş. Gör. Ön. Değ.'!C16,2)&REPT("*",3)&" "&MID('Arş. Gör. Ön. Değ.'!C16,FIND(" ",'Arş. Gör. Ön. Değ.'!C16)+1,2)&REPT("*",3))) -> Ör*** Ör*** | D16: =IF('Arş. Gör. Ön. Değ.'!D16="","",IF(ISERR(FIND(" ",'Arş. Gör. Ön. Değ.'!D16))=TRUE,LEFT('Arş. Gör. Ön. Değ.'!D16,2)&REPT("*",3),LEFT('Arş. Gör. Ön. Değ.'!D16,2)&REPT("*",3)&" "&MID('Arş. Gör. Ön. Değ.'!D16,FIND(" ",'Arş. Gör. Ön. Değ.'!D16)+1,2)&REPT("*",3))) -> Ör*** Ör*** | E16: =IF('Arş. Gör. Ön. Değ.'!E16="","",'Arş. Gör. Ön. Değ.'!E16) -> 78.11375 | F16: =IF('Arş. Gör. Ön. Değ.'!F16="","",'Arş. Gör. Ön. Değ.'!F16) -> 81.56 | G16: =IF('Arş. Gör. Ön. Değ.'!G16="","",'Arş. Gör. Ön. Değ.'!G16) -> Mevcut | H16: =IF('Arş. Gör. Ön. Değ.'!H16="","",'Arş. Gör. Ön. Değ.'!H16) -> 46.86825 | I16: =IF('Arş. Gör. Ön. Değ.'!I16="","",'Arş. Gör. Ön. Değ.'!I16) -> 32.624 | J16: =IF('Arş. Gör. Ön. Değ.'!J16="","",'Arş. Gör. Ön. Değ.'!J16) -> 79.49225 | K16: =IF('Arş. Gör. Ön. Değ.'!K16="","",'Arş. Gör. Ön. Değ.'!K16) -> Sınava Girebilir
A17: =IF('Arş. Gör. Ön. Değ.'!A17="","",'Arş. Gör. Ön. Değ.'!A17) -> 5 | B17: =IF('Arş. Gör. Ön. Değ.'!B17="","",LEFT('Arş. Gör. Ön. Değ.'!B17,3)&REPT("*",4)&RIGHT('Arş. Gör. Ön. Değ.'!B17,2)) -> 111****11 | C17: =IF('Arş. Gör. Ön. Değ.'!C17="","",IF(ISERR(FIND(" ",'Arş. Gör. Ön. Değ.'!C17))=TRUE,LEFT('Arş. Gör. Ön. Değ.'!C17,2)&REPT("*",3),LEFT('Arş. Gör. Ön. Değ.'!C17,2)&REPT("*",3)&" "&MID('Arş. Gör. Ön. Değ.'!C17,FIND(" ",'Arş. Gör. Ön. Değ.'!C17)+1,2)&REPT("*",3))) -> Ör*** | D17: =IF('Arş. Gör. Ön. Değ.'!D17="","",IF(ISERR(FIND(" ",'Arş. Gör. Ön. Değ.'!D17))=TRUE,LEFT('Arş. Gör. Ön. Değ.'!D17,2)&REPT("*",3),LEFT('Arş. Gör. Ön. Değ.'!D17,2)&REPT("*",3)&" "&MID('Arş. Gör. Ön. Değ.'!D17,FIND(" ",'Arş. Gör. Ön. Değ.'!D17)+1,2)&REPT("*",3))) -> Ör*** | E17: =IF('Arş. Gör. Ön. Değ.'!E17="","",'Arş. Gör. Ön. Değ.'!E17) -> 77.50555 | F17: =IF('Arş. Gör. Ön. Değ.'!F17="","",'Arş. Gör. Ön. Değ.'!F17) -> 80.56 | G17: =IF('Arş. Gör. Ön. Değ.'!G17="","",'Arş. Gör. Ön. Değ.'!G17) -> Mevcut | H17: =IF('Arş. Gör. Ön. Değ.'!H17="","",'Arş. Gör. Ön. Değ.'!H17) -> 46.50333 | I17: =IF('Arş. Gör. Ön. Değ.'!I17="","",'Arş. Gör. Ön. Değ.'!I17) -> 32.224 | J17: =IF('Arş. Gör. Ön. Değ.'!J17="","",'Arş. Gör. Ön. Değ.'!J17) -> 78.72733 | K17: =IF('Arş. Gör. Ön. Değ.'!K17="","",'Arş. Gör. Ön. Değ.'!K17) -> Sınava Girebilir
A18: =IF('Arş. Gör. Ön. Değ.'!A18="","",'Arş. Gör. Ön. Değ.'!A18) -> 6 | B18: =IF('Arş. Gör. Ön. Değ.'!B18="","",LEFT('Arş. Gör. Ön. Değ.'!B18,3)&REPT("*",4)&RIGHT('Arş. Gör. Ön. Değ.'!B18,2)) -> 111****11 | C18: =IF('Arş. Gör. Ön. Değ.'!C18="","",IF(ISERR(FIND(" ",'Arş. Gör. Ön. Değ.'!C18))=TRUE,LEFT('Arş. Gör. Ön. Değ.'!C18,2)&REPT("*",3),LEFT('Arş. Gör. Ön. Değ.'!C18,2)&REPT("*",3)&" "&MID('Arş. Gör. Ön. Değ.'!C18,FIND(" ",'Arş. Gör. Ön. Değ.'!C18)+1,2)&REPT("*",3))) -> Ör*** | D18: =IF('Arş. Gör. Ön. Değ.'!D18="","",IF(ISERR(FIND(" ",'Arş. Gör. Ön. Değ.'!D18))=TRUE,LEFT('Arş. Gör. Ön. Değ.'!D18,2)&REPT("*",3),LEFT('Arş. Gör. Ön. Değ.'!D18,2)&REPT("*",3)&" "&MID('Arş. Gör. Ön. Değ.'!D18,FIND(" ",'Arş. Gör. Ön. Değ.'!D18)+1,2)&REPT("*",3))) -> Ör*** | E18: =IF('Arş. Gör. Ön. Değ.'!E18="","",'Arş. Gör. Ön. Değ.'!E18) -> 76.60743 | F18: =IF('Arş. Gör. Ön. Değ.'!F18="","",'Arş. Gör. Ön. Değ.'!F18) -> 79.03 | G18: =IF('Arş. Gör. Ön. Değ.'!G18="","",'Arş. Gör. Ön. Değ.'!G18) -> Mevcut | H18: =IF('Arş. Gör. Ön. Değ.'!H18="","",'Arş. Gör. Ön. Değ.'!H18) -> 45.964458 | I18: =IF('Arş. Gör. Ön. Değ.'!I18="","",'Arş. Gör. Ön. Değ.'!I18) -> 31.612 | J18: =IF('Arş. Gör. Ön. Değ.'!J18="","",'Arş. Gör. Ön. Değ.'!J18) -> 77.576458 | K18: =IF('Arş. Gör. Ön. Değ.'!K18="","",'Arş. Gör. Ön. Değ.'!K18) -> Sınava Girebilir
A19: =IF('Arş. Gör. Ön. Değ.'!A19="","",'Arş. Gör. Ön. Değ.'!A19) -> 7 | B19: =IF('Arş. Gör. Ön. Değ.'!B19="","",LEFT('Arş. Gör. Ön. Değ.'!B19,3)&REPT("*",4)&RIGHT('Arş. Gör. Ön. Değ.'!B19,2)) -> 111****11 | C19: =IF('Arş. Gör. Ön. Değ.'!C19="","",IF(ISERR(FIND(" ",'Arş. Gör. Ön. Değ.'!C19))=TRUE,LEFT('Arş. Gör. Ön. Değ.'!C19,2)&REPT("*",3),LEFT('Arş. Gör. Ön. Değ.'!C19,2)&REPT("*",3)&" "&MID('Arş. Gör. Ön. Değ.'!C19,FIND(" ",'Arş. Gör. Ön. Değ.'!C19)+1,2)&REPT("*",3))) -> Ör*** | D19: =IF('Arş. Gör. Ön. Değ.'!D19="","",IF(ISERR(FIND(" ",'Arş. Gör. Ön. Değ.'!D19))=TRUE,LEFT('Arş. Gör. Ön. Değ.'!D19,2)&REPT("*",3),LEFT('Arş. Gör. Ön. Değ.'!D19,2)&REPT("*",3)&" "&MID('Arş. Gör. Ön. Değ.'!D19,FIND(" ",'Arş. Gör. Ön. Değ.'!D19)+1,2)&REPT("*",3))) -> Ör*** | E19: =IF('Arş. Gör. Ön. Değ.'!E19="","",'Arş. Gör. Ön. Değ.'!E19) -> 75.27563 | F19: =IF('Arş. Gör. Ön. Değ.'!F19="","",'Arş. Gör. Ön. Değ.'!F19) -> 78.53 | G19: =IF('Arş. Gör. Ön. Değ.'!G19="","",'Arş. Gör. Ön. Değ.'!G19) -> Mevcut | H19: =IF('Arş. Gör. Ön. Değ.'!H19="","",'Arş. Gör. Ön. Değ.'!H19) -> 45.165378 | I19: =IF('Arş. Gör. Ön. Değ.'!I19="","",'Arş. Gör. Ön. Değ.'!I19) -> 31.412 | J19: =IF('Arş. Gör. Ön. Değ.'!J19="","",'Arş. Gör. Ön. Değ.'!J19) -> 76.577378 | K19: =IF('Arş. Gör. Ön. Değ.'!K19="","",'Arş. Gör. Ön. Değ.'!K19) -> Sınava Girebilir
A20: =IF('Arş. Gör. Ön. Değ.'!A20="","",'Arş. Gör. Ön. Değ.'!A20) -> 8 | B20: =IF('Arş. Gör. Ön. Değ.'!B20="","",LEFT('Arş. Gör. Ön. Değ.'!B20,3)&REPT("*",4)&RIGHT('Arş. Gör. Ön. Değ.'!B20,2)) -> 111****11 | C20: =IF('Arş. Gör. Ön. Değ.'!C20="","",IF(ISERR(FIND(" ",'Arş. Gör. Ön. Değ.'!C20))=TRUE,LEFT('Arş. Gör. Ön. Değ.'!C20,2)&REPT("*",3),LEFT('Arş. Gör. Ön. Değ.'!C20,2)&REPT("*",3)&" "&MID('Arş. Gör. Ön. Değ.'!C20,FIND(" ",'Arş. Gör. Ön. Değ.'!C20)+1,2)&REPT("*",3))) -> Ör*** | D20: =IF('Arş. Gör. Ön. Değ.'!D20="","",IF(ISERR(FIND(" ",'Arş. Gör. Ön. Değ.'!D20))=TRUE,LEFT('Arş. Gör. Ön. Değ.'!D20,2)&REPT("*",3),LEFT('Arş. Gör. Ön. Değ.'!D20,2)&REPT("*",3)&" "&MID('Arş. Gör. Ön. Değ.'!D20,FIND(" ",'Arş. Gör. Ön. Değ.'!D20)+1,2)&REPT("*",3))) -> Ör*** | E20: =IF('Arş. Gör. Ön. Değ.'!E20="","",'Arş. Gör. Ön. Değ.'!E20) -> 74.11375 | F20: =IF('Arş. Gör. Ön. Değ.'!F20="","",'Arş. Gör. Ön. Değ.'!F20) -> 77.56 | G20: =IF('Arş. Gör. Ön. Değ.'!G20="","",'Arş. Gör. Ön. Değ.'!G20) -> Mevcut | H20: =IF('Arş. Gör. Ön. Değ.'!H20="","",'Arş. Gör. Ön. Değ.'!H20) -> 44.46825 | I20: =IF('Arş. Gör. Ön. Değ.'!I20="","",'Arş. Gör. Ön. Değ.'!I20) -> 31.024 | J20: =IF('Arş. Gör. Ön. Değ.'!J20="","",'Arş. Gör. Ön. Değ.'!J20) -> 75.49225 | K20: =IF('Arş. Gör. Ön. Değ.'!K20="","",'Arş. Gör. Ön. Değ.'!K20) -> Sınava Girebilir
A21: =IF('Arş. Gör. Ön. Değ.'!A21="","",'Arş. Gör. Ön. Değ.'!A21) -> 9 | B21: =IF('Arş. Gör. Ön. Değ.'!B21="","",LEFT('Arş. Gör. Ön. Değ.'!B21,3)&REPT("*",4)&RIGHT('Arş. Gör. Ön. Değ.'!B21,2)) -> 111****11 | C21: =IF('Arş. Gör. Ön. Değ.'!C21="","",IF(ISERR(FIND(" ",'Arş. Gör. Ön. Değ.'!C21))=TRUE,LEFT('Arş. Gör. Ön. Değ.'!C21,2)&REPT("*",3),LEFT('Arş. Gör. Ön. Değ.'!C21,2)&REPT("*",3)&" "&MID('Arş. Gör. Ön. Değ.'!C21,FIND(" ",'Arş. Gör. Ön. Değ.'!C21)+1,2)&REPT("*",3))) -> Ör*** | D21: =IF('Arş. Gör. Ön. Değ.'!D21="","",IF(ISERR(FIND(" ",'Arş. Gör. Ön. Değ.'!D21))=TRUE,LEFT('Arş. Gör. Ön. Değ.'!D21,2)&REPT("*",3),LEFT('Arş. Gör. Ön. Değ.'!D21,2)&REPT("*",3)&" "&MID('Arş. Gör. Ön. Değ.'!D21,FIND(" ",'Arş. Gör. Ön. Değ.'!D21)+1,2)&REPT("*",3))) -> Ör*** | E21: =IF('Arş. Gör. Ön. Değ.'!E21="","",'Arş. Gör. Ön. Değ.'!E21) -> 73.50555 | F21: =IF('Arş. Gör. Ön. Değ.'!F21="","",'Arş. Gör. Ön. Değ.'!F21) -> 76.56 | G21: =IF('Arş. Gör. Ön. Değ.'!G21="","",'Arş. Gör. Ön. Değ.'!G21) -> Mevcut | H21: =IF('Arş. Gör. Ön. Değ.'!H21="","",'Arş. Gör. Ön. Değ.'!H21) -> 44.10333 | I21: =IF('Arş. Gör. Ön. Değ.'!I21="","",'Arş. Gör. Ön. Değ.'!I21) -> 30.624 | J21: =IF('Arş. Gör. Ön. Değ.'!J21="","",'Arş. Gör. Ön. Değ.'!J21) -> 74.72733 | K21: =IF('Arş. Gör. Ön. Değ.'!K21="","",'Arş. Gör. Ön. Değ.'!K21) -> Sınava Girebilir
A22: =IF('Arş. Gör. Ön. Değ.'!A22="","",'Arş. Gör. Ön. Değ.'!A22) -> 10 | B22: =IF('Arş. Gör. Ön. Değ.'!B22="","",LEFT('Arş. Gör. Ön. Değ.'!B22,3)&REPT("*",4)&RIGHT('Arş. Gör. Ön. Değ.'!B22,2)) -> 111****11 | C22: =IF('Arş. Gör. Ön. Değ.'!C22="","",IF(ISERR(FIND(" ",'Arş. Gör. Ön. Değ.'!C22))=TRUE,LEFT('Arş. Gör. Ön. Değ.'!C22,2)&REPT("*",3),LEFT('Arş. Gör. Ön. Değ.'!C22,2)&REPT("*",3)&" "&MID('Arş. Gör. Ön. Değ.'!C22,FIND(" ",'Arş. Gör. Ön. Değ.'!C22)+1,2)&REPT("*",3))) -> Ör*** | D22: =IF('Arş. Gör. Ön. Değ.'!D22="","",IF(ISERR(FIND(" ",'Arş. Gör. Ön. Değ.'!D22))=TRUE,LEFT('Arş. Gör. Ön. Değ.'!D22,2)&REPT("*",3),LEFT('Arş. Gör. Ön. Değ.'!D22,2)&REPT("*",3)&" "&MID('Arş. Gör. Ön. Değ.'!D22,FIND(" ",'Arş. Gör. Ön. Değ.'!D22)+1,2)&REPT("*",3))) -> Ör*** | E22: =IF('Arş. Gör. Ön. Değ.'!E22="","",'Arş. Gör. Ön. Değ.'!E22) -> 72.60743 | F22: =IF('Arş. Gör. Ön. Değ.'!F22="","",'Arş. Gör. Ön. Değ.'!F22) -> 75.03 | G22: =IF('Arş. Gör. Ön. Değ.'!G22="","",'Arş. Gör. Ön. Değ.'!G22) -> Mevcut | H22: =IF('Arş. Gör. Ön. Değ.'!H22="","",'Arş. Gör. Ön. Değ.'!H22) -> 43.564458 | I22: =IF('Arş. Gör. Ön. Değ.'!I22="","",'Arş. Gör. Ön. Değ.'!I22) -> 30.012 | J22: =IF('Arş. Gör. Ön. Değ.'!J22="","",'Arş. Gör. Ön. Değ.'!J22) -> 73.576458 | K22: =IF('Arş. Gör. Ön. Değ.'!K22="","",'Arş. Gör. Ön. Değ.'!K22) -> Sınava Girebilir
A23: =IF('Arş. Gör. Ön. Değ.'!A23="","",'Arş. Gör. Ön. Değ.'!A23) -> 11 | B23: =IF('Arş. Gör. Ön. Değ.'!B23="","",LEFT('Arş. Gör. Ön. Değ.'!B23,3)&REPT("*",4)&RIGHT('Arş. Gör. Ön. Değ.'!B23,2)) -> 111****11 | C23: =IF('Arş. Gör. Ön. Değ.'!C23="","",IF(ISERR(FIND(" ",'Arş. Gör. Ön. Değ.'!C23))=TRUE,LEFT('Arş. Gör. Ön. Değ.'!C23,2)&REPT("*",3),LEFT('Arş. Gör. Ön. Değ.'!C23,2)&REPT("*",3)&" "&MID('Arş. Gör. Ön. Değ.'!C23,FIND(" ",'Arş. Gör. Ön. Değ.'!C23)+1,2)&REPT("*",3))) -> Ör*** | D23: =IF('Arş. Gör. Ön. Değ.'!D23="","",IF(ISERR(FIND(" ",'Arş. Gör. Ön. Değ.'!D23))=TRUE,LEFT('Arş. Gör. Ön. Değ.'!D23,2)&REPT("*",3),LEFT('Arş. Gör. Ön. Değ.'!D23,2)&REPT("*",3)&" "&MID('Arş. Gör. Ön. Değ.'!D23,FIND(" ",'Arş. Gör. Ön. Değ.'!D23)+1,2)&REPT("*",3))) -> Ör*** | E23: =IF('Arş. Gör. Ön. Değ.'!E23="","",'Arş. Gör. Ön. Değ.'!E23) -> 71.27563 | F23: =IF('Arş. Gör. Ön. Değ.'!F23="","",'Arş. Gör. Ön. Değ.'!F23) -> 74.53 | G23: =IF('Arş. Gör. Ön. Değ.'!G23="","",'Arş. Gör. Ön. Değ.'!G23) -> Mevcut | H23: =IF('Arş. Gör. Ön. Değ.'!H23="","",'Arş. Gör. Ön. Değ.'!H23) -> 42.765378 | I23: =IF('Arş. Gör. Ön. Değ.'!I23="","",'Arş. Gör. Ön. Değ.'!I23) -> 29.812 | J23: =IF('Arş. Gör. Ön. Değ.'!J23="","",'Arş. Gör. Ön. Değ.'!J23) -> 72.577378 | K23: =IF('Arş. Gör. Ön. Değ.'!K23="","",'Arş. Gör. Ön. Değ.'!K23) -> Yönetmelik Gereği Elendi *
A24: =IF('Arş. Gör. Ön. Değ.'!A24="","",'Arş. Gör. Ön. Değ.'!A24) -> 12 | B24: =IF('Arş. Gör. Ön. Değ.'!B24="","",LEFT('Arş. Gör. Ön. Değ.'!B24,3)&REPT("*",4)&RIGHT('Arş. Gör. Ön. Değ.'!B24,2)) -> 111****11 | C24: =IF('Arş. Gör. Ön. Değ.'!C24="","",IF(ISERR(FIND(" ",'Arş. Gör. Ön. Değ.'!C24))=TRUE,LEFT('Arş. Gör. Ön. Değ.'!C24,2)&REPT("*",3),LEFT('Arş. Gör. Ön. Değ.'!C24,2)&REPT("*",3)&" "&MID('Arş. Gör. Ön. Değ.'!C24,FIND(" ",'Arş. Gör. Ön. Değ.'!C24)+1,2)&REPT("*",3))) -> Ör*** | D24: =IF('Arş. Gör. Ön. Değ.'!D24="","",IF(ISERR(FIND(" ",'Arş. Gör. Ön. Değ.'!D24))=TRUE,LEFT('Arş. Gör. Ön. Değ.'!D24,2)&REPT("*",3),LEFT('Arş. Gör. Ön. Değ.'!D24,2)&REPT("*",3)&" "&MID('Arş. Gör. Ön. Değ.'!D24,FIND(" ",'Arş. Gör. Ön. Değ.'!D24)+1,2)&REPT("*",3))) -> Ör*** | E24: =IF('Arş. Gör. Ön. Değ.'!E24="","",'Arş. Gör. Ön. Değ.'!E24) -> 70.11375 | F24: =IF('Arş. Gör. Ön. Değ.'!F24="","",'Arş. Gör. Ön. Değ.'!F24) -> 73.56 | G24: =IF('Arş. Gör. Ön. Değ.'!G24="","",'Arş. Gör. Ön. Değ.'!G24) -> Mevcut | H24: =IF('Arş. Gör. Ön. Değ.'!H24="","",'Arş. Gör. Ön. Değ.'!H24) -> 42.06825 | I24: =IF('Arş. Gör. Ön. Değ.'!I24="","",'Arş. Gör. Ön. Değ.'!I24) -> 29.424 | J24: =IF('Arş. Gör. Ön. Değ.'!J24="","",'Arş. Gör. Ön. Değ.'!J24) -> 71.49225 | K24: =IF('Arş. Gör. Ön. Değ.'!K24="","",'Arş. Gör. Ön. Değ.'!K24) -> Yönetmelik Gereği Elendi *
A25: =IF('Arş. Gör. Ön. Değ.'!A25="","",'Arş. Gör. Ön. Değ.'!A25) -> 13 | B25: =IF('Arş. Gör. Ön. Değ.'!B25="","",LEFT('Arş. Gör. Ön. Değ.'!B25,3)&REPT("*",4)&RIGHT('Arş. Gör. Ön. Değ.'!B25,2)) -> 111****11 | C25: =IF('Arş. Gör. Ön. Değ.'!C25="","",IF(ISERR(FIND(" ",'Arş. Gör. Ön. Değ.'!C25))=TRUE,LEFT('Arş. Gör. Ön. Değ.'!C25,2)&REPT("*",3),LEFT('Arş. Gör. Ön. Değ.'!C25,2)&REPT("*",3)&" "&MID('Arş. Gör. Ön. Değ.'!C25,FIND(" ",'Arş. Gör. Ön. Değ.'!C25)+1,2)&REPT("*",3))) -> Ör*** | D25: =IF('Arş. Gör. Ön. Değ.'!D25="","",IF(ISERR(FIND(" ",'Arş. Gör. Ön. Değ.'!D25))=TRUE,LEFT('Arş. Gör. Ön. Değ.'!D25,2)&REPT("*",3),LEFT('Arş. Gör. Ön. Değ.'!D25,2)&REPT("*",3)&" "&MID('Arş. Gör. Ön. Değ.'!D25,FIND(" ",'Arş. Gör. Ön. Değ.'!D25)+1,2)&REPT("*",3))) -> Ör*** | E25: =IF('Arş. Gör. Ön. Değ.'!E25="","",'Arş. Gör. Ön. Değ.'!E25) -> 70.50555 | F25: =IF('Arş. Gör. Ön. Değ.'!F25="","",'Arş. Gör. Ön. Değ.'!F25) -> 72.56 | G25: =IF('Arş. Gör. Ön. Değ.'!G25="","",'Arş. Gör. Ön. Değ.'!G25) -> Mevcut | H25: =IF('Arş. Gör. Ön. Değ.'!H25="","",'Arş. Gör. Ön. Değ.'!H25) -> 42.30333 | I25: =IF('Arş. Gör. Ön. Değ.'!I25="","",'Arş. Gör. Ön. Değ.'!I25) -> 29.024 | J25: =IF('Arş. Gör. Ön. Değ.'!J25="","",'Arş. Gör. Ön. Değ.'!J25) -> 71.32733 | K25: =IF('Arş. Gör. Ön. Değ.'!K25="","",'Arş. Gör. Ön. Değ.'!K25) -> Yönetmelik Gereği Elendi *
A26: =IF('Arş. Gör. Ön. Değ.'!A26="","",'Arş. Gör. Ön. Değ.'!A26) -> 14 | B26: =IF('Arş. Gör. Ön. Değ.'!B26="","",LEFT('Arş. Gör. Ön. Değ.'!B26,3)&REPT("*",4)&RIGHT('Arş. Gör. Ön. Değ.'!B26,2)) -> 111****11 | C26: =IF('Arş. Gör. Ön. Değ.'!C26="","",IF(ISERR(FIND(" ",'Arş. Gör. Ön. Değ.'!C26))=TRUE,LEFT('Arş. Gör. Ön. Değ.'!C26,2)&REPT("*",3),LEFT('Arş. Gör. Ön. Değ.'!C26,2)&REPT("*",3)&" "&MID('Arş. Gör. Ön. Değ.'!C26,FIND(" ",'Arş. Gör. Ön. Değ.'!C26)+1,2)&REPT("*",3))) -> Ör*** | D26: =IF('Arş. Gör. Ön. Değ.'!D26="","",IF(ISERR(FIND(" ",'Arş. Gör. Ön. Değ.'!D26))=TRUE,LEFT('Arş. Gör. Ön. Değ.'!D26,2)&REPT("*",3),LEFT('Arş. Gör. Ön. Değ.'!D26,2)&REPT("*",3)&" "&MID('Arş. Gör. Ön. Değ.'!D26,FIND(" ",'Arş. Gör. Ön. Değ.'!D26)+1,2)&REPT("*",3))) -> Ör*** | E26: =IF('Arş. Gör. Ön. Değ.'!E26="","",'Arş. Gör. Ön. Değ.'!E26) -> 70.60743 | F26: =IF('Arş. Gör. Ön. Değ.'!F26="","",'Arş. Gör. Ön. Değ.'!F26) -> 72.03 | G26: =IF('Arş. Gör. Ön. Değ.'!G26="","",'Arş. Gör. Ön. Değ.'!G26) -> Mevcut Değil | H26: =IF('Arş. Gör. Ön. Değ.'!H26="","",'Arş. Gör. Ön. Değ.'!H26) -> 42.364458 | I26: =IF('Arş. Gör. Ön. Değ.'!I26="","",'Arş. Gör. Ön. Değ.'!I26) -> 28.812 | J26: =IF('Arş. Gör. Ön. Değ.'!J26="","",'Arş. Gör. Ön. Değ.'!J26) -> 71.176458 | K26: =IF('Arş. Gör. Ön. Değ.'!K26="","",'Arş. Gör. Ön. Değ.'!K26) -> Başvuru Şartını Sağlamıyor (Talep Edilen alanda yüksek lisans/doktora yapıyor olduğunu gösterir belge yok)
A27: =IF('Arş. Gör. Ön. Değ.'!A27="","",'Arş. Gör. Ön. Değ.'!A27) -> 15 | B27: =IF('Arş. Gör. Ön. Değ.'!B27="","",LEFT('Arş. Gör. Ön. Değ.'!B27,3)&REPT("*",4)&RIGHT('Arş. Gör. Ön. Değ.'!B27,2)) -> 111****11 | C27: =IF('Arş. Gör. Ön. Değ.'!C27="","",IF(ISERR(FIND(" ",'Arş. Gör. Ön. Değ.'!C27))=TRUE,LEFT('Arş. Gör. Ön. Değ.'!C27,2)&REPT("*",3),LEFT('Arş. Gör. Ön. Değ.'!C27,2)&REPT("*",3)&" "&MID('Arş. Gör. Ön. Değ.'!C27,FIND(" ",'Arş. Gör. Ön. Değ.'!C27)+1,2)&REPT("*",3))) -> Ör*** | D27: =IF('Arş. Gör. Ön. Değ.'!D27="","",IF(ISERR(FIND(" ",'Arş. Gör. Ön. Değ.'!D27))=TRUE,LEFT('Arş. Gör. Ön. Değ.'!D27,2)&REPT("*",3),LEFT('Arş. Gör. Ön. Değ.'!D27,2)&REPT("*",3)&" "&MID('Arş. Gör. Ön. Değ.'!D27,FIND(" ",'Arş. Gör. Ön. Değ.'!D27)+1,2)&REPT("*",3))) -> Ör*** | E27: =IF('Arş. Gör. Ön. Değ.'!E27="","",'Arş. Gör. Ön. Değ.'!E27) -> 70.27563 | F27: =IF('Arş. Gör. Ön. Değ.'!F27="","",'Arş. Gör. Ön. Değ.'!F27) -> 71.53 | G27: =IF('Arş. Gör. Ön. Değ.'!G27="","",'Arş. Gör. Ön. Değ.'!G27) -> Mevcut | H27: =IF('Arş. Gör. Ön. Değ.'!H27="","",'Arş. Gör. Ön. Değ.'!H27) -> 42.165378 | I27: =IF('Arş. Gör. Ön. Değ.'!I27="","",'Arş. Gör. Ön. Değ.'!I27) -> 28.612 | J27: =IF('Arş. Gör. Ön. Değ.'!J27="","",'Arş. Gör. Ön. Değ.'!J27) -> 70.777378 | K27: =IF('Arş. Gör. Ön. Değ.'!K27="","",'Arş. Gör. Ön. Değ.'!K27) -> Başvuru Şartını Sağlamıyor (35 yaşını doldurmuş-Arş. Gör.)
A28: =IF('Arş. Gör. Ön. Değ.'!A28="","",'Arş. Gör. Ön. Değ.'!A28) -> 16 | B28: =IF('Arş. Gör. Ön. Değ.'!B28="","",LEFT('Arş. Gör. Ön. Değ.'!B28,3)&REPT("*",4)&RIGHT('Arş. Gör. Ön. Değ.'!B28,2)) -> 111****11 | C28: =IF('Arş. Gör. Ön. Değ.'!C28="","",IF(ISERR(FIND(" ",'Arş. Gör. Ön. Değ.'!C28))=TRUE,LEFT('Arş. Gör. Ön. Değ.'!C28,2)&REPT("*",3),LEFT('Arş. Gör. Ön. Değ.'!C28,2)&REPT("*",3)&" "&MID('Arş. Gör. Ön. Değ.'!C28,FIND(" ",'Arş. Gör. Ön. Değ.'!C28)+1,2)&REPT("*",3))) -> Ör*** | D28: =IF('Arş. Gör. Ön. Değ.'!D28="","",IF(ISERR(FIND(" ",'Arş. Gör. Ön. Değ.'!D28))=TRUE,LEFT('Arş. Gör. Ön. Değ.'!D28,2)&REPT("*",3),LEFT('Arş. Gör. Ön. Değ.'!D28,2)&REPT("*",3)&" "&MID('Arş. Gör. Ön. Değ.'!D28,FIND(" ",'Arş. Gör. Ön. Değ.'!D28)+1,2)&REPT("*",3))) -> Ör*** | E28: =IF('Arş. Gör. Ön. Değ.'!E28="","",'Arş. Gör. Ön. Değ.'!E28) -> 68 | F28: =IF('Arş. Gör. Ön. Değ.'!F28="","",'Arş. Gör. Ön. Değ.'!F28) -> 95 | G28: =IF('Arş. Gör. Ön. Değ.'!G28="","",'Arş. Gör. Ön. Değ.'!G28) -> Mevcut | H28: =IF('Arş. Gör. Ön. Değ.'!H28="","",'Arş. Gör. Ön. Değ.'!H28) -> 40.8 | I28: =IF('Arş. Gör. Ön. Değ.'!I28="","",'Arş. Gör. Ön. Değ.'!I28) -> 38 | J28: =IF('Arş. Gör. Ön. Değ.'!J28="","",'Arş. Gör. Ön. Değ.'!J28) -> 78.8 | K28: =IF('Arş. Gör. Ön. Değ.'!K28="","",'Arş. Gör. Ön. Değ.'!K28) -> Başvuru Şartını Sağlamıyor (Ales puanı yetersiz)
A29: =IF('Arş. Gör. Ön. Değ.'!A29="","",'Arş. Gör. Ön. Değ.'!A29) -> 17 | B29: =IF('Arş. Gör. Ön. Değ.'!B29="","",LEFT('Arş. Gör. Ön. Değ.'!B29,3)&REPT("*",4)&RIGHT('Arş. Gör. Ön. Değ.'!B29,2)) -> 111****11 | C29: =IF('Arş. Gör. Ön. Değ.'!C29="","",IF(ISERR(FIND(" ",'Arş. Gör. Ön. Değ.'!C29))=TRUE,LEFT('Arş. Gör. Ön. Değ.'!C29,2)&REPT("*",3),LEFT('Arş. Gör. Ön. Değ.'!C29,2)&REPT("*",3)&" "&MID('Arş. Gör. Ön. Değ.'!C29,FIND(" ",'Arş. Gör. Ön. Değ.'!C29)+1,2)&REPT("*",3))) -> Ör*** | D29: =IF('Arş. Gör. Ön. Değ.'!D29="","",IF(ISERR(FIND(" ",'Arş. Gör. Ön. Değ.'!D29))=TRUE,LEFT('Arş. Gör. Ön. Değ.'!D29,2)&REPT("*",3),LEFT('Arş. Gör. Ön. Değ.'!D29,2)&REPT("*",3)&" "&MID('Arş. Gör. Ön. Değ.'!D29,FIND(" ",'Arş. Gör. Ön. Değ.'!D29)+1,2)&REPT("*",3))) -> Ör*** | E29: =IF('Arş. Gör. Ön. Değ.'!E29="","",'Arş. Gör. Ön. Değ.'!E29) -> 80 | F29: =IF('Arş. Gör. Ön. Değ.'!F29="","",'Arş. Gör. Ön. Değ.'!F29) -> 75 | G29: =IF('Arş. Gör. Ön. Değ.'!G29="","",'Arş. Gör. Ön. Değ.'!G29) -> Mevcut | H29: =IF('Arş. Gör. Ön. Değ.'!H29="","",'Arş. Gör. Ön. Değ.'!H29) -> 48 | I29: =IF('Arş. Gör. Ön. Değ.'!I29="","",'Arş. Gör. Ön. Değ.'!I29) -> 30 | J29: =IF('Arş. Gör. Ön. Değ.'!J29="","",'Arş. Gör. Ön. Değ.'!J29) -> 78 | K29: =IF('Arş. Gör. Ön. Değ.'!K29="","",'Arş. Gör. Ön. Değ.'!K29) -> Başvuru Şartını Sağlamıyor (Lisans Mezuniyet alanı ilanla uyumlu değil)
A30: =IF('Arş. Gör. Ön. Değ.'!A30="","",'Arş. Gör. Ön. Değ.'!A30) -> 18 | B30: =IF('Arş. Gör. Ön. Değ.'!B30="","",LEFT('Arş. Gör. Ön. Değ.'!B30,3)&REPT("*",4)&RIGHT('Arş. Gör. Ön. Değ.'!B30,2)) -> 111****11 | C30: =IF('Arş. Gör. Ön. Değ.'!C30="","",IF(ISERR(FIND(" ",'Arş. Gör. Ön. Değ.'!C30))=TRUE,LEFT('Arş. Gör. Ön. Değ.'!C30,2)&REPT("*",3),LEFT('Arş. Gör. Ön. Değ.'!C30,2)&REPT("*",3)&" "&MID('Arş. Gör. Ön. Değ.'!C30,FIND(" ",'Arş. Gör. Ön. Değ.'!C30)+1,2)&REPT("*",3))) -> Ör*** | D30: =IF('Arş. Gör. Ön. Değ.'!D30="","",IF(ISERR(FIND(" ",'Arş. Gör. Ön. Değ.'!D30))=TRUE,LEFT('Arş. Gör. Ön. Değ.'!D30,2)&REPT("*",3),LEFT('Arş. Gör. Ön. Değ.'!D30,2)&REPT("*",3)&" "&MID('Arş. Gör. Ön. Değ.'!D30,FIND(" ",'Arş. Gör. Ön. Değ.'!D30)+1,2)&REPT("*",3))) -> Ör*** | E30: =IF('Arş. Gör. Ön. Değ.'!E30="","",'Arş. Gör. Ön. Değ.'!E30) -> 80 | F30: =IF('Arş. Gör. Ön. Değ.'!F30="","",'Arş. Gör. Ön. Değ.'!F30) -> 45 | G30: =IF('Arş. Gör. Ön. Değ.'!G30="","",'Arş. Gör. Ön. Değ.'!G30) -> Uygun Değil | H30: =IF('Arş. Gör. Ön. Değ.'!H30="","",'Arş. Gör. Ön. Değ.'!H30) -> 48 | I30: =IF('Arş. Gör. Ön. Değ.'!I30="","",'Arş. Gör. Ön. Değ.'!I30) -> 18 | J30: =IF('Arş. Gör. Ön. Değ.'!J30="","",'Arş. Gör. Ön. Değ.'!J30) -> 66 | K30: =IF('Arş. Gör. Ön. Değ.'!K30="","",'Arş. Gör. Ön. Değ.'!K30) -> Başvuru Şartını Sağlamıyor (Yabancı Dil Puanı Yetersiz)
A31: =IF('Arş. Gör. Ön. Değ.'!A31="","",'Arş. Gör. Ön. Değ.'!A31) ->  | B31: =IF('Arş. Gör. Ön. Değ.'!B31="","",LEFT('Arş. Gör. Ön. Değ.'!B31,3)&REPT("*",4)&RIGHT('Arş. Gör. Ön. Değ.'!B31,2)) ->  | C31: =IF('Arş. Gör. Ön. Değ.'!C31="","",IF(ISERR(FIND(" ",'Arş. Gör. Ön. Değ.'!C31))=TRUE,LEFT('Arş. Gör. Ön. Değ.'!C31,2)&REPT("*",3),LEFT('Arş. Gör. Ön. Değ.'!C31,2)&REPT("*",3)&" "&MID('Arş. Gör. Ön. Değ.'!C31,FIND(" ",'Arş. Gör. Ön. Değ.'!C31)+1,2)&REPT("*",3))) ->  | D31: =IF('Arş. Gör. Ön. Değ.'!D31="","",IF(ISERR(FIND(" ",'Arş. Gör. Ön. Değ.'!D31))=TRUE,LEFT('Arş. Gör. Ön. Değ.'!D31,2)&REPT("*",3),LEFT('Arş. Gör. Ön. Değ.'!D31,2)&REPT("*",3)&" "&MID('Arş. Gör. Ön. Değ.'!D31,FIND(" ",'Arş. Gör. Ön. Değ.'!D31)+1,2)&REPT("*",3))) ->  | E31: =IF('Arş. Gör. Ön. Değ.'!E31="","",'Arş. Gör. Ön. Değ.'!E31) ->  | F31: =IF('Arş. Gör. Ön. Değ.'!F31="","",'Arş. Gör. Ön. Değ.'!F31) ->  | G31: =IF('Arş. Gör. Ön. Değ.'!G31="","",'Arş. Gör. Ön. Değ.'!G31) ->  | H31: =IF('Arş. Gör. Ön. Değ.'!H31="","",'Arş. Gör. Ön. Değ.'!H31) ->  | I31: =IF('Arş. Gör. Ön. Değ.'!I31="","",'Arş. Gör. Ön. Değ.'!I31) ->  | J31: =IF('Arş. Gör. Ön. Değ.'!J31="","",'Arş. Gör. Ön. Değ.'!J31) ->  | K31: =IF('Arş. Gör. Ön. Değ.'!K31="","",'Arş. Gör. Ön. Değ.'!K31) -> 
A32: =IF('Arş. Gör. Ön. Değ.'!A32="","",'Arş. Gör. Ön. Değ.'!A32) ->  | B32: =IF('Arş. Gör. Ön. Değ.'!B32="","",LEFT('Arş. Gör. Ön. Değ.'!B32,3)&REPT("*",4)&RIGHT('Arş. Gör. Ön. Değ.'!B32,2)) ->  | C32: =IF('Arş. Gör. Ön. Değ.'!C32="","",IF(ISERR(FIND(" ",'Arş. Gör. Ön. Değ.'!C32))=TRUE,LEFT('Arş. Gör. Ön. Değ.'!C32,2)&REPT("*",3),LEFT('Arş. Gör. Ön. Değ.'!C32,2)&REPT("*",3)&" "&MID('Arş. Gör. Ön. Değ.'!C32,FIND(" ",'Arş. Gör. Ön. Değ.'!C32)+1,2)&REPT("*",3))) ->  | D32: =IF('Arş. Gör. Ön. Değ.'!D32="","",IF(ISERR(FIND(" ",'Arş. Gör. Ön. Değ.'!D32))=TRUE,LEFT('Arş. Gör. Ön. Değ.'!D32,2)&REPT("*",3),LEFT('Arş. Gör. Ön. Değ.'!D32,2)&REPT("*",3)&" "&MID('Arş. Gör. Ön. Değ.'!D32,FIND(" ",'Arş. Gör. Ön. Değ.'!D32)+1,2)&REPT("*",3))) ->  | E32: =IF('Arş. Gör. Ön. Değ.'!E32="","",'Arş. Gör. Ön. Değ.'!E32) ->  | F32: =IF('Arş. Gör. Ön. Değ.'!F32="","",'Arş. Gör. Ön. Değ.'!F32) ->  | G32: =IF('Arş. Gör. Ön. Değ.'!G32="","",'Arş. Gör. Ön. Değ.'!G32) ->  | H32: =IF('Arş. Gör. Ön. Değ.'!H32="","",'Arş. Gör. Ön. Değ.'!H32) ->  | I32: =IF('Arş. Gör. Ön. Değ.'!I32="","",'Arş. Gör. Ön. Değ.'!I32) ->  | J32: =IF('Arş. Gör. Ön. Değ.'!J32="","",'Arş. Gör. Ön. Değ.'!J32) ->  | K32: =IF('Arş. Gör. Ön. Değ.'!K32="","",'Arş. Gör. Ön. Değ.'!K32) -> 
A33: =IF('Arş. Gör. Ön. Değ.'!A33="","",'Arş. Gör. Ön. Değ.'!A33) ->  | B33: =IF('Arş. Gör. Ön. Değ.'!B33="","",LEFT('Arş. Gör. Ön. Değ.'!B33,3)&REPT("*",4)&RIGHT('Arş. Gör. Ön. Değ.'!B33,2)) ->  | C33: =IF('Arş. Gör. Ön. Değ.'!C33="","",IF(ISERR(FIND(" ",'Arş. Gör. Ön. Değ.'!C33))=TRUE,LEFT('Arş. Gör. Ön. Değ.'!C33,2)&REPT("*",3),LEFT('Arş. Gör. Ön. Değ.'!C33,2)&REPT("*",3)&" "&MID('Arş. Gör. Ön. Değ.'!C33,FIND(" ",'Arş. Gör. Ön. Değ.'!C33)+1,2)&REPT("*",3))) ->  | D33: =IF('Arş. Gör. Ön. Değ.'!D33="","",IF(ISERR(FIND(" ",'Arş. Gör. Ön. Değ.'!D33))=TRUE,LEFT('Arş. Gör. Ön. Değ.'!D33,2)&REPT("*",3),LEFT('Arş. Gör. Ön. Değ.'!D33,2)&REPT("*",3)&" "&MID('Arş. Gör. Ön. Değ.'!D33,FIND(" ",'Arş. Gör. Ön. Değ.'!D33)+1,2)&REPT("*",3))) ->  | E33: =IF('Arş. Gör. Ön. Değ.'!E33="","",'Arş. Gör. Ön. Değ.'!E33) ->  | F33: =IF('Arş. Gör. Ön. Değ.'!F33="","",'Arş. Gör. Ön. Değ.'!F33) ->  | G33: =IF('Arş. Gör. Ön. Değ.'!G33="","",'Arş. Gör. Ön. Değ.'!G33) ->  | H33: =IF('Arş. Gör. Ön. Değ.'!H33="","",'Arş. Gör. Ön. Değ.'!H33) ->  | I33: =IF('Arş. Gör. Ön. Değ.'!I33="","",'Arş. Gör. Ön. Değ.'!I33) ->  | J33: =IF('Arş. Gör. Ön. Değ.'!J33="","",'Arş. Gör. Ön. Değ.'!J33) ->  | K33: =IF('Arş. Gör. Ön. Değ.'!K33="","",'Arş. Gör. Ön. Değ.'!K33) -> 
A34: =IF('Arş. Gör. Ön. Değ.'!A34="","",'Arş. Gör. Ön. Değ.'!A34) ->  | B34: =IF('Arş. Gör. Ön. Değ.'!B34="","",LEFT('Arş. Gör. Ön. Değ.'!B34,3)&REPT("*",4)&RIGHT('Arş. Gör. Ön. Değ.'!B34,2)) ->  | C34: =IF('Arş. Gör. Ön. Değ.'!C34="","",IF(ISERR(FIND(" ",'Arş. Gör. Ön. Değ.'!C34))=TRUE,LEFT('Arş. Gör. Ön. Değ.'!C34,2)&REPT("*",3),LEFT('Arş. Gör. Ön. Değ.'!C34,2)&REPT("*",3)&" "&MID('Arş. Gör. Ön. Değ.'!C34,FIND(" ",'Arş. Gör. Ön. Değ.'!C34)+1,2)&REPT("*",3))) ->  | D34: =IF('Arş. Gör. Ön. Değ.'!D34="","",IF(ISERR(FIND(" ",'Arş. Gör. Ön. Değ.'!D34))=TRUE,LEFT('Arş. Gör. Ön. Değ.'!D34,2)&REPT("*",3),LEFT('Arş. Gör. Ön. Değ.'!D34,2)&REPT("*",3)&" "&MID('Arş. Gör. Ön. Değ.'!D34,FIND(" ",'Arş. Gör. Ön. Değ.'!D34)+1,2)&REPT("*",3))) ->  | E34: =IF('Arş. Gör. Ön. Değ.'!E34="","",'Arş. Gör. Ön. Değ.'!E34) ->  | F34: =IF('Arş. Gör. Ön. Değ.'!F34="","",'Arş. Gör. Ön. Değ.'!F34) ->  | G34: =IF('Arş. Gör. Ön. Değ.'!G34="","",'Arş. Gör. Ön. Değ.'!G34) ->  | H34: =IF('Arş. Gör. Ön. Değ.'!H34="","",'Arş. Gör. Ön. Değ.'!H34) ->  | I34: =IF('Arş. Gör. Ön. Değ.'!I34="","",'Arş. Gör. Ön. Değ.'!I34) ->  | J34: =IF('Arş. Gör. Ön. Değ.'!J34="","",'Arş. Gör. Ön. Değ.'!J34) ->  | K34: =IF('Arş. Gör. Ön. Değ.'!K34="","",'Arş. Gör. Ön. Değ.'!K34) -> 
A35: =IF('Arş. Gör. Ön. Değ.'!A35="","",'Arş. Gör. Ön. Değ.'!A35) ->  | B35: =IF('Arş. Gör. Ön. Değ.'!B35="","",LEFT('Arş. Gör. Ön. Değ.'!B35,3)&REPT("*",4)&RIGHT('Arş. Gör. Ön. Değ.'!B35,2)) ->  | C35: =IF('Arş. Gör. Ön. Değ.'!C35="","",IF(ISERR(FIND(" ",'Arş. Gör. Ön. Değ.'!C35))=TRUE,LEFT('Arş. Gör. Ön. Değ.'!C35,2)&REPT("*",3),LEFT('Arş. Gör. Ön. Değ.'!C35,2)&REPT("*",3)&" "&MID('Arş. Gör. Ön. Değ.'!C35,FIND(" ",'Arş. Gör. Ön. Değ.'!C35)+1,2)&REPT("*",3))) ->  | D35: =IF('Arş. Gör. Ön. Değ.'!D35="","",IF(ISERR(FIND(" ",'Arş. Gör. Ön. Değ.'!D35))=TRUE,LEFT('Arş. Gör. Ön. Değ.'!D35,2)&REPT("*",3),LEFT('Arş. Gör. Ön. Değ.'!D35,2)&REPT("*",3)&" "&MID('Arş. Gör. Ön. Değ.'!D35,FIND(" ",'Arş. Gör. Ön. Değ.'!D35)+1,2)&REPT("*",3))) ->  | E35: =IF('Arş. Gör. Ön. Değ.'!E35="","",'Arş. Gör. Ön. Değ.'!E35) ->  | F35: =IF('Arş. Gör. Ön. Değ.'!F35="","",'Arş. Gör. Ön. Değ.'!F35) ->  | G35: =IF('Arş. Gör. Ön. Değ.'!G35="","",'Arş. Gör. Ön. Değ.'!G35) ->  | H35: =IF('Arş. Gör. Ön. Değ.'!H35="","",'Arş. Gör. Ön. Değ.'!H35) ->  | I35: =IF('Arş. Gör. Ön. Değ.'!I35="","",'Arş. Gör. Ön. Değ.'!I35) ->  | J35: =IF('Arş. Gör. Ön. Değ.'!J35="","",'Arş. Gör. Ön. Değ.'!J35) ->  | K35: =IF('Arş. Gör. Ön. Değ.'!K35="","",'Arş. Gör. Ön. Değ.'!K35) -> 
A36: =IF('Arş. Gör. Ön. Değ.'!A36="","",'Arş. Gör. Ön. Değ.'!A36) ->  | B36: =IF('Arş. Gör. Ön. Değ.'!B36="","",LEFT('Arş. Gör. Ön. Değ.'!B36,3)&REPT("*",4)&RIGHT('Arş. Gör. Ön. Değ.'!B36,2)) ->  | C36: =IF('Arş. Gör. Ön. Değ.'!C36="","",IF(ISERR(FIND(" ",'Arş. Gör. Ön. Değ.'!C36))=TRUE,LEFT('Arş. Gör. Ön. Değ.'!C36,2)&REPT("*",3),LEFT('Arş. Gör. Ön. Değ.'!C36,2)&REPT("*",3)&" "&MID('Arş. Gör. Ön. Değ.'!C36,FIND(" ",'Arş. Gör. Ön. Değ.'!C36)+1,2)&REPT("*",3))) ->  | D36: =IF('Arş. Gör. Ön. Değ.'!D36="","",IF(ISERR(FIND(" ",'Arş. Gör. Ön. Değ.'!D36))=TRUE,LEFT('Arş. Gör. Ön. Değ.'!D36,2)&REPT("*",3),LEFT('Arş. Gör. Ön. Değ.'!D36,2)&REPT("*",3)&" "&MID('Arş. Gör. Ön. Değ.'!D36,FIND(" ",'Arş. Gör. Ön. Değ.'!D36)+1,2)&REPT("*",3))) ->  | E36: =IF('Arş. Gör. Ön. Değ.'!E36="","",'Arş. Gör. Ön. Değ.'!E36) ->  | F36: =IF('Arş. Gör. Ön. Değ.'!F36="","",'Arş. Gör. Ön. Değ.'!F36) ->  | G36: =IF('Arş. Gör. Ön. Değ.'!G36="","",'Arş. Gör. Ön. Değ.'!G36) ->  | H36: =IF('Arş. Gör. Ön. Değ.'!H36="","",'Arş. Gör. Ön. Değ.'!H36) ->  | I36: =IF('Arş. Gör. Ön. Değ.'!I36="","",'Arş. Gör. Ön. Değ.'!I36) ->  | J36: =IF('Arş. Gör. Ön. Değ.'!J36="","",'Arş. Gör. Ön. Değ.'!J36) ->  | K36: =IF('Arş. Gör. Ön. Değ.'!K36="","",'Arş. Gör. Ön. Değ.'!K36) -> 
A37: =IF('Arş. Gör. Ön. Değ.'!A37="","",'Arş. Gör. Ön. Değ.'!A37) ->  | B37: =IF('Arş. Gör. Ön. Değ.'!B37="","",LEFT('Arş. Gör. Ön. Değ.'!B37,3)&REPT("*",4)&RIGHT('Arş. Gör. Ön. Değ.'!B37,2)) ->  | C37: =IF('Arş. Gör. Ön. Değ.'!C37="","",IF(ISERR(FIND(" ",'Arş. Gör. Ön. Değ.'!C37))=TRUE,LEFT('Arş. Gör. Ön. Değ.'!C37,2)&REPT("*",3),LEFT('Arş. Gör. Ön. Değ.'!C37,2)&REPT("*",3)&" "&MID('Arş. Gör. Ön. Değ.'!C37,FIND(" ",'Arş. Gör. Ön. Değ.'!C37)+1,2)&REPT("*",3))) ->  | D37: =IF('Arş. Gör. Ön. Değ.'!D37="","",IF(ISERR(FIND(" ",'Arş. Gör. Ön. Değ.'!D37))=TRUE,LEFT('Arş. Gör. Ön. Değ.'!D37,2)&REPT("*",3),LEFT('Arş. Gör. Ön. Değ.'!D37,2)&REPT("*",3)&" "&MID('Arş. Gör. Ön. Değ.'!D37,FIND(" ",'Arş. Gör. Ön. Değ.'!D37)+1,2)&REPT("*",3))) ->  | E37: =IF('Arş. Gör. Ön. Değ.'!E37="","",'Arş. Gör. Ön. Değ.'!E37) ->  | F37: =IF('Arş. Gör. Ön. Değ.'!F37="","",'Arş. Gör. Ön. Değ.'!F37) ->  | G37: =IF('Arş. Gör. Ön. Değ.'!G37="","",'Arş. Gör. Ön. Değ.'!G37) ->  | H37: =IF('Arş. Gör. Ön. Değ.'!H37="","",'Arş. Gör. Ön. Değ.'!H37) ->  | I37: =IF('Arş. Gör. Ön. Değ.'!I37="","",'Arş. Gör. Ön. Değ.'!I37) ->  | J37: =IF('Arş. Gör. Ön. Değ.'!J37="","",'Arş. Gör. Ön. Değ.'!J37) ->  | K37: =IF('Arş. Gör. Ön. Değ.'!K37="","",'Arş. Gör. Ön. Değ.'!K37) -> 
A38: =IF('Arş. Gör. Ön. Değ.'!A38="","",'Arş. Gör. Ön. Değ.'!A38) ->  | B38: =IF('Arş. Gör. Ön. Değ.'!B38="","",LEFT('Arş. Gör. Ön. Değ.'!B38,3)&REPT("*",4)&RIGHT('Arş. Gör. Ön. Değ.'!B38,2)) ->  | C38: =IF('Arş. Gör. Ön. Değ.'!C38="","",IF(ISERR(FIND(" ",'Arş. Gör. Ön. Değ.'!C38))=TRUE,LEFT('Arş. Gör. Ön. Değ.'!C38,2)&REPT("*",3),LEFT('Arş. Gör. Ön. Değ.'!C38,2)&REPT("*",3)&" "&MID('Arş. Gör. Ön. Değ.'!C38,FIND(" ",'Arş. Gör. Ön. Değ.'!C38)+1,2)&REPT("*",3))) ->  | D38: =IF('Arş. Gör. Ön. Değ.'!D38="","",IF(ISERR(FIND(" ",'Arş. Gör. Ön. Değ.'!D38))=TRUE,LEFT('Arş. Gör. Ön. Değ.'!D38,2)&REPT("*",3),LEFT('Arş. Gör. Ön. Değ.'!D38,2)&REPT("*",3)&" "&MID('Arş. Gör. Ön. Değ.'!D38,FIND(" ",'Arş. Gör. Ön. Değ.'!D38)+1,2)&REPT("*",3))) ->  | E38: =IF('Arş. Gör. Ön. Değ.'!E38="","",'Arş. Gör. Ön. Değ.'!E38) ->  | F38: =IF('Arş. Gör. Ön. Değ.'!F38="","",'Arş. Gör. Ön. Değ.'!F38) ->  | G38: =IF('Arş. Gör. Ön. Değ.'!G38="","",'Arş. Gör. Ön. Değ.'!G38) ->  | H38: =IF('Arş. Gör. Ön. Değ.'!H38="","",'Arş. Gör. Ön. Değ.'!H38) ->  | I38: =IF('Arş. Gör. Ön. Değ.'!I38="","",'Arş. Gör. Ön. Değ.'!I38) ->  | J38: =IF('Arş. Gör. Ön. Değ.'!J38="","",'Arş. Gör. Ön. Değ.'!J38) ->  | K38: =IF('Arş. Gör. Ön. Değ.'!K38="","",'Arş. Gör. Ön. Değ.'!K38) -> 
A39: =IF('Arş. Gör. Ön. Değ.'!A39="","",'Arş. Gör. Ön. Değ.'!A39) ->  | B39: =IF('Arş. Gör. Ön. Değ.'!B39="","",LEFT('Arş. Gör. Ön. Değ.'!B39,3)&REPT("*",4)&RIGHT('Arş. Gör. Ön. Değ.'!B39,2)) ->  | C39: =IF('Arş. Gör. Ön. Değ.'!C39="","",IF(ISERR(FIND(" ",'Arş. Gör. Ön. Değ.'!C39))=TRUE,LEFT('Arş. Gör. Ön. Değ.'!C39,2)&REPT("*",3),LEFT('Arş. Gör. Ön. Değ.'!C39,2)&REPT("*",3)&" "&MID('Arş. Gör. Ön. Değ.'!C39,FIND(" ",'Arş. Gör. Ön. Değ.'!C39)+1,2)&REPT("*",3))) ->  | D39: =IF('Arş. Gör. Ön. Değ.'!D39="","",IF(ISERR(FIND(" ",'Arş. Gör. Ön. Değ.'!D39))=TRUE,LEFT('Arş. Gör. Ön. Değ.'!D39,2)&REPT("*",3),LEFT('Arş. Gör. Ön. Değ.'!D39,2)&REPT("*",3)&" "&MID('Arş. Gör. Ön. Değ.'!D39,FIND(" ",'Arş. Gör. Ön. Değ.'!D39)+1,2)&REPT("*",3))) ->  | E39: =IF('Arş. Gör. Ön. Değ.'!E39="","",'Arş. Gör. Ön. Değ.'!E39) ->  | F39: =IF('Arş. Gör. Ön. Değ.'!F39="","",'Arş. Gör. Ön. Değ.'!F39) ->  | G39: =IF('Arş. Gör. Ön. Değ.'!G39="","",'Arş. Gör. Ön. Değ.'!G39) ->  | H39: =IF('Arş. Gör. Ön. Değ.'!H39="","",'Arş. Gör. Ön. Değ.'!H39) ->  | I39: =IF('Arş. Gör. Ön. Değ.'!I39="","",'Arş. Gör. Ön. Değ.'!I39) ->  | J39: =IF('Arş. Gör. Ön. Değ.'!J39="","",'Arş. Gör. Ön. Değ.'!J39) ->  | K39: =IF('Arş. Gör. Ön. Değ.'!K39="","",'Arş. Gör. Ön. Değ.'!K39) -> 
A40: =IF('Arş. Gör. Ön. Değ.'!A40="","",'Arş. Gör. Ön. Değ.'!A40) ->  | B40: =IF('Arş. Gör. Ön. Değ.'!B40="","",LEFT('Arş. Gör. Ön. Değ.'!B40,3)&REPT("*",4)&RIGHT('Arş. Gör. Ön. Değ.'!B40,2)) ->  | C40: =IF('Arş. Gör. Ön. Değ.'!C40="","",IF(ISERR(FIND(" ",'Arş. Gör. Ön. Değ.'!C40))=TRUE,LEFT('Arş. Gör. Ön. Değ.'!C40,2)&REPT("*",3),LEFT('Arş. Gör. Ön. Değ.'!C40,2)&REPT("*",3)&" "&MID('Arş. Gör. Ön. Değ.'!C40,FIND(" ",'Arş. Gör. Ön. Değ.'!C40)+1,2)&REPT("*",3))) ->  | D40: =IF('Arş. Gör. Ön. Değ.'!D40="","",IF(ISERR(FIND(" ",'Arş. Gör. Ön. Değ.'!D40))=TRUE,LEFT('Arş. Gör. Ön. Değ.'!D40,2)&REPT("*",3),LEFT('Arş. Gör. Ön. Değ.'!D40,2)&REPT("*",3)&" "&MID('Arş. Gör. Ön. Değ.'!D40,FIND(" ",'Arş. Gör. Ön. Değ.'!D40)+1,2)&REPT("*",3))) ->  | E40: =IF('Arş. Gör. Ön. Değ.'!E40="","",'Arş. Gör. Ön. Değ.'!E40) ->  | F40: =IF('Arş. Gör. Ön. Değ.'!F40="","",'Arş. Gör. Ön. Değ.'!F40) ->  | G40: =IF('Arş. Gör. Ön. Değ.'!G40="","",'Arş. Gör. Ön. Değ.'!G40) ->  | H40: =IF('Arş. Gör. Ön. Değ.'!H40="","",'Arş. Gör. Ön. Değ.'!H40) ->  | I40: =IF('Arş. Gör. Ön. Değ.'!I40="","",'Arş. Gör. Ön. Değ.'!I40) ->  | J40: =IF('Arş. Gör. Ön. Değ.'!J40="","",'Arş. Gör. Ön. Değ.'!J40) ->  | K40: =IF('Arş. Gör. Ön. Değ.'!K40="","",'Arş. Gör. Ön. Değ.'!K40) -> 
A41: =IF('Arş. Gör. Ön. Değ.'!A41="","",'Arş. Gör. Ön. Değ.'!A41) ->  | B41: =IF('Arş. Gör. Ön. Değ.'!B41="","",LEFT('Arş. Gör. Ön. Değ.'!B41,3)&REPT("*",4)&RIGHT('Arş. Gör. Ön. Değ.'!B41,2)) ->  | C41: =IF('Arş. Gör. Ön. Değ.'!C41="","",IF(ISERR(FIND(" ",'Arş. Gör. Ön. Değ.'!C41))=TRUE,LEFT('Arş. Gör. Ön. Değ.'!C41,2)&REPT("*",3),LEFT('Arş. Gör. Ön. Değ.'!C41,2)&REPT("*",3)&" "&MID('Arş. Gör. Ön. Değ.'!C41,FIND(" ",'Arş. Gör. Ön. Değ.'!C41)+1,2)&REPT("*",3))) ->  | D41: =IF('Arş. Gör. Ön. Değ.'!D41="","",IF(ISERR(FIND(" ",'Arş. Gör. Ön. Değ.'!D41))=TRUE,LEFT('Arş. Gör. Ön. Değ.'!D41,2)&REPT("*",3),LEFT('Arş. Gör. Ön. Değ.'!D41,2)&REPT("*",3)&" "&MID('Arş. Gör. Ön. Değ.'!D41,FIND(" ",'Arş. Gör. Ön. Değ.'!D41)+1,2)&REPT("*",3))) ->  | E41: =IF('Arş. Gör. Ön. Değ.'!E41="","",'Arş. Gör. Ön. Değ.'!E41) ->  | F41: =IF('Arş. Gör. Ön. Değ.'!F41="","",'Arş. Gör. Ön. Değ.'!F41) ->  | G41: =IF('Arş. Gör. Ön. Değ.'!G41="","",'Arş. Gör. Ön. Değ.'!G41) ->  | H41: =IF('Arş. Gör. Ön. Değ.'!H41="","",'Arş. Gör. Ön. Değ.'!H41) ->  | I41: =IF('Arş. Gör. Ön. Değ.'!I41="","",'Arş. Gör. Ön. Değ.'!I41) ->  | J41: =IF('Arş. Gör. Ön. Değ.'!J41="","",'Arş. Gör. Ön. Değ.'!J41) ->  | K41: =IF('Arş. Gör. Ön. Değ.'!K41="","",'Arş. Gör. Ön. Değ.'!K41) -> 
A42: =IF('Arş. Gör. Ön. Değ.'!A42="","",'Arş. Gör. Ön. Değ.'!A42) ->  | B42: =IF('Arş. Gör. Ön. Değ.'!B42="","",LEFT('Arş. Gör. Ön. Değ.'!B42,3)&REPT("*",4)&RIGHT('Arş. Gör. Ön. Değ.'!B42,2)) ->  | C42: =IF('Arş. Gör. Ön. Değ.'!C42="","",IF(ISERR(FIND(" ",'Arş. Gör. Ön. Değ.'!C42))=TRUE,LEFT('Arş. Gör. Ön. Değ.'!C42,2)&REPT("*",3),LEFT('Arş. Gör. Ön. Değ.'!C42,2)&REPT("*",3)&" "&MID('Arş. Gör. Ön. Değ.'!C42,FIND(" ",'Arş. Gör. Ön. Değ.'!C42)+1,2)&REPT("*",3))) ->  | D42: =IF('Arş. Gör. Ön. Değ.'!D42="","",IF(ISERR(FIND(" ",'Arş. Gör. Ön. Değ.'!D42))=TRUE,LEFT('Arş. Gör. Ön. Değ.'!D42,2)&REPT("*",3),LEFT('Arş. Gör. Ön. Değ.'!D42,2)&REPT("*",3)&" "&MID('Arş. Gör. Ön. Değ.'!D42,FIND(" ",'Arş. Gör. Ön. Değ.'!D42)+1,2)&REPT("*",3))) ->  | E42: =IF('Arş. Gör. Ön. Değ.'!E42="","",'Arş. Gör. Ön. Değ.'!E42) ->  | F42: =IF('Arş. Gör. Ön. Değ.'!F42="","",'Arş. Gör. Ön. Değ.'!F42) ->  | G42: =IF('Arş. Gör. Ön. Değ.'!G42="","",'Arş. Gör. Ön. Değ.'!G42) ->  | H42: =IF('Arş. Gör. Ön. Değ.'!H42="","",'Arş. Gör. Ön. Değ.'!H42) ->  | I42: =IF('Arş. Gör. Ön. Değ.'!I42="","",'Arş. Gör. Ön. Değ.'!I42) ->  | J42: =IF('Arş. Gör. Ön. Değ.'!J42="","",'Arş. Gör. Ön. Değ.'!J42) ->  | K42: =IF('Arş. Gör. Ön. Değ.'!K42="","",'Arş. Gör. Ön. Değ.'!K42) -> 
A43: =IF('Arş. Gör. Ön. Değ.'!A43="","",'Arş. Gör. Ön. Değ.'!A43) ->  | B43: =IF('Arş. Gör. Ön. Değ.'!B43="","",LEFT('Arş. Gör. Ön. Değ.'!B43,3)&REPT("*",4)&RIGHT('Arş. Gör. Ön. Değ.'!B43,2)) ->  | C43: =IF('Arş. Gör. Ön. Değ.'!C43="","",IF(ISERR(FIND(" ",'Arş. Gör. Ön. Değ.'!C43))=TRUE,LEFT('Arş. Gör. Ön. Değ.'!C43,2)&REPT("*",3),LEFT('Arş. Gör. Ön. Değ.'!C43,2)&REPT("*",3)&" "&MID('Arş. Gör. Ön. Değ.'!C43,FIND(" ",'Arş. Gör. Ön. Değ.'!C43)+1,2)&REPT("*",3))) ->  | D43: =IF('Arş. Gör. Ön. Değ.'!D43="","",IF(ISERR(FIND(" ",'Arş. Gör. Ön. Değ.'!D43))=TRUE,LEFT('Arş. Gör. Ön. Değ.'!D43,2)&REPT("*",3),LEFT('Arş. Gör. Ön. Değ.'!D43,2)&REPT("*",3)&" "&MID('Arş. Gör. Ön. Değ.'!D43,FIND(" ",'Arş. Gör. Ön. Değ.'!D43)+1,2)&REPT("*",3))) ->  | E43: =IF('Arş. Gör. Ön. Değ.'!E43="","",'Arş. Gör. Ön. Değ.'!E43) ->  | F43: =IF('Arş. Gör. Ön. Değ.'!F43="","",'Arş. Gör. Ön. Değ.'!F43) ->  | G43: =IF('Arş. Gör. Ön. Değ.'!G43="","",'Arş. Gör. Ön. Değ.'!G43) ->  | H43: =IF('Arş. Gör. Ön. Değ.'!H43="","",'Arş. Gör. Ön. Değ.'!H43) ->  | I43: =IF('Arş. Gör. Ön. Değ.'!I43="","",'Arş. Gör. Ön. Değ.'!I43) ->  | J43: =IF('Arş. Gör. Ön. Değ.'!J43="","",'Arş. Gör. Ön. Değ.'!J43) ->  | K43: =IF('Arş. Gör. Ön. Değ.'!K43="","",'Arş. Gör. Ön. Değ.'!K43) -> 
A44: =IF('Arş. Gör. Ön. Değ.'!A44="","",'Arş. Gör. Ön. Değ.'!A44) ->  | B44: =IF('Arş. Gör. Ön. Değ.'!B44="","",LEFT('Arş. Gör. Ön. Değ.'!B44,3)&REPT("*",4)&RIGHT('Arş. Gör. Ön. Değ.'!B44,2)) ->  | C44: =IF('Arş. Gör. Ön. Değ.'!C44="","",IF(ISERR(FIND(" ",'Arş. Gör. Ön. Değ.'!C44))=TRUE,LEFT('Arş. Gör. Ön. Değ.'!C44,2)&REPT("*",3),LEFT('Arş. Gör. Ön. Değ.'!C44,2)&REPT("*",3)&" "&MID('Arş. Gör. Ön. Değ.'!C44,FIND(" ",'Arş. Gör. Ön. Değ.'!C44)+1,2)&REPT("*",3))) ->  | D44: =IF('Arş. Gör. Ön. Değ.'!D44="","",IF(ISERR(FIND(" ",'Arş. Gör. Ön. Değ.'!D44))=TRUE,LEFT('Arş. Gör. Ön. Değ.'!D44,2)&REPT("*",3),LEFT('Arş. Gör. Ön. Değ.'!D44,2)&REPT("*",3)&" "&MID('Arş. Gör. Ön. Değ.'!D44,FIND(" ",'Arş. Gör. Ön. Değ.'!D44)+1,2)&REPT("*",3))) ->  | E44: =IF('Arş. Gör. Ön. Değ.'!E44="","",'Arş. Gör. Ön. Değ.'!E44) ->  | F44: =IF('Arş. Gör. Ön. Değ.'!F44="","",'Arş. Gör. Ön. Değ.'!F44) ->  | G44: =IF('Arş. Gör. Ön. Değ.'!G44="","",'Arş. Gör. Ön. Değ.'!G44) ->  | H44: =IF('Arş. Gör. Ön. Değ.'!H44="","",'Arş. Gör. Ön. Değ.'!H44) ->  | I44: =IF('Arş. Gör. Ön. Değ.'!I44="","",'Arş. Gör. Ön. Değ.'!I44) ->  | J44: =IF('Arş. Gör. Ön. Değ.'!J44="","",'Arş. Gör. Ön. Değ.'!J44) ->  | K44: =IF('Arş. Gör. Ön. Değ.'!K44="","",'Arş. Gör. Ön. Değ.'!K44) -> 
A45: =IF('Arş. Gör. Ön. Değ.'!A45="","",'Arş. Gör. Ön. Değ.'!A45) ->  | B45: =IF('Arş. Gör. Ön. Değ.'!B45="","",LEFT('Arş. Gör. Ön. Değ.'!B45,3)&REPT("*",4)&RIGHT('Arş. Gör. Ön. Değ.'!B45,2)) ->  | C45: =IF('Arş. Gör. Ön. Değ.'!C45="","",IF(ISERR(FIND(" ",'Arş. Gör. Ön. Değ.'!C45))=TRUE,LEFT('Arş. Gör. Ön. Değ.'!C45,2)&REPT("*",3),LEFT('Arş. Gör. Ön. Değ.'!C45,2)&REPT("*",3)&" "&MID('Arş. Gör. Ön. Değ.'!C45,FIND(" ",'Arş. Gör. Ön. Değ.'!C45)+1,2)&REPT("*",3))) ->  | D45: =IF('Arş. Gör. Ön. Değ.'!D45="","",IF(ISERR(FIND(" ",'Arş. Gör. Ön. Değ.'!D45))=TRUE,LEFT('Arş. Gör. Ön. Değ.'!D45,2)&REPT("*",3),LEFT('Arş. Gör. Ön. Değ.'!D45,2)&REPT("*",3)&" "&MID('Arş. Gör. Ön. Değ.'!D45,FIND(" ",'Arş. Gör. Ön. Değ.'!D45)+1,2)&REPT("*",3))) ->  | E45: =IF('Arş. Gör. Ön. Değ.'!E45="","",'Arş. Gör. Ön. Değ.'!E45) ->  | F45: =IF('Arş. Gör. Ön. Değ.'!F45="","",'Arş. Gör. Ön. Değ.'!F45) ->  | G45: =IF('Arş. Gör. Ön. Değ.'!G45="","",'Arş. Gör. Ön. Değ.'!G45) ->  | H45: =IF('Arş. Gör. Ön. Değ.'!H45="","",'Arş. Gör. Ön. Değ.'!H45) ->  | I45: =IF('Arş. Gör. Ön. Değ.'!I45="","",'Arş. Gör. Ön. Değ.'!I45) ->  | J45: =IF('Arş. Gör. Ön. Değ.'!J45="","",'Arş. Gör. Ön. Değ.'!J45) ->  | K45: =IF('Arş. Gör. Ön. Değ.'!K45="","",'Arş. Gör. Ön. Değ.'!K45) -> 
A46: =IF('Arş. Gör. Ön. Değ.'!A46="","",'Arş. Gör. Ön. Değ.'!A46) ->  | B46: =IF('Arş. Gör. Ön. Değ.'!B46="","",LEFT('Arş. Gör. Ön. Değ.'!B46,3)&REPT("*",4)&RIGHT('Arş. Gör. Ön. Değ.'!B46,2)) ->  | C46: =IF('Arş. Gör. Ön. Değ.'!C46="","",IF(ISERR(FIND(" ",'Arş. Gör. Ön. Değ.'!C46))=TRUE,LEFT('Arş. Gör. Ön. Değ.'!C46,2)&REPT("*",3),LEFT('Arş. Gör. Ön. Değ.'!C46,2)&REPT("*",3)&" "&MID('Arş. Gör. Ön. Değ.'!C46,FIND(" ",'Arş. Gör. Ön. Değ.'!C46)+1,2)&REPT("*",3))) ->  | D46: =IF('Arş. Gör. Ön. Değ.'!D46="","",IF(ISERR(FIND(" ",'Arş. Gör. Ön. Değ.'!D46))=TRUE,LEFT('Arş. Gör. Ön. Değ.'!D46,2)&REPT("*",3),LEFT('Arş. Gör. Ön. Değ.'!D46,2)&REPT("*",3)&" "&MID('Arş. Gör. Ön. Değ.'!D46,FIND(" ",'Arş. Gör. Ön. Değ.'!D46)+1,2)&REPT("*",3))) ->  | E46: =IF('Arş. Gör. Ön. Değ.'!E46="","",'Arş. Gör. Ön. Değ.'!E46) ->  | F46: =IF('Arş. Gör. Ön. Değ.'!F46="","",'Arş. Gör. Ön. Değ.'!F46) ->  | G46: =IF('Arş. Gör. Ön. Değ.'!G46="","",'Arş. Gör. Ön. Değ.'!G46) ->  | H46: =IF('Arş. Gör. Ön. Değ.'!H46="","",'Arş. Gör. Ön. Değ.'!H46) ->  | I46: =IF('Arş. Gör. Ön. Değ.'!I46="","",'Arş. Gör. Ön. Değ.'!I46) ->  | J46: =IF('Arş. Gör. Ön. Değ.'!J46="","",'Arş. Gör. Ön. Değ.'!J46) ->  | K46: =IF('Arş. Gör. Ön. Değ.'!K46="","",'Arş. Gör. Ön. Değ.'!K46) -> 
A47: =IF('Arş. Gör. Ön. Değ.'!A47="","",'Arş. Gör. Ön. Değ.'!A47) ->  | B47: =IF('Arş. Gör. Ön. Değ.'!B47="","",LEFT('Arş. Gör. Ön. Değ.'!B47,3)&REPT("*",4)&RIGHT('Arş. Gör. Ön. Değ.'!B47,2)) ->  | C47: =IF('Arş. Gör. Ön. Değ.'!C47="","",IF(ISERR(FIND(" ",'Arş. Gör. Ön. Değ.'!C47))=TRUE,LEFT('Arş. Gör. Ön. Değ.'!C47,2)&REPT("*",3),LEFT('Arş. Gör. Ön. Değ.'!C47,2)&REPT("*",3)&" "&MID('Arş. Gör. Ön. Değ.'!C47,FIND(" ",'Arş. Gör. Ön. Değ.'!C47)+1,2)&REPT("*",3))) ->  | D47: =IF('Arş. Gör. Ön. Değ.'!D47="","",IF(ISERR(FIND(" ",'Arş. Gör. Ön. Değ.'!D47))=TRUE,LEFT('Arş. Gör. Ön. Değ.'!D47,2)&REPT("*",3),LEFT('Arş. Gör. Ön. Değ.'!D47,2)&REPT("*",3)&" "&MID('Arş. Gör. Ön. Değ.'!D47,FIND(" ",'Arş. Gör. Ön. Değ.'!D47)+1,2)&REPT("*",3))) ->  | E47: =IF('Arş. Gör. Ön. Değ.'!E47="","",'Arş. Gör. Ön. Değ.'!E47) ->  | F47: =IF('Arş. Gör. Ön. Değ.'!F47="","",'Arş. Gör. Ön. Değ.'!F47) ->  | G47: =IF('Arş. Gör. Ön. Değ.'!G47="","",'Arş. Gör. Ön. Değ.'!G47) ->  | H47: =IF('Arş. Gör. Ön. Değ.'!H47="","",'Arş. Gör. Ön. Değ.'!H47) ->  | I47: =IF('Arş. Gör. Ön. Değ.'!I47="","",'Arş. Gör. Ön. Değ.'!I47) ->  | J47: =IF('Arş. Gör. Ön. Değ.'!J47="","",'Arş. Gör. Ön. Değ.'!J47) ->  | K47: =IF('Arş. Gör. Ön. Değ.'!K47="","",'Arş. Gör. Ön. Değ.'!K47) -> 
A48: =IF('Arş. Gör. Ön. Değ.'!A48="","",'Arş. Gör. Ön. Değ.'!A48) ->  | B48: =IF('Arş. Gör. Ön. Değ.'!B48="","",LEFT('Arş. Gör. Ön. Değ.'!B48,3)&REPT("*",4)&RIGHT('Arş. Gör. Ön. Değ.'!B48,2)) ->  | C48: =IF('Arş. Gör. Ön. Değ.'!C48="","",IF(ISERR(FIND(" ",'Arş. Gör. Ön. Değ.'!C48))=TRUE,LEFT('Arş. Gör. Ön. Değ.'!C48,2)&REPT("*",3),LEFT('Arş. Gör. Ön. Değ.'!C48,2)&REPT("*",3)&" "&MID('Arş. Gör. Ön. Değ.'!C48,FIND(" ",'Arş. Gör. Ön. Değ.'!C48)+1,2)&REPT("*",3))) ->  | D48: =IF('Arş. Gör. Ön. Değ.'!D48="","",IF(ISERR(FIND(" ",'Arş. Gör. Ön. Değ.'!D48))=TRUE,LEFT('Arş. Gör. Ön. Değ.'!D48,2)&REPT("*",3),LEFT('Arş. Gör. Ön. Değ.'!D48,2)&REPT("*",3)&" "&MID('Arş. Gör. Ön. Değ.'!D48,FIND(" ",'Arş. Gör. Ön. Değ.'!D48)+1,2)&REPT("*",3))) ->  | E48: =IF('Arş. Gör. Ön. Değ.'!E48="","",'Arş. Gör. Ön. Değ.'!E48) ->  | F48: =IF('Arş. Gör. Ön. Değ.'!F48="","",'Arş. Gör. Ön. Değ.'!F48) ->  | G48: =IF('Arş. Gör. Ön. Değ.'!G48="","",'Arş. Gör. Ön. Değ.'!G48) ->  | H48: =IF('Arş. Gör. Ön. Değ.'!H48="","",'Arş. Gör. Ön. Değ.'!H48) ->  | I48: =IF('Arş. Gör. Ön. Değ.'!I48="","",'Arş. Gör. Ön. Değ.'!I48) ->  | J48: =IF('Arş. Gör. Ön. Değ.'!J48="","",'Arş. Gör. Ön. Değ.'!J48) ->  | K48: =IF('Arş. Gör. Ön. Değ.'!K48="","",'Arş. Gör. Ön. Değ.'!K48) -> 
A49: =IF('Arş. Gör. Ön. Değ.'!A49="","",'Arş. Gör. Ön. Değ.'!A49) ->  | B49: =IF('Arş. Gör. Ön. Değ.'!B49="","",LEFT('Arş. Gör. Ön. Değ.'!B49,3)&REPT("*",4)&RIGHT('Arş. Gör. Ön. Değ.'!B49,2)) ->  | C49: =IF('Arş. Gör. Ön. Değ.'!C49="","",IF(ISERR(FIND(" ",'Arş. Gör. Ön. Değ.'!C49))=TRUE,LEFT('Arş. Gör. Ön. Değ.'!C49,2)&REPT("*",3),LEFT('Arş. Gör. Ön. Değ.'!C49,2)&REPT("*",3)&" "&MID('Arş. Gör. Ön. Değ.'!C49,FIND(" ",'Arş. Gör. Ön. Değ.'!C49)+1,2)&REPT("*",3))) ->  | D49: =IF('Arş. Gör. Ön. Değ.'!D49="","",IF(ISERR(FIND(" ",'Arş. Gör. Ön. Değ.'!D49))=TRUE,LEFT('Arş. Gör. Ön. Değ.'!D49,2)&REPT("*",3),LEFT('Arş. Gör. Ön. Değ.'!D49,2)&REPT("*",3)&" "&MID('Arş. Gör. Ön. Değ.'!D49,FIND(" ",'Arş. Gör. Ön. Değ.'!D49)+1,2)&REPT("*",3))) ->  | E49: =IF('Arş. Gör. Ön. Değ.'!E49="","",'Arş. Gör. Ön. Değ.'!E49) ->  | F49: =IF('Arş. Gör. Ön. Değ.'!F49="","",'Arş. Gör. Ön. Değ.'!F49) ->  | G49: =IF('Arş. Gör. Ön. Değ.'!G49="","",'Arş. Gör. Ön. Değ.'!G49) ->  | H49: =IF('Arş. Gör. Ön. Değ.'!H49="","",'Arş. Gör. Ön. Değ.'!H49) ->  | I49: =IF('Arş. Gör. Ön. Değ.'!I49="","",'Arş. Gör. Ön. Değ.'!I49) ->  | J49: =IF('Arş. Gör. Ön. Değ.'!J49="","",'Arş. Gör. Ön. Değ.'!J49) ->  | K49: =IF('Arş. Gör. Ön. Değ.'!K49="","",'Arş. Gör. Ön. Değ.'!K49) -> 
A50: =IF('Arş. Gör. Ön. Değ.'!A50="","",'Arş. Gör. Ön. Değ.'!A50) ->  | B50: =IF('Arş. Gör. Ön. Değ.'!B50="","",LEFT('Arş. Gör. Ön. Değ.'!B50,3)&REPT("*",4)&RIGHT('Arş. Gör. Ön. Değ.'!B50,2)) ->  | C50: =IF('Arş. Gör. Ön. Değ.'!C50="","",IF(ISERR(FIND(" ",'Arş. Gör. Ön. Değ.'!C50))=TRUE,LEFT('Arş. Gör. Ön. Değ.'!C50,2)&REPT("*",3),LEFT('Arş. Gör. Ön. Değ.'!C50,2)&REPT("*",3)&" "&MID('Arş. Gör. Ön. Değ.'!C50,FIND(" ",'Arş. Gör. Ön. Değ.'!C50)+1,2)&REPT("*",3))) ->  | D50: =IF('Arş. Gör. Ön. Değ.'!D50="","",IF(ISERR(FIND(" ",'Arş. Gör. Ön. Değ.'!D50))=TRUE,LEFT('Arş. Gör. Ön. Değ.'!D50,2)&REPT("*",3),LEFT('Arş. Gör. Ön. Değ.'!D50,2)&REPT("*",3)&" "&MID('Arş. Gör. Ön. Değ.'!D50,FIND(" ",'Arş. Gör. Ön. Değ.'!D50)+1,2)&REPT("*",3))) ->  | E50: =IF('Arş. Gör. Ön. Değ.'!E50="","",'Arş. Gör. Ön. Değ.'!E50) ->  | F50: =IF('Arş. Gör. Ön. Değ.'!F50="","",'Arş. Gör. Ön. Değ.'!F50) ->  | G50: =IF('Arş. Gör. Ön. Değ.'!G50="","",'Arş. Gör. Ön. Değ.'!G50) ->  | H50: =IF('Arş. Gör. Ön. Değ.'!H50="","",'Arş. Gör. Ön. Değ.'!H50) ->  | I50: =IF('Arş. Gör. Ön. Değ.'!I50="","",'Arş. Gör. Ön. Değ.'!I50) ->  | J50: =IF('Arş. Gör. Ön. Değ.'!J50="","",'Arş. Gör. Ön. Değ.'!J50) ->  | K50: =IF('Arş. Gör. Ön. Değ.'!K50="","",'Arş. Gör. Ön. Değ.'!K50) -> 
A51: =IF('Arş. Gör. Ön. Değ.'!A51="","",'Arş. Gör. Ön. Değ.'!A51) ->  | B51: =IF('Arş. Gör. Ön. Değ.'!B51="","",LEFT('Arş. Gör. Ön. Değ.'!B51,3)&REPT("*",4)&RIGHT('Arş. Gör. Ön. Değ.'!B51,2)) ->  | C51: =IF('Arş. Gör. Ön. Değ.'!C51="","",IF(ISERR(FIND(" ",'Arş. Gör. Ön. Değ.'!C51))=TRUE,LEFT('Arş. Gör. Ön. Değ.'!C51,2)&REPT("*",3),LEFT('Arş. Gör. Ön. Değ.'!C51,2)&REPT("*",3)&" "&MID('Arş. Gör. Ön. Değ.'!C51,FIND(" ",'Arş. Gör. Ön. Değ.'!C51)+1,2)&REPT("*",3))) ->  | D51: =IF('Arş. Gör. Ön. Değ.'!D51="","",IF(ISERR(FIND(" ",'Arş. Gör. Ön. Değ.'!D51))=TRUE,LEFT('Arş. Gör. Ön. Değ.'!D51,2)&REPT("*",3),LEFT('Arş. Gör. Ön. Değ.'!D51,2)&REPT("*",3)&" "&MID('Arş. Gör. Ön. Değ.'!D51,FIND(" ",'Arş. Gör. Ön. Değ.'!D51)+1,2)&REPT("*",3))) ->  | E51: =IF('Arş. Gör. Ön. Değ.'!E51="","",'Arş. Gör. Ön. Değ.'!E51) ->  | F51: =IF('Arş. Gör. Ön. Değ.'!F51="","",'Arş. Gör. Ön. Değ.'!F51) ->  | G51: =IF('Arş. Gör. Ön. Değ.'!G51="","",'Arş. Gör. Ön. Değ.'!G51) ->  | H51: =IF('Arş. Gör. Ön. Değ.'!H51="","",'Arş. Gör. Ön. Değ.'!H51) ->  | I51: =IF('Arş. Gör. Ön. Değ.'!I51="","",'Arş. Gör. Ön. Değ.'!I51) ->  | J51: =IF('Arş. Gör. Ön. Değ.'!J51="","",'Arş. Gör. Ön. Değ.'!J51) ->  | K51: =IF('Arş. Gör. Ön. Değ.'!K51="","",'Arş. Gör. Ön. Değ.'!K51) -> 
A52: =IF('Arş. Gör. Ön. Değ.'!A52="","",'Arş. Gör. Ön. Değ.'!A52) ->  | B52: =IF('Arş. Gör. Ön. Değ.'!B52="","",LEFT('Arş. Gör. Ön. Değ.'!B52,3)&REPT("*",4)&RIGHT('Arş. Gör. Ön. Değ.'!B52,2)) ->  | C52: =IF('Arş. Gör. Ön. Değ.'!C52="","",IF(ISERR(FIND(" ",'Arş. Gör. Ön. Değ.'!C52))=TRUE,LEFT('Arş. Gör. Ön. Değ.'!C52,2)&REPT("*",3),LEFT('Arş. Gör. Ön. Değ.'!C52,2)&REPT("*",3)&" "&MID('Arş. Gör. Ön. Değ.'!C52,FIND(" ",'Arş. Gör. Ön. Değ.'!C52)+1,2)&REPT("*",3))) ->  | D52: =IF('Arş. Gör. Ön. Değ.'!D52="","",IF(ISERR(FIND(" ",'Arş. Gör. Ön. Değ.'!D52))=TRUE,LEFT('Arş. Gör. Ön. Değ.'!D52,2)&REPT("*",3),LEFT('Arş. Gör. Ön. Değ.'!D52,2)&REPT("*",3)&" "&MID('Arş. Gör. Ön. Değ.'!D52,FIND(" ",'Arş. Gör. Ön. Değ.'!D52)+1,2)&REPT("*",3))) ->  | E52: =IF('Arş. Gör. Ön. Değ.'!E52="","",'Arş. Gör. Ön. Değ.'!E52) ->  | F52: =IF('Arş. Gör. Ön. Değ.'!F52="","",'Arş. Gör. Ön. Değ.'!F52) ->  | G52: =IF('Arş. Gör. Ön. Değ.'!G52="","",'Arş. Gör. Ön. Değ.'!G52) ->  | H52: =IF('Arş. Gör. Ön. Değ.'!H52="","",'Arş. Gör. Ön. Değ.'!H52) ->  | I52: =IF('Arş. Gör. Ön. Değ.'!I52="","",'Arş. Gör. Ön. Değ.'!I52) ->  | J52: =IF('Arş. Gör. Ön. Değ.'!J52="","",'Arş. Gör. Ön. Değ.'!J52) ->  | K52: =IF('Arş. Gör. Ön. Değ.'!K52="","",'Arş. Gör. Ön. Değ.'!K52) -> 
A53: =IF('Arş. Gör. Ön. Değ.'!A53="","",'Arş. Gör. Ön. Değ.'!A53) ->  | B53: =IF('Arş. Gör. Ön. Değ.'!B53="","",LEFT('Arş. Gör. Ön. Değ.'!B53,3)&REPT("*",4)&RIGHT('Arş. Gör. Ön. Değ.'!B53,2)) ->  | C53: =IF('Arş. Gör. Ön. Değ.'!C53="","",IF(ISERR(FIND(" ",'Arş. Gör. Ön. Değ.'!C53))=TRUE,LEFT('Arş. Gör. Ön. Değ.'!C53,2)&REPT("*",3),LEFT('Arş. Gör. Ön. Değ.'!C53,2)&REPT("*",3)&" "&MID('Arş. Gör. Ön. Değ.'!C53,FIND(" ",'Arş. Gör. Ön. Değ.'!C53)+1,2)&REPT("*",3))) ->  | D53: =IF('Arş. Gör. Ön. Değ.'!D53="","",IF(ISERR(FIND(" ",'Arş. Gör. Ön. Değ.'!D53))=TRUE,LEFT('Arş. Gör. Ön. Değ.'!D53,2)&REPT("*",3),LEFT('Arş. Gör. Ön. Değ.'!D53,2)&REPT("*",3)&" "&MID('Arş. Gör. Ön. Değ.'!D53,FIND(" ",'Arş. Gör. Ön. Değ.'!D53)+1,2)&REPT("*",3))) ->  | E53: =IF('Arş. Gör. Ön. Değ.'!E53="","",'Arş. Gör. Ön. Değ.'!E53) ->  | F53: =IF('Arş. Gör. Ön. Değ.'!F53="","",'Arş. Gör. Ön. Değ.'!F53) ->  | G53: =IF('Arş. Gör. Ön. Değ.'!G53="","",'Arş. Gör. Ön. Değ.'!G53) ->  | H53: =IF('Arş. Gör. Ön. Değ.'!H53="","",'Arş. Gör. Ön. Değ.'!H53) ->  | I53: =IF('Arş. Gör. Ön. Değ.'!I53="","",'Arş. Gör. Ön. Değ.'!I53) ->  | J53: =IF('Arş. Gör. Ön. Değ.'!J53="","",'Arş. Gör. Ön. Değ.'!J53) ->  | K53: =IF('Arş. Gör. Ön. Değ.'!K53="","",'Arş. Gör. Ön. Değ.'!K53) -> 
A54: =IF('Arş. Gör. Ön. Değ.'!A54="","",'Arş. Gör. Ön. Değ.'!A54) ->  | B54: =IF('Arş. Gör. Ön. Değ.'!B54="","",LEFT('Arş. Gör. Ön. Değ.'!B54,3)&REPT("*",4)&RIGHT('Arş. Gör. Ön. Değ.'!B54,2)) ->  | C54: =IF('Arş. Gör. Ön. Değ.'!C54="","",IF(ISERR(FIND(" ",'Arş. Gör. Ön. Değ.'!C54))=TRUE,LEFT('Arş. Gör. Ön. Değ.'!C54,2)&REPT("*",3),LEFT('Arş. Gör. Ön. Değ.'!C54,2)&REPT("*",3)&" "&MID('Arş. Gör. Ön. Değ.'!C54,FIND(" ",'Arş. Gör. Ön. Değ.'!C54)+1,2)&REPT("*",3))) ->  | D54: =IF('Arş. Gör. Ön. Değ.'!D54="","",IF(ISERR(FIND(" ",'Arş. Gör. Ön. Değ.'!D54))=TRUE,LEFT('Arş. Gör. Ön. Değ.'!D54,2)&REPT("*",3),LEFT('Arş. Gör. Ön. Değ.'!D54,2)&REPT("*",3)&" "&MID('Arş. Gör. Ön. Değ.'!D54,FIND(" ",'Arş. Gör. Ön. Değ.'!D54)+1,2)&REPT("*",3))) ->  | E54: =IF('Arş. Gör. Ön. Değ.'!E54="","",'Arş. Gör. Ön. Değ.'!E54) ->  | F54: =IF('Arş. Gör. Ön. Değ.'!F54="","",'Arş. Gör. Ön. Değ.'!F54) ->  | G54: =IF('Arş. Gör. Ön. Değ.'!G54="","",'Arş. Gör. Ön. Değ.'!G54) ->  | H54: =IF('Arş. Gör. Ön. Değ.'!H54="","",'Arş. Gör. Ön. Değ.'!H54) ->  | I54: =IF('Arş. Gör. Ön. Değ.'!I54="","",'Arş. Gör. Ön. Değ.'!I54) ->  | J54: =IF('Arş. Gör. Ön. Değ.'!J54="","",'Arş. Gör. Ön. Değ.'!J54) ->  | K54: =IF('Arş. Gör. Ön. Değ.'!K54="","",'Arş. Gör. Ön. Değ.'!K54) -> 
A55: =IF('Arş. Gör. Ön. Değ.'!A55="","",'Arş. Gör. Ön. Değ.'!A55) ->  | B55: =IF('Arş. Gör. Ön. Değ.'!B55="","",LEFT('Arş. Gör. Ön. Değ.'!B55,3)&REPT("*",4)&RIGHT('Arş. Gör. Ön. Değ.'!B55,2)) ->  | C55: =IF('Arş. Gör. Ön. Değ.'!C55="","",IF(ISERR(FIND(" ",'Arş. Gör. Ön. Değ.'!C55))=TRUE,LEFT('Arş. Gör. Ön. Değ.'!C55,2)&REPT("*",3),LEFT('Arş. Gör. Ön. Değ.'!C55,2)&REPT("*",3)&" "&MID('Arş. Gör. Ön. Değ.'!C55,FIND(" ",'Arş. Gör. Ön. Değ.'!C55)+1,2)&REPT("*",3))) ->  | D55: =IF('Arş. Gör. Ön. Değ.'!D55="","",IF(ISERR(FIND(" ",'Arş. Gör. Ön. Değ.'!D55))=TRUE,LEFT('Arş. Gör. Ön. Değ.'!D55,2)&REPT("*",3),LEFT('Arş. Gör. Ön. Değ.'!D55,2)&REPT("*",3)&" "&MID('Arş. Gör. Ön. Değ.'!D55,FIND(" ",'Arş. Gör. Ön. Değ.'!D55)+1,2)&REPT("*",3))) ->  | E55: =IF('Arş. Gör. Ön. Değ.'!E55="","",'Arş. Gör. Ön. Değ.'!E55) ->  | F55: =IF('Arş. Gör. Ön. Değ.'!F55="","",'Arş. Gör. Ön. Değ.'!F55) ->  | G55: =IF('Arş. Gör. Ön. Değ.'!G55="","",'Arş. Gör. Ön. Değ.'!G55) ->  | H55: =IF('Arş. Gör. Ön. Değ.'!H55="","",'Arş. Gör. Ön. Değ.'!H55) ->  | I55: =IF('Arş. Gör. Ön. Değ.'!I55="","",'Arş. Gör. Ön. Değ.'!I55) ->  | J55: =IF('Arş. Gör. Ön. Değ.'!J55="","",'Arş. Gör. Ön. Değ.'!J55) ->  | K55: =IF('Arş. Gör. Ön. Değ.'!K55="","",'Arş. Gör. Ön. Değ.'!K55) -> 
A56: =IF('Arş. Gör. Ön. Değ.'!A56="","",'Arş. Gör. Ön. Değ.'!A56) ->  | B56: =IF('Arş. Gör. Ön. Değ.'!B56="","",LEFT('Arş. Gör. Ön. Değ.'!B56,3)&REPT("*",4)&RIGHT('Arş. Gör. Ön. Değ.'!B56,2)) ->  | C56: =IF('Arş. Gör. Ön. Değ.'!C56="","",IF(ISERR(FIND(" ",'Arş. Gör. Ön. Değ.'!C56))=TRUE,LEFT('Arş. Gör. Ön. Değ.'!C56,2)&REPT("*",3),LEFT('Arş. Gör. Ön. Değ.'!C56,2)&REPT("*",3)&" "&MID('Arş. Gör. Ön. Değ.'!C56,FIND(" ",'Arş. Gör. Ön. Değ.'!C56)+1,2)&REPT("*",3))) ->  | D56: =IF('Arş. Gör. Ön. Değ.'!D56="","",IF(ISERR(FIND(" ",'Arş. Gör. Ön. Değ.'!D56))=TRUE,LEFT('Arş. Gör. Ön. Değ.'!D56,2)&REPT("*",3),LEFT('Arş. Gör. Ön. Değ.'!D56,2)&REPT("*",3)&" "&MID('Arş. Gör. Ön. Değ.'!D56,FIND(" ",'Arş. Gör. Ön. Değ.'!D56)+1,2)&REPT("*",3))) ->  | E56: =IF('Arş. Gör. Ön. Değ.'!E56="","",'Arş. Gör. Ön. Değ.'!E56) ->  | F56: =IF('Arş. Gör. Ön. Değ.'!F56="","",'Arş. Gör. Ön. Değ.'!F56) ->  | G56: =IF('Arş. Gör. Ön. Değ.'!G56="","",'Arş. Gör. Ön. Değ.'!G56) ->  | H56: =IF('Arş. Gör. Ön. Değ.'!H56="","",'Arş. Gör. Ön. Değ.'!H56) ->  | I56: =IF('Arş. Gör. Ön. Değ.'!I56="","",'Arş. Gör. Ön. Değ.'!I56) ->  | J56: =IF('Arş. Gör. Ön. Değ.'!J56="","",'Arş. Gör. Ön. Değ.'!J56) ->  | K56: =IF('Arş. Gör. Ön. Değ.'!K56="","",'Arş. Gör. Ön. Değ.'!K56) -> 
A57: =IF('Arş. Gör. Ön. Değ.'!A57="","",'Arş. Gör. Ön. Değ.'!A57) ->  | B57: =IF('Arş. Gör. Ön. Değ.'!B57="","",LEFT('Arş. Gör. Ön. Değ.'!B57,3)&REPT("*",4)&RIGHT('Arş. Gör. Ön. Değ.'!B57,2)) ->  | C57: =IF('Arş. Gör. Ön. Değ.'!C57="","",IF(ISERR(FIND(" ",'Arş. Gör. Ön. Değ.'!C57))=TRUE,LEFT('Arş. Gör. Ön. Değ.'!C57,2)&REPT("*",3),LEFT('Arş. Gör. Ön. Değ.'!C57,2)&REPT("*",3)&" "&MID('Arş. Gör. Ön. Değ.'!C57,FIND(" ",'Arş. Gör. Ön. Değ.'!C57)+1,2)&REPT("*",3))) ->  | D57: =IF('Arş. Gör. Ön. Değ.'!D57="","",IF(ISERR(FIND(" ",'Arş. Gör. Ön. Değ.'!D57))=TRUE,LEFT('Arş. Gör. Ön. Değ.'!D57,2)&REPT("*",3),LEFT('Arş. Gör. Ön. Değ.'!D57,2)&REPT("*",3)&" "&MID('Arş. Gör. Ön. Değ.'!D57,FIND(" ",'Arş. Gör. Ön. Değ.'!D57)+1,2)&REPT("*",3))) ->  | E57: =IF('Arş. Gör. Ön. Değ.'!E57="","",'Arş. Gör. Ön. Değ.'!E57) ->  | F57: =IF('Arş. Gör. Ön. Değ.'!F57="","",'Arş. Gör. Ön. Değ.'!F57) ->  | G57: =IF('Arş. Gör. Ön. Değ.'!G57="","",'Arş. Gör. Ön. Değ.'!G57) ->  | H57: =IF('Arş. Gör. Ön. Değ.'!H57="","",'Arş. Gör. Ön. Değ.'!H57) ->  | I57: =IF('Arş. Gör. Ön. Değ.'!I57="","",'Arş. Gör. Ön. Değ.'!I57) ->  | J57: =IF('Arş. Gör. Ön. Değ.'!J57="","",'Arş. Gör. Ön. Değ.'!J57) ->  | K57: =IF('Arş. Gör. Ön. Değ.'!K57="","",'Arş. Gör. Ön. Değ.'!K57) -> 
A58: =IF('Arş. Gör. Ön. Değ.'!A58="","",'Arş. Gör. Ön. Değ.'!A58) ->  | B58: =IF('Arş. Gör. Ön. Değ.'!B58="","",LEFT('Arş. Gör. Ön. Değ.'!B58,3)&REPT("*",4)&RIGHT('Arş. Gör. Ön. Değ.'!B58,2)) ->  | C58: =IF('Arş. Gör. Ön. Değ.'!C58="","",IF(ISERR(FIND(" ",'Arş. Gör. Ön. Değ.'!C58))=TRUE,LEFT('Arş. Gör. Ön. Değ.'!C58,2)&REPT("*",3),LEFT('Arş. Gör. Ön. Değ.'!C58,2)&REPT("*",3)&" "&MID('Arş. Gör. Ön. Değ.'!C58,FIND(" ",'Arş. Gör. Ön. Değ.'!C58)+1,2)&REPT("*",3))) ->  | D58: =IF('Arş. Gör. Ön. Değ.'!D58="","",IF(ISERR(FIND(" ",'Arş. Gör. Ön. Değ.'!D58))=TRUE,LEFT('Arş. Gör. Ön. Değ.'!D58,2)&REPT("*",3),LEFT('Arş. Gör. Ön. Değ.'!D58,2)&REPT("*",3)&" "&MID('Arş. Gör. Ön. Değ.'!D58,FIND(" ",'Arş. Gör. Ön. Değ.'!D58)+1,2)&REPT("*",3))) ->  | E58: =IF('Arş. Gör. Ön. Değ.'!E58="","",'Arş. Gör. Ön. Değ.'!E58) ->  | F58: =IF('Arş. Gör. Ön. Değ.'!F58="","",'Arş. Gör. Ön. Değ.'!F58) ->  | G58: =IF('Arş. Gör. Ön. Değ.'!G58="","",'Arş. Gör. Ön. Değ.'!G58) ->  | H58: =IF('Arş. Gör. Ön. Değ.'!H58="","",'Arş. Gör. Ön. Değ.'!H58) ->  | I58: =IF('Arş. Gör. Ön. Değ.'!I58="","",'Arş. Gör. Ön. Değ.'!I58) ->  | J58: =IF('Arş. Gör. Ön. Değ.'!J58="","",'Arş. Gör. Ön. Değ.'!J58) ->  | K58: =IF('Arş. Gör. Ön. Değ.'!K58="","",'Arş. Gör. Ön. Değ.'!K58) -> 
A59: =IF('Arş. Gör. Ön. Değ.'!A59="","",'Arş. Gör. Ön. Değ.'!A59) ->  | B59: =IF('Arş. Gör. Ön. Değ.'!B59="","",LEFT('Arş. Gör. Ön. Değ.'!B59,3)&REPT("*",4)&RIGHT('Arş. Gör. Ön. Değ.'!B59,2)) ->  | C59: =IF('Arş. Gör. Ön. Değ.'!C59="","",IF(ISERR(FIND(" ",'Arş. Gör. Ön. Değ.'!C59))=TRUE,LEFT('Arş. Gör. Ön. Değ.'!C59,2)&REPT("*",3),LEFT('Arş. Gör. Ön. Değ.'!C59,2)&REPT("*",3)&" "&MID('Arş. Gör. Ön. Değ.'!C59,FIND(" ",'Arş. Gör. Ön. Değ.'!C59)+1,2)&REPT("*",3))) ->  | D59: =IF('Arş. Gör. Ön. Değ.'!D59="","",IF(ISERR(FIND(" ",'Arş. Gör. Ön. Değ.'!D59))=TRUE,LEFT('Arş. Gör. Ön. Değ.'!D59,2)&REPT("*",3),LEFT('Arş. Gör. Ön. Değ.'!D59,2)&REPT("*",3)&" "&MID('Arş. Gör. Ön. Değ.'!D59,FIND(" ",'Arş. Gör. Ön. Değ.'!D59)+1,2)&REPT("*",3))) ->  | E59: =IF('Arş. Gör. Ön. Değ.'!E59="","",'Arş. Gör. Ön. Değ.'!E59) ->  | F59: =IF('Arş. Gör. Ön. Değ.'!F59="","",'Arş. Gör. Ön. Değ.'!F59) ->  | G59: =IF('Arş. Gör. Ön. Değ.'!G59="","",'Arş. Gör. Ön. Değ.'!G59) ->  | H59: =IF('Arş. Gör. Ön. Değ.'!H59="","",'Arş. Gör. Ön. Değ.'!H59) ->  | I59: =IF('Arş. Gör. Ön. Değ.'!I59="","",'Arş. Gör. Ön. Değ.'!I59) ->  | J59: =IF('Arş. Gör. Ön. Değ.'!J59="","",'Arş. Gör. Ön. Değ.'!J59) ->  | K59: =IF('Arş. Gör. Ön. Değ.'!K59="","",'Arş. Gör. Ön. Değ.'!K59) -> 
A60: =IF('Arş. Gör. Ön. Değ.'!A60="","",'Arş. Gör. Ön. Değ.'!A60) ->  | B60: =IF('Arş. Gör. Ön. Değ.'!B60="","",LEFT('Arş. Gör. Ön. Değ.'!B60,3)&REPT("*",4)&RIGHT('Arş. Gör. Ön. Değ.'!B60,2)) ->  | C60: =IF('Arş. Gör. Ön. Değ.'!C60="","",IF(ISERR(FIND(" ",'Arş. Gör. Ön. Değ.'!C60))=TRUE,LEFT('Arş. Gör. Ön. Değ.'!C60,2)&REPT("*",3),LEFT('Arş. Gör. Ön. Değ.'!C60,2)&REPT("*",3)&" "&MID('Arş. Gör. Ön. Değ.'!C60,FIND(" ",'Arş. Gör. Ön. Değ.'!C60)+1,2)&REPT("*",3))) ->  | D60: =IF('Arş. Gör. Ön. Değ.'!D60="","",IF(ISERR(FIND(" ",'Arş. Gör. Ön. Değ.'!D60))=TRUE,LEFT('Arş. Gör. Ön. Değ.'!D60,2)&REPT("*",3),LEFT('Arş. Gör. Ön. Değ.'!D60,2)&REPT("*",3)&" "&MID('Arş. Gör. Ön. Değ.'!D60,FIND(" ",'Arş. Gör. Ön. Değ.'!D60)+1,2)&REPT("*",3))) ->  | E60: =IF('Arş. Gör. Ön. Değ.'!E60="","",'Arş. Gör. Ön. Değ.'!E60) ->  | F60: =IF('Arş. Gör. Ön. Değ.'!F60="","",'Arş. Gör. Ön. Değ.'!F60) ->  | G60: =IF('Arş. Gör. Ön. Değ.'!G60="","",'Arş. Gör. Ön. Değ.'!G60) ->  | H60: =IF('Arş. Gör. Ön. Değ.'!H60="","",'Arş. Gör. Ön. Değ.'!H60) ->  | I60: =IF('Arş. Gör. Ön. Değ.'!I60="","",'Arş. Gör. Ön. Değ.'!I60) ->  | J60: =IF('Arş. Gör. Ön. Değ.'!J60="","",'Arş. Gör. Ön. Değ.'!J60) ->  | K60: =IF('Arş. Gör. Ön. Değ.'!K60="","",'Arş. Gör. Ön. Değ.'!K60) -> 
A61: =IF('Arş. Gör. Ön. Değ.'!A61="","",'Arş. Gör. Ön. Değ.'!A61) ->  | B61: =IF('Arş. Gör. Ön. Değ.'!B61="","",LEFT('Arş. Gör. Ön. Değ.'!B61,3)&REPT("*",4)&RIGHT('Arş. Gör. Ön. Değ.'!B61,2)) ->  | C61: =IF('Arş. Gör. Ön. Değ.'!C61="","",IF(ISERR(FIND(" ",'Arş. Gör. Ön. Değ.'!C61))=TRUE,LEFT('Arş. Gör. Ön. Değ.'!C61,2)&REPT("*",3),LEFT('Arş. Gör. Ön. Değ.'!C61,2)&REPT("*",3)&" "&MID('Arş. Gör. Ön. Değ.'!C61,FIND(" ",'Arş. Gör. Ön. Değ.'!C61)+1,2)&REPT("*",3))) ->  | D61: =IF('Arş. Gör. Ön. Değ.'!D61="","",IF(ISERR(FIND(" ",'Arş. Gör. Ön. Değ.'!D61))=TRUE,LEFT('Arş. Gör. Ön. Değ.'!D61,2)&REPT("*",3),LEFT('Arş. Gör. Ön. Değ.'!D61,2)&REPT("*",3)&" "&MID('Arş. Gör. Ön. Değ.'!D61,FIND(" ",'Arş. Gör. Ön. Değ.'!D61)+1,2)&REPT("*",3))) ->  | E61: =IF('Arş. Gör. Ön. Değ.'!E61="","",'Arş. Gör. Ön. Değ.'!E61) ->  | F61: =IF('Arş. Gör. Ön. Değ.'!F61="","",'Arş. Gör. Ön. Değ.'!F61) ->  | G61: =IF('Arş. Gör. Ön. Değ.'!G61="","",'Arş. Gör. Ön. Değ.'!G61) ->  | H61: =IF('Arş. Gör. Ön. Değ.'!H61="","",'Arş. Gör. Ön. Değ.'!H61) ->  | I61: =IF('Arş. Gör. Ön. Değ.'!I61="","",'Arş. Gör. Ön. Değ.'!I61) ->  | J61: =IF('Arş. Gör. Ön. Değ.'!J61="","",'Arş. Gör. Ön. Değ.'!J61) ->  | K61: =IF('Arş. Gör. Ön. Değ.'!K61="","",'Arş. Gör. Ön. Değ.'!K61) -> 
A62: =IF('Arş. Gör. Ön. Değ.'!A62="","",'Arş. Gör. Ön. Değ.'!A62) ->  | B62: =IF('Arş. Gör. Ön. Değ.'!B62="","",LEFT('Arş. Gör. Ön. Değ.'!B62,3)&REPT("*",4)&RIGHT('Arş. Gör. Ön. Değ.'!B62,2)) ->  | C62: =IF('Arş. Gör. Ön. Değ.'!C62="","",IF(ISERR(FIND(" ",'Arş. Gör. Ön. Değ.'!C62))=TRUE,LEFT('Arş. Gör. Ön. Değ.'!C62,2)&REPT("*",3),LEFT('Arş. Gör. Ön. Değ.'!C62,2)&REPT("*",3)&" "&MID('Arş. Gör. Ön. Değ.'!C62,FIND(" ",'Arş. Gör. Ön. Değ.'!C62)+1,2)&REPT("*",3))) ->  | D62: =IF('Arş. Gör. Ön. Değ.'!D62="","",IF(ISERR(FIND(" ",'Arş. Gör. Ön. Değ.'!D62))=TRUE,LEFT('Arş. Gör. Ön. Değ.'!D62,2)&REPT("*",3),LEFT('Arş. Gör. Ön. Değ.'!D62,2)&REPT("*",3)&" "&MID('Arş. Gör. Ön. Değ.'!D62,FIND(" ",'Arş. Gör. Ön. Değ.'!D62)+1,2)&REPT("*",3))) ->  | E62: =IF('Arş. Gör. Ön. Değ.'!E62="","",'Arş. Gör. Ön. Değ.'!E62) ->  | F62: =IF('Arş. Gör. Ön. Değ.'!F62="","",'Arş. Gör. Ön. Değ.'!F62) ->  | G62: =IF('Arş. Gör. Ön. Değ.'!G62="","",'Arş. Gör. Ön. Değ.'!G62) ->  | H62: =IF('Arş. Gör. Ön. Değ.'!H62="","",'Arş. Gör. Ön. Değ.'!H62) ->  | I62: =IF('Arş. Gör. Ön. Değ.'!I62="","",'Arş. Gör. Ön. Değ.'!I62) ->  | J62: =IF('Arş. Gör. Ön. Değ.'!J62="","",'Arş. Gör. Ön. Değ.'!J62) ->  | K62: =IF('Arş. Gör. Ön. Değ.'!K62="","",'Arş. Gör. Ön. Değ.'!K62) -> 
A63: =IF('Arş. Gör. Ön. Değ.'!A63="","",'Arş. Gör. Ön. Değ.'!A63) ->  | B63: =IF('Arş. Gör. Ön. Değ.'!B63="","",LEFT('Arş. Gör. Ön. Değ.'!B63,3)&REPT("*",4)&RIGHT('Arş. Gör. Ön. Değ.'!B63,2)) ->  | C63: =IF('Arş. Gör. Ön. Değ.'!C63="","",IF(ISERR(FIND(" ",'Arş. Gör. Ön. Değ.'!C63))=TRUE,LEFT('Arş. Gör. Ön. Değ.'!C63,2)&REPT("*",3),LEFT('Arş. Gör. Ön. Değ.'!C63,2)&REPT("*",3)&" "&MID('Arş. Gör. Ön. Değ.'!C63,FIND(" ",'Arş. Gör. Ön. Değ.'!C63)+1,2)&REPT("*",3))) ->  | D63: =IF('Arş. Gör. Ön. Değ.'!D63="","",IF(ISERR(FIND(" ",'Arş. Gör. Ön. Değ.'!D63))=TRUE,LEFT('Arş. Gör. Ön. Değ.'!D63,2)&REPT("*",3),LEFT('Arş. Gör. Ön. Değ.'!D63,2)&REPT("*",3)&" "&MID('Arş. Gör. Ön. Değ.'!D63,FIND(" ",'Arş. Gör. Ön. Değ.'!D63)+1,2)&REPT("*",3))) ->  | E63: =IF('Arş. Gör. Ön. Değ.'!E63="","",'Arş. Gör. Ön. Değ.'!E63) ->  | F63: =IF('Arş. Gör. Ön. Değ.'!F63="","",'Arş. Gör. Ön. Değ.'!F63) ->  | G63: =IF('Arş. Gör. Ön. Değ.'!G63="","",'Arş. Gör. Ön. Değ.'!G63) ->  | H63: =IF('Arş. Gör. Ön. Değ.'!H63="","",'Arş. Gör. Ön. Değ.'!H63) ->  | I63: =IF('Arş. Gör. Ön. Değ.'!I63="","",'Arş. Gör. Ön. Değ.'!I63) ->  | J63: =IF('Arş. Gör. Ön. Değ.'!J63="","",'Arş. Gör. Ön. Değ.'!J63) ->  | K63: =IF('Arş. Gör. Ön. Değ.'!K63="","",'Arş. Gör. Ön. Değ.'!K63) -> 
A64: =IF('Arş. Gör. Ön. Değ.'!A64="","",'Arş. Gör. Ön. Değ.'!A64) ->  | B64: =IF('Arş. Gör. Ön. Değ.'!B64="","",LEFT('Arş. Gör. Ön. Değ.'!B64,3)&REPT("*",4)&RIGHT('Arş. Gör. Ön. Değ.'!B64,2)) ->  | C64: =IF('Arş. Gör. Ön. Değ.'!C64="","",IF(ISERR(FIND(" ",'Arş. Gör. Ön. Değ.'!C64))=TRUE,LEFT('Arş. Gör. Ön. Değ.'!C64,2)&REPT("*",3),LEFT('Arş. Gör. Ön. Değ.'!C64,2)&REPT("*",3)&" "&MID('Arş. Gör. Ön. Değ.'!C64,FIND(" ",'Arş. Gör. Ön. Değ.'!C64)+1,2)&REPT("*",3))) ->  | D64: =IF('Arş. Gör. Ön. Değ.'!D64="","",IF(ISERR(FIND(" ",'Arş. Gör. Ön. Değ.'!D64))=TRUE,LEFT('Arş. Gör. Ön. Değ.'!D64,2)&REPT("*",3),LEFT('Arş. Gör. Ön. Değ.'!D64,2)&REPT("*",3)&" "&MID('Arş. Gör. Ön. Değ.'!D64,FIND(" ",'Arş. Gör. Ön. Değ.'!D64)+1,2)&REPT("*",3))) ->  | E64: =IF('Arş. Gör. Ön. Değ.'!E64="","",'Arş. Gör. Ön. Değ.'!E64) ->  | F64: =IF('Arş. Gör. Ön. Değ.'!F64="","",'Arş. Gör. Ön. Değ.'!F64) ->  | G64: =IF('Arş. Gör. Ön. Değ.'!G64="","",'Arş. Gör. Ön. Değ.'!G64) ->  | H64: =IF('Arş. Gör. Ön. Değ.'!H64="","",'Arş. Gör. Ön. Değ.'!H64) ->  | I64: =IF('Arş. Gör. Ön. Değ.'!I64="","",'Arş. Gör. Ön. Değ.'!I64) ->  | J64: =IF('Arş. Gör. Ön. Değ.'!J64="","",'Arş. Gör. Ön. Değ.'!J64) ->  | K64: =IF('Arş. Gör. Ön. Değ.'!K64="","",'Arş. Gör. Ön. Değ.'!K64) -> 
A65: =IF('Arş. Gör. Ön. Değ.'!A65="","",'Arş. Gör. Ön. Değ.'!A65) ->  | B65: =IF('Arş. Gör. Ön. Değ.'!B65="","",LEFT('Arş. Gör. Ön. Değ.'!B65,3)&REPT("*",4)&RIGHT('Arş. Gör. Ön. Değ.'!B65,2)) ->  | C65: =IF('Arş. Gör. Ön. Değ.'!C65="","",IF(ISERR(FIND(" ",'Arş. Gör. Ön. Değ.'!C65))=TRUE,LEFT('Arş. Gör. Ön. Değ.'!C65,2)&REPT("*",3),LEFT('Arş. Gör. Ön. Değ.'!C65,2)&REPT("*",3)&" "&MID('Arş. Gör. Ön. Değ.'!C65,FIND(" ",'Arş. Gör. Ön. Değ.'!C65)+1,2)&REPT("*",3))) ->  | D65: =IF('Arş. Gör. Ön. Değ.'!D65="","",IF(ISERR(FIND(" ",'Arş. Gör. Ön. Değ.'!D65))=TRUE,LEFT('Arş. Gör. Ön. Değ.'!D65,2)&REPT("*",3),LEFT('Arş. Gör. Ön. Değ.'!D65,2)&REPT("*",3)&" "&MID('Arş. Gör. Ön. Değ.'!D65,FIND(" ",'Arş. Gör. Ön. Değ.'!D65)+1,2)&REPT("*",3))) ->  | E65: =IF('Arş. Gör. Ön. Değ.'!E65="","",'Arş. Gör. Ön. Değ.'!E65) ->  | F65: =IF('Arş. Gör. Ön. Değ.'!F65="","",'Arş. Gör. Ön. Değ.'!F65) ->  | G65: =IF('Arş. Gör. Ön. Değ.'!G65="","",'Arş. Gör. Ön. Değ.'!G65) ->  | H65: =IF('Arş. Gör. Ön. Değ.'!H65="","",'Arş. Gör. Ön. Değ.'!H65) ->  | I65: =IF('Arş. Gör. Ön. Değ.'!I65="","",'Arş. Gör. Ön. Değ.'!I65) ->  | J65: =IF('Arş. Gör. Ön. Değ.'!J65="","",'Arş. Gör. Ön. Değ.'!J65) ->  | K65: =IF('Arş. Gör. Ön. Değ.'!K65="","",'Arş. Gör. Ön. Değ.'!K65) -> 
A66: =IF('Arş. Gör. Ön. Değ.'!A66="","",'Arş. Gör. Ön. Değ.'!A66) ->  | B66: =IF('Arş. Gör. Ön. Değ.'!B66="","",LEFT('Arş. Gör. Ön. Değ.'!B66,3)&REPT("*",4)&RIGHT('Arş. Gör. Ön. Değ.'!B66,2)) ->  | C66: =IF('Arş. Gör. Ön. Değ.'!C66="","",IF(ISERR(FIND(" ",'Arş. Gör. Ön. Değ.'!C66))=TRUE,LEFT('Arş. Gör. Ön. Değ.'!C66,2)&REPT("*",3),LEFT('Arş. Gör. Ön. Değ.'!C66,2)&REPT("*",3)&" "&MID('Arş. Gör. Ön. Değ.'!C66,FIND(" ",'Arş. Gör. Ön. Değ.'!C66)+1,2)&REPT("*",3))) ->  | D66: =IF('Arş. Gör. Ön. Değ.'!D66="","",IF(ISERR(FIND(" ",'Arş. Gör. Ön. Değ.'!D66))=TRUE,LEFT('Arş. Gör. Ön. Değ.'!D66,2)&REPT("*",3),LEFT('Arş. Gör. Ön. Değ.'!D66,2)&REPT("*",3)&" "&MID('Arş. Gör. Ön. Değ.'!D66,FIND(" ",'Arş. Gör. Ön. Değ.'!D66)+1,2)&REPT("*",3))) ->  | E66: =IF('Arş. Gör. Ön. Değ.'!E66="","",'Arş. Gör. Ön. Değ.'!E66) ->  | F66: =IF('Arş. Gör. Ön. Değ.'!F66="","",'Arş. Gör. Ön. Değ.'!F66) ->  | G66: =IF('Arş. Gör. Ön. Değ.'!G66="","",'Arş. Gör. Ön. Değ.'!G66) ->  | H66: =IF('Arş. Gör. Ön. Değ.'!H66="","",'Arş. Gör. Ön. Değ.'!H66) ->  | I66: =IF('Arş. Gör. Ön. Değ.'!I66="","",'Arş. Gör. Ön. Değ.'!I66) ->  | J66: =IF('Arş. Gör. Ön. Değ.'!J66="","",'Arş. Gör. Ön. Değ.'!J66) ->  | K66: =IF('Arş. Gör. Ön. Değ.'!K66="","",'Arş. Gör. Ön. Değ.'!K66) -> 
A67: =IF('Arş. Gör. Ön. Değ.'!A67="","",'Arş. Gör. Ön. Değ.'!A67) ->  | B67: =IF('Arş. Gör. Ön. Değ.'!B67="","",LEFT('Arş. Gör. Ön. Değ.'!B67,3)&REPT("*",4)&RIGHT('Arş. Gör. Ön. Değ.'!B67,2)) ->  | C67: =IF('Arş. Gör. Ön. Değ.'!C67="","",IF(ISERR(FIND(" ",'Arş. Gör. Ön. Değ.'!C67))=TRUE,LEFT('Arş. Gör. Ön. Değ.'!C67,2)&REPT("*",3),LEFT('Arş. Gör. Ön. Değ.'!C67,2)&REPT("*",3)&" "&MID('Arş. Gör. Ön. Değ.'!C67,FIND(" ",'Arş. Gör. Ön. Değ.'!C67)+1,2)&REPT("*",3))) ->  | D67: =IF('Arş. Gör. Ön. Değ.'!D67="","",IF(ISERR(FIND(" ",'Arş. Gör. Ön. Değ.'!D67))=TRUE,LEFT('Arş. Gör. Ön. Değ.'!D67,2)&REPT("*",3),LEFT('Arş. Gör. Ön. Değ.'!D67,2)&REPT("*",3)&" "&MID('Arş. Gör. Ön. Değ.'!D67,FIND(" ",'Arş. Gör. Ön. Değ.'!D67)+1,2)&REPT("*",3))) ->  | E67: =IF('Arş. Gör. Ön. Değ.'!E67="","",'Arş. Gör. Ön. Değ.'!E67) ->  | F67: =IF('Arş. Gör. Ön. Değ.'!F67="","",'Arş. Gör. Ön. Değ.'!F67) ->  | G67: =IF('Arş. Gör. Ön. Değ.'!G67="","",'Arş. Gör. Ön. Değ.'!G67) ->  | H67: =IF('Arş. Gör. Ön. Değ.'!H67="","",'Arş. Gör. Ön. Değ.'!H67) ->  | I67: =IF('Arş. Gör. Ön. Değ.'!I67="","",'Arş. Gör. Ön. Değ.'!I67) ->  | J67: =IF('Arş. Gör. Ön. Değ.'!J67="","",'Arş. Gör. Ön. Değ.'!J67) ->  | K67: =IF('Arş. Gör. Ön. Değ.'!K67="","",'Arş. Gör. Ön. Değ.'!K67) -> 
A68: =IF('Arş. Gör. Ön. Değ.'!A68="","",'Arş. Gör. Ön. Değ.'!A68) ->  | B68: =IF('Arş. Gör. Ön. Değ.'!B68="","",LEFT('Arş. Gör. Ön. Değ.'!B68,3)&REPT("*",4)&RIGHT('Arş. Gör. Ön. Değ.'!B68,2)) ->  | C68: =IF('Arş. Gör. Ön. Değ.'!C68="","",IF(ISERR(FIND(" ",'Arş. Gör. Ön. Değ.'!C68))=TRUE,LEFT('Arş. Gör. Ön. Değ.'!C68,2)&REPT("*",3),LEFT('Arş. Gör. Ön. Değ.'!C68,2)&REPT("*",3)&" "&MID('Arş. Gör. Ön. Değ.'!C68,FIND(" ",'Arş. Gör. Ön. Değ.'!C68)+1,2)&REPT("*",3))) ->  | D68: =IF('Arş. Gör. Ön. Değ.'!D68="","",IF(ISERR(FIND(" ",'Arş. Gör. Ön. Değ.'!D68))=TRUE,LEFT('Arş. Gör. Ön. Değ.'!D68,2)&REPT("*",3),LEFT('Arş. Gör. Ön. Değ.'!D68,2)&REPT("*",3)&" "&MID('Arş. Gör. Ön. Değ.'!D68,FIND(" ",'Arş. Gör. Ön. Değ.'!D68)+1,2)&REPT("*",3))) ->  | E68: =IF('Arş. Gör. Ön. Değ.'!E68="","",'Arş. Gör. Ön. Değ.'!E68) ->  | F68: =IF('Arş. Gör. Ön. Değ.'!F68="","",'Arş. Gör. Ön. Değ.'!F68) ->  | G68: =IF('Arş. Gör. Ön. Değ.'!G68="","",'Arş. Gör. Ön. Değ.'!G68) ->  | H68: =IF('Arş. Gör. Ön. Değ.'!H68="","",'Arş. Gör. Ön. Değ.'!H68) ->  | I68: =IF('Arş. Gör. Ön. Değ.'!I68="","",'Arş. Gör. Ön. Değ.'!I68) ->  | J68: =IF('Arş. Gör. Ön. Değ.'!J68="","",'Arş. Gör. Ön. Değ.'!J68) ->  | K68: =IF('Arş. Gör. Ön. Değ.'!K68="","",'Arş. Gör. Ön. Değ.'!K68) -> 
A69: =IF('Arş. Gör. Ön. Değ.'!A69="","",'Arş. Gör. Ön. Değ.'!A69) ->  | B69: =IF('Arş. Gör. Ön. Değ.'!B69="","",LEFT('Arş. Gör. Ön. Değ.'!B69,3)&REPT("*",4)&RIGHT('Arş. Gör. Ön. Değ.'!B69,2)) ->  | C69: =IF('Arş. Gör. Ön. Değ.'!C69="","",IF(ISERR(FIND(" ",'Arş. Gör. Ön. Değ.'!C69))=TRUE,LEFT('Arş. Gör. Ön. Değ.'!C69,2)&REPT("*",3),LEFT('Arş. Gör. Ön. Değ.'!C69,2)&REPT("*",3)&" "&MID('Arş. Gör. Ön. Değ.'!C69,FIND(" ",'Arş. Gör. Ön. Değ.'!C69)+1,2)&REPT("*",3))) ->  | D69: =IF('Arş. Gör. Ön. Değ.'!D69="","",IF(ISERR(FIND(" ",'Arş. Gör. Ön. Değ.'!D69))=TRUE,LEFT('Arş. Gör. Ön. Değ.'!D69,2)&REPT("*",3),LEFT('Arş. Gör. Ön. Değ.'!D69,2)&REPT("*",3)&" "&MID('Arş. Gör. Ön. Değ.'!D69,FIND(" ",'Arş. Gör. Ön. Değ.'!D69)+1,2)&REPT("*",3))) ->  | E69: =IF('Arş. Gör. Ön. Değ.'!E69="","",'Arş. Gör. Ön. Değ.'!E69) ->  | F69: =IF('Arş. Gör. Ön. Değ.'!F69="","",'Arş. Gör. Ön. Değ.'!F69) ->  | G69: =IF('Arş. Gör. Ön. Değ.'!G69="","",'Arş. Gör. Ön. Değ.'!G69) ->  | H69: =IF('Arş. Gör. Ön. Değ.'!H69="","",'Arş. Gör. Ön. Değ.'!H69) ->  | I69: =IF('Arş. Gör. Ön. Değ.'!I69="","",'Arş. Gör. Ön. Değ.'!I69) ->  | J69: =IF('Arş. Gör. Ön. Değ.'!J69="","",'Arş. Gör. Ön. Değ.'!J69) ->  | K69: =IF('Arş. Gör. Ön. Değ.'!K69="","",'Arş. Gör. Ön. Değ.'!K69) -> 
A70: =IF('Arş. Gör. Ön. Değ.'!A70="","",'Arş. Gör. Ön. Değ.'!A70) ->  | B70: =IF('Arş. Gör. Ön. Değ.'!B70="","",LEFT('Arş. Gör. Ön. Değ.'!B70,3)&REPT("*",4)&RIGHT('Arş. Gör. Ön. Değ.'!B70,2)) ->  | C70: =IF('Arş. Gör. Ön. Değ.'!C70="","",IF(ISERR(FIND(" ",'Arş. Gör. Ön. Değ.'!C70))=TRUE,LEFT('Arş. Gör. Ön. Değ.'!C70,2)&REPT("*",3),LEFT('Arş. Gör. Ön. Değ.'!C70,2)&REPT("*",3)&" "&MID('Arş. Gör. Ön. Değ.'!C70,FIND(" ",'Arş. Gör. Ön. Değ.'!C70)+1,2)&REPT("*",3))) ->  | D70: =IF('Arş. Gör. Ön. Değ.'!D70="","",IF(ISERR(FIND(" ",'Arş. Gör. Ön. Değ.'!D70))=TRUE,LEFT('Arş. Gör. Ön. Değ.'!D70,2)&REPT("*",3),LEFT('Arş. Gör. Ön. Değ.'!D70,2)&REPT("*",3)&" "&MID('Arş. Gör. Ön. Değ.'!D70,FIND(" ",'Arş. Gör. Ön. Değ.'!D70)+1,2)&REPT("*",3))) ->  | E70: =IF('Arş. Gör. Ön. Değ.'!E70="","",'Arş. Gör. Ön. Değ.'!E70) ->  | F70: =IF('Arş. Gör. Ön. Değ.'!F70="","",'Arş. Gör. Ön. Değ.'!F70) ->  | G70: =IF('Arş. Gör. Ön. Değ.'!G70="","",'Arş. Gör. Ön. Değ.'!G70) ->  | H70: =IF('Arş. Gör. Ön. Değ.'!H70="","",'Arş. Gör. Ön. Değ.'!H70) ->  | I70: =IF('Arş. Gör. Ön. Değ.'!I70="","",'Arş. Gör. Ön. Değ.'!I70) ->  | J70: =IF('Arş. Gör. Ön. Değ.'!J70="","",'Arş. Gör. Ön. Değ.'!J70) ->  | K70: =IF('Arş. Gör. Ön. Değ.'!K70="","",'Arş. Gör. Ön. Değ.'!K70) -> 
A71: =IF('Arş. Gör. Ön. Değ.'!A71="","",'Arş. Gör. Ön. Değ.'!A71) ->  | B71: =IF('Arş. Gör. Ön. Değ.'!B71="","",LEFT('Arş. Gör. Ön. Değ.'!B71,3)&REPT("*",4)&RIGHT('Arş. Gör. Ön. Değ.'!B71,2)) ->  | C71: =IF('Arş. Gör. Ön. Değ.'!C71="","",IF(ISERR(FIND(" ",'Arş. Gör. Ön. Değ.'!C71))=TRUE,LEFT('Arş. Gör. Ön. Değ.'!C71,2)&REPT("*",3),LEFT('Arş. Gör. Ön. Değ.'!C71,2)&REPT("*",3)&" "&MID('Arş. Gör. Ön. Değ.'!C71,FIND(" ",'Arş. Gör. Ön. Değ.'!C71)+1,2)&REPT("*",3))) ->  | D71: =IF('Arş. Gör. Ön. Değ.'!D71="","",IF(ISERR(FIND(" ",'Arş. Gör. Ön. Değ.'!D71))=TRUE,LEFT('Arş. Gör. Ön. Değ.'!D71,2)&REPT("*",3),LEFT('Arş. Gör. Ön. Değ.'!D71,2)&REPT("*",3)&" "&MID('Arş. Gör. Ön. Değ.'!D71,FIND(" ",'Arş. Gör. Ön. Değ.'!D71)+1,2)&REPT("*",3))) ->  | E71: =IF('Arş. Gör. Ön. Değ.'!E71="","",'Arş. Gör. Ön. Değ.'!E71) ->  | F71: =IF('Arş. Gör. Ön. Değ.'!F71="","",'Arş. Gör. Ön. Değ.'!F71) ->  | G71: =IF('Arş. Gör. Ön. Değ.'!G71="","",'Arş. Gör. Ön. Değ.'!G71) ->  | H71: =IF('Arş. Gör. Ön. Değ.'!H71="","",'Arş. Gör. Ön. Değ.'!H71) ->  | I71: =IF('Arş. Gör. Ön. Değ.'!I71="","",'Arş. Gör. Ön. Değ.'!I71) ->  | J71: =IF('Arş. Gör. Ön. Değ.'!J71="","",'Arş. Gör. Ön. Değ.'!J71) ->  | K71: =IF('Arş. Gör. Ön. Değ.'!K71="","",'Arş. Gör. Ön. Değ.'!K71) -> 
A72: =IF('Arş. Gör. Ön. Değ.'!A72="","",'Arş. Gör. Ön. Değ.'!A72) ->  | B72: =IF('Arş. Gör. Ön. Değ.'!B72="","",LEFT('Arş. Gör. Ön. Değ.'!B72,3)&REPT("*",4)&RIGHT('Arş. Gör. Ön. Değ.'!B72,2)) ->  | C72: =IF('Arş. Gör. Ön. Değ.'!C72="","",IF(ISERR(FIND(" ",'Arş. Gör. Ön. Değ.'!C72))=TRUE,LEFT('Arş. Gör. Ön. Değ.'!C72,2)&REPT("*",3),LEFT('Arş. Gör. Ön. Değ.'!C72,2)&REPT("*",3)&" "&MID('Arş. Gör. Ön. Değ.'!C72,FIND(" ",'Arş. Gör. Ön. Değ.'!C72)+1,2)&REPT("*",3))) ->  | D72: =IF('Arş. Gör. Ön. Değ.'!D72="","",IF(ISERR(FIND(" ",'Arş. Gör. Ön. Değ.'!D72))=TRUE,LEFT('Arş. Gör. Ön. Değ.'!D72,2)&REPT("*",3),LEFT('Arş. Gör. Ön. Değ.'!D72,2)&REPT("*",3)&" "&MID('Arş. Gör. Ön. Değ.'!D72,FIND(" ",'Arş. Gör. Ön. Değ.'!D72)+1,2)&REPT("*",3))) ->  | E72: =IF('Arş. Gör. Ön. Değ.'!E72="","",'Arş. Gör. Ön. Değ.'!E72) ->  | F72: =IF('Arş. Gör. Ön. Değ.'!F72="","",'Arş. Gör. Ön. Değ.'!F72) ->  | G72: =IF('Arş. Gör. Ön. Değ.'!G72="","",'Arş. Gör. Ön. Değ.'!G72) ->  | H72: =IF('Arş. Gör. Ön. Değ.'!H72="","",'Arş. Gör. Ön. Değ.'!H72) ->  | I72: =IF('Arş. Gör. Ön. Değ.'!I72="","",'Arş. Gör. Ön. Değ.'!I72) ->  | J72: =IF('Arş. Gör. Ön. Değ.'!J72="","",'Arş. Gör. Ön. Değ.'!J72) ->  | K72: =IF('Arş. Gör. Ön. Değ.'!K72="","",'Arş. Gör. Ön. Değ.'!K72) -> 
A73: =IF('Arş. Gör. Ön. Değ.'!A73="","",'Arş. Gör. Ön. Değ.'!A73) ->  | B73: =IF('Arş. Gör. Ön. Değ.'!B73="","",LEFT('Arş. Gör. Ön. Değ.'!B73,3)&REPT("*",4)&RIGHT('Arş. Gör. Ön. Değ.'!B73,2)) ->  | C73: =IF('Arş. Gör. Ön. Değ.'!C73="","",IF(ISERR(FIND(" ",'Arş. Gör. Ön. Değ.'!C73))=TRUE,LEFT('Arş. Gör. Ön. Değ.'!C73,2)&REPT("*",3),LEFT('Arş. Gör. Ön. Değ.'!C73,2)&REPT("*",3)&" "&MID('Arş. Gör. Ön. Değ.'!C73,FIND(" ",'Arş. Gör. Ön. Değ.'!C73)+1,2)&REPT("*",3))) ->  | D73: =IF('Arş. Gör. Ön. Değ.'!D73="","",IF(ISERR(FIND(" ",'Arş. Gör. Ön. Değ.'!D73))=TRUE,LEFT('Arş. Gör. Ön. Değ.'!D73,2)&REPT("*",3),LEFT('Arş. Gör. Ön. Değ.'!D73,2)&REPT("*",3)&" "&MID('Arş. Gör. Ön. Değ.'!D73,FIND(" ",'Arş. Gör. Ön. Değ.'!D73)+1,2)&REPT("*",3))) ->  | E73: =IF('Arş. Gör. Ön. Değ.'!E73="","",'Arş. Gör. Ön. Değ.'!E73) ->  | F73: =IF('Arş. Gör. Ön. Değ.'!F73="","",'Arş. Gör. Ön. Değ.'!F73) ->  | G73: =IF('Arş. Gör. Ön. Değ.'!G73="","",'Arş. Gör. Ön. Değ.'!G73) ->  | H73: =IF('Arş. Gör. Ön. Değ.'!H73="","",'Arş. Gör. Ön. Değ.'!H73) ->  | I73: =IF('Arş. Gör. Ön. Değ.'!I73="","",'Arş. Gör. Ön. Değ.'!I73) ->  | J73: =IF('Arş. Gör. Ön. Değ.'!J73="","",'Arş. Gör. Ön. Değ.'!J73) ->  | K73: =IF('Arş. Gör. Ön. Değ.'!K73="","",'Arş. Gör. Ön. Değ.'!K73) -> 
A74: =IF('Arş. Gör. Ön. Değ.'!A74="","",'Arş. Gör. Ön. Değ.'!A74) ->  | B74: =IF('Arş. Gör. Ön. Değ.'!B74="","",LEFT('Arş. Gör. Ön. Değ.'!B74,3)&REPT("*",4)&RIGHT('Arş. Gör. Ön. Değ.'!B74,2)) ->  | C74: =IF('Arş. Gör. Ön. Değ.'!C74="","",IF(ISERR(FIND(" ",'Arş. Gör. Ön. Değ.'!C74))=TRUE,LEFT('Arş. Gör. Ön. Değ.'!C74,2)&REPT("*",3),LEFT('Arş. Gör. Ön. Değ.'!C74,2)&REPT("*",3)&" "&MID('Arş. Gör. Ön. Değ.'!C74,FIND(" ",'Arş. Gör. Ön. Değ.'!C74)+1,2)&REPT("*",3))) ->  | D74: =IF('Arş. Gör. Ön. Değ.'!D74="","",IF(ISERR(FIND(" ",'Arş. Gör. Ön. Değ.'!D74))=TRUE,LEFT('Arş. Gör. Ön. Değ.'!D74,2)&REPT("*",3),LEFT('Arş. Gör. Ön. Değ.'!D74,2)&REPT("*",3)&" "&MID('Arş. Gör. Ön. Değ.'!D74,FIND(" ",'Arş. Gör. Ön. Değ.'!D74)+1,2)&REPT("*",3))) ->  | E74: =IF('Arş. Gör. Ön. Değ.'!E74="","",'Arş. Gör. Ön. Değ.'!E74) ->  | F74: =IF('Arş. Gör. Ön. Değ.'!F74="","",'Arş. Gör. Ön. Değ.'!F74) ->  | G74: =IF('Arş. Gör. Ön. Değ.'!G74="","",'Arş. Gör. Ön. Değ.'!G74) ->  | H74: =IF('Arş. Gör. Ön. Değ.'!H74="","",'Arş. Gör. Ön. Değ.'!H74) ->  | I74: =IF('Arş. Gör. Ön. Değ.'!I74="","",'Arş. Gör. Ön. Değ.'!I74) ->  | J74: =IF('Arş. Gör. Ön. Değ.'!J74="","",'Arş. Gör. Ön. Değ.'!J74) ->  | K74: =IF('Arş. Gör. Ön. Değ.'!K74="","",'Arş. Gör. Ön. Değ.'!K74) -> 
A75: =IF('Arş. Gör. Ön. Değ.'!A75="","",'Arş. Gör. Ön. Değ.'!A75) ->  | B75: =IF('Arş. Gör. Ön. Değ.'!B75="","",LEFT('Arş. Gör. Ön. Değ.'!B75,3)&REPT("*",4)&RIGHT('Arş. Gör. Ön. Değ.'!B75,2)) ->  | C75: =IF('Arş. Gör. Ön. Değ.'!C75="","",IF(ISERR(FIND(" ",'Arş. Gör. Ön. Değ.'!C75))=TRUE,LEFT('Arş. Gör. Ön. Değ.'!C75,2)&REPT("*",3),LEFT('Arş. Gör. Ön. Değ.'!C75,2)&REPT("*",3)&" "&MID('Arş. Gör. Ön. Değ.'!C75,FIND(" ",'Arş. Gör. Ön. Değ.'!C75)+1,2)&REPT("*",3))) ->  | D75: =IF('Arş. Gör. Ön. Değ.'!D75="","",IF(ISERR(FIND(" ",'Arş. Gör. Ön. Değ.'!D75))=TRUE,LEFT('Arş. Gör. Ön. Değ.'!D75,2)&REPT("*",3),LEFT('Arş. Gör. Ön. Değ.'!D75,2)&REPT("*",3)&" "&MID('Arş. Gör. Ön. Değ.'!D75,FIND(" ",'Arş. Gör. Ön. Değ.'!D75)+1,2)&REPT("*",3))) ->  | E75: =IF('Arş. Gör. Ön. Değ.'!E75="","",'Arş. Gör. Ön. Değ.'!E75) ->  | F75: =IF('Arş. Gör. Ön. Değ.'!F75="","",'Arş. Gör. Ön. Değ.'!F75) ->  | G75: =IF('Arş. Gör. Ön. Değ.'!G75="","",'Arş. Gör. Ön. Değ.'!G75) ->  | H75: =IF('Arş. Gör. Ön. Değ.'!H75="","",'Arş. Gör. Ön. Değ.'!H75) ->  | I75: =IF('Arş. Gör. Ön. Değ.'!I75="","",'Arş. Gör. Ön. Değ.'!I75) ->  | J75: =IF('Arş. Gör. Ön. Değ.'!J75="","",'Arş. Gör. Ön. Değ.'!J75) ->  | K75: =IF('Arş. Gör. Ön. Değ.'!K75="","",'Arş. Gör. Ön. Değ.'!K75) -> 

Sheet Arş.Gör. Sonuç
A1: T.C.
A2: BAYBURT ÜNİVERSİTESİ
A3: GİRİŞ SINAVI SONUÇ TUTANAĞI
A4: Üniversitemize bağlı birimlere, 2547 sayılı Kanunun ilgili maddeleri ve 09.11.2018 tarih ve 30590 sayılı Resmi Gazetede yayımlanan "Öğretim Üyesi Dışındaki Öğretim Elemanı Kadrolarına Naklen veya Açıktan Yapılacak Atamalarda Uygulanacak Merkezi Sınav ile Giriş Sınavlarına İlişkin Usul ve Esaslar Hakkında Yönetmelik” 11. ve 12. maddeleri hükümleri uyarınca yapılan Giriş Sınavında başarılı olan adayların isimleri aşağıda belirtilmiştir.
A5: İlan No: | G5: Birimi: | J5: ….. Fakültesi / Yüksekokulu
A6: İlan Tarihi: | C6: …/.../.... | G6: Bölümü: | J6: ….. Bölümü
A7: Kadro Unvanı: | C7: Araştırma Görevlisi / Öğretim Görevlisi (Ders Verecek / Uygulamalı Birim) | G7: Anabili Dalı: | J7: …… Anabilim Dalı
A8: Kadro Adedi: | C8: 1 | G8: Sınav Tarihi: | J8: …/.../.... | L8: Sonuç Tarihi: | N8: …/.../....
A9: İlan Özel Şartı:
A10: Sıra No | B10: Başvuranın | E10: ALES Puanı | G10: Yabancı Dil Puanı | I10: Lisans Mezuniyet Notu | K10: Giriş Sınavı | M10: (A+B+C+D) Değerlendirme Notu | N10: Sonuç
B11: T.C. Kimlik No | C11: Adı | D11: Soyadı | E11: Puanı | F11: (A) Puanın %30' u | G11: Puanı | H11: (B) Puanın %10' u | I11: 100' lük Sistem | J11: (C) Notun %30' u | K11: Giriş Sınav Notu | L11: (D) Notunun %30' u
A12: 1 | B12: 11111111111 | C12: Örnek | D12: Örnek | E12: 82.51392 | F12: =E12*0.3 -> 24.754176 | G12: 62.5 | H12: =G12*0.1 -> 6.25 | I12: 76.66 | J12: =I12*0.3 -> 22.998 | K12: 95 | L12: =K12*0.3 -> 28.5 | M12: =F12+H12+J12+L12 -> 82.502176 | N12: BAŞARILI (ASIL)
A13: 2 | B13: 11111111111 | C13: Örnek Örnek | D13: Örnek | E13: 85.03048 | F13: =E13*0.3 -> 25.509144 | G13: 52.5 | H13: =G13*0.1 -> 5.25 | I13: 76.66 | J13: =I13*0.3 -> 22.998 | K13: 63 | L13: =K13*0.3 -> 18.9 | M13: =F13+H13+J13+L13 -> 72.657144 | N13: BAŞARILI (YEDEK)
A14: 3 | B14: 11111111111 | C14: Örnek | D14: Örnek Örnek | E14: 84.43135 | F14: 25.329405 | G14: 70 | H14: 7 | I14: 83.66 | J14: 25.098 | K14: 45 | L14: 13.5 | M14: =F14+H14+J14+L14 -> 70.927405 | N14: YÖNETMELİK GEREĞİ ELENDİ*
A15: 4 | B15: 11111111111 | C15: Örnek Örnek | D15: Örnek Örnek | E15: 84.43135 | F15: 25.329405 | G15: 50 | H15: 5 | I15: 76.66 | J15: 22.998 | K15: 35 | L15: 10.5 | M15: =F15+H15+J15+L15 -> 63.827405 | N15: BAŞARISIZ**
A16: 5 | B16: 11111111111 | C16: Örnek | D16: Örnek | E16: 84.43135 | F16: 25.329405 | G16: 70 | H16: 7 | I16: 83.66 | J16: 25.098 | K16: Sınava Girmedi | L16: - | M16: - | N16: SINAVA GİRMEDİ

Sheet Sonuç Rapor
A1: T.C.
A2: BAYBURT ÜNİVERSİTESİ
A3: GİRİŞ SINAVI SONUÇ TUTANAĞI
A4: Üniversitemize bağlı birimlere, 2547 sayılı Kanunun ilgili maddeleri ve 09.11.2018 tarih ve 30590 sayılı Resmi Gazetede yayımlanan "Öğretim Üyesi Dışındaki Öğretim Elemanı Kadrolarına Naklen veya Açıktan Yapılacak Atamalarda Uygulanacak Merkezi Sınav ile Giriş Sınavlarına İlişkin Usul ve Esaslar Hakkında Yönetmelik” 11. ve 12. maddeleri hükümleri uyarınca yapılan Giriş Sınavında başarılı olan adayların isimleri aşağıda belirtilmiştir.
A5: İlan No: | C5: =IF('Arş.Gör. Sonuç'!C5="","",'Arş.Gör. Sonuç'!C5) ->  | G5: Birimi: | J5: =IF('Arş.Gör. Sonuç'!J5="","",'Arş.Gör. Sonuç'!J5) -> ….. Fakültesi / Yüksekokulu
A6: İlan Tarihi: | C6: =IF('Arş.Gör. Sonuç'!C6="","",'Arş.Gör. Sonuç'!C6) -> …/.../.... | G6: Bölümü: | J6: =IF('Arş.Gör. Sonuç'!J6="","",'Arş.Gör. Sonuç'!J6) -> ….. Bölümü
A7: Kadro Unvanı: | C7: =IF('Arş.Gör. Sonuç'!C7="","",'Arş.Gör. Sonuç'!C7) -> Araştırma Görevlisi / Öğretim Görevlisi (Ders Verecek / Uygulamalı Birim) | G7: Anabili Dalı: | J7: =IF('Arş.Gör. Sonuç'!J7="","",'Arş.Gör. Sonuç'!J7) -> …… Anabilim Dalı
A8: Kadro Adedi: | C8: =IF('Arş.Gör. Sonuç'!C8="","",'Arş.Gör. Sonuç'!C8) -> 1 | G8: Sınav Tarihi: | J8: =IF('Arş.Gör. Sonuç'!J8="","",'Arş.Gör. Sonuç'!J8) -> …/.../.... | L8: Sonuç Tarihi: | N8: =IF('Arş.Gör. Sonuç'!N8="","",'Arş.Gör. Sonuç'!N8) -> …/.../....
A9: İlan Özel Şartı: | C9: =IF('Arş.Gör. Sonuç'!C9="","",'Arş.Gör. Sonuç'!C9) -> 
A10: Sıra No | B10: Başvuranın | E10: ALES Puanı | G10: Yabancı Dil Puanı | I10: Lisans Mezuniyet Notu | K10: Giriş Sınavı | M10: (A+B+C+D) Değerlendirme Notu | N10: Sonuç
B11: T.C. Kimlik No | C11: Adı | D11: Soyadı | E11: Puanı | F11: (A) Puanın %30' u | G11: Puanı | H11: (B) Puanın %10' u | I11: 100' lük Sistem | J11: (C) Notun %30' u | K11: Giriş Sınav Notu | L11: (D) Notunun %30' u
A12: =IF('Arş.Gör. Sonuç'!A12="","",'Arş.Gör. Sonuç'!A12) -> 1 | B12: =IF('Arş.Gör. Sonuç'!B12="","",LEFT('Arş.Gör. Sonuç'!B12,3)&REPT("*",4)&RIGHT('Arş.Gör. Sonuç'!B12,2)) -> 111****11 | C12: =IF('Arş.Gör. Sonuç'!C12="","",IF(ISERR(FIND(" ",'Arş.Gör. Sonuç'!C12))=TRUE,LEFT('Arş.Gör. Sonuç'!C12,2)&REPT("*",3),LEFT('Arş.Gör. Sonuç'!C12,2)&REPT("*",3)&" "&MID('Arş.Gör. Sonuç'!C12,FIND(" ",'Arş.Gör. Sonuç'!C12)+1,2)&REPT("*",3))) -> Ör*** | D12: =IF('Arş.Gör. Sonuç'!D12="","",IF(ISERR(FIND(" ",'Arş.Gör. Sonuç'!D12))=TRUE,LEFT('Arş.Gör. Sonuç'!D12,2)&REPT("*",3),LEFT('Arş.Gör. Sonuç'!D12,2)&REPT("*",3)&" "&MID('Arş.Gör. Sonuç'!D12,FIND(" ",'Arş.Gör. Sonuç'!D12)+1,2)&REPT("*",3))) -> Ör*** | E12: =IF('Arş.Gör. Sonuç'!E12="","",'Arş.Gör. Sonuç'!E12) -> 82.51392 | F12: =IF('Arş.Gör. Sonuç'!F12="","",'Arş.Gör. Sonuç'!F12) -> 24.754176 | G12: =IF('Arş.Gör. Sonuç'!G12="","",'Arş.Gör. Sonuç'!G12) -> 62.5 | H12: =IF('Arş.Gör. Sonuç'!H12="","",'Arş.Gör. Sonuç'!H12) -> 6.25 | I12: =IF('Arş.Gör. Sonuç'!I12="","",'Arş.Gör. Sonuç'!I12) -> 76.66 | J12: =IF('Arş.Gör. Sonuç'!J12="","",'Arş.Gör. Sonuç'!J12) -> 22.998 | K12: =IF('Arş.Gör. Sonuç'!K12="","",'Arş.Gör. Sonuç'!K12) -> 95 | L12: =IF('Arş.Gör. Sonuç'!L12="","",'Arş.Gör. Sonuç'!L12) -> 28.5 | M12: =IF('Arş.Gör. Sonuç'!M12="","",'Arş.Gör. Sonuç'!M12) -> 82.502176 | N12: =IF('Arş.Gör. Sonuç'!N12="","",'Arş.Gör. Sonuç'!N12) -> BAŞARILI (ASIL)
A13: =IF('Arş.Gör. Sonuç'!A13="","",'Arş.Gör. Sonuç'!A13) -> 2 | B13: =IF('Arş.Gör. Sonuç'!B13="","",LEFT('Arş.Gör. Sonuç'!B13,3)&REPT("*",4)&RIGHT('Arş.Gör. Sonuç'!B13,2)) -> 111****11 | C13: =IF('Arş.Gör. Sonuç'!C13="","",IF(ISERR(FIND(" ",'Arş.Gör. Sonuç'!C13))=TRUE,LEFT('Arş.Gör. Sonuç'!C13,2)&REPT("*",3),LEFT('Arş.Gör. Sonuç'!C13,2)&REPT("*",3)&" "&MID('Arş.Gör. Sonuç'!C13,FIND(" ",'Arş.Gör. Sonuç'!C13)+1,2)&REPT("*",3))) -> Ör*** Ör*** | D13: =IF('Arş.Gör. Sonuç'!D13="","",IF(ISERR(FIND(" ",'Arş.Gör. Sonuç'!D13))=TRUE,LEFT('Arş.Gör. Sonuç'!D13,2)&REPT("*",3),LEFT('Arş.Gör. Sonuç'!D13,2)&REPT("*",3)&" "&MID('Arş.Gör. Sonuç'!D13,FIND(" ",'Arş.Gör. Sonuç'!D13)+1,2)&REPT("*",3))) -> Ör*** | E13: =IF('Arş.Gör. Sonuç'!E13="","",'Arş.Gör. Sonuç'!E13) -> 85.03048 | F13: =IF('Arş.Gör. Sonuç'!F13="","",'Arş.Gör. Sonuç'!F13) -> 25.509144 | G13: =IF('Arş.Gör. Sonuç'!G13="","",'Arş.Gör. Sonuç'!G13) -> 52.5 | H13: =IF('Arş.Gör. Sonuç'!H13="","",'Arş.Gör. Sonuç'!H13) -> 5.25 | I13: =IF('Arş.Gör. Sonuç'!I13="","",'Arş.Gör. Sonuç'!I13) -> 76.66 | J13: =IF('Arş.Gör. Sonuç'!J13="","",'Arş.Gör. Sonuç'!J13) -> 22.998 | K13: =IF('Arş.Gör. Sonuç'!K13="","",'Arş.Gör. Sonuç'!K13) -> 63 | L13: =IF('Arş.Gör. Sonuç'!L13="","",'Arş.Gör. Sonuç'!L13) -> 18.9 | M13: =IF('Arş.Gör. Sonuç'!M13="","",'Arş.Gör. Sonuç'!M13) -> 72.657144 | N13: =IF('Arş.Gör. Sonuç'!N13="","",'Arş.Gör. Sonuç'!N13) -> BAŞARILI (YEDEK)
A14: =IF('Arş.Gör. Sonuç'!A14="","",'Arş.Gör. Sonuç'!A14) -> 3 | B14: =IF('Arş.Gör. Sonuç'!B14="","",LEFT('Arş.Gör. Sonuç'!B14,3)&REPT("*",4)&RIGHT('Arş.Gör. Sonuç'!B14,2)) -> 111****11 | C14: =IF('Arş.Gör. Sonuç'!C14="","",IF(ISERR(FIND(" ",'Arş.Gör. Sonuç'!C14))=TRUE,LEFT('Arş.Gör. Sonuç'!C14,2)&REPT("*",3),LEFT('Arş.Gör. Sonuç'!C14,2)&REPT("*",3)&" "&MID('Arş.Gör. Sonuç'!C14,FIND(" ",'Arş.Gör. Sonuç'!C14)+1,2)&REPT("*",3))) -> Ör*** | D14: =IF('Arş.Gör. Sonuç'!D14="","",IF(ISERR(FIND(" ",'Arş.Gör. Sonuç'!D14))=TRUE,LEFT('Arş.Gör. Sonuç'!D14,2)&REPT("*",3),LEFT('Arş.Gör. Sonuç'!D14,2)&REPT("*",3)&" "&MID('Arş.Gör. Sonuç'!D14,FIND(" ",'Arş.Gör. Sonuç'!D14)+1,2)&REPT("*",3))) -> Ör*** Ör*** | E14: =IF('Arş.Gör. Sonuç'!E14="","",'Arş.Gör. Sonuç'!E14) -> 84.43135 | F14: =IF('Arş.Gör. Sonuç'!F14="","",'Arş.Gör. Sonuç'!F14) -> 25.329405 | G14: =IF('Arş.Gör. Sonuç'!G14="","",'Arş.Gör. Sonuç'!G14) -> 70 | H14: =IF('Arş.Gör. Sonuç'!H14="","",'Arş.Gör. Sonuç'!H14) -> 7 | I14: =IF('Arş.Gör. Sonuç'!I14="","",'Arş.Gör. Sonuç'!I14) -> 83.66 | J14: =IF('Arş.Gör. Sonuç'!J14="","",'Arş.Gör. Sonuç'!J14) -> 25.098 | K14: =IF('Arş.Gör. Sonuç'!K14="","",'Arş.Gör. Sonuç'!K14) -> 45 | L14: =IF('Arş.Gör. Sonuç'!L14="","",'Arş.Gör. Sonuç'!L14) -> 13.5 | M14: =IF('Arş.Gör. Sonuç'!M14="","",'Arş.Gör. Sonuç'!M14) -> 70.927405 | N14: =IF('Arş.Gör. Sonuç'!N14="","",'Arş.Gör. Sonuç'!N14) -> YÖNETMELİK GEREĞİ ELENDİ*
A15: =IF('Arş.Gör. Sonuç'!A15="","",'Arş.Gör. Sonuç'!A15) -> 4 | B15: =IF('Arş.Gör. Sonuç'!B15="","",LEFT('Arş.Gör. Sonuç'!B15,3)&REPT("*",4)&RIGHT('Arş.Gör. Sonuç'!B15,2)) -> 111****11 | C15: =IF('Arş.Gör. Sonuç'!C15="","",IF(ISERR(FIND(" ",'Arş.Gör. Sonuç'!C15))=TRUE,LEFT('Arş.Gör. Sonuç'!C15,2)&REPT("*",3),LEFT('Arş.Gör. Sonuç'!C15,2)&REPT("*",3)&" "&MID('Arş.Gör. Sonuç'!C15,FIND(" ",'Arş.Gör. Sonuç'!C15)+1,2)&REPT("*",3))) -> Ör*** Ör*** | D15: =IF('Arş.Gör. Sonuç'!D15="","",IF(ISERR(FIND(" ",'Arş.Gör. Sonuç'!D15))=TRUE,LEFT('Arş.Gör. Sonuç'!D15,2)&REPT("*",3),LEFT('Arş.Gör. Sonuç'!D15,2)&REPT("*",3)&" "&MID('Arş.Gör. Sonuç'!D15,FIND(" ",'Arş.Gör. Sonuç'!D15)+1,2)&REPT("*",3))) -> Ör*** Ör*** | E15: =IF('Arş.Gör. Sonuç'!E15="","",'Arş.Gör. Sonuç'!E15) -> 84.43135 | F15: =IF('Arş.Gör. Sonuç'!F15="","",'Arş.Gör. Sonuç'!F15) -> 25.329405 | G15: =IF('Arş.Gör. Sonuç'!G15="","",'Arş.Gör. Sonuç'!G15) -> 50 | H15: =IF('Arş.Gör. Sonuç'!H15="","",'Arş.Gör. Sonuç'!H15) -> 5 | I15: =IF('Arş.Gör. Sonuç'!I15="","",'Arş.Gör. Sonuç'!I15) -> 76.66 | J15: =IF('Arş.Gör. Sonuç'!J15="","",'Arş.Gör. Sonuç'!J15) -> 22.998 | K15: =IF('Arş.Gör. Sonuç'!K15="","",'Arş.Gör. Sonuç'!K15) -> 35 | L15: =IF('Arş.Gör. Sonuç'!L15="","",'Arş.Gör. Sonuç'!L15) -> 10.5 | M15: =IF('Arş.Gör. Sonuç'!M15="","",'Arş.Gör. Sonuç'!M15) -> 63.827405 | N15: =IF('Arş.Gör. Sonuç'!N15="","",'Arş.Gör. Sonuç'!N15) -> BAŞARISIZ**
A16: =IF('Arş.Gör. Sonuç'!A16="","",'Arş.Gör. Sonuç'!A16) -> 5 | B16: =IF('Arş.Gör. Sonuç'!B16="","",LEFT('Arş.Gör. Sonuç'!B16,3)&REPT("*",4)&RIGHT('Arş.Gör. Sonuç'!B16,2)) -> 111****11 | C16: =IF('Arş.Gör. Sonuç'!C16="","",IF(ISERR(FIND(" ",'Arş.Gör. Sonuç'!C16))=TRUE,LEFT('Arş.Gör. Sonuç'!C16,2)&REPT("*",3),LEFT('Arş.Gör. Sonuç'!C16,2)&REPT("*",3)&" "&MID('Arş.Gör. Sonuç'!C16,FIND(" ",'Arş.Gör. Sonuç'!C16)+1,2)&REPT("*",3))) -> Ör*** | D16: =IF('Arş.Gör. Sonuç'!D16="","",IF(ISERR(FIND(" ",'Arş.Gör. Sonuç'!D16))=TRUE,LEFT('Arş.Gör. Sonuç'!D16,2)&REPT("*",3),LEFT('Arş.Gör. Sonuç'!D16,2)&REPT("*",3)&" "&MID('Arş.Gör. Sonuç'!D16,FIND(" ",'Arş.Gör. Sonuç'!D16)+1,2)&REPT("*",3))) -> Ör*** | E16: =IF('Arş.Gör. Sonuç'!E16="","",'Arş.Gör. Sonuç'!E16) -> 84.43135 | F16: =IF('Arş.Gör. Sonuç'!F16="","",'Arş.Gör. Sonuç'!F16) -> 25.329405 | G16: =IF('Arş.Gör. Sonuç'!G16="","",'Arş.Gör. Sonuç'!G16) -> 70 | H16: =IF('Arş.Gör. Sonuç'!H16="","",'Arş.Gör. Sonuç'!H16) -> 7 | I16: =IF('Arş.Gör. Sonuç'!I16="","",'Arş.Gör. Sonuç'!I16) -> 83.66 | J16: =IF('Arş.Gör. Sonuç'!J16="","",'Arş.Gör. Sonuç'!J16) -> 25.098 | K16: =IF('Arş.Gör. Sonuç'!K16="","",'Arş.Gör. Sonuç'!K16) -> Sınava Girmedi | L16: =IF('Arş.Gör. Sonuç'!L16="","",'Arş.Gör. Sonuç'!L16) -> - | M16: =IF('Arş.Gör. Sonuç'!M16="","",'Arş.Gör. Sonuç'!M16) -> - | N16: =IF('Arş.Gör. Sonuç'!N16="","",'Arş.Gör. Sonuç'!N16) -> SINAVA GİRMEDİ
A17: =IF('Arş.Gör. Sonuç'!A17="","",'Arş.Gör. Sonuç'!A17) ->  | B17: =IF('Arş.Gör. Sonuç'!B17="","",LEFT('Arş.Gör. Sonuç'!B17,3)&REPT("*",4)&RIGHT('Arş.Gör. Sonuç'!B17,2)) ->  | C17: =IF('Arş.Gör. Sonuç'!C17="","",IF(ISERR(FIND(" ",'Arş.Gör. Sonuç'!C17))=TRUE,LEFT('Arş.Gör. Sonuç'!C17,2)&REPT("*",3),LEFT('Arş.Gör. Sonuç'!C17,2)&REPT("*",3)&" "&MID('Arş.Gör. Sonuç'!C17,FIND(" ",'Arş.Gör. Sonuç'!C17)+1,2)&REPT("*",3))) ->  | D17: =IF('Arş.Gör. Sonuç'!D17="","",IF(ISERR(FIND(" ",'Arş.Gör. Sonuç'!D17))=TRUE,LEFT('Arş.Gör. Sonuç'!D17,2)&REPT("*",3),LEFT('Arş.Gör. Sonuç'!D17,2)&REPT("*",3)&" "&MID('Arş.Gör. Sonuç'!D17,FIND(" ",'Arş.Gör. Sonuç'!D17)+1,2)&REPT("*",3))) ->  | E17: =IF('Arş.Gör. Sonuç'!E17="","",'Arş.Gör. Sonuç'!E17) ->  | F17: =IF('Arş.Gör. Sonuç'!F17="","",'Arş.Gör. Sonuç'!F17) ->  | G17: =IF('Arş.Gör. Sonuç'!G17="","",'Arş.Gör. Sonuç'!G17) ->  | H17: =IF('Arş.Gör. Sonuç'!H17="","",'Arş.Gör. Sonuç'!H17) ->  | I17: =IF('Arş.Gör. Sonuç'!I17="","",'Arş.Gör. Sonuç'!I17) ->  | J17: =IF('Arş.Gör. Sonuç'!J17="","",'Arş.Gör. Sonuç'!J17) ->  | K17: =IF('Arş.Gör. Sonuç'!K17="","",'Arş.Gör. Sonuç'!K17) ->  | L17: =IF('Arş.Gör. Sonuç'!L17="","",'Arş.Gör. Sonuç'!L17) ->  | M17: =IF('Arş.Gör. Sonuç'!M17="","",'Arş.Gör. Sonuç'!M17) ->  | N17: =IF('Arş.Gör. Sonuç'!N17="","",'Arş.Gör. Sonuç'!N17) -> 
A18: =IF('Arş.Gör. Sonuç'!A18="","",'Arş.Gör. Sonuç'!A18) ->  | B18: =IF('Arş.Gör. Sonuç'!B18="","",LEFT('Arş.Gör. Sonuç'!B18,3)&REPT("*",4)&RIGHT('Arş.Gör. Sonuç'!B18,2)) ->  | C18: =IF('Arş.Gör. Sonuç'!C18="","",IF(ISERR(FIND(" ",'Arş.Gör. Sonuç'!C18))=TRUE,LEFT('Arş.Gör. Sonuç'!C18,2)&REPT("*",3),LEFT('Arş.Gör. Sonuç'!C18,2)&REPT("*",3)&" "&MID('Arş.Gör. Sonuç'!C18,FIND(" ",'Arş.Gör. Sonuç'!C18)+1,2)&REPT("*",3))) ->  | D18: =IF('Arş.Gör. Sonuç'!D18="","",IF(ISERR(FIND(" ",'Arş.Gör. Sonuç'!D18))=TRUE,LEFT('Arş.Gör. Sonuç'!D18,2)&REPT("*",3),LEFT('Arş.Gör. Sonuç'!D18,2)&REPT("*",3)&" "&MID('Arş.Gör. Sonuç'!D18,FIND(" ",'Arş.Gör. Sonuç'!D18)+1,2)&REPT("*",3))) ->  | E18: =IF('Arş.Gör. Sonuç'!E18="","",'Arş.Gör. Sonuç'!E18) ->  | F18: =IF('Arş.Gör. Sonuç'!F18="","",'Arş.Gör. Sonuç'!F18) ->  | G18: =IF('Arş.Gör. Sonuç'!G18="","",'Arş.Gör. Sonuç'!G18) ->  | H18: =IF('Arş.Gör. Sonuç'!H18="","",'Arş.Gör. Sonuç'!H18) ->  | I18: =IF('Arş.Gör. Sonuç'!I18="","",'Arş.Gör. Sonuç'!I18) ->  | J18: =IF('Arş.Gör. Sonuç'!J18="","",'Arş.Gör. Sonuç'!J18) ->  | K18: =IF('Arş.Gör. Sonuç'!K18="","",'Arş.Gör. Sonuç'!K18) ->  | L18: =IF('Arş.Gör. Sonuç'!L18="","",'Arş.Gör. Sonuç'!L18) ->  | M18: =IF('Arş.Gör. Sonuç'!M18="","",'Arş.Gör. Sonuç'!M18) ->  | N18: =IF('Arş.Gör. Sonuç'!N18="","",'Arş.Gör. Sonuç'!N18) -> 
A19: =IF('Arş.Gör. Sonuç'!A19="","",'Arş.Gör. Sonuç'!A19) ->  | B19: =IF('Arş.Gör. Sonuç'!B19="","",LEFT('Arş.Gör. Sonuç'!B19,3)&REPT("*",4)&RIGHT('Arş.Gör. Sonuç'!B19,2)) ->  | C19: =IF('Arş.Gör. Sonuç'!C19="","",IF(ISERR(FIND(" ",'Arş.Gör. Sonuç'!C19))=TRUE,LEFT('Arş.Gör. Sonuç'!C19,2)&REPT("*",3),LEFT('Arş.Gör. Sonuç'!C19,2)&REPT("*",3)&" "&MID('Arş.Gör. Sonuç'!C19,FIND(" ",'Arş.Gör. Sonuç'!C19)+1,2)&REPT("*",3))) ->  | D19: =IF('Arş.Gör. Sonuç'!D19="","",IF(ISERR(FIND(" ",'Arş.Gör. Sonuç'!D19))=TRUE,LEFT('Arş.Gör. Sonuç'!D19,2)&REPT("*",3),LEFT('Arş.Gör. Sonuç'!D19,2)&REPT("*",3)&" "&MID('Arş.Gör. Sonuç'!D19,FIND(" ",'Arş.Gör. Sonuç'!D19)+1,2)&REPT("*",3))) ->  | E19: =IF('Arş.Gör. Sonuç'!E19="","",'Arş.Gör. Sonuç'!E19) ->  | F19: =IF('Arş.Gör. Sonuç'!F19="","",'Arş.Gör. Sonuç'!F19) ->  | G19: =IF('Arş.Gör. Sonuç'!G19="","",'Arş.Gör. Sonuç'!G19) ->  | H19: =IF('Arş.Gör. Sonuç'!H19="","",'Arş.Gör. Sonuç'!H19) ->  | I19: =IF('Arş.Gör. Sonuç'!I19="","",'Arş.Gör. Sonuç'!I19) ->  | J19: =IF('Arş.Gör. Sonuç'!J19="","",'Arş.Gör. Sonuç'!J19) ->  | K19: =IF('Arş.Gör. Sonuç'!K19="","",'Arş.Gör. Sonuç'!K19) ->  | L19: =IF('Arş.Gör. Sonuç'!L19="","",'Arş.Gör. Sonuç'!L19) ->  | M19: =IF('Arş.Gör. Sonuç'!M19="","",'Arş.Gör. Sonuç'!M19) ->  | N19: =IF('Arş.Gör. Sonuç'!N19="","",'Arş.Gör. Sonuç'!N19) -> 
A20: =IF('Arş.Gör. Sonuç'!A20="","",'Arş.Gör. Sonuç'!A20) ->  | B20: =IF('Arş.Gör. Sonuç'!B20="","",LEFT('Arş.Gör. Sonuç'!B20,3)&REPT("*",4)&RIGHT('Arş.Gör. Sonuç'!B20,2)) ->  | C20: =IF('Arş.Gör. Sonuç'!C20="","",IF(ISERR(FIND(" ",'Arş.Gör. Sonuç'!C20))=TRUE,LEFT('Arş.Gör. Sonuç'!C20,2)&REPT("*",3),LEFT('Arş.Gör. Sonuç'!C20,2)&REPT("*",3)&" "&MID('Arş.Gör. Sonuç'!C20,FIND(" ",'Arş.Gör. Sonuç'!C20)+1,2)&REPT("*",3))) ->  | D20: =IF('Arş.Gör. Sonuç'!D20="","",IF(ISERR(FIND(" ",'Arş.Gör. Sonuç'!D20))=TRUE,LEFT('Arş.Gör. Sonuç'!D20,2)&REPT("*",3),LEFT('Arş.Gör. Sonuç'!D20,2)&REPT("*",3)&" "&MID('Arş.Gör. Sonuç'!D20,FIND(" ",'Arş.Gör. Sonuç'!D20)+1,2)&REPT("*",3))) ->  | E20: =IF('Arş.Gör. Sonuç'!E20="","",'Arş.Gör. Sonuç'!E20) ->  | F20: =IF('Arş.Gör. Sonuç'!F20="","",'Arş.Gör. Sonuç'!F20) ->  | G20: =IF('Arş.Gör. Sonuç'!G20="","",'Arş.Gör. Sonuç'!G20) ->  | H20: =IF('Arş.Gör. Sonuç'!H20="","",'Arş.Gör. Sonuç'!H20) ->  | I20: =IF('Arş.Gör. Sonuç'!I20="","",'Arş.Gör. Sonuç'!I20) ->  | J20: =IF('Arş.Gör. Sonuç'!J20="","",'Arş.Gör. Sonuç'!J20) ->  | K20: =IF('Arş.Gör. Sonuç'!K20="","",'Arş.Gör. Sonuç'!K20) ->  | L20: =IF('Arş.Gör. Sonuç'!L20="","",'Arş.Gör. Sonuç'!L20) ->  | M20: =IF('Arş.Gör. Sonuç'!M20="","",'Arş.Gör. Sonuç'!M20) ->  | N20: =IF('Arş.Gör. Sonuç'!N20="","",'Arş.Gör. Sonuç'!N20) -> 
A21: =IF('Arş.Gör. Sonuç'!A21="","",'Arş.Gör. Sonuç'!A21) ->  | B21: =IF('Arş.Gör. Sonuç'!B21="","",LEFT('Arş.Gör. Sonuç'!B21,3)&REPT("*",4)&RIGHT('Arş.Gör. Sonuç'!B21,2)) ->  | C21: =IF('Arş.Gör. Sonuç'!C21="","",IF(ISERR(FIND(" ",'Arş.Gör. Sonuç'!C21))=TRUE,LEFT('Arş.Gör. Sonuç'!C21,2)&REPT("*",3),LEFT('Arş.Gör. Sonuç'!C21,2)&REPT("*",3)&" "&MID('Arş.Gör. Sonuç'!C21,FIND(" ",'Arş.Gör. Sonuç'!C21)+1,2)&REPT("*",3))) ->  | D21: =IF('Arş.Gör. Sonuç'!D21="","",IF(ISERR(FIND(" ",'Arş.Gör. Sonuç'!D21))=TRUE,LEFT('Arş.Gör. Sonuç'!D21,2)&REPT("*",3),LEFT('Arş.Gör. Sonuç'!D21,2)&REPT("*",3)&" "&MID('Arş.Gör. Sonuç'!D21,FIND(" ",'Arş.Gör. Sonuç'!D21)+1,2)&REPT("*",3))) ->  | E21: =IF('Arş.Gör. Sonuç'!E21="","",'Arş.Gör. Sonuç'!E21) ->  | F21: =IF('Arş.Gör. Sonuç'!F21="","",'Arş.Gör. Sonuç'!F21) ->  | G21: =IF('Arş.Gör. Sonuç'!G21="","",'Arş.Gör. Sonuç'!G21) ->  | H21: =IF('Arş.Gör. Sonuç'!H21="","",'Arş.Gör. Sonuç'!H21) ->  | I21: =IF('Arş.Gör. Sonuç'!I21="","",'Arş.Gör. Sonuç'!I21) ->  | J21: =IF('Arş.Gör. Sonuç'!J21="","",'Arş.Gör. Sonuç'!J21) ->  | K21: =IF('Arş.Gör. Sonuç'!K21="","",'Arş.Gör. Sonuç'!K21) ->  | L21: =IF('Arş.Gör. Sonuç'!L21="","",'Arş.Gör. Sonuç'!L21) ->  | M21: =IF('Arş.Gör. Sonuç'!M21="","",'Arş.Gör. Sonuç'!M21) ->  | N21: =IF('Arş.Gör. Sonuç'!N21="","",'Arş.Gör. Sonuç'!N21) -> 
A22: =IF('Arş.Gör. Sonuç'!A22="","",'Arş.Gör. Sonuç'!A22) ->  | B22: =IF('Arş.Gör. Sonuç'!B22="","",LEFT('Arş.Gör. Sonuç'!B22,3)&REPT("*",4)&RIGHT('Arş.Gör. Sonuç'!B22,2)) ->  | C22: =IF('Arş.Gör. Sonuç'!C22="","",IF(ISERR(FIND(" ",'Arş.Gör. Sonuç'!C22))=TRUE,LEFT('Arş.Gör. Sonuç'!C22,2)&REPT("*",3),LEFT('Arş.Gör. Sonuç'!C22,2)&REPT("*",3)&" "&MID('Arş.Gör. Sonuç'!C22,FIND(" ",'Arş.Gör. Sonuç'!C22)+1,2)&REPT("*",3))) ->  | D22: =IF('Arş.Gör. Sonuç'!D22="","",IF(ISERR(FIND(" ",'Arş.Gör. Sonuç'!D22))=TRUE,LEFT('Arş.Gör. Sonuç'!D22,2)&REPT("*",3),LEFT('Arş.Gör. Sonuç'!D22,2)&REPT("*",3)&" "&MID('Arş.Gör. Sonuç'!D22,FIND(" ",'Arş.Gör. Sonuç'!D22)+1,2)&REPT("*",3))) ->  | E22: =IF('Arş.Gör. Sonuç'!E22="","",'Arş.Gör. Sonuç'!E22) ->  | F22: =IF('Arş.Gör. Sonuç'!F22="","",'Arş.Gör. Sonuç'!F22) ->  | G22: =IF('Arş.Gör. Sonuç'!G22="","",'Arş.Gör. Sonuç'!G22) ->  | H22: =IF('Arş.Gör. Sonuç'!H22="","",'Arş.Gör. Sonuç'!H22) ->  | I22: =IF('Arş.Gör. Sonuç'!I22="","",'Arş.Gör. Sonuç'!I22) ->  | J22: =IF('Arş.Gör. Sonuç'!J22="","",'Arş.Gör. Sonuç'!J22) ->  | K22: =IF('Arş.Gör. Sonuç'!K22="","",'Arş.Gör. Sonuç'!K22) ->  | L22: =IF('Arş.Gör. Sonuç'!L22="","",'Arş.Gör. Sonuç'!L22) ->  | M22: =IF('Arş.Gör. Sonuç'!M22="","",'Arş.Gör. Sonuç'!M22) ->  | N22: =IF('Arş.Gör. Sonuç'!N22="","",'Arş.Gör. Sonuç'!N22) -> 
A23: =IF('Arş.Gör. Sonuç'!A23="","",'Arş.Gör. Sonuç'!A23) ->  | B23: =IF('Arş.Gör. Sonuç'!B23="","",LEFT('Arş.Gör. Sonuç'!B23,3)&REPT("*",4)&RIGHT('Arş.Gör. Sonuç'!B23,2)) ->  | C23: =IF('Arş.Gör. Sonuç'!C23="","",IF(ISERR(FIND(" ",'Arş.Gör. Sonuç'!C23))=TRUE,LEFT('Arş.Gör. Sonuç'!C23,2)&REPT("*",3),LEFT('Arş.Gör. Sonuç'!C23,2)&REPT("*",3)&" "&MID('Arş.Gör. Sonuç'!C23,FIND(" ",'Arş.Gör. Sonuç'!C23)+1,2)&REPT("*",3))) ->  | D23: =IF('Arş.Gör. Sonuç'!D23="","",IF(ISERR(FIND(" ",'Arş.Gör. Sonuç'!D23))=TRUE,LEFT('Arş.Gör. Sonuç'!D23,2)&REPT("*",3),LEFT('Arş.Gör. Sonuç'!D23,2)&REPT("*",3)&" "&MID('Arş.Gör. Sonuç'!D23,FIND(" ",'Arş.Gör. Sonuç'!D23)+1,2)&REPT("*",3))) ->  | E23: =IF('Arş.Gör. Sonuç'!E23="","",'Arş.Gör. Sonuç'!E23) ->  | F23: =IF('Arş.Gör. Sonuç'!F23="","",'Arş.Gör. Sonuç'!F23) ->  | G23: =IF('Arş.Gör. Sonuç'!G23="","",'Arş.Gör. Sonuç'!G23) ->  | H23: =IF('Arş.Gör. Sonuç'!H23="","",'Arş.Gör. Sonuç'!H23) ->  | I23: =IF('Arş.Gör. Sonuç'!I23="","",'Arş.Gör. Sonuç'!I23) ->  | J23: =IF('Arş.Gör. Sonuç'!J23="","",'Arş.Gör. Sonuç'!J23) ->  | K23: =IF('Arş.Gör. Sonuç'!K23="","",'Arş.Gör. Sonuç'!K23) ->  | L23: =IF('Arş.Gör. Sonuç'!L23="","",'Arş.Gör. Sonuç'!L23) ->  | M23: =IF('Arş.Gör. Sonuç'!M23="","",'Arş.Gör. Sonuç'!M23) ->  | N23: =IF('Arş.Gör. Sonuç'!N23="","",'Arş.Gör. Sonuç'!N23) -> 
A24: =IF('Arş.Gör. Sonuç'!A24="","",'Arş.Gör. Sonuç'!A24) ->  | B24: =IF('Arş.Gör. Sonuç'!B24="","",LEFT('Arş.Gör. Sonuç'!B24,3)&REPT("*",4)&RIGHT('Arş.Gör. Sonuç'!B24,2)) ->  | C24: =IF('Arş.Gör. Sonuç'!C24="","",IF(ISERR(FIND(" ",'Arş.Gör. Sonuç'!C24))=TRUE,LEFT('Arş.Gör. Sonuç'!C24,2)&REPT("*",3),LEFT('Arş.Gör. Sonuç'!C24,2)&REPT("*",3)&" "&MID('Arş.Gör. Sonuç'!C24,FIND(" ",'Arş.Gör. Sonuç'!C24)+1,2)&REPT("*",3))) ->  | D24: =IF('Arş.Gör. Sonuç'!D24="","",IF(ISERR(FIND(" ",'Arş.Gör. Sonuç'!D24))=TRUE,LEFT('Arş.Gör. Sonuç'!D24,2)&REPT("*",3),LEFT('Arş.Gör. Sonuç'!D24,2)&REPT("*",3)&" "&MID('Arş.Gör. Sonuç'!D24,FIND(" ",'Arş.Gör. Sonuç'!D24)+1,2)&REPT("*",3))) ->  | E24: =IF('Arş.Gör. Sonuç'!E24="","",'Arş.Gör. Sonuç'!E24) ->  | F24: =IF('Arş.Gör. Sonuç'!F24="","",'Arş.Gör. Sonuç'!F24) ->  | G24: =IF('Arş.Gör. Sonuç'!G24="","",'Arş.Gör. Sonuç'!G24) ->  | H24: =IF('Arş.Gör. Sonuç'!H24="","",'Arş.Gör. Sonuç'!H24) ->  | I24: =IF('Arş.Gör. Sonuç'!I24="","",'Arş.Gör. Sonuç'!I24) ->  | J24: =IF('Arş.Gör. Sonuç'!J24="","",'Arş.Gör. Sonuç'!J24) ->  | K24: =IF('Arş.Gör. Sonuç'!K24="","",'Arş.Gör. Sonuç'!K24) ->  | L24: =IF('Arş.Gör. Sonuç'!L24="","",'Arş.Gör. Sonuç'!L24) ->  | M24: =IF('Arş.Gör. Sonuç'!M24="","",'Arş.Gör. Sonuç'!M24) ->  | N24: =IF('Arş.Gör. Sonuç'!N24="","",'Arş.Gör. Sonuç'!N24) -> 
A25: =IF('Arş.Gör. Sonuç'!A25="","",'Arş.Gör. Sonuç'!A25) ->  | B25: =IF('Arş.Gör. Sonuç'!B25="","",LEFT('Arş.Gör. Sonuç'!B25,3)&REPT("*",4)&RIGHT('Arş.Gör. Sonuç'!B25,2)) ->  | C25: =IF('Arş.Gör. Sonuç'!C25="","",IF(ISERR(FIND(" ",'Arş.Gör. Sonuç'!C25))=TRUE,LEFT('Arş.Gör. Sonuç'!C25,2)&REPT("*",3),LEFT('Arş.Gör. Sonuç'!C25,2)&REPT("*",3)&" "&MID('Arş.Gör. Sonuç'!C25,FIND(" ",'Arş.Gör. Sonuç'!C25)+1,2)&REPT("*",3))) ->  | D25: =IF('Arş.Gör. Sonuç'!D25="","",IF(ISERR(FIND(" ",'Arş.Gör. Sonuç'!D25))=TRUE,LEFT('Arş.Gör. Sonuç'!D25,2)&REPT("*",3),LEFT('Arş.Gör. Sonuç'!D25,2)&REPT("*",3)&" "&MID('Arş.Gör. Sonuç'!D25,FIND(" ",'Arş.Gör. Sonuç'!D25)+1,2)&REPT("*",3))) ->  | E25: =IF('Arş.Gör. Sonuç'!E25="","",'Arş.Gör. Sonuç'!E25) ->  | F25: =IF('Arş.Gör. Sonuç'!F25="","",'Arş.Gör. Sonuç'!F25) ->  | G25: =IF('Arş.Gör. Sonuç'!G25="","",'Arş.Gör. Sonuç'!G25) ->  | H25: =IF('Arş.Gör. Sonuç'!H25="","",'Arş.Gör. Sonuç'!H25) ->  | I25: =IF('Arş.Gör. Sonuç'!I25="","",'Arş.Gör. Sonuç'!I25) ->  | J25: =IF('Arş.Gör. Sonuç'!J25="","",'Arş.Gör. Sonuç'!J25) ->  | K25: =IF('Arş.Gör. Sonuç'!K25="","",'Arş.Gör. Sonuç'!K25) ->  | L25: =IF('Arş.Gör. Sonuç'!L25="","",'Arş.Gör. Sonuç'!L25) ->  | M25: =IF('Arş.Gör. Sonuç'!M25="","",'Arş.Gör. Sonuç'!M25) ->  | N25: =IF('Arş.Gör. Sonuç'!N25="","",'Arş.Gör. Sonuç'!N25) -> 
A26: =IF('Arş.Gör. Sonuç'!A26="","",'Arş.Gör. Sonuç'!A26) ->  | B26: =IF('Arş.Gör. Sonuç'!B26="","",LEFT('Arş.Gör. Sonuç'!B26,3)&REPT("*",4)&RIGHT('Arş.Gör. Sonuç'!B26,2)) ->  | C26: =IF('Arş.Gör. Sonuç'!C26="","",IF(ISERR(FIND(" ",'Arş.Gör. Sonuç'!C26))=TRUE,LEFT('Arş.Gör. Sonuç'!C26,2)&REPT("*",3),LEFT('Arş.Gör. Sonuç'!C26,2)&REPT("*",3)&" "&MID('Arş.Gör. Sonuç'!C26,FIND(" ",'Arş.Gör. Sonuç'!C26)+1,2)&REPT("*",3))) ->  | D26: =IF('Arş.Gör. Sonuç'!D26="","",IF(ISERR(FIND(" ",'Arş.Gör. Sonuç'!D26))=TRUE,LEFT('Arş.Gör. Sonuç'!D26,2)&REPT("*",3),LEFT('Arş.Gör. Sonuç'!D26,2)&REPT("*",3)&" "&MID('Arş.Gör. Sonuç'!D26,FIND(" ",'Arş.Gör. Sonuç'!D26)+1,2)&REPT("*",3))) ->  | E26: =IF('Arş.Gör. Sonuç'!E26="","",'Arş.Gör. Sonuç'!E26) ->  | F26: =IF('Arş.Gör. Sonuç'!F26="","",'Arş.Gör. Sonuç'!F26) ->  | G26: =IF('Arş.Gör. Sonuç'!G26="","",'Arş.Gör. Sonuç'!G26) ->  | H26: =IF('Arş.Gör. Sonuç'!H26="","",'Arş.Gör. Sonuç'!H26) ->  | I26: =IF('Arş.Gör. Sonuç'!I26="","",'Arş.Gör. Sonuç'!I26) ->  | J26: =IF('Arş.Gör. Sonuç'!J26="","",'Arş.Gör. Sonuç'!J26) ->  | K26: =IF('Arş.Gör. Sonuç'!K26="","",'Arş.Gör. Sonuç'!K26) ->  | L26: =IF('Arş.Gör. Sonuç'!L26="","",'Arş.Gör. Sonuç'!L26) ->  | M26: =IF('Arş.Gör. Sonuç'!M26="","",'Arş.Gör. Sonuç'!M26) ->  | N26: =IF('Arş.Gör. Sonuç'!N26="","",'Arş.Gör. Sonuç'!N26) -> 
A27: =IF('Arş.Gör. Sonuç'!A27="","",'Arş.Gör. Sonuç'!A27) ->  | B27: =IF('Arş.Gör. Sonuç'!B27="","",LEFT('Arş.Gör. Sonuç'!B27,3)&REPT("*",4)&RIGHT('Arş.Gör. Sonuç'!B27,2)) ->  | C27: =IF('Arş.Gör. Sonuç'!C27="","",IF(ISERR(FIND(" ",'Arş.Gör. Sonuç'!C27))=TRUE,LEFT('Arş.Gör. Sonuç'!C27,2)&REPT("*",3),LEFT('Arş.Gör. Sonuç'!C27,2)&REPT("*",3)&" "&MID('Arş.Gör. Sonuç'!C27,FIND(" ",'Arş.Gör. Sonuç'!C27)+1,2)&REPT("*",3))) ->  | D27: =IF('Arş.Gör. Sonuç'!D27="","",IF(ISERR(FIND(" ",'Arş.Gör. Sonuç'!D27))=TRUE,LEFT('Arş.Gör. Sonuç'!D27,2)&REPT("*",3),LEFT('Arş.Gör. Sonuç'!D27,2)&REPT("*",3)&" "&MID('Arş.Gör. Sonuç'!D27,FIND(" ",'Arş.Gör. Sonuç'!D27)+1,2)&REPT("*",3))) ->  | E27: =IF('Arş.Gör. Sonuç'!E27="","",'Arş.Gör. Sonuç'!E27) ->  | F27: =IF('Arş.Gör. Sonuç'!F27="","",'Arş.Gör. Sonuç'!F27) ->  | G27: =IF('Arş.Gör. Sonuç'!G27="","",'Arş.Gör. Sonuç'!G27) ->  | H27: =IF('Arş.Gör. Sonuç'!H27="","",'Arş.Gör. Sonuç'!H27) ->  | I27: =IF('Arş.Gör. Sonuç'!I27="","",'Arş.Gör. Sonuç'!I27) ->  | J27: =IF('Arş.Gör. Sonuç'!J27="","",'Arş.Gör. Sonuç'!J27) ->  | K27: =IF('Arş.Gör. Sonuç'!K27="","",'Arş.Gör. Sonuç'!K27) ->  | L27: =IF('Arş.Gör. Sonuç'!L27="","",'Arş.Gör. Sonuç'!L27) ->  | M27: =IF('Arş.Gör. Sonuç'!M27="","",'Arş.Gör. Sonuç'!M27) ->  | N27: =IF('Arş.Gör. Sonuç'!N27="","",'Arş.Gör. Sonuç'!N27) -> 
A28: =IF('Arş.Gör. Sonuç'!A28="","",'Arş.Gör. Sonuç'!A28) ->  | B28: =IF('Arş.Gör. Sonuç'!B28="","",LEFT('Arş.Gör. Sonuç'!B28,3)&REPT("*",4)&RIGHT('Arş.Gör. Sonuç'!B28,2)) ->  | C28: =IF('Arş.Gör. Sonuç'!C28="","",IF(ISERR(FIND(" ",'Arş.Gör. Sonuç'!C28))=TRUE,LEFT('Arş.Gör. Sonuç'!C28,2)&REPT("*",3),LEFT('Arş.Gör. Sonuç'!C28,2)&REPT("*",3)&" "&MID('Arş.Gör. Sonuç'!C28,FIND(" ",'Arş.Gör. Sonuç'!C28)+1,2)&REPT("*",3))) ->  | D28: =IF('Arş.Gör. Sonuç'!D28="","",IF(ISERR(FIND(" ",'Arş.Gör. Sonuç'!D28))=TRUE,LEFT('Arş.Gör. Sonuç'!D28,2)&REPT("*",3),LEFT('Arş.Gör. Sonuç'!D28,2)&REPT("*",3)&" "&MID('Arş.Gör. Sonuç'!D28,FIND(" ",'Arş.Gör. Sonuç'!D28)+1,2)&REPT("*",3))) ->  | E28: =IF('Arş.Gör. Sonuç'!E28="","",'Arş.Gör. Sonuç'!E28) ->  | F28: =IF('Arş.Gör. Sonuç'!F28="","",'Arş.Gör. Sonuç'!F28) ->  | G28: =IF('Arş.Gör. Sonuç'!G28="","",'Arş.Gör. Sonuç'!G28) ->  | H28: =IF('Arş.Gör. Sonuç'!H28="","",'Arş.Gör. Sonuç'!H28) ->  | I28: =IF('Arş.Gör. Sonuç'!I28="","",'Arş.Gör. Sonuç'!I28) ->  | J28: =IF('Arş.Gör. Sonuç'!J28="","",'Arş.Gör. Sonuç'!J28) ->  | K28: =IF('Arş.Gör. Sonuç'!K28="","",'Arş.Gör. Sonuç'!K28) ->  | L28: =IF('Arş.Gör. Sonuç'!L28="","",'Arş.Gör. Sonuç'!L28) ->  | M28: =IF('Arş.Gör. Sonuç'!M28="","",'Arş.Gör. Sonuç'!M28) ->  | N28: =IF('Arş.Gör. Sonuç'!N28="","",'Arş.Gör. Sonuç'!N28) -> 
A29: =IF('Arş.Gör. Sonuç'!A29="","",'Arş.Gör. Sonuç'!A29) ->  | B29: =IF('Arş.Gör. Sonuç'!B29="","",LEFT('Arş.Gör. Sonuç'!B29,3)&REPT("*",4)&RIGHT('Arş.Gör. Sonuç'!B29,2)) ->  | C29: =IF('Arş.Gör. Sonuç'!C29="","",IF(ISERR(FIND(" ",'Arş.Gör. Sonuç'!C29))=TRUE,LEFT('Arş.Gör. Sonuç'!C29,2)&REPT("*",3),LEFT('Arş.Gör. Sonuç'!C29,2)&REPT("*",3)&" "&MID('Arş.Gör. Sonuç'!C29,FIND(" ",'Arş.Gör. Sonuç'!C29)+1,2)&REPT("*",3))) ->  | D29: =IF('Arş.Gör. Sonuç'!D29="","",IF(ISERR(FIND(" ",'Arş.Gör. Sonuç'!D29))=TRUE,LEFT('Arş.Gör. Sonuç'!D29,2)&REPT("*",3),LEFT('Arş.Gör. Sonuç'!D29,2)&REPT("*",3)&" "&MID('Arş.Gör. Sonuç'!D29,FIND(" ",'Arş.Gör. Sonuç'!D29)+1,2)&REPT("*",3))) ->  | E29: =IF('Arş.Gör. Sonuç'!E29="","",'Arş.Gör. Sonuç'!E29) ->  | F29: =IF('Arş.Gör. Sonuç'!F29="","",'Arş.Gör. Sonuç'!F29) ->  | G29: =IF('Arş.Gör. Sonuç'!G29="","",'Arş.Gör. Sonuç'!G29) ->  | H29: =IF('Arş.Gör. Sonuç'!H29="","",'Arş.Gör. Sonuç'!H29) ->  | I29: =IF('Arş.Gör. Sonuç'!I29="","",'Arş.Gör. Sonuç'!I29) ->  | J29: =IF('Arş.Gör. Sonuç'!J29="","",'Arş.Gör. Sonuç'!J29) ->  | K29: =IF('Arş.Gör. Sonuç'!K29="","",'Arş.Gör. Sonuç'!K29) ->  | L29: =IF('Arş.Gör. Sonuç'!L29="","",'Arş.Gör. Sonuç'!L29) ->  | M29: =IF('Arş.Gör. Sonuç'!M29="","",'Arş.Gör. Sonuç'!M29) ->  | N29: =IF('Arş.Gör. Sonuç'!N29="","",'Arş.Gör. Sonuç'!N29) -> 
A30: =IF('Arş.Gör. Sonuç'!A30="","",'Arş.Gör. Sonuç'!A30) ->  | B30: =IF('Arş.Gör. Sonuç'!B30="","",LEFT('Arş.Gör. Sonuç'!B30,3)&REPT("*",4)&RIGHT('Arş.Gör. Sonuç'!B30,2)) ->  | C30: =IF('Arş.Gör. Sonuç'!C30="","",IF(ISERR(FIND(" ",'Arş.Gör. Sonuç'!C30))=TRUE,LEFT('Arş.Gör. Sonuç'!C30,2)&REPT("*",3),LEFT('Arş.Gör. Sonuç'!C30,2)&REPT("*",3)&" "&MID('Arş.Gör. Sonuç'!C30,FIND(" ",'Arş.Gör. Sonuç'!C30)+1,2)&REPT("*",3))) ->  | D30: =IF('Arş.Gör. Sonuç'!D30="","",IF(ISERR(FIND(" ",'Arş.Gör. Sonuç'!D30))=TRUE,LEFT('Arş.Gör. Sonuç'!D30,2)&REPT("*",3),LEFT('Arş.Gör. Sonuç'!D30,2)&REPT("*",3)&" "&MID('Arş.Gör. Sonuç'!D30,FIND(" ",'Arş.Gör. Sonuç'!D30)+1,2)&REPT("*",3))) ->  | E30: =IF('Arş.Gör. Sonuç'!E30="","",'Arş.Gör. Sonuç'!E30) ->  | F30: =IF('Arş.Gör. Sonuç'!F30="","",'Arş.Gör. Sonuç'!F30) ->  | G30: =IF('Arş.Gör. Sonuç'!G30="","",'Arş.Gör. Sonuç'!G30) ->  | H30: =IF('Arş.Gör. Sonuç'!H30="","",'Arş.Gör. Sonuç'!H30) ->  | I30: =IF('Arş.Gör. Sonuç'!I30="","",'Arş.Gör. Sonuç'!I30) ->  | J30: =IF('Arş.Gör. Sonuç'!J30="","",'Arş.Gör. Sonuç'!J30) ->  | K30: =IF('Arş.Gör. Sonuç'!K30="","",'Arş.Gör. Sonuç'!K30) ->  | L30: =IF('Arş.Gör. Sonuç'!L30="","",'Arş.Gör. Sonuç'!L30) ->  | M30: =IF('Arş.Gör. Sonuç'!M30="","",'Arş.Gör. Sonuç'!M30) ->  | N30: =IF('Arş.Gör. Sonuç'!N30="","",'Arş.Gör. Sonuç'!N30) -> 
A31: =IF('Arş.Gör. Sonuç'!A31="","",'Arş.Gör. Sonuç'!A31) ->  | B31: =IF('Arş.Gör. Sonuç'!B31="","",LEFT('Arş.Gör. Sonuç'!B31,3)&REPT("*",4)&RIGHT('Arş.Gör. Sonuç'!B31,2)) ->  | C31: =IF('Arş.Gör. Sonuç'!C31="","",IF(ISERR(FIND(" ",'Arş.Gör. Sonuç'!C31))=TRUE,LEFT('Arş.Gör. Sonuç'!C31,2)&REPT("*",3),LEFT('Arş.Gör. Sonuç'!C31,2)&REPT("*",3)&" "&MID('Arş.Gör. Sonuç'!C31,FIND(" ",'Arş.Gör. Sonuç'!C31)+1,2)&REPT("*",3))) ->  | D31: =IF('Arş.Gör. Sonuç'!D31="","",IF(ISERR(FIND(" ",'Arş.Gör. Sonuç'!D31))=TRUE,LEFT('Arş.Gör. Sonuç'!D31,2)&REPT("*",3),LEFT('Arş.Gör. Sonuç'!D31,2)&REPT("*",3)&" "&MID('Arş.Gör. Sonuç'!D31,FIND(" ",'Arş.Gör. Sonuç'!D31)+1,2)&REPT("*",3))) ->  | E31: =IF('Arş.Gör. Sonuç'!E31="","",'Arş.Gör. Sonuç'!E31) ->  | F31: =IF('Arş.Gör. Sonuç'!F31="","",'Arş.Gör. Sonuç'!F31) ->  | G31: =IF('Arş.Gör. Sonuç'!G31="","",'Arş.Gör. Sonuç'!G31) ->  | H31: =IF('Arş.Gör. Sonuç'!H31="","",'Arş.Gör. Sonuç'!H31) ->  | I31: =IF('Arş.Gör. Sonuç'!I31="","",'Arş.Gör. Sonuç'!I31) ->  | J31: =IF('Arş.Gör. Sonuç'!J31="","",'Arş.Gör. Sonuç'!J31) ->  | K31: =IF('Arş.Gör. Sonuç'!K31="","",'Arş.Gör. Sonuç'!K31) ->  | L31: =IF('Arş.Gör. Sonuç'!L31="","",'Arş.Gör. Sonuç'!L31) ->  | M31: =IF('Arş.Gör. Sonuç'!M31="","",'Arş.Gör. Sonuç'!M31) ->  | N31: =IF('Arş.Gör. Sonuç'!N31="","",'Arş.Gör. Sonuç'!N31) -> 
A32: =IF('Arş.Gör. Sonuç'!A32="","",'Arş.Gör. Sonuç'!A32) ->  | B32: =IF('Arş.Gör. Sonuç'!B32="","",LEFT('Arş.Gör. Sonuç'!B32,3)&REPT("*",4)&RIGHT('Arş.Gör. Sonuç'!B32,2)) ->  | C32: =IF('Arş.Gör. Sonuç'!C32="","",IF(ISERR(FIND(" ",'Arş.Gör. Sonuç'!C32))=TRUE,LEFT('Arş.Gör. Sonuç'!C32,2)&REPT("*",3),LEFT('Arş.Gör. Sonuç'!C32,2)&REPT("*",3)&" "&MID('Arş.Gör. Sonuç'!C32,FIND(" ",'Arş.Gör. Sonuç'!C32)+1,2)&REPT("*",3))) ->  | D32: =IF('Arş.Gör. Sonuç'!D32="","",IF(ISERR(FIND(" ",'Arş.Gör. Sonuç'!D32))=TRUE,LEFT('Arş.Gör. Sonuç'!D32,2)&REPT("*",3),LEFT('Arş.Gör. Sonuç'!D32,2)&REPT("*",3)&" "&MID('Arş.Gör. Sonuç'!D32,FIND(" ",'Arş.Gör. Sonuç'!D32)+1,2)&REPT("*",3))) ->  | E32: =IF('Arş.Gör. Sonuç'!E32="","",'Arş.Gör. Sonuç'!E32) ->  | F32: =IF('Arş.Gör. Sonuç'!F32="","",'Arş.Gör. Sonuç'!F32) ->  | G32: =IF('Arş.Gör. Sonuç'!G32="","",'Arş.Gör. Sonuç'!G32) ->  | H32: =IF('Arş.Gör. Sonuç'!H32="","",'Arş.Gör. Sonuç'!H32) ->  | I32: =IF('Arş.Gör. Sonuç'!I32="","",'Arş.Gör. Sonuç'!I32) ->  | J32: =IF('Arş.Gör. Sonuç'!J32="","",'Arş.Gör. Sonuç'!J32) ->  | K32: =IF('Arş.Gör. Sonuç'!K32="","",'Arş.Gör. Sonuç'!K32) ->  | L32: =IF('Arş.Gör. Sonuç'!L32="","",'Arş.Gör. Sonuç'!L32) ->  | M32: =IF('Arş.Gör. Sonuç'!M32="","",'Arş.Gör. Sonuç'!M32) ->  | N32: =IF('Arş.Gör. Sonuç'!N32="","",'Arş.Gör. Sonuç'!N32) -> 
A33: =IF('Arş.Gör. Sonuç'!A33="","",'Arş.Gör. Sonuç'!A33) ->  | B33: =IF('Arş.Gör. Sonuç'!B33="","",LEFT('Arş.Gör. Sonuç'!B33,3)&REPT("*",4)&RIGHT('Arş.Gör. Sonuç'!B33,2)) ->  | C33: =IF('Arş.Gör. Sonuç'!C33="","",IF(ISERR(FIND(" ",'Arş.Gör. Sonuç'!C33))=TRUE,LEFT('Arş.Gör. Sonuç'!C33,2)&REPT("*",3),LEFT('Arş.Gör. Sonuç'!C33,2)&REPT("*",3)&" "&MID('Arş.Gör. Sonuç'!C33,FIND(" ",'Arş.Gör. Sonuç'!C33)+1,2)&REPT("*",3))) ->  | D33: =IF('Arş.Gör. Sonuç'!D33="","",IF(ISERR(FIND(" ",'Arş.Gör. Sonuç'!D33))=TRUE,LEFT('Arş.Gör. Sonuç'!D33,2)&REPT("*",3),LEFT('Arş.Gör. Sonuç'!D33,2)&REPT("*",3)&" "&MID('Arş.Gör. Sonuç'!D33,FIND(" ",'Arş.Gör. Sonuç'!D33)+1,2)&REPT("*",3))) ->  | E33: =IF('Arş.Gör. Sonuç'!E33="","",'Arş.Gör. Sonuç'!E33) ->  | F33: =IF('Arş.Gör. Sonuç'!F33="","",'Arş.Gör. Sonuç'!F33) ->  | G33: =IF('Arş.Gör. Sonuç'!G33="","",'Arş.Gör. Sonuç'!G33) ->  | H33: =IF('Arş.Gör. Sonuç'!H33="","",'Arş.Gör. Sonuç'!H33) ->  | I33: =IF('Arş.Gör. Sonuç'!I33="","",'Arş.Gör. Sonuç'!I33) ->  | J33: =IF('Arş.Gör. Sonuç'!J33="","",'Arş.Gör. Sonuç'!J33) ->  | K33: =IF('Arş.Gör. Sonuç'!K33="","",'Arş.Gör. Sonuç'!K33) ->  | L33: =IF('Arş.Gör. Sonuç'!L33="","",'Arş.Gör. Sonuç'!L33) ->  | M33: =IF('Arş.Gör. Sonuç'!M33="","",'Arş.Gör. Sonuç'!M33) ->  | N33: =IF('Arş.Gör. Sonuç'!N33="","",'Arş.Gör. Sonuç'!N33) -> 
A34: =IF('Arş.Gör. Sonuç'!A34="","",'Arş.Gör. Sonuç'!A34) ->  | B34: =IF('Arş.Gör. Sonuç'!B34="","",LEFT('Arş.Gör. Sonuç'!B34,3)&REPT("*",4)&RIGHT('Arş.Gör. Sonuç'!B34,2)) ->  | C34: =IF('Arş.Gör. Sonuç'!C34="","",IF(ISERR(FIND(" ",'Arş.Gör. Sonuç'!C34))=TRUE,LEFT('Arş.Gör. Sonuç'!C34,2)&REPT("*",3),LEFT('Arş.Gör. Sonuç'!C34,2)&REPT("*",3)&" "&MID('Arş.Gör. Sonuç'!C34,FIND(" ",'Arş.Gör. Sonuç'!C34)+1,2)&REPT("*",3))) ->  | D34: =IF('Arş.Gör. Sonuç'!D34="","",IF(ISERR(FIND(" ",'Arş.Gör. Sonuç'!D34))=TRUE,LEFT('Arş.Gör. Sonuç'!D34,2)&REPT("*",3),LEFT('Arş.Gör. Sonuç'!D34,2)&REPT("*",3)&" "&MID('Arş.Gör. Sonuç'!D34,FIND(" ",'Arş.Gör. Sonuç'!D34)+1,2)&REPT("*",3))) ->  | E34: =IF('Arş.Gör. Sonuç'!E34="","",'Arş.Gör. Sonuç'!E34) ->  | F34: =IF('Arş.Gör. Sonuç'!F34="","",'Arş.Gör. Sonuç'!F34) ->  | G34: =IF('Arş.Gör. Sonuç'!G34="","",'Arş.Gör. Sonuç'!G34) ->  | H34: =IF('Arş.Gör. Sonuç'!H34="","",'Arş.Gör. Sonuç'!H34) ->  | I34: =IF('Arş.Gör. Sonuç'!I34="","",'Arş.Gör. Sonuç'!I34) ->  | J34: =IF('Arş.Gör. Sonuç'!J34="","",'Arş.Gör. Sonuç'!J34) ->  | K34: =IF('Arş.Gör. Sonuç'!K34="","",'Arş.Gör. Sonuç'!K34) ->  | L34: =IF('Arş.Gör. Sonuç'!L34="","",'Arş.Gör. Sonuç'!L34) ->  | M34: =IF('Arş.Gör. Sonuç'!M34="","",'Arş.Gör. Sonuç'!M34) ->  | N34: =IF('Arş.Gör. Sonuç'!N34="","",'Arş.Gör. Sonuç'!N34) -> 
A35: =IF('Arş.Gör. Sonuç'!A35="","",'Arş.Gör. Sonuç'!A35) ->  | B35: =IF('Arş.Gör. Sonuç'!B35="","",LEFT('Arş.Gör. Sonuç'!B35,3)&REPT("*",4)&RIGHT('Arş.Gör. Sonuç'!B35,2)) ->  | C35: =IF('Arş.Gör. Sonuç'!C35="","",IF(ISERR(FIND(" ",'Arş.Gör. Sonuç'!C35))=TRUE,LEFT('Arş.Gör. Sonuç'!C35,2)&REPT("*",3),LEFT('Arş.Gör. Sonuç'!C35,2)&REPT("*",3)&" "&MID('Arş.Gör. Sonuç'!C35,FIND(" ",'Arş.Gör. Sonuç'!C35)+1,2)&REPT("*",3))) ->  | D35: =IF('Arş.Gör. Sonuç'!D35="","",IF(ISERR(FIND(" ",'Arş.Gör. Sonuç'!D35))=TRUE,LEFT('Arş.Gör. Sonuç'!D35,2)&REPT("*",3),LEFT('Arş.Gör. Sonuç'!D35,2)&REPT("*",3)&" "&MID('Arş.Gör. Sonuç'!D35,FIND(" ",'Arş.Gör. Sonuç'!D35)+1,2)&REPT("*",3))) ->  | E35: =IF('Arş.Gör. Sonuç'!E35="","",'Arş.Gör. Sonuç'!E35) ->  | F35: =IF('Arş.Gör. Sonuç'!F35="","",'Arş.Gör. Sonuç'!F35) ->  | G35: =IF('Arş.Gör. Sonuç'!G35="","",'Arş.Gör. Sonuç'!G35) ->  | H35: =IF('Arş.Gör. Sonuç'!H35="","",'Arş.Gör. Sonuç'!H35) ->  | I35: =IF('Arş.Gör. Sonuç'!I35="","",'Arş.Gör. Sonuç'!I35) ->  | J35: =IF('Arş.Gör. Sonuç'!J35="","",'Arş.Gör. Sonuç'!J35) ->  | K35: =IF('Arş.Gör. Sonuç'!K35="","",'Arş.Gör. Sonuç'!K35) ->  | L35: =IF('Arş.Gör. Sonuç'!L35="","",'Arş.Gör. Sonuç'!L35) ->  | M35: =IF('Arş.Gör. Sonuç'!M35="","",'Arş.Gör. Sonuç'!M35) ->  | N35: =IF('Arş.Gör. Sonuç'!N35="","",'Arş.Gör. Sonuç'!N35) -> 
A36: =IF('Arş.Gör. Sonuç'!A36="","",'Arş.Gör. Sonuç'!A36) ->  | B36: =IF('Arş.Gör. Sonuç'!B36="","",LEFT('Arş.Gör. Sonuç'!B36,3)&REPT("*",4)&RIGHT('Arş.Gör. Sonuç'!B36,2)) ->  | C36: =IF('Arş.Gör. Sonuç'!C36="","",IF(ISERR(FIND(" ",'Arş.Gör. Sonuç'!C36))=TRUE,LEFT('Arş.Gör. Sonuç'!C36,2)&REPT("*",3),LEFT('Arş.Gör. Sonuç'!C36,2)&REPT("*",3)&" "&MID('Arş.Gör. Sonuç'!C36,FIND(" ",'Arş.Gör. Sonuç'!C36)+1,2)&REPT("*",3))) ->  | D36: =IF('Arş.Gör. Sonuç'!D36="","",IF(ISERR(FIND(" ",'Arş.Gör. Sonuç'!D36))=TRUE,LEFT('Arş.Gör. Sonuç'!D36,2)&REPT("*",3),LEFT('Arş.Gör. Sonuç'!D36,2)&REPT("*",3)&" "&MID('Arş.Gör. Sonuç'!D36,FIND(" ",'Arş.Gör. Sonuç'!D36)+1,2)&REPT("*",3))) ->  | E36: =IF('Arş.Gör. Sonuç'!E36="","",'Arş.Gör. Sonuç'!E36) ->  | F36: =IF('Arş.Gör. Sonuç'!F36="","",'Arş.Gör. Sonuç'!F36) ->  | G36: =IF('Arş.Gör. Sonuç'!G36="","",'Arş.Gör. Sonuç'!G36) ->  | H36: =IF('Arş.Gör. Sonuç'!H36="","",'Arş.Gör. Sonuç'!H36) ->  | I36: =IF('Arş.Gör. Sonuç'!I36="","",'Arş.Gör. Sonuç'!I36) ->  | J36: =IF('Arş.Gör. Sonuç'!J36="","",'Arş.Gör. Sonuç'!J36) ->  | K36: =IF('Arş.Gör. Sonuç'!K36="","",'Arş.Gör. Sonuç'!K36) ->  | L36: =IF('Arş.Gör. Sonuç'!L36="","",'Arş.Gör. Sonuç'!L36) ->  | M36: =IF('Arş.Gör. Sonuç'!M36="","",'Arş.Gör. Sonuç'!M36) ->  | N36: =IF('Arş.Gör. Sonuç'!N36="","",'Arş.Gör. Sonuç'!N36) -> 
A37: =IF('Arş.Gör. Sonuç'!A37="","",'Arş.Gör. Sonuç'!A37) ->  | B37: =IF('Arş.Gör. Sonuç'!B37="","",LEFT('Arş.Gör. Sonuç'!B37,3)&REPT("*",4)&RIGHT('Arş.Gör. Sonuç'!B37,2)) ->  | C37: =IF('Arş.Gör. Sonuç'!C37="","",IF(ISERR(FIND(" ",'Arş.Gör. Sonuç'!C37))=TRUE,LEFT('Arş.Gör. Sonuç'!C37,2)&REPT("*",3),LEFT('Arş.Gör. Sonuç'!C37,2)&REPT("*",3)&" "&MID('Arş.Gör. Sonuç'!C37,FIND(" ",'Arş.Gör. Sonuç'!C37)+1,2)&REPT("*",3))) ->  | D37: =IF('Arş.Gör. Sonuç'!D37="","",IF(ISERR(FIND(" ",'Arş.Gör. Sonuç'!D37))=TRUE,LEFT('Arş.Gör. Sonuç'!D37,2)&REPT("*",3),LEFT('Arş.Gör. Sonuç'!D37,2)&REPT("*",3)&" "&MID('Arş.Gör. Sonuç'!D37,FIND(" ",'Arş.Gör. Sonuç'!D37)+1,2)&REPT("*",3))) ->  | E37: =IF('Arş.Gör. Sonuç'!E37="","",'Arş.Gör. Sonuç'!E37) ->  | F37: =IF('Arş.Gör. Sonuç'!F37="","",'Arş.Gör. Sonuç'!F37) ->  | G37: =IF('Arş.Gör. Sonuç'!G37="","",'Arş.Gör. Sonuç'!G37) ->  | H37: =IF('Arş.Gör. Sonuç'!H37="","",'Arş.Gör. Sonuç'!H37) ->  | I37: =IF('Arş.Gör. Sonuç'!I37="","",'Arş.Gör. Sonuç'!I37) ->  | J37: =IF('Arş.Gör. Sonuç'!J37="","",'Arş.Gör. Sonuç'!J37) ->  | K37: =IF('Arş.Gör. Sonuç'!K37="","",'Arş.Gör. Sonuç'!K37) ->  | L37: =IF('Arş.Gör. Sonuç'!L37="","",'Arş.Gör. Sonuç'!L37) ->  | M37: =IF('Arş.Gör. Sonuç'!M37="","",'Arş.Gör. Sonuç'!M37) ->  | N37: =IF('Arş.Gör. Sonuç'!N37="","",'Arş.Gör. Sonuç'!N37) -> 
A38: =IF('Arş.Gör. Sonuç'!A38="","",'Arş.Gör. Sonuç'!A38) ->  | B38: =IF('Arş.Gör. Sonuç'!B38="","",LEFT('Arş.Gör. Sonuç'!B38,3)&REPT("*",4)&RIGHT('Arş.Gör. Sonuç'!B38,2)) ->  | C38: =IF('Arş.Gör. Sonuç'!C38="","",IF(ISERR(FIND(" ",'Arş.Gör. Sonuç'!C38))=TRUE,LEFT('Arş.Gör. Sonuç'!C38,2)&REPT("*",3),LEFT('Arş.Gör. Sonuç'!C38,2)&REPT("*",3)&" "&MID('Arş.Gör. Sonuç'!C38,FIND(" ",'Arş.Gör. Sonuç'!C38)+1,2)&REPT("*",3))) ->  | D38: =IF('Arş.Gör. Sonuç'!D38="","",IF(ISERR(FIND(" ",'Arş.Gör. Sonuç'!D38))=TRUE,LEFT('Arş.Gör. Sonuç'!D38,2)&REPT("*",3),LEFT('Arş.Gör. Sonuç'!D38,2)&REPT("*",3)&" "&MID('Arş.Gör. Sonuç'!D38,FIND(" ",'Arş.Gör. Sonuç'!D38)+1,2)&REPT("*",3))) ->  | E38: =IF('Arş.Gör. Sonuç'!E38="","",'Arş.Gör. Sonuç'!E38) ->  | F38: =IF('Arş.Gör. Sonuç'!F38="","",'Arş.Gör. Sonuç'!F38) ->  | G38: =IF('Arş.Gör. Sonuç'!G38="","",'Arş.Gör. Sonuç'!G38) ->  | H38: =IF('Arş.Gör. Sonuç'!H38="","",'Arş.Gör. Sonuç'!H38) ->  | I38: =IF('Arş.Gör. Sonuç'!I38="","",'Arş.Gör. Sonuç'!I38) ->  | J38: =IF('Arş.Gör. Sonuç'!J38="","",'Arş.Gör. Sonuç'!J38) ->  | K38: =IF('Arş.Gör. Sonuç'!K38="","",'Arş.Gör. Sonuç'!K38) ->  | L38: =IF('Arş.Gör. Sonuç'!L38="","",'Arş.Gör. Sonuç'!L38) ->  | M38: =IF('Arş.Gör. Sonuç'!M38="","",'Arş.Gör. Sonuç'!M38) ->  | N38: =IF('Arş.Gör. Sonuç'!N38="","",'Arş.Gör. Sonuç'!N38) -> 
A39: =IF('Arş.Gör. Sonuç'!A39="","",'Arş.Gör. Sonuç'!A39) ->  | B39: =IF('Arş.Gör. Sonuç'!B39="","",LEFT('Arş.Gör. Sonuç'!B39,3)&REPT("*",4)&RIGHT('Arş.Gör. Sonuç'!B39,2)) ->  | C39: =IF('Arş.Gör. Sonuç'!C39="","",IF(ISERR(FIND(" ",'Arş.Gör. Sonuç'!C39))=TRUE,LEFT('Arş.Gör. Sonuç'!C39,2)&REPT("*",3),LEFT('Arş.Gör. Sonuç'!C39,2)&REPT("*",3)&" "&MID('Arş.Gör. Sonuç'!C39,FIND(" ",'Arş.Gör. Sonuç'!C39)+1,2)&REPT("*",3))) ->  | D39: =IF('Arş.Gör. Sonuç'!D39="","",IF(ISERR(FIND(" ",'Arş.Gör. Sonuç'!D39))=TRUE,LEFT('Arş.Gör. Sonuç'!D39,2)&REPT("*",3),LEFT('Arş.Gör. Sonuç'!D39,2)&REPT("*",3)&" "&MID('Arş.Gör. Sonuç'!D39,FIND(" ",'Arş.Gör. Sonuç'!D39)+1,2)&REPT("*",3))) ->  | E39: =IF('Arş.Gör. Sonuç'!E39="","",'Arş.Gör. Sonuç'!E39) ->  | F39: =IF('Arş.Gör. Sonuç'!F39="","",'Arş.Gör. Sonuç'!F39) ->  | G39: =IF('Arş.Gör. Sonuç'!G39="","",'Arş.Gör. Sonuç'!G39) ->  | H39: =IF('Arş.Gör. Sonuç'!H39="","",'Arş.Gör. Sonuç'!H39) ->  | I39: =IF('Arş.Gör. Sonuç'!I39="","",'Arş.Gör. Sonuç'!I39) ->  | J39: =IF('Arş.Gör. Sonuç'!J39="","",'Arş.Gör. Sonuç'!J39) ->  | K39: =IF('Arş.Gör. Sonuç'!K39="","",'Arş.Gör. Sonuç'!K39) ->  | L39: =IF('Arş.Gör. Sonuç'!L39="","",'Arş.Gör. Sonuç'!L39) ->  | M39: =IF('Arş.Gör. Sonuç'!M39="","",'Arş.Gör. Sonuç'!M39) ->  | N39: =IF('Arş.Gör. Sonuç'!N39="","",'Arş.Gör. Sonuç'!N39) -> 
A40: =IF('Arş.Gör. Sonuç'!A40="","",'Arş.Gör. Sonuç'!A40) ->  | B40: =IF('Arş.Gör. Sonuç'!B40="","",LEFT('Arş.Gör. Sonuç'!B40,3)&REPT("*",4)&RIGHT('Arş.Gör. Sonuç'!B40,2)) ->  | C40: =IF('Arş.Gör. Sonuç'!C40="","",IF(ISERR(FIND(" ",'Arş.Gör. Sonuç'!C40))=TRUE,LEFT('Arş.Gör. Sonuç'!C40,2)&REPT("*",3),LEFT('Arş.Gör. Sonuç'!C40,2)&REPT("*",3)&" "&MID('Arş.Gör. Sonuç'!C40,FIND(" ",'Arş.Gör. Sonuç'!C40)+1,2)&REPT("*",3))) ->  | D40: =IF('Arş.Gör. Sonuç'!D40="","",IF(ISERR(FIND(" ",'Arş.Gör. Sonuç'!D40))=TRUE,LEFT('Arş.Gör. Sonuç'!D40,2)&REPT("*",3),LEFT('Arş.Gör. Sonuç'!D40,2)&REPT("*",3)&" "&MID('Arş.Gör. Sonuç'!D40,FIND(" ",'Arş.Gör. Sonuç'!D40)+1,2)&REPT("*",3))) ->  | E40: =IF('Arş.Gör. Sonuç'!E40="","",'Arş.Gör. Sonuç'!E40) ->  | F40: =IF('Arş.Gör. Sonuç'!F40="","",'Arş.Gör. Sonuç'!F40) ->  | G40: =IF('Arş.Gör. Sonuç'!G40="","",'Arş.Gör. Sonuç'!G40) ->  | H40: =IF('Arş.Gör. Sonuç'!H40="","",'Arş.Gör. Sonuç'!H40) ->  | I40: =IF('Arş.Gör. Sonuç'!I40="","",'Arş.Gör. Sonuç'!I40) ->  | J40: =IF('Arş.Gör. Sonuç'!J40="","",'Arş.Gör. Sonuç'!J40) ->  | K40: =IF('Arş.Gör. Sonuç'!K40="","",'Arş.Gör. Sonuç'!K40) ->  | L40: =IF('Arş.Gör. Sonuç'!L40="","",'Arş.Gör. Sonuç'!L40) ->  | M40: =IF('Arş.Gör. Sonuç'!M40="","",'Arş.Gör. Sonuç'!M40) ->  | N40: =IF('Arş.Gör. Sonuç'!N40="","",'Arş.Gör. Sonuç'!N40) -> 
A41: =IF('Arş.Gör. Sonuç'!A41="","",'Arş.Gör. Sonuç'!A41) ->  | B41: =IF('Arş.Gör. Sonuç'!B41="","",LEFT('Arş.Gör. Sonuç'!B41,3)&REPT("*",4)&RIGHT('Arş.Gör. Sonuç'!B41,2)) ->  | C41: =IF('Arş.Gör. Sonuç'!C41="","",IF(ISERR(FIND(" ",'Arş.Gör. Sonuç'!C41))=TRUE,LEFT('Arş.Gör. Sonuç'!C41,2)&REPT("*",3),LEFT('Arş.Gör. Sonuç'!C41,2)&REPT("*",3)&" "&MID('Arş.Gör. Sonuç'!C41,FIND(" ",'Arş.Gör. Sonuç'!C41)+1,2)&REPT("*",3))) ->  | D41: =IF('Arş.Gör. Sonuç'!D41="","",IF(ISERR(FIND(" ",'Arş.Gör. Sonuç'!D41))=TRUE,LEFT('Arş.Gör. Sonuç'!D41,2)&REPT("*",3),LEFT('Arş.Gör. Sonuç'!D41,2)&REPT("*",3)&" "&MID('Arş.Gör. Sonuç'!D41,FIND(" ",'Arş.Gör. Sonuç'!D41)+1,2)&REPT("*",3))) ->  | E41: =IF('Arş.Gör. Sonuç'!E41="","",'Arş.Gör. Sonuç'!E41) ->  | F41: =IF('Arş.Gör. Sonuç'!F41="","",'Arş.Gör. Sonuç'!F41) ->  | G41: =IF('Arş.Gör. Sonuç'!G41="","",'Arş.Gör. Sonuç'!G41) ->  | H41: =IF('Arş.Gör. Sonuç'!H41="","",'Arş.Gör. Sonuç'!H41) ->  | I41: =IF('Arş.Gör. Sonuç'!I41="","",'Arş.Gör. Sonuç'!I41) ->  | J41: =IF('Arş.Gör. Sonuç'!J41="","",'Arş.Gör. Sonuç'!J41) ->  | K41: =IF('Arş.Gör. Sonuç'!K41="","",'Arş.Gör. Sonuç'!K41) ->  | L41: =IF('Arş.Gör. Sonuç'!L41="","",'Arş.Gör. Sonuç'!L41) ->  | M41: =IF('Arş.Gör. Sonuç'!M41="","",'Arş.Gör. Sonuç'!M41) ->  | N41: =IF('Arş.Gör. Sonuç'!N41="","",'Arş.Gör. Sonuç'!N41) -> 
A42: =IF('Arş.Gör. Sonuç'!A42="","",'Arş.Gör. Sonuç'!A42) ->  | B42: =IF('Arş.Gör. Sonuç'!B42="","",LEFT('Arş.Gör. Sonuç'!B42,3)&REPT("*",4)&RIGHT('Arş.Gör. Sonuç'!B42,2)) ->  | C42: =IF('Arş.Gör. Sonuç'!C42="","",IF(ISERR(FIND(" ",'Arş.Gör. Sonuç'!C42))=TRUE,LEFT('Arş.Gör. Sonuç'!C42,2)&REPT("*",3),LEFT('Arş.Gör. Sonuç'!C42,2)&REPT("*",3)&" "&MID('Arş.Gör. Sonuç'!C42,FIND(" ",'Arş.Gör. Sonuç'!C42)+1,2)&REPT("*",3))) ->  | D42: =IF('Arş.Gör. Sonuç'!D42="","",IF(ISERR(FIND(" ",'Arş.Gör. Sonuç'!D42))=TRUE,LEFT('Arş.Gör. Sonuç'!D42,2)&REPT("*",3),LEFT('Arş.Gör. Sonuç'!D42,2)&REPT("*",3)&" "&MID('Arş.Gör. Sonuç'!D42,FIND(" ",'Arş.Gör. Sonuç'!D42)+1,2)&REPT("*",3))) ->  | E42: =IF('Arş.Gör. Sonuç'!E42="","",'Arş.Gör. Sonuç'!E42) ->  | F42: =IF('Arş.Gör. Sonuç'!F42="","",'Arş.Gör. Sonuç'!F42) ->  | G42: =IF('Arş.Gör. Sonuç'!G42="","",'Arş.Gör. Sonuç'!G42) ->  | H42: =IF('Arş.Gör. Sonuç'!H42="","",'Arş.Gör. Sonuç'!H42) ->  | I42: =IF('Arş.Gör. Sonuç'!I42="","",'Arş.Gör. Sonuç'!I42) ->  | J42: =IF('Arş.Gör. Sonuç'!J42="","",'Arş.Gör. Sonuç'!J42) ->  | K42: =IF('Arş.Gör. Sonuç'!K42="","",'Arş.Gör. Sonuç'!K42) ->  | L42: =IF('Arş.Gör. Sonuç'!L42="","",'Arş.Gör. Sonuç'!L42) ->  | M42: =IF('Arş.Gör. Sonuç'!M42="","",'Arş.Gör. Sonuç'!M42) ->  | N42: =IF('Arş.Gör. Sonuç'!N42="","",'Arş.Gör. Sonuç'!N42) -> 
A43: =IF('Arş.Gör. Sonuç'!A43="","",'Arş.Gör. Sonuç'!A43) ->  | B43: =IF('Arş.Gör. Sonuç'!B43="","",LEFT('Arş.Gör. Sonuç'!B43,3)&REPT("*",4)&RIGHT('Arş.Gör. Sonuç'!B43,2)) ->  | C43: =IF('Arş.Gör. Sonuç'!C43="","",IF(ISERR(FIND(" ",'Arş.Gör. Sonuç'!C43))=TRUE,LEFT('Arş.Gör. Sonuç'!C43,2)&REPT("*",3),LEFT('Arş.Gör. Sonuç'!C43,2)&REPT("*",3)&" "&MID('Arş.Gör. Sonuç'!C43,FIND(" ",'Arş.Gör. Sonuç'!C43)+1,2)&REPT("*",3))) ->  | D43: =IF('Arş.Gör. Sonuç'!D43="","",IF(ISERR(FIND(" ",'Arş.Gör. Sonuç'!D43))=TRUE,LEFT('Arş.Gör. Sonuç'!D43,2)&REPT("*",3),LEFT('Arş.Gör. Sonuç'!D43,2)&REPT("*",3)&" "&MID('Arş.Gör. Sonuç'!D43,FIND(" ",'Arş.Gör. Sonuç'!D43)+1,2)&REPT("*",3))) ->  | E43: =IF('Arş.Gör. Sonuç'!E43="","",'Arş.Gör. Sonuç'!E43) ->  | F43: =IF('Arş.Gör. Sonuç'!F43="","",'Arş.Gör. Sonuç'!F43) ->  | G43: =IF('Arş.Gör. Sonuç'!G43="","",'Arş.Gör. Sonuç'!G43) ->  | H43: =IF('Arş.Gör. Sonuç'!H43="","",'Arş.Gör. Sonuç'!H43) ->  | I43: =IF('Arş.Gör. Sonuç'!I43="","",'Arş.Gör. Sonuç'!I43) ->  | J43: =IF('Arş.Gör. Sonuç'!J43="","",'Arş.Gör. Sonuç'!J43) ->  | K43: =IF('Arş.Gör. Sonuç'!K43="","",'Arş.Gör. Sonuç'!K43) ->  | L43: =IF('Arş.Gör. Sonuç'!L43="","",'Arş.Gör. Sonuç'!L43) ->  | M43: =IF('Arş.Gör. Sonuç'!M43="","",'Arş.Gör. Sonuç'!M43) ->  | N43: =IF('Arş.Gör. Sonuç'!N43="","",'Arş.Gör. Sonuç'!N43) -> 
A44: =IF('Arş.Gör. Sonuç'!A44="","",'Arş.Gör. Sonuç'!A44) ->  | B44: =IF('Arş.Gör. Sonuç'!B44="","",LEFT('Arş.Gör. Sonuç'!B44,3)&REPT("*",4)&RIGHT('Arş.Gör. Sonuç'!B44,2)) ->  | C44: =IF('Arş.Gör. Sonuç'!C44="","",IF(ISERR(FIND(" ",'Arş.Gör. Sonuç'!C44))=TRUE,LEFT('Arş.Gör. Sonuç'!C44,2)&REPT("*",3),LEFT('Arş.Gör. Sonuç'!C44,2)&REPT("*",3)&" "&MID('Arş.Gör. Sonuç'!C44,FIND(" ",'Arş.Gör. Sonuç'!C44)+1,2)&REPT("*",3))) ->  | D44: =IF('Arş.Gör. Sonuç'!D44="","",IF(ISERR(FIND(" ",'Arş.Gör. Sonuç'!D44))=TRUE,LEFT('Arş.Gör. Sonuç'!D44,2)&REPT("*",3),LEFT('Arş.Gör. Sonuç'!D44,2)&REPT("*",3)&" "&MID('Arş.Gör. Sonuç'!D44,FIND(" ",'Arş.Gör. Sonuç'!D44)+1,2)&REPT("*",3))) ->  | E44: =IF('Arş.Gör. Sonuç'!E44="","",'Arş.Gör. Sonuç'!E44) ->  | F44: =IF('Arş.Gör. Sonuç'!F44="","",'Arş.Gör. Sonuç'!F44) ->  | G44: =IF('Arş.Gör. Sonuç'!G44="","",'Arş.Gör. Sonuç'!G44) ->  | H44: =IF('Arş.Gör. Sonuç'!H44="","",'Arş.Gör. Sonuç'!H44) ->  | I44: =IF('Arş.Gör. Sonuç'!I44="","",'Arş.Gör. Sonuç'!I44) ->  | J44: =IF('Arş.Gör. Sonuç'!J44="","",'Arş.Gör. Sonuç'!J44) ->  | K44: =IF('Arş.Gör. Sonuç'!K44="","",'Arş.Gör. Sonuç'!K44) ->  | L44: =IF('Arş.Gör. Sonuç'!L44="","",'Arş.Gör. Sonuç'!L44) ->  | M44: =IF('Arş.Gör. Sonuç'!M44="","",'Arş.Gör. Sonuç'!M44) ->  | N44: =IF('Arş.Gör. Sonuç'!N44="","",'Arş.Gör. Sonuç'!N44) -> 
A45: =IF('Arş.Gör. Sonuç'!A45="","",'Arş.Gör. Sonuç'!A45) ->  | B45: =IF('Arş.Gör. Sonuç'!B45="","",LEFT('Arş.Gör. Sonuç'!B45,3)&REPT("*",4)&RIGHT('Arş.Gör. Sonuç'!B45,2)) ->  | C45: =IF('Arş.Gör. Sonuç'!C45="","",IF(ISERR(FIND(" ",'Arş.Gör. Sonuç'!C45))=TRUE,LEFT('Arş.Gör. Sonuç'!C45,2)&REPT("*",3),LEFT('Arş.Gör. Sonuç'!C45,2)&REPT("*",3)&" "&MID('Arş.Gör. Sonuç'!C45,FIND(" ",'Arş.Gör. Sonuç'!C45)+1,2)&REPT("*",3))) ->  | D45: =IF('Arş.Gör. Sonuç'!D45="","",IF(ISERR(FIND(" ",'Arş.Gör. Sonuç'!D45))=TRUE,LEFT('Arş.Gör. Sonuç'!D45,2)&REPT("*",3),LEFT('Arş.Gör. Sonuç'!D45,2)&REPT("*",3)&" "&MID('Arş.Gör. Sonuç'!D45,FIND(" ",'Arş.Gör. Sonuç'!D45)+1,2)&REPT("*",3))) ->  | E45: =IF('Arş.Gör. Sonuç'!E45="","",'Arş.Gör. Sonuç'!E45) ->  | F45: =IF('Arş.Gör. Sonuç'!F45="","",'Arş.Gör. Sonuç'!F45) ->  | G45: =IF('Arş.Gör. Sonuç'!G45="","",'Arş.Gör. Sonuç'!G45) ->  | H45: =IF('Arş.Gör. Sonuç'!H45="","",'Arş.Gör. Sonuç'!H45) ->  | I45: =IF('Arş.Gör. Sonuç'!I45="","",'Arş.Gör. Sonuç'!I45) ->  | J45: =IF('Arş.Gör. Sonuç'!J45="","",'Arş.Gör. Sonuç'!J45) ->  | K45: =IF('Arş.Gör. Sonuç'!K45="","",'Arş.Gör. Sonuç'!K45) ->  | L45: =IF('Arş.Gör. Sonuç'!L45="","",'Arş.Gör. Sonuç'!L45) ->  | M45: =IF('Arş.Gör. Sonuç'!M45="","",'Arş.Gör. Sonuç'!M45) ->  | N45: =IF('Arş.Gör. Sonuç'!N45="","",'Arş.Gör. Sonuç'!N45) -> 
A46: =IF('Arş.Gör. Sonuç'!A46="","",'Arş.Gör. Sonuç'!A46) ->  | B46: =IF('Arş.Gör. Sonuç'!B46="","",LEFT('Arş.Gör. Sonuç'!B46,3)&REPT("*",4)&RIGHT('Arş.Gör. Sonuç'!B46,2)) ->  | C46: =IF('Arş.Gör. Sonuç'!C46="","",IF(ISERR(FIND(" ",'Arş.Gör. Sonuç'!C46))=TRUE,LEFT('Arş.Gör. Sonuç'!C46,2)&REPT("*",3),LEFT('Arş.Gör. Sonuç'!C46,2)&REPT("*",3)&" "&MID('Arş.Gör. Sonuç'!C46,FIND(" ",'Arş.Gör. Sonuç'!C46)+1,2)&REPT("*",3))) ->  | D46: =IF('Arş.Gör. Sonuç'!D46="","",IF(ISERR(FIND(" ",'Arş.Gör. Sonuç'!D46))=TRUE,LEFT('Arş.Gör. Sonuç'!D46,2)&REPT("*",3),LEFT('Arş.Gör. Sonuç'!D46,2)&REPT("*",3)&" "&MID('Arş.Gör. Sonuç'!D46,FIND(" ",'Arş.Gör. Sonuç'!D46)+1,2)&REPT("*",3))) ->  | E46: =IF('Arş.Gör. Sonuç'!E46="","",'Arş.Gör. Sonuç'!E46) ->  | F46: =IF('Arş.Gör. Sonuç'!F46="","",'Arş.Gör. Sonuç'!F46) ->  | G46: =IF('Arş.Gör. Sonuç'!G46="","",'Arş.Gör. Sonuç'!G46) ->  | H46: =IF('Arş.Gör. Sonuç'!H46="","",'Arş.Gör. Sonuç'!H46) ->  | I46: =IF('Arş.Gör. Sonuç'!I46="","",'Arş.Gör. Sonuç'!I46) ->  | J46: =IF('Arş.Gör. Sonuç'!J46="","",'Arş.Gör. Sonuç'!J46) ->  | K46: =IF('Arş.Gör. Sonuç'!K46="","",'Arş.Gör. Sonuç'!K46) ->  | L46: =IF('Arş.Gör. Sonuç'!L46="","",'Arş.Gör. Sonuç'!L46) ->  | M46: =IF('Arş.Gör. Sonuç'!M46="","",'Arş.Gör. Sonuç'!M46) ->  | N46: =IF('Arş.Gör. Sonuç'!N46="","",'Arş.Gör. Sonuç'!N46) -> 
A47: =IF('Arş.Gör. Sonuç'!A47="","",'Arş.Gör. Sonuç'!A47) ->  | B47: =IF('Arş.Gör. Sonuç'!B47="","",LEFT('Arş.Gör. Sonuç'!B47,3)&REPT("*",4)&RIGHT('Arş.Gör. Sonuç'!B47,2)) ->  | C47: =IF('Arş.Gör. Sonuç'!C47="","",IF(ISERR(FIND(" ",'Arş.Gör. Sonuç'!C47))=TRUE,LEFT('Arş.Gör. Sonuç'!C47,2)&REPT("*",3),LEFT('Arş.Gör. Sonuç'!C47,2)&REPT("*",3)&" "&MID('Arş.Gör. Sonuç'!C47,FIND(" ",'Arş.Gör. Sonuç'!C47)+1,2)&REPT("*",3))) ->  | D47: =IF('Arş.Gör. Sonuç'!D47="","",IF(ISERR(FIND(" ",'Arş.Gör. Sonuç'!D47))=TRUE,LEFT('Arş.Gör. Sonuç'!D47,2)&REPT("*",3),LEFT('Arş.Gör. Sonuç'!D47,2)&REPT("*",3)&" "&MID('Arş.Gör. Sonuç'!D47,FIND(" ",'Arş.Gör. Sonuç'!D47)+1,2)&REPT("*",3))) ->  | E47: =IF('Arş.Gör. Sonuç'!E47="","",'Arş.Gör. Sonuç'!E47) ->  | F47: =IF('Arş.Gör. Sonuç'!F47="","",'Arş.Gör. Sonuç'!F47) ->  | G47: =IF('Arş.Gör. Sonuç'!G47="","",'Arş.Gör. Sonuç'!G47) ->  | H47: =IF('Arş.Gör. Sonuç'!H47="","",'Arş.Gör. Sonuç'!H47) ->  | I47: =IF('Arş.Gör. Sonuç'!I47="","",'Arş.Gör. Sonuç'!I47) ->  | J47: =IF('Arş.Gör. Sonuç'!J47="","",'Arş.Gör. Sonuç'!J47) ->  | K47: =IF('Arş.Gör. Sonuç'!K47="","",'Arş.Gör. Sonuç'!K47) ->  | L47: =IF('Arş.Gör. Sonuç'!L47="","",'Arş.Gör. Sonuç'!L47) ->  | M47: =IF('Arş.Gör. Sonuç'!M47="","",'Arş.Gör. Sonuç'!M47) ->  | N47: =IF('Arş.Gör. Sonuç'!N47="","",'Arş.Gör. Sonuç'!N47) -> 
A48: =IF('Arş.Gör. Sonuç'!A48="","",'Arş.Gör. Sonuç'!A48) ->  | B48: =IF('Arş.Gör. Sonuç'!B48="","",LEFT('Arş.Gör. Sonuç'!B48,3)&REPT("*",4)&RIGHT('Arş.Gör. Sonuç'!B48,2)) ->  | C48: =IF('Arş.Gör. Sonuç'!C48="","",IF(ISERR(FIND(" ",'Arş.Gör. Sonuç'!C48))=TRUE,LEFT('Arş.Gör. Sonuç'!C48,2)&REPT("*",3),LEFT('Arş.Gör. Sonuç'!C48,2)&REPT("*",3)&" "&MID('Arş.Gör. Sonuç'!C48,FIND(" ",'Arş.Gör. Sonuç'!C48)+1,2)&REPT("*",3))) ->  | D48: =IF('Arş.Gör. Sonuç'!D48="","",IF(ISERR(FIND(" ",'Arş.Gör. Sonuç'!D48))=TRUE,LEFT('Arş.Gör. Sonuç'!D48,2)&REPT("*",3),LEFT('Arş.Gör. Sonuç'!D48,2)&REPT("*",3)&" "&MID('Arş.Gör. Sonuç'!D48,FIND(" ",'Arş.Gör. Sonuç'!D48)+1,2)&REPT("*",3))) ->  | E48: =IF('Arş.Gör. Sonuç'!E48="","",'Arş.Gör. Sonuç'!E48) ->  | F48: =IF('Arş.Gör. Sonuç'!F48="","",'Arş.Gör. Sonuç'!F48) ->  | G48: =IF('Arş.Gör. Sonuç'!G48="","",'Arş.Gör. Sonuç'!G48) ->  | H48: =IF('Arş.Gör. Sonuç'!H48="","",'Arş.Gör. Sonuç'!H48) ->  | I48: =IF('Arş.Gör. Sonuç'!I48="","",'Arş.Gör. Sonuç'!I48) ->  | J48: =IF('Arş.Gör. Sonuç'!J48="","",'Arş.Gör. Sonuç'!J48) ->  | K48: =IF('Arş.Gör. Sonuç'!K48="","",'Arş.Gör. Sonuç'!K48) ->  | L48: =IF('Arş.Gör. Sonuç'!L48="","",'Arş.Gör. Sonuç'!L48) ->  | M48: =IF('Arş.Gör. Sonuç'!M48="","",'Arş.Gör. Sonuç'!M48) ->  | N48: =IF('Arş.Gör. Sonuç'!N48="","",'Arş.Gör. Sonuç'!N48) -> 
A49: =IF('Arş.Gör. Sonuç'!A49="","",'Arş.Gör. Sonuç'!A49) ->  | B49: =IF('Arş.Gör. Sonuç'!B49="","",LEFT('Arş.Gör. Sonuç'!B49,3)&REPT("*",4)&RIGHT('Arş.Gör. Sonuç'!B49,2)) ->  | C49: =IF('Arş.Gör. Sonuç'!C49="","",IF(ISERR(FIND(" ",'Arş.Gör. Sonuç'!C49))=TRUE,LEFT('Arş.Gör. Sonuç'!C49,2)&REPT("*",3),LEFT('Arş.Gör. Sonuç'!C49,2)&REPT("*",3)&" "&MID('Arş.Gör. Sonuç'!C49,FIND(" ",'Arş.Gör. Sonuç'!C49)+1,2)&REPT("*",3))) ->  | D49: =IF('Arş.Gör. Sonuç'!D49="","",IF(ISERR(FIND(" ",'Arş.Gör. Sonuç'!D49))=TRUE,LEFT('Arş.Gör. Sonuç'!D49,2)&REPT("*",3),LEFT('Arş.Gör. Sonuç'!D49,2)&REPT("*",3)&" "&MID('Arş.Gör. Sonuç'!D49,FIND(" ",'Arş.Gör. Sonuç'!D49)+1,2)&REPT("*",3))) ->  | E49: =IF('Arş.Gör. Sonuç'!E49="","",'Arş.Gör. Sonuç'!E49) ->  | F49: =IF('Arş.Gör. Sonuç'!F49="","",'Arş.Gör. Sonuç'!F49) ->  | G49: =IF('Arş.Gör. Sonuç'!G49="","",'Arş.Gör. Sonuç'!G49) ->  | H49: =IF('Arş.Gör. Sonuç'!H49="","",'Arş.Gör. Sonuç'!H49) ->  | I49: =IF('Arş.Gör. Sonuç'!I49="","",'Arş.Gör. Sonuç'!I49) ->  | J49: =IF('Arş.Gör. Sonuç'!J49="","",'Arş.Gör. Sonuç'!J49) ->  | K49: =IF('Arş.Gör. Sonuç'!K49="","",'Arş.Gör. Sonuç'!K49) ->  | L49: =IF('Arş.Gör. Sonuç'!L49="","",'Arş.Gör. Sonuç'!L49) ->  | M49: =IF('Arş.Gör. Sonuç'!M49="","",'Arş.Gör. Sonuç'!M49) ->  | N49: =IF('Arş.Gör. Sonuç'!N49="","",'Arş.Gör. Sonuç'!N49) -> 
A50: =IF('Arş.Gör. Sonuç'!A50="","",'Arş.Gör. Sonuç'!A50) ->  | B50: =IF('Arş.Gör. Sonuç'!B50="","",LEFT('Arş.Gör. Sonuç'!B50,3)&REPT("*",4)&RIGHT('Arş.Gör. Sonuç'!B50,2)) ->  | C50: =IF('Arş.Gör. Sonuç'!C50="","",IF(ISERR(FIND(" ",'Arş.Gör. Sonuç'!C50))=TRUE,LEFT('Arş.Gör. Sonuç'!C50,2)&REPT("*",3),LEFT('Arş.Gör. Sonuç'!C50,2)&REPT("*",3)&" "&MID('Arş.Gör. Sonuç'!C50,FIND(" ",'Arş.Gör. Sonuç'!C50)+1,2)&REPT("*",3))) ->  | D50: =IF('Arş.Gör. Sonuç'!D50="","",IF(ISERR(FIND(" ",'Arş.Gör. Sonuç'!D50))=TRUE,LEFT('Arş.Gör. Sonuç'!D50,2)&REPT("*",3),LEFT('Arş.Gör. Sonuç'!D50,2)&REPT("*",3)&" "&MID('Arş.Gör. Sonuç'!D50,FIND(" ",'Arş.Gör. Sonuç'!D50)+1,2)&REPT("*",3))) ->  | E50: =IF('Arş.Gör. Sonuç'!E50="","",'Arş.Gör. Sonuç'!E50) ->  | F50: =IF('Arş.Gör. Sonuç'!F50="","",'Arş.Gör. Sonuç'!F50) ->  | G50: =IF('Arş.Gör. Sonuç'!G50="","",'Arş.Gör. Sonuç'!G50) ->  | H50: =IF('Arş.Gör. Sonuç'!H50="","",'Arş.Gör. Sonuç'!H50) ->  | I50: =IF('Arş.Gör. Sonuç'!I50="","",'Arş.Gör. Sonuç'!I50) ->  | J50: =IF('Arş.Gör. Sonuç'!J50="","",'Arş.Gör. Sonuç'!J50) ->  | K50: =IF('Arş.Gör. Sonuç'!K50="","",'Arş.Gör. Sonuç'!K50) ->  | L50: =IF('Arş.Gör. Sonuç'!L50="","",'Arş.Gör. Sonuç'!L50) ->  | M50: =IF('Arş.Gör. Sonuç'!M50="","",'Arş.Gör. Sonuç'!M50) ->  | N50: =IF('Arş.Gör. Sonuç'!N50="","",'Arş.Gör. Sonuç'!N50) -> 
A51: =IF('Arş.Gör. Sonuç'!A51="","",'Arş.Gör. Sonuç'!A51) ->  | B51: =IF('Arş.Gör. Sonuç'!B51="","",LEFT('Arş.Gör. Sonuç'!B51,3)&REPT("*",4)&RIGHT('Arş.Gör. Sonuç'!B51,2)) ->  | C51: =IF('Arş.Gör. Sonuç'!C51="","",IF(ISERR(FIND(" ",'Arş.Gör. Sonuç'!C51))=TRUE,LEFT('Arş.Gör. Sonuç'!C51,2)&REPT("*",3),LEFT('Arş.Gör. Sonuç'!C51,2)&REPT("*",3)&" "&MID('Arş.Gör. Sonuç'!C51,FIND(" ",'Arş.Gör. Sonuç'!C51)+1,2)&REPT("*",3))) ->  | D51: =IF('Arş.Gör. Sonuç'!D51="","",IF(ISERR(FIND(" ",'Arş.Gör. Sonuç'!D51))=TRUE,LEFT('Arş.Gör. Sonuç'!D51,2)&REPT("*",3),LEFT('Arş.Gör. Sonuç'!D51,2)&REPT("*",3)&" "&MID('Arş.Gör. Sonuç'!D51,FIND(" ",'Arş.Gör. Sonuç'!D51)+1,2)&REPT("*",3))) ->  | E51: =IF('Arş.Gör. Sonuç'!E51="","",'Arş.Gör. Sonuç'!E51) ->  | F51: =IF('Arş.Gör. Sonuç'!F51="","",'Arş.Gör. Sonuç'!F51) ->  | G51: =IF('Arş.Gör. Sonuç'!G51="","",'Arş.Gör. Sonuç'!G51) ->  | H51: =IF('Arş.Gör. Sonuç'!H51="","",'Arş.Gör. Sonuç'!H51) ->  | I51: =IF('Arş.Gör. Sonuç'!I51="","",'Arş.Gör. Sonuç'!I51) ->  | J51: =IF('Arş.Gör. Sonuç'!J51="","",'Arş.Gör. Sonuç'!J51) ->  | K51: =IF('Arş.Gör. Sonuç'!K51="","",'Arş.Gör. Sonuç'!K51) ->  | L51: =IF('Arş.Gör. Sonuç'!L51="","",'Arş.Gör. Sonuç'!L51) ->  | M51: =IF('Arş.Gör. Sonuç'!M51="","",'Arş.Gör. Sonuç'!M51) ->  | N51: =IF('Arş.Gör. Sonuç'!N51="","",'Arş.Gör. Sonuç'!N51) -> 
A52: =IF('Arş.Gör. Sonuç'!A52="","",'Arş.Gör. Sonuç'!A52) ->  | B52: =IF('Arş.Gör. Sonuç'!B52="","",LEFT('Arş.Gör. Sonuç'!B52,3)&REPT("*",4)&RIGHT('Arş.Gör. Sonuç'!B52,2)) ->  | C52: =IF('Arş.Gör. Sonuç'!C52="","",IF(ISERR(FIND(" ",'Arş.Gör. Sonuç'!C52))=TRUE,LEFT('Arş.Gör. Sonuç'!C52,2)&REPT("*",3),LEFT('Arş.Gör. Sonuç'!C52,2)&REPT("*",3)&" "&MID('Arş.Gör. Sonuç'!C52,FIND(" ",'Arş.Gör. Sonuç'!C52)+1,2)&REPT("*",3))) ->  | D52: =IF('Arş.Gör. Sonuç'!D52="","",IF(ISERR(FIND(" ",'Arş.Gör. Sonuç'!D52))=TRUE,LEFT('Arş.Gör. Sonuç'!D52,2)&REPT("*",3),LEFT('Arş.Gör. Sonuç'!D52,2)&REPT("*",3)&" "&MID('Arş.Gör. Sonuç'!D52,FIND(" ",'Arş.Gör. Sonuç'!D52)+1,2)&REPT("*",3))) ->  | E52: =IF('Arş.Gör. Sonuç'!E52="","",'Arş.Gör. Sonuç'!E52) ->  | F52: =IF('Arş.Gör. Sonuç'!F52="","",'Arş.Gör. Sonuç'!F52) ->  | G52: =IF('Arş.Gör. Sonuç'!G52="","",'Arş.Gör. Sonuç'!G52) ->  | H52: =IF('Arş.Gör. Sonuç'!H52="","",'Arş.Gör. Sonuç'!H52) ->  | I52: =IF('Arş.Gör. Sonuç'!I52="","",'Arş.Gör. Sonuç'!I52) ->  | J52: =IF('Arş.Gör. Sonuç'!J52="","",'Arş.Gör. Sonuç'!J52) ->  | K52: =IF('Arş.Gör. Sonuç'!K52="","",'Arş.Gör. Sonuç'!K52) ->  | L52: =IF('Arş.Gör. Sonuç'!L52="","",'Arş.Gör. Sonuç'!L52) ->  | M52: =IF('Arş.Gör. Sonuç'!M52="","",'Arş.Gör. Sonuç'!M52) ->  | N52: =IF('Arş.Gör. Sonuç'!N52="","",'Arş.Gör. Sonuç'!N52) -> 
A53: =IF('Arş.Gör. Sonuç'!A53="","",'Arş.Gör. Sonuç'!A53) ->  | B53: =IF('Arş.Gör. Sonuç'!B53="","",LEFT('Arş.Gör. Sonuç'!B53,3)&REPT("*",4)&RIGHT('Arş.Gör. Sonuç'!B53,2)) ->  | C53: =IF('Arş.Gör. Sonuç'!C53="","",IF(ISERR(FIND(" ",'Arş.Gör. Sonuç'!C53))=TRUE,LEFT('Arş.Gör. Sonuç'!C53,2)&REPT("*",3),LEFT('Arş.Gör. Sonuç'!C53,2)&REPT("*",3)&" "&MID('Arş.Gör. Sonuç'!C53,FIND(" ",'Arş.Gör. Sonuç'!C53)+1,2)&REPT("*",3))) ->  | D53: =IF('Arş.Gör. Sonuç'!D53="","",IF(ISERR(FIND(" ",'Arş.Gör. Sonuç'!D53))=TRUE,LEFT('Arş.Gör. Sonuç'!D53,2)&REPT("*",3),LEFT('Arş.Gör. Sonuç'!D53,2)&REPT("*",3)&" "&MID('Arş.Gör. Sonuç'!D53,FIND(" ",'Arş.Gör. Sonuç'!D53)+1,2)&REPT("*",3))) ->  | E53: =IF('Arş.Gör. Sonuç'!E53="","",'Arş.Gör. Sonuç'!E53) ->  | F53: =IF('Arş.Gör. Sonuç'!F53="","",'Arş.Gör. Sonuç'!F53) ->  | G53: =IF('Arş.Gör. Sonuç'!G53="","",'Arş.Gör. Sonuç'!G53) ->  | H53: =IF('Arş.Gör. Sonuç'!H53="","",'Arş.Gör. Sonuç'!H53) ->  | I53: =IF('Arş.Gör. Sonuç'!I53="","",'Arş.Gör. Sonuç'!I53) ->  | J53: =IF('Arş.Gör. Sonuç'!J53="","",'Arş.Gör. Sonuç'!J53) ->  | K53: =IF('Arş.Gör. Sonuç'!K53="","",'Arş.Gör. Sonuç'!K53) ->  | L53: =IF('Arş.Gör. Sonuç'!L53="","",'Arş.Gör. Sonuç'!L53) ->  | M53: =IF('Arş.Gör. Sonuç'!M53="","",'Arş.Gör. Sonuç'!M53) ->  | N53: =IF('Arş.Gör. Sonuç'!N53="","",'Arş.Gör. Sonuç'!N53) -> 
A54: =IF('Arş.Gör. Sonuç'!A54="","",'Arş.Gör. Sonuç'!A54) ->  | B54: =IF('Arş.Gör. Sonuç'!B54="","",LEFT('Arş.Gör. Sonuç'!B54,3)&REPT("*",4)&RIGHT('Arş.Gör. Sonuç'!B54,2)) ->  | C54: =IF('Arş.Gör. Sonuç'!C54="","",IF(ISERR(FIND(" ",'Arş.Gör. Sonuç'!C54))=TRUE,LEFT('Arş.Gör. Sonuç'!C54,2)&REPT("*",3),LEFT('Arş.Gör. Sonuç'!C54,2)&REPT("*",3)&" "&MID('Arş.Gör. Sonuç'!C54,FIND(" ",'Arş.Gör. Sonuç'!C54)+1,2)&REPT("*",3))) ->  | D54: =IF('Arş.Gör. Sonuç'!D54="","",IF(ISERR(FIND(" ",'Arş.Gör. Sonuç'!D54))=TRUE,LEFT('Arş.Gör. Sonuç'!D54,2)&REPT("*",3),LEFT('Arş.Gör. Sonuç'!D54,2)&REPT("*",3)&" "&MID('Arş.Gör. Sonuç'!D54,FIND(" ",'Arş.Gör. Sonuç'!D54)+1,2)&REPT("*",3))) ->  | E54: =IF('Arş.Gör. Sonuç'!E54="","",'Arş.Gör. Sonuç'!E54) ->  | F54: =IF('Arş.Gör. Sonuç'!F54="","",'Arş.Gör. Sonuç'!F54) ->  | G54: =IF('Arş.Gör. Sonuç'!G54="","",'Arş.Gör. Sonuç'!G54) ->  | H54: =IF('Arş.Gör. Sonuç'!H54="","",'Arş.Gör. Sonuç'!H54) ->  | I54: =IF('Arş.Gör. Sonuç'!I54="","",'Arş.Gör. Sonuç'!I54) ->  | J54: =IF('Arş.Gör. Sonuç'!J54="","",'Arş.Gör. Sonuç'!J54) ->  | K54: =IF('Arş.Gör. Sonuç'!K54="","",'Arş.Gör. Sonuç'!K54) ->  | L54: =IF('Arş.Gör. Sonuç'!L54="","",'Arş.Gör. Sonuç'!L54) ->  | M54: =IF('Arş.Gör. Sonuç'!M54="","",'Arş.Gör. Sonuç'!M54) ->  | N54: =IF('Arş.Gör. Sonuç'!N54="","",'Arş.Gör. Sonuç'!N54) -> 
A55: =IF('Arş.Gör. Sonuç'!A55="","",'Arş.Gör. Sonuç'!A55) ->  | B55: =IF('Arş.Gör. Sonuç'!B55="","",LEFT('Arş.Gör. Sonuç'!B55,3)&REPT("*",4)&RIGHT('Arş.Gör. Sonuç'!B55,2)) ->  | C55: =IF('Arş.Gör. Sonuç'!C55="","",IF(ISERR(FIND(" ",'Arş.Gör. Sonuç'!C55))=TRUE,LEFT('Arş.Gör. Sonuç'!C55,2)&REPT("*",3),LEFT('Arş.Gör. Sonuç'!C55,2)&REPT("*",3)&" "&MID('Arş.Gör. Sonuç'!C55,FIND(" ",'Arş.Gör. Sonuç'!C55)+1,2)&REPT("*",3))) ->  | D55: =IF('Arş.Gör. Sonuç'!D55="","",IF(ISERR(FIND(" ",'Arş.Gör. Sonuç'!D55))=TRUE,LEFT('Arş.Gör. Sonuç'!D55,2)&REPT("*",3),LEFT('Arş.Gör. Sonuç'!D55,2)&REPT("*",3)&" "&MID('Arş.Gör. Sonuç'!D55,FIND(" ",'Arş.Gör. Sonuç'!D55)+1,2)&REPT("*",3))) ->  | E55: =IF('Arş.Gör. Sonuç'!E55="","",'Arş.Gör. Sonuç'!E55) ->  | F55: =IF('Arş.Gör. Sonuç'!F55="","",'Arş.Gör. Sonuç'!F55) ->  | G55: =IF('Arş.Gör. Sonuç'!G55="","",'Arş.Gör. Sonuç'!G55) ->  | H55: =IF('Arş.Gör. Sonuç'!H55="","",'Arş.Gör. Sonuç'!H55) ->  | I55: =IF('Arş.Gör. Sonuç'!I55="","",'Arş.Gör. Sonuç'!I55) ->  | J55: =IF('Arş.Gör. Sonuç'!J55="","",'Arş.Gör. Sonuç'!J55) ->  | K55: =IF('Arş.Gör. Sonuç'!K55="","",'Arş.Gör. Sonuç'!K55) ->  | L55: =IF('Arş.Gör. Sonuç'!L55="","",'Arş.Gör. Sonuç'!L55) ->  | M55: =IF('Arş.Gör. Sonuç'!M55="","",'Arş.Gör. Sonuç'!M55) ->  | N55: =IF('Arş.Gör. Sonuç'!N55="","",'Arş.Gör. Sonuç'!N55) -> 
A56: =IF('Arş.Gör. Sonuç'!A56="","",'Arş.Gör. Sonuç'!A56) ->  | B56: =IF('Arş.Gör. Sonuç'!B56="","",LEFT('Arş.Gör. Sonuç'!B56,3)&REPT("*",4)&RIGHT('Arş.Gör. Sonuç'!B56,2)) ->  | C56: =IF('Arş.Gör. Sonuç'!C56="","",IF(ISERR(FIND(" ",'Arş.Gör. Sonuç'!C56))=TRUE,LEFT('Arş.Gör. Sonuç'!C56,2)&REPT("*",3),LEFT('Arş.Gör. Sonuç'!C56,2)&REPT("*",3)&" "&MID('Arş.Gör. Sonuç'!C56,FIND(" ",'Arş.Gör. Sonuç'!C56)+1,2)&REPT("*",3))) ->  | D56: =IF('Arş.Gör. Sonuç'!D56="","",IF(ISERR(FIND(" ",'Arş.Gör. Sonuç'!D56))=TRUE,LEFT('Arş.Gör. Sonuç'!D56,2)&REPT("*",3),LEFT('Arş.Gör. Sonuç'!D56,2)&REPT("*",3)&" "&MID('Arş.Gör. Sonuç'!D56,FIND(" ",'Arş.Gör. Sonuç'!D56)+1,2)&REPT("*",3))) ->  | E56: =IF('Arş.Gör. Sonuç'!E56="","",'Arş.Gör. Sonuç'!E56) ->  | F56: =IF('Arş.Gör. Sonuç'!F56="","",'Arş.Gör. Sonuç'!F56) ->  | G56: =IF('Arş.Gör. Sonuç'!G56="","",'Arş.Gör. Sonuç'!G56) ->  | H56: =IF('Arş.Gör. Sonuç'!H56="","",'Arş.Gör. Sonuç'!H56) ->  | I56: =IF('Arş.Gör. Sonuç'!I56="","",'Arş.Gör. Sonuç'!I56) ->  | J56: =IF('Arş.Gör. Sonuç'!J56="","",'Arş.Gör. Sonuç'!J56) ->  | K56: =IF('Arş.Gör. Sonuç'!K56="","",'Arş.Gör. Sonuç'!K56) ->  | L56: =IF('Arş.Gör. Sonuç'!L56="","",'Arş.Gör. Sonuç'!L56) ->  | M56: =IF('Arş.Gör. Sonuç'!M56="","",'Arş.Gör. Sonuç'!M56) ->  | N56: =IF('Arş.Gör. Sonuç'!N56="","",'Arş.Gör. Sonuç'!N56) -> 
A57: =IF('Arş.Gör. Sonuç'!A57="","",'Arş.Gör. Sonuç'!A57) ->  | B57: =IF('Arş.Gör. Sonuç'!B57="","",LEFT('Arş.Gör. Sonuç'!B57,3)&REPT("*",4)&RIGHT('Arş.Gör. Sonuç'!B57,2)) ->  | C57: =IF('Arş.Gör. Sonuç'!C57="","",IF(ISERR(FIND(" ",'Arş.Gör. Sonuç'!C57))=TRUE,LEFT('Arş.Gör. Sonuç'!C57,2)&REPT("*",3),LEFT('Arş.Gör. Sonuç'!C57,2)&REPT("*",3)&" "&MID('Arş.Gör. Sonuç'!C57,FIND(" ",'Arş.Gör. Sonuç'!C57)+1,2)&REPT("*",3))) ->  | D57: =IF('Arş.Gör. Sonuç'!D57="","",IF(ISERR(FIND(" ",'Arş.Gör. Sonuç'!D57))=TRUE,LEFT('Arş.Gör. Sonuç'!D57,2)&REPT("*",3),LEFT('Arş.Gör. Sonuç'!D57,2)&REPT("*",3)&" "&MID('Arş.Gör. Sonuç'!D57,FIND(" ",'Arş.Gör. Sonuç'!D57)+1,2)&REPT("*",3))) ->  | E57: =IF('Arş.Gör. Sonuç'!E57="","",'Arş.Gör. Sonuç'!E57) ->  | F57: =IF('Arş.Gör. Sonuç'!F57="","",'Arş.Gör. Sonuç'!F57) ->  | G57: =IF('Arş.Gör. Sonuç'!G57="","",'Arş.Gör. Sonuç'!G57) ->  | H57: =IF('Arş.Gör. Sonuç'!H57="","",'Arş.Gör. Sonuç'!H57) ->  | I57: =IF('Arş.Gör. Sonuç'!I57="","",'Arş.Gör. Sonuç'!I57) ->  | J57: =IF('Arş.Gör. Sonuç'!J57="","",'Arş.Gör. Sonuç'!J57) ->  | K57: =IF('Arş.Gör. Sonuç'!K57="","",'Arş.Gör. Sonuç'!K57) ->  | L57: =IF('Arş.Gör. Sonuç'!L57="","",'Arş.Gör. Sonuç'!L57) ->  | M57: =IF('Arş.Gör. Sonuç'!M57="","",'Arş.Gör. Sonuç'!M57) ->  | N57: =IF('Arş.Gör. Sonuç'!N57="","",'Arş.Gör. Sonuç'!N57) -> 
A58: =IF('Arş.Gör. Sonuç'!A58="","",'Arş.Gör. Sonuç'!A58) ->  | B58: =IF('Arş.Gör. Sonuç'!B58="","",LEFT('Arş.Gör. Sonuç'!B58,3)&REPT("*",4)&RIGHT('Arş.Gör. Sonuç'!B58,2)) ->  | C58: =IF('Arş.Gör. Sonuç'!C58="","",IF(ISERR(FIND(" ",'Arş.Gör. Sonuç'!C58))=TRUE,LEFT('Arş.Gör. Sonuç'!C58,2)&REPT("*",3),LEFT('Arş.Gör. Sonuç'!C58,2)&REPT("*",3)&" "&MID('Arş.Gör. Sonuç'!C58,FIND(" ",'Arş.Gör. Sonuç'!C58)+1,2)&REPT("*",3))) ->  | D58: =IF('Arş.Gör. Sonuç'!D58="","",IF(ISERR(FIND(" ",'Arş.Gör. Sonuç'!D58))=TRUE,LEFT('Arş.Gör. Sonuç'!D58,2)&REPT("*",3),LEFT('Arş.Gör. Sonuç'!D58,2)&REPT("*",3)&" "&MID('Arş.Gör. Sonuç'!D58,FIND(" ",'Arş.Gör. Sonuç'!D58)+1,2)&REPT("*",3))) ->  | E58: =IF('Arş.Gör. Sonuç'!E58="","",'Arş.Gör. Sonuç'!E58) ->  | F58: =IF('Arş.Gör. Sonuç'!F58="","",'Arş.Gör. Sonuç'!F58) ->  | G58: =IF('Arş.Gör. Sonuç'!G58="","",'Arş.Gör. Sonuç'!G58) ->  | H58: =IF('Arş.Gör. Sonuç'!H58="","",'Arş.Gör. Sonuç'!H58) ->  | I58: =IF('Arş.Gör. Sonuç'!I58="","",'Arş.Gör. Sonuç'!I58) ->  | J58: =IF('Arş.Gör. Sonuç'!J58="","",'Arş.Gör. Sonuç'!J58) ->  | K58: =IF('Arş.Gör. Sonuç'!K58="","",'Arş.Gör. Sonuç'!K58) ->  | L58: =IF('Arş.Gör. Sonuç'!L58="","",'Arş.Gör. Sonuç'!L58) ->  | M58: =IF('Arş.Gör. Sonuç'!M58="","",'Arş.Gör. Sonuç'!M58) ->  | N58: =IF('Arş.Gör. Sonuç'!N58="","",'Arş.Gör. Sonuç'!N58) -> 
A59: =IF('Arş.Gör. Sonuç'!A59="","",'Arş.Gör. Sonuç'!A59) ->  | B59: =IF('Arş.Gör. Sonuç'!B59="","",LEFT('Arş.Gör. Sonuç'!B59,3)&REPT("*",4)&RIGHT('Arş.Gör. Sonuç'!B59,2)) ->  | C59: =IF('Arş.Gör. Sonuç'!C59="","",IF(ISERR(FIND(" ",'Arş.Gör. Sonuç'!C59))=TRUE,LEFT('Arş.Gör. Sonuç'!C59,2)&REPT("*",3),LEFT('Arş.Gör. Sonuç'!C59,2)&REPT("*",3)&" "&MID('Arş.Gör. Sonuç'!C59,FIND(" ",'Arş.Gör. Sonuç'!C59)+1,2)&REPT("*",3))) ->  | D59: =IF('Arş.Gör. Sonuç'!D59="","",IF(ISERR(FIND(" ",'Arş.Gör. Sonuç'!D59))=TRUE,LEFT('Arş.Gör. Sonuç'!D59,2)&REPT("*",3),LEFT('Arş.Gör. Sonuç'!D59,2)&REPT("*",3)&" "&MID('Arş.Gör. Sonuç'!D59,FIND(" ",'Arş.Gör. Sonuç'!D59)+1,2)&REPT("*",3))) ->  | E59: =IF('Arş.Gör. Sonuç'!E59="","",'Arş.Gör. Sonuç'!E59) ->  | F59: =IF('Arş.Gör. Sonuç'!F59="","",'Arş.Gör. Sonuç'!F59) ->  | G59: =IF('Arş.Gör. Sonuç'!G59="","",'Arş.Gör. Sonuç'!G59) ->  | H59: =IF('Arş.Gör. Sonuç'!H59="","",'Arş.Gör. Sonuç'!H59) ->  | I59: =IF('Arş.Gör. Sonuç'!I59="","",'Arş.Gör. Sonuç'!I59) ->  | J59: =IF('Arş.Gör. Sonuç'!J59="","",'Arş.Gör. Sonuç'!J59) ->  | K59: =IF('Arş.Gör. Sonuç'!K59="","",'Arş.Gör. Sonuç'!K59) ->  | L59: =IF('Arş.Gör. Sonuç'!L59="","",'Arş.Gör. Sonuç'!L59) ->  | M59: =IF('Arş.Gör. Sonuç'!M59="","",'Arş.Gör. Sonuç'!M59) ->  | N59: =IF('Arş.Gör. Sonuç'!N59="","",'Arş.Gör. Sonuç'!N59) -> 
A60: =IF('Arş.Gör. Sonuç'!A60="","",'Arş.Gör. Sonuç'!A60) ->  | B60: =IF('Arş.Gör. Sonuç'!B60="","",LEFT('Arş.Gör. Sonuç'!B60,3)&REPT("*",4)&RIGHT('Arş.Gör. Sonuç'!B60,2)) ->  | C60: =IF('Arş.Gör. Sonuç'!C60="","",IF(ISERR(FIND(" ",'Arş.Gör. Sonuç'!C60))=TRUE,LEFT('Arş.Gör. Sonuç'!C60,2)&REPT("*",3),LEFT('Arş.Gör. Sonuç'!C60,2)&REPT("*",3)&" "&MID('Arş.Gör. Sonuç'!C60,FIND(" ",'Arş.Gör. Sonuç'!C60)+1,2)&REPT("*",3))) ->  | D60: =IF('Arş.Gör. Sonuç'!D60="","",IF(ISERR(FIND(" ",'Arş.Gör. Sonuç'!D60))=TRUE,LEFT('Arş.Gör. Sonuç'!D60,2)&REPT("*",3),LEFT('Arş.Gör. Sonuç'!D60,2)&REPT("*",3)&" "&MID('Arş.Gör. Sonuç'!D60,FIND(" ",'Arş.Gör. Sonuç'!D60)+1,2)&REPT("*",3))) ->  | E60: =IF('Arş.Gör. Sonuç'!E60="","",'Arş.Gör. Sonuç'!E60) ->  | F60: =IF('Arş.Gör. Sonuç'!F60="","",'Arş.Gör. Sonuç'!F60) ->  | G60: =IF('Arş.Gör. Sonuç'!G60="","",'Arş.Gör. Sonuç'!G60) ->  | H60: =IF('Arş.Gör. Sonuç'!H60="","",'Arş.Gör. Sonuç'!H60) ->  | I60: =IF('Arş.Gör. Sonuç'!I60="","",'Arş.Gör. Sonuç'!I60) ->  | J60: =IF('Arş.Gör. Sonuç'!J60="","",'Arş.Gör. Sonuç'!J60) ->  | K60: =IF('Arş.Gör. Sonuç'!K60="","",'Arş.Gör. Sonuç'!K60) ->  | L60: =IF('Arş.Gör. Sonuç'!L60="","",'Arş.Gör. Sonuç'!L60) ->  | M60: =IF('Arş.Gör. Sonuç'!M60="","",'Arş.Gör. Sonuç'!M60) ->  | N60: =IF('Arş.Gör. Sonuç'!N60="","",'Arş.Gör. Sonuç'!N60) -> 
A61: =IF('Arş.Gör. Sonuç'!A61="","",'Arş.Gör. Sonuç'!A61) ->  | B61: =IF('Arş.Gör. Sonuç'!B61="","",LEFT('Arş.Gör. Sonuç'!B61,3)&REPT("*",4)&RIGHT('Arş.Gör. Sonuç'!B61,2)) ->  | C61: =IF('Arş.Gör. Sonuç'!C61="","",IF(ISERR(FIND(" ",'Arş.Gör. Sonuç'!C61))=TRUE,LEFT('Arş.Gör. Sonuç'!C61,2)&REPT("*",3),LEFT('Arş.Gör. Sonuç'!C61,2)&REPT("*",3)&" "&MID('Arş.Gör. Sonuç'!C61,FIND(" ",'Arş.Gör. Sonuç'!C61)+1,2)&REPT("*",3))) ->  | D61: =IF('Arş.Gör. Sonuç'!D61="","",IF(ISERR(FIND(" ",'Arş.Gör. Sonuç'!D61))=TRUE,LEFT('Arş.Gör. Sonuç'!D61,2)&REPT("*",3),LEFT('Arş.Gör. Sonuç'!D61,2)&REPT("*",3)&" "&MID('Arş.Gör. Sonuç'!D61,FIND(" ",'Arş.Gör. Sonuç'!D61)+1,2)&REPT("*",3))) ->  | E61: =IF('Arş.Gör. Sonuç'!E61="","",'Arş.Gör. Sonuç'!E61) ->  | F61: =IF('Arş.Gör. Sonuç'!F61="","",'Arş.Gör. Sonuç'!F61) ->  | G61: =IF('Arş.Gör. Sonuç'!G61="","",'Arş.Gör. Sonuç'!G61) ->  | H61: =IF('Arş.Gör. Sonuç'!H61="","",'Arş.Gör. Sonuç'!H61) ->  | I61: =IF('Arş.Gör. Sonuç'!I61="","",'Arş.Gör. Sonuç'!I61) ->  | J61: =IF('Arş.Gör. Sonuç'!J61="","",'Arş.Gör. Sonuç'!J61) ->  | K61: =IF('Arş.Gör. Sonuç'!K61="","",'Arş.Gör. Sonuç'!K61) ->  | L61: =IF('Arş.Gör. Sonuç'!L61="","",'Arş.Gör. Sonuç'!L61) ->  | M61: =IF('Arş.Gör. Sonuç'!M61="","",'Arş.Gör. Sonuç'!M61) ->  | N61: =IF('Arş.Gör. Sonuç'!N61="","",'Arş.Gör. Sonuç'!N61) -> 
A62: =IF('Arş.Gör. Sonuç'!A62="","",'Arş.Gör. Sonuç'!A62) ->  | B62: =IF('Arş.Gör. Sonuç'!B62="","",LEFT('Arş.Gör. Sonuç'!B62,3)&REPT("*",4)&RIGHT('Arş.Gör. Sonuç'!B62,2)) ->  | C62: =IF('Arş.Gör. Sonuç'!C62="","",IF(ISERR(FIND(" ",'Arş.Gör. Sonuç'!C62))=TRUE,LEFT('Arş.Gör. Sonuç'!C62,2)&REPT("*",3),LEFT('Arş.Gör. Sonuç'!C62,2)&REPT("*",3)&" "&MID('Arş.Gör. Sonuç'!C62,FIND(" ",'Arş.Gör. Sonuç'!C62)+1,2)&REPT("*",3))) ->  | D62: =IF('Arş.Gör. Sonuç'!D62="","",IF(ISERR(FIND(" ",'Arş.Gör. Sonuç'!D62))=TRUE,LEFT('Arş.Gör. Sonuç'!D62,2)&REPT("*",3),LEFT('Arş.Gör. Sonuç'!D62,2)&REPT("*",3)&" "&MID('Arş.Gör. Sonuç'!D62,FIND(" ",'Arş.Gör. Sonuç'!D62)+1,2)&REPT("*",3))) ->  | E62: =IF('Arş.Gör. Sonuç'!E62="","",'Arş.Gör. Sonuç'!E62) ->  | F62: =IF('Arş.Gör. Sonuç'!F62="","",'Arş.Gör. Sonuç'!F62) ->  | G62: =IF('Arş.Gör. Sonuç'!G62="","",'Arş.Gör. Sonuç'!G62) ->  | H62: =IF('Arş.Gör. Sonuç'!H62="","",'Arş.Gör. Sonuç'!H62) ->  | I62: =IF('Arş.Gör. Sonuç'!I62="","",'Arş.Gör. Sonuç'!I62) ->  | J62: =IF('Arş.Gör. Sonuç'!J62="","",'Arş.Gör. Sonuç'!J62) ->  | K62: =IF('Arş.Gör. Sonuç'!K62="","",'Arş.Gör. Sonuç'!K62) ->  | L62: =IF('Arş.Gör. Sonuç'!L62="","",'Arş.Gör. Sonuç'!L62) ->  | M62: =IF('Arş.Gör. Sonuç'!M62="","",'Arş.Gör. Sonuç'!M62) ->  | N62: =IF('Arş.Gör. Sonuç'!N62="","",'Arş.Gör. Sonuç'!N62) -> 
A63: =IF('Arş.Gör. Sonuç'!A63="","",'Arş.Gör. Sonuç'!A63) ->  | B63: =IF('Arş.Gör. Sonuç'!B63="","",LEFT('Arş.Gör. Sonuç'!B63,3)&REPT("*",4)&RIGHT('Arş.Gör. Sonuç'!B63,2)) ->  | C63: =IF('Arş.Gör. Sonuç'!C63="","",IF(ISERR(FIND(" ",'Arş.Gör. Sonuç'!C63))=TRUE,LEFT('Arş.Gör. Sonuç'!C63,2)&REPT("*",3),LEFT('Arş.Gör. Sonuç'!C63,2)&REPT("*",3)&" "&MID('Arş.Gör. Sonuç'!C63,FIND(" ",'Arş.Gör. Sonuç'!C63)+1,2)&REPT("*",3))) ->  | D63: =IF('Arş.Gör. Sonuç'!D63="","",IF(ISERR(FIND(" ",'Arş.Gör. Sonuç'!D63))=TRUE,LEFT('Arş.Gör. Sonuç'!D63,2)&REPT("*",3),LEFT('Arş.Gör. Sonuç'!D63,2)&REPT("*",3)&" "&MID('Arş.Gör. Sonuç'!D63,FIND(" ",'Arş.Gör. Sonuç'!D63)+1,2)&REPT("*",3))) ->  | E63: =IF('Arş.Gör. Sonuç'!E63="","",'Arş.Gör. Sonuç'!E63) ->  | F63: =IF('Arş.Gör. Sonuç'!F63="","",'Arş.Gör. Sonuç'!F63) ->  | G63: =IF('Arş.Gör. Sonuç'!G63="","",'Arş.Gör. Sonuç'!G63) ->  | H63: =IF('Arş.Gör. Sonuç'!H63="","",'Arş.Gör. Sonuç'!H63) ->  | I63: =IF('Arş.Gör. Sonuç'!I63="","",'Arş.Gör. Sonuç'!I63) ->  | J63: =IF('Arş.Gör. Sonuç'!J63="","",'Arş.Gör. Sonuç'!J63) ->  | K63: =IF('Arş.Gör. Sonuç'!K63="","",'Arş.Gör. Sonuç'!K63) ->  | L63: =IF('Arş.Gör. Sonuç'!L63="","",'Arş.Gör. Sonuç'!L63) ->  | M63: =IF('Arş.Gör. Sonuç'!M63="","",'Arş.Gör. Sonuç'!M63) ->  | N63: =IF('Arş.Gör. Sonuç'!N63="","",'Arş.Gör. Sonuç'!N63) -> 
A64: =IF('Arş.Gör. Sonuç'!A64="","",'Arş.Gör. Sonuç'!A64) ->  | B64: =IF('Arş.Gör. Sonuç'!B64="","",LEFT('Arş.Gör. Sonuç'!B64,3)&REPT("*",4)&RIGHT('Arş.Gör. Sonuç'!B64,2)) ->  | C64: =IF('Arş.Gör. Sonuç'!C64="","",IF(ISERR(FIND(" ",'Arş.Gör. Sonuç'!C64))=TRUE,LEFT('Arş.Gör. Sonuç'!C64,2)&REPT("*",3),LEFT('Arş.Gör. Sonuç'!C64,2)&REPT("*",3)&" "&MID('Arş.Gör. Sonuç'!C64,FIND(" ",'Arş.Gör. Sonuç'!C64)+1,2)&REPT("*",3))) ->  | D64: =IF('Arş.Gör. Sonuç'!D64="","",IF(ISERR(FIND(" ",'Arş.Gör. Sonuç'!D64))=TRUE,LEFT('Arş.Gör. Sonuç'!D64,2)&REPT("*",3),LEFT('Arş.Gör. Sonuç'!D64,2)&REPT("*",3)&" "&MID('Arş.Gör. Sonuç'!D64,FIND(" ",'Arş.Gör. Sonuç'!D64)+1,2)&REPT("*",3))) ->  | E64: =IF('Arş.Gör. Sonuç'!E64="","",'Arş.Gör. Sonuç'!E64) ->  | F64: =IF('Arş.Gör. Sonuç'!F64="","",'Arş.Gör. Sonuç'!F64) ->  | G64: =IF('Arş.Gör. Sonuç'!G64="","",'Arş.Gör. Sonuç'!G64) ->  | H64: =IF('Arş.Gör. Sonuç'!H64="","",'Arş.Gör. Sonuç'!H64) ->  | I64: =IF('Arş.Gör. Sonuç'!I64="","",'Arş.Gör. Sonuç'!I64) ->  | J64: =IF('Arş.Gör. Sonuç'!J64="","",'Arş.Gör. Sonuç'!J64) ->  | K64: =IF('Arş.Gör. Sonuç'!K64="","",'Arş.Gör. Sonuç'!K64) ->  | L64: =IF('Arş.Gör. Sonuç'!L64="","",'Arş.Gör. Sonuç'!L64) ->  | M64: =IF('Arş.Gör. Sonuç'!M64="","",'Arş.Gör. Sonuç'!M64) ->  | N64: =IF('Arş.Gör. Sonuç'!N64="","",'Arş.Gör. Sonuç'!N64) -> 
A65: =IF('Arş.Gör. Sonuç'!A65="","",'Arş.Gör. Sonuç'!A65) ->  | B65: =IF('Arş.Gör. Sonuç'!B65="","",LEFT('Arş.Gör. Sonuç'!B65,3)&REPT("*",4)&RIGHT('Arş.Gör. Sonuç'!B65,2)) ->  | C65: =IF('Arş.Gör. Sonuç'!C65="","",IF(ISERR(FIND(" ",'Arş.Gör. Sonuç'!C65))=TRUE,LEFT('Arş.Gör. Sonuç'!C65,2)&REPT("*",3),LEFT('Arş.Gör. Sonuç'!C65,2)&REPT("*",3)&" "&MID('Arş.Gör. Sonuç'!C65,FIND(" ",'Arş.Gör. Sonuç'!C65)+1,2)&REPT("*",3))) ->  | D65: =IF('Arş.Gör. Sonuç'!D65="","",IF(ISERR(FIND(" ",'Arş.Gör. Sonuç'!D65))=TRUE,LEFT('Arş.Gör. Sonuç'!D65,2)&REPT("*",3),LEFT('Arş.Gör. Sonuç'!D65,2)&REPT("*",3)&" "&MID('Arş.Gör. Sonuç'!D65,FIND(" ",'Arş.Gör. Sonuç'!D65)+1,2)&REPT("*",3))) ->  | E65: =IF('Arş.Gör. Sonuç'!E65="","",'Arş.Gör. Sonuç'!E65) ->  | F65: =IF('Arş.Gör. Sonuç'!F65="","",'Arş.Gör. Sonuç'!F65) ->  | G65: =IF('Arş.Gör. Sonuç'!G65="","",'Arş.Gör. Sonuç'!G65) ->  | H65: =IF('Arş.Gör. Sonuç'!H65="","",'Arş.Gör. Sonuç'!H65) ->  | I65: =IF('Arş.Gör. Sonuç'!I65="","",'Arş.Gör. Sonuç'!I65) ->  | J65: =IF('Arş.Gör. Sonuç'!J65="","",'Arş.Gör. Sonuç'!J65) ->  | K65: =IF('Arş.Gör. Sonuç'!K65="","",'Arş.Gör. Sonuç'!K65) ->  | L65: =IF('Arş.Gör. Sonuç'!L65="","",'Arş.Gör. Sonuç'!L65) ->  | M65: =IF('Arş.Gör. Sonuç'!M65="","",'Arş.Gör. Sonuç'!M65) ->  | N65: =IF('Arş.Gör. Sonuç'!N65="","",'Arş.Gör. Sonuç'!N65) -> 
A66: =IF('Arş.Gör. Sonuç'!A66="","",'Arş.Gör. Sonuç'!A66) ->  | B66: =IF('Arş.Gör. Sonuç'!B66="","",LEFT('Arş.Gör. Sonuç'!B66,3)&REPT("*",4)&RIGHT('Arş.Gör. Sonuç'!B66,2)) ->  | C66: =IF('Arş.Gör. Sonuç'!C66="","",IF(ISERR(FIND(" ",'Arş.Gör. Sonuç'!C66))=TRUE,LEFT('Arş.Gör. Sonuç'!C66,2)&REPT("*",3),LEFT('Arş.Gör. Sonuç'!C66,2)&REPT("*",3)&" "&MID('Arş.Gör. Sonuç'!C66,FIND(" ",'Arş.Gör. Sonuç'!C66)+1,2)&REPT("*",3))) ->  | D66: =IF('Arş.Gör. Sonuç'!D66="","",IF(ISERR(FIND(" ",'Arş.Gör. Sonuç'!D66))=TRUE,LEFT('Arş.Gör. Sonuç'!D66,2)&REPT("*",3),LEFT('Arş.Gör. Sonuç'!D66,2)&REPT("*",3)&" "&MID('Arş.Gör. Sonuç'!D66,FIND(" ",'Arş.Gör. Sonuç'!D66)+1,2)&REPT("*",3))) ->  | E66: =IF('Arş.Gör. Sonuç'!E66="","",'Arş.Gör. Sonuç'!E66) ->  | F66: =IF('Arş.Gör. Sonuç'!F66="","",'Arş.Gör. Sonuç'!F66) ->  | G66: =IF('Arş.Gör. Sonuç'!G66="","",'Arş.Gör. Sonuç'!G66) ->  | H66: =IF('Arş.Gör. Sonuç'!H66="","",'Arş.Gör. Sonuç'!H66) ->  | I66: =IF('Arş.Gör. Sonuç'!I66="","",'Arş.Gör. Sonuç'!I66) ->  | J66: =IF('Arş.Gör. Sonuç'!J66="","",'Arş.Gör. Sonuç'!J66) ->  | K66: =IF('Arş.Gör. Sonuç'!K66="","",'Arş.Gör. Sonuç'!K66) ->  | L66: =IF('Arş.Gör. Sonuç'!L66="","",'Arş.Gör. Sonuç'!L66) ->  | M66: =IF('Arş.Gör. Sonuç'!M66="","",'Arş.Gör. Sonuç'!M66) ->  | N66: =IF('Arş.Gör. Sonuç'!N66="","",'Arş.Gör. Sonuç'!N66) -> 
A67: =IF('Arş.Gör. Sonuç'!A67="","",'Arş.Gör. Sonuç'!A67) ->  | B67: =IF('Arş.Gör. Sonuç'!B67="","",LEFT('Arş.Gör. Sonuç'!B67,3)&REPT("*",4)&RIGHT('Arş.Gör. Sonuç'!B67,2)) ->  | C67: =IF('Arş.Gör. Sonuç'!C67="","",IF(ISERR(FIND(" ",'Arş.Gör. Sonuç'!C67))=TRUE,LEFT('Arş.Gör. Sonuç'!C67,2)&REPT("*",3),LEFT('Arş.Gör. Sonuç'!C67,2)&REPT("*",3)&" "&MID('Arş.Gör. Sonuç'!C67,FIND(" ",'Arş.Gör. Sonuç'!C67)+1,2)&REPT("*",3))) ->  | D67: =IF('Arş.Gör. Sonuç'!D67="","",IF(ISERR(FIND(" ",'Arş.Gör. Sonuç'!D67))=TRUE,LEFT('Arş.Gör. Sonuç'!D67,2)&REPT("*",3),LEFT('Arş.Gör. Sonuç'!D67,2)&REPT("*",3)&" "&MID('Arş.Gör. Sonuç'!D67,FIND(" ",'Arş.Gör. Sonuç'!D67)+1,2)&REPT("*",3))) ->  | E67: =IF('Arş.Gör. Sonuç'!E67="","",'Arş.Gör. Sonuç'!E67) ->  | F67: =IF('Arş.Gör. Sonuç'!F67="","",'Arş.Gör. Sonuç'!F67) ->  | G67: =IF('Arş.Gör. Sonuç'!G67="","",'Arş.Gör. Sonuç'!G67) ->  | H67: =IF('Arş.Gör. Sonuç'!H67="","",'Arş.Gör. Sonuç'!H67) ->  | I67: =IF('Arş.Gör. Sonuç'!I67="","",'Arş.Gör. Sonuç'!I67) ->  | J67: =IF('Arş.Gör. Sonuç'!J67="","",'Arş.Gör. Sonuç'!J67) ->  | K67: =IF('Arş.Gör. Sonuç'!K67="","",'Arş.Gör. Sonuç'!K67) ->  | L67: =IF('Arş.Gör. Sonuç'!L67="","",'Arş.Gör. Sonuç'!L67) ->  | M67: =IF('Arş.Gör. Sonuç'!M67="","",'Arş.Gör. Sonuç'!M67) ->  | N67: =IF('Arş.Gör. Sonuç'!N67="","",'Arş.Gör. Sonuç'!N67) -> 
A68: =IF('Arş.Gör. Sonuç'!A68="","",'Arş.Gör. Sonuç'!A68) ->  | B68: =IF('Arş.Gör. Sonuç'!B68="","",LEFT('Arş.Gör. Sonuç'!B68,3)&REPT("*",4)&RIGHT('Arş.Gör. Sonuç'!B68,2)) ->  | C68: =IF('Arş.Gör. Sonuç'!C68="","",IF(ISERR(FIND(" ",'Arş.Gör. Sonuç'!C68))=TRUE,LEFT('Arş.Gör. Sonuç'!C68,2)&REPT("*",3),LEFT('Arş.Gör. Sonuç'!C68,2)&REPT("*",3)&" "&MID('Arş.Gör. Sonuç'!C68,FIND(" ",'Arş.Gör. Sonuç'!C68)+1,2)&REPT("*",3))) ->  | D68: =IF('Arş.Gör. Sonuç'!D68="","",IF(ISERR(FIND(" ",'Arş.Gör. Sonuç'!D68))=TRUE,LEFT('Arş.Gör. Sonuç'!D68,2)&REPT("*",3),LEFT('Arş.Gör. Sonuç'!D68,2)&REPT("*",3)&" "&MID('Arş.Gör. Sonuç'!D68,FIND(" ",'Arş.Gör. Sonuç'!D68)+1,2)&REPT("*",3))) ->  | E68: =IF('Arş.Gör. Sonuç'!E68="","",'Arş.Gör. Sonuç'!E68) ->  | F68: =IF('Arş.Gör. Sonuç'!F68="","",'Arş.Gör. Sonuç'!F68) ->  | G68: =IF('Arş.Gör. Sonuç'!G68="","",'Arş.Gör. Sonuç'!G68) ->  | H68: =IF('Arş.Gör. Sonuç'!H68="","",'Arş.Gör. Sonuç'!H68) ->  | I68: =IF('Arş.Gör. Sonuç'!I68="","",'Arş.Gör. Sonuç'!I68) ->  | J68: =IF('Arş.Gör. Sonuç'!J68="","",'Arş.Gör. Sonuç'!J68) ->  | K68: =IF('Arş.Gör. Sonuç'!K68="","",'Arş.Gör. Sonuç'!K68) ->  | L68: =IF('Arş.Gör. Sonuç'!L68="","",'Arş.Gör. Sonuç'!L68) ->  | M68: =IF('Arş.Gör. Sonuç'!M68="","",'Arş.Gör. Sonuç'!M68) ->  | N68: =IF('Arş.Gör. Sonuç'!N68="","",'Arş.Gör. Sonuç'!N68) -> 
A69: =IF('Arş.Gör. Sonuç'!A69="","",'Arş.Gör. Sonuç'!A69) ->  | B69: =IF('Arş.Gör. Sonuç'!B69="","",LEFT('Arş.Gör. Sonuç'!B69,3)&REPT("*",4)&RIGHT('Arş.Gör. Sonuç'!B69,2)) ->  | C69: =IF('Arş.Gör. Sonuç'!C69="","",IF(ISERR(FIND(" ",'Arş.Gör. Sonuç'!C69))=TRUE,LEFT('Arş.Gör. Sonuç'!C69,2)&REPT("*",3),LEFT('Arş.Gör. Sonuç'!C69,2)&REPT("*",3)&" "&MID('Arş.Gör. Sonuç'!C69,FIND(" ",'Arş.Gör. Sonuç'!C69)+1,2)&REPT("*",3))) ->  | D69: =IF('Arş.Gör. Sonuç'!D69="","",IF(ISERR(FIND(" ",'Arş.Gör. Sonuç'!D69))=TRUE,LEFT('Arş.Gör. Sonuç'!D69,2)&REPT("*",3),LEFT('Arş.Gör. Sonuç'!D69,2)&REPT("*",3)&" "&MID('Arş.Gör. Sonuç'!D69,FIND(" ",'Arş.Gör. Sonuç'!D69)+1,2)&REPT("*",3))) ->  | E69: =IF('Arş.Gör. Sonuç'!E69="","",'Arş.Gör. Sonuç'!E69) ->  | F69: =IF('Arş.Gör. Sonuç'!F69="","",'Arş.Gör. Sonuç'!F69) ->  | G69: =IF('Arş.Gör. Sonuç'!G69="","",'Arş.Gör. Sonuç'!G69) ->  | H69: =IF('Arş.Gör. Sonuç'!H69="","",'Arş.Gör. Sonuç'!H69) ->  | I69: =IF('Arş.Gör. Sonuç'!I69="","",'Arş.Gör. Sonuç'!I69) ->  | J69: =IF('Arş.Gör. Sonuç'!J69="","",'Arş.Gör. Sonuç'!J69) ->  | K69: =IF('Arş.Gör. Sonuç'!K69="","",'Arş.Gör. Sonuç'!K69) ->  | L69: =IF('Arş.Gör. Sonuç'!L69="","",'Arş.Gör. Sonuç'!L69) ->  | M69: =IF('Arş.Gör. Sonuç'!M69="","",'Arş.Gör. Sonuç'!M69) ->  | N69: =IF('Arş.Gör. Sonuç'!N69="","",'Arş.Gör. Sonuç'!N69) -> 
A70: =IF('Arş.Gör. Sonuç'!A70="","",'Arş.Gör. Sonuç'!A70) ->  | B70: =IF('Arş.Gör. Sonuç'!B70="","",LEFT('Arş.Gör. Sonuç'!B70,3)&REPT("*",4)&RIGHT('Arş.Gör. Sonuç'!B70,2)) ->  | C70: =IF('Arş.Gör. Sonuç'!C70="","",IF(ISERR(FIND(" ",'Arş.Gör. Sonuç'!C70))=TRUE,LEFT('Arş.Gör. Sonuç'!C70,2)&REPT("*",3),LEFT('Arş.Gör. Sonuç'!C70,2)&REPT("*",3)&" "&MID('Arş.Gör. Sonuç'!C70,FIND(" ",'Arş.Gör. Sonuç'!C70)+1,2)&REPT("*",3))) ->  | D70: =IF('Arş.Gör. Sonuç'!D70="","",IF(ISERR(FIND(" ",'Arş.Gör. Sonuç'!D70))=TRUE,LEFT('Arş.Gör. Sonuç'!D70,2)&REPT("*",3),LEFT('Arş.Gör. Sonuç'!D70,2)&REPT("*",3)&" "&MID('Arş.Gör. Sonuç'!D70,FIND(" ",'Arş.Gör. Sonuç'!D70)+1,2)&REPT("*",3))) ->  | E70: =IF('Arş.Gör. Sonuç'!E70="","",'Arş.Gör. Sonuç'!E70) ->  | F70: =IF('Arş.Gör. Sonuç'!F70="","",'Arş.Gör. Sonuç'!F70) ->  | G70: =IF('Arş.Gör. Sonuç'!G70="","",'Arş.Gör. Sonuç'!G70) ->  | H70: =IF('Arş.Gör. Sonuç'!H70="","",'Arş.Gör. Sonuç'!H70) ->  | I70: =IF('Arş.Gör. Sonuç'!I70="","",'Arş.Gör. Sonuç'!I70) ->  | J70: =IF('Arş.Gör. Sonuç'!J70="","",'Arş.Gör. Sonuç'!J70) ->  | K70: =IF('Arş.Gör. Sonuç'!K70="","",'Arş.Gör. Sonuç'!K70) ->  | L70: =IF('Arş.Gör. Sonuç'!L70="","",'Arş.Gör. Sonuç'!L70) ->  | M70: =IF('Arş.Gör. Sonuç'!M70="","",'Arş.Gör. Sonuç'!M70) ->  | N70: =IF('Arş.Gör. Sonuç'!N70="","",'Arş.Gör. Sonuç'!N70) -> 
A71: =IF('Arş.Gör. Sonuç'!A71="","",'Arş.Gör. Sonuç'!A71) ->  | B71: =IF('Arş.Gör. Sonuç'!B71="","",LEFT('Arş.Gör. Sonuç'!B71,3)&REPT("*",4)&RIGHT('Arş.Gör. Sonuç'!B71,2)) ->  | C71: =IF('Arş.Gör. Sonuç'!C71="","",IF(ISERR(FIND(" ",'Arş.Gör. Sonuç'!C71))=TRUE,LEFT('Arş.Gör. Sonuç'!C71,2)&REPT("*",3),LEFT('Arş.Gör. Sonuç'!C71,2)&REPT("*",3)&" "&MID('Arş.Gör. Sonuç'!C71,FIND(" ",'Arş.Gör. Sonuç'!C71)+1,2)&REPT("*",3))) ->  | D71: =IF('Arş.Gör. Sonuç'!D71="","",IF(ISERR(FIND(" ",'Arş.Gör. Sonuç'!D71))=TRUE,LEFT('Arş.Gör. Sonuç'!D71,2)&REPT("*",3),LEFT('Arş.Gör. Sonuç'!D71,2)&REPT("*",3)&" "&MID('Arş.Gör. Sonuç'!D71,FIND(" ",'Arş.Gör. Sonuç'!D71)+1,2)&REPT("*",3))) ->  | E71: =IF('Arş.Gör. Sonuç'!E71="","",'Arş.Gör. Sonuç'!E71) ->  | F71: =IF('Arş.Gör. Sonuç'!F71="","",'Arş.Gör. Sonuç'!F71) ->  | G71: =IF('Arş.Gör. Sonuç'!G71="","",'Arş.Gör. Sonuç'!G71) ->  | H71: =IF('Arş.Gör. Sonuç'!H71="","",'Arş.Gör. Sonuç'!H71) ->  | I71: =IF('Arş.Gör. Sonuç'!I71="","",'Arş.Gör. Sonuç'!I71) ->  | J71: =IF('Arş.Gör. Sonuç'!J71="","",'Arş.Gör. Sonuç'!J71) ->  | K71: =IF('Arş.Gör. Sonuç'!K71="","",'Arş.Gör. Sonuç'!K71) ->  | L71: =IF('Arş.Gör. Sonuç'!L71="","",'Arş.Gör. Sonuç'!L71) ->  | M71: =IF('Arş.Gör. Sonuç'!M71="","",'Arş.Gör. Sonuç'!M71) ->  | N71: =IF('Arş.Gör. Sonuç'!N71="","",'Arş.Gör. Sonuç'!N71) -> 
A72: =IF('Arş.Gör. Sonuç'!A72="","",'Arş.Gör. Sonuç'!A72) ->  | B72: =IF('Arş.Gör. Sonuç'!B72="","",LEFT('Arş.Gör. Sonuç'!B72,3)&REPT("*",4)&RIGHT('Arş.Gör. Sonuç'!B72,2)) ->  | C72: =IF('Arş.Gör. Sonuç'!C72="","",IF(ISERR(FIND(" ",'Arş.Gör. Sonuç'!C72))=TRUE,LEFT('Arş.Gör. Sonuç'!C72,2)&REPT("*",3),LEFT('Arş.Gör. Sonuç'!C72,2)&REPT("*",3)&" "&MID('Arş.Gör. Sonuç'!C72,FIND(" ",'Arş.Gör. Sonuç'!C72)+1,2)&REPT("*",3))) ->  | D72: =IF('Arş.Gör. Sonuç'!D72="","",IF(ISERR(FIND(" ",'Arş.Gör. Sonuç'!D72))=TRUE,LEFT('Arş.Gör. Sonuç'!D72,2)&REPT("*",3),LEFT('Arş.Gör. Sonuç'!D72,2)&REPT("*",3)&" "&MID('Arş.Gör. Sonuç'!D72,FIND(" ",'Arş.Gör. Sonuç'!D72)+1,2)&REPT("*",3))) ->  | E72: =IF('Arş.Gör. Sonuç'!E72="","",'Arş.Gör. Sonuç'!E72) ->  | F72: =IF('Arş.Gör. Sonuç'!F72="","",'Arş.Gör. Sonuç'!F72) ->  | G72: =IF('Arş.Gör. Sonuç'!G72="","",'Arş.Gör. Sonuç'!G72) ->  | H72: =IF('Arş.Gör. Sonuç'!H72="","",'Arş.Gör. Sonuç'!H72) ->  | I72: =IF('Arş.Gör. Sonuç'!I72="","",'Arş.Gör. Sonuç'!I72) ->  | J72: =IF('Arş.Gör. Sonuç'!J72="","",'Arş.Gör. Sonuç'!J72) ->  | K72: =IF('Arş.Gör. Sonuç'!K72="","",'Arş.Gör. Sonuç'!K72) ->  | L72: =IF('Arş.Gör. Sonuç'!L72="","",'Arş.Gör. Sonuç'!L72) ->  | M72: =IF('Arş.Gör. Sonuç'!M72="","",'Arş.Gör. Sonuç'!M72) ->  | N72: =IF('Arş.Gör. Sonuç'!N72="","",'Arş.Gör. Sonuç'!N72) -> 
A73: =IF('Arş.Gör. Sonuç'!A73="","",'Arş.Gör. Sonuç'!A73) ->  | B73: =IF('Arş.Gör. Sonuç'!B73="","",LEFT('Arş.Gör. Sonuç'!B73,3)&REPT("*",4)&RIGHT('Arş.Gör. Sonuç'!B73,2)) ->  | C73: =IF('Arş.Gör. Sonuç'!C73="","",IF(ISERR(FIND(" ",'Arş.Gör. Sonuç'!C73))=TRUE,LEFT('Arş.Gör. Sonuç'!C73,2)&REPT("*",3),LEFT('Arş.Gör. Sonuç'!C73,2)&REPT("*",3)&" "&MID('Arş.Gör. Sonuç'!C73,FIND(" ",'Arş.Gör. Sonuç'!C73)+1,2)&REPT("*",3))) ->  | D73: =IF('Arş.Gör. Sonuç'!D73="","",IF(ISERR(FIND(" ",'Arş.Gör. Sonuç'!D73))=TRUE,LEFT('Arş.Gör. Sonuç'!D73,2)&REPT("*",3),LEFT('Arş.Gör. Sonuç'!D73,2)&REPT("*",3)&" "&MID('Arş.Gör. Sonuç'!D73,FIND(" ",'Arş.Gör. Sonuç'!D73)+1,2)&REPT("*",3))) ->  | E73: =IF('Arş.Gör. Sonuç'!E73="","",'Arş.Gör. Sonuç'!E73) ->  | F73: =IF('Arş.Gör. Sonuç'!F73="","",'Arş.Gör. Sonuç'!F73) ->  | G73: =IF('Arş.Gör. Sonuç'!G73="","",'Arş.Gör. Sonuç'!G73) ->  | H73: =IF('Arş.Gör. Sonuç'!H73="","",'Arş.Gör. Sonuç'!H73) ->  | I73: =IF('Arş.Gör. Sonuç'!I73="","",'Arş.Gör. Sonuç'!I73) ->  | J73: =IF('Arş.Gör. Sonuç'!J73="","",'Arş.Gör. Sonuç'!J73) ->  | K73: =IF('Arş.Gör. Sonuç'!K73="","",'Arş.Gör. Sonuç'!K73) ->  | L73: =IF('Arş.Gör. Sonuç'!L73="","",'Arş.Gör. Sonuç'!L73) ->  | M73: =IF('Arş.Gör. Sonuç'!M73="","",'Arş.Gör. Sonuç'!M73) ->  | N73: =IF('Arş.Gör. Sonuç'!N73="","",'Arş.Gör. Sonuç'!N73) -> 
A74: =IF('Arş.Gör. Sonuç'!A74="","",'Arş.Gör. Sonuç'!A74) ->  | B74: =IF('Arş.Gör. Sonuç'!B74="","",LEFT('Arş.Gör. Sonuç'!B74,3)&REPT("*",4)&RIGHT('Arş.Gör. Sonuç'!B74,2)) ->  | C74: =IF('Arş.Gör. Sonuç'!C74="","",IF(ISERR(FIND(" ",'Arş.Gör. Sonuç'!C74))=TRUE,LEFT('Arş.Gör. Sonuç'!C74,2)&REPT("*",3),LEFT('Arş.Gör. Sonuç'!C74,2)&REPT("*",3)&" "&MID('Arş.Gör. Sonuç'!C74,FIND(" ",'Arş.Gör. Sonuç'!C74)+1,2)&REPT("*",3))) ->  | D74: =IF('Arş.Gör. Sonuç'!D74="","",IF(ISERR(FIND(" ",'Arş.Gör. Sonuç'!D74))=TRUE,LEFT('Arş.Gör. Sonuç'!D74,2)&REPT("*",3),LEFT('Arş.Gör. Sonuç'!D74,2)&REPT("*",3)&" "&MID('Arş.Gör. Sonuç'!D74,FIND(" ",'Arş.Gör. Sonuç'!D74)+1,2)&REPT("*",3))) ->  | E74: =IF('Arş.Gör. Sonuç'!E74="","",'Arş.Gör. Sonuç'!E74) ->  | F74: =IF('Arş.Gör. Sonuç'!F74="","",'Arş.Gör. Sonuç'!F74) ->  | G74: =IF('Arş.Gör. Sonuç'!G74="","",'Arş.Gör. Sonuç'!G74) ->  | H74: =IF('Arş.Gör. Sonuç'!H74="","",'Arş.Gör. Sonuç'!H74) ->  | I74: =IF('Arş.Gör. Sonuç'!I74="","",'Arş.Gör. Sonuç'!I74) ->  | J74: =IF('Arş.Gör. Sonuç'!J74="","",'Arş.Gör. Sonuç'!J74) ->  | K74: =IF('Arş.Gör. Sonuç'!K74="","",'Arş.Gör. Sonuç'!K74) ->  | L74: =IF('Arş.Gör. Sonuç'!L74="","",'Arş.Gör. Sonuç'!L74) ->  | M74: =IF('Arş.Gör. Sonuç'!M74="","",'Arş.Gör. Sonuç'!M74) ->  | N74: =IF('Arş.Gör. Sonuç'!N74="","",'Arş.Gör. Sonuç'!N74) -> 
A75: =IF('Arş.Gör. Sonuç'!A75="","",'Arş.Gör. Sonuç'!A75) ->  | B75: =IF('Arş.Gör. Sonuç'!B75="","",LEFT('Arş.Gör. Sonuç'!B75,3)&REPT("*",4)&RIGHT('Arş.Gör. Sonuç'!B75,2)) ->  | C75: =IF('Arş.Gör. Sonuç'!C75="","",IF(ISERR(FIND(" ",'Arş.Gör. Sonuç'!C75))=TRUE,LEFT('Arş.Gör. Sonuç'!C75,2)&REPT("*",3),LEFT('Arş.Gör. Sonuç'!C75,2)&REPT("*",3)&" "&MID('Arş.Gör. Sonuç'!C75,FIND(" ",'Arş.Gör. Sonuç'!C75)+1,2)&REPT("*",3))) ->  | D75: =IF('Arş.Gör. Sonuç'!D75="","",IF(ISERR(FIND(" ",'Arş.Gör. Sonuç'!D75))=TRUE,LEFT('Arş.Gör. Sonuç'!D75,2)&REPT("*",3),LEFT('Arş.Gör. Sonuç'!D75,2)&REPT("*",3)&" "&MID('Arş.Gör. Sonuç'!D75,FIND(" ",'Arş.Gör. Sonuç'!D75)+1,2)&REPT("*",3))) ->  | E75: =IF('Arş.Gör. Sonuç'!E75="","",'Arş.Gör. Sonuç'!E75) ->  | F75: =IF('Arş.Gör. Sonuç'!F75="","",'Arş.Gör. Sonuç'!F75) ->  | G75: =IF('Arş.Gör. Sonuç'!G75="","",'Arş.Gör. Sonuç'!G75) ->  | H75: =IF('Arş.Gör. Sonuç'!H75="","",'Arş.Gör. Sonuç'!H75) ->  | I75: =IF('Arş.Gör. Sonuç'!I75="","",'Arş.Gör. Sonuç'!I75) ->  | J75: =IF('Arş.Gör. Sonuç'!J75="","",'Arş.Gör. Sonuç'!J75) ->  | K75: =IF('Arş.Gör. Sonuç'!K75="","",'Arş.Gör. Sonuç'!K75) ->  | L75: =IF('Arş.Gör. Sonuç'!L75="","",'Arş.Gör. Sonuç'!L75) ->  | M75: =IF('Arş.Gör. Sonuç'!M75="","",'Arş.Gör. Sonuç'!M75) ->  | N75: =IF('Arş.Gör. Sonuç'!N75="","",'Arş.Gör. Sonuç'!N75) -> 
A76: =IF('Arş.Gör. Sonuç'!A76="","",'Arş.Gör. Sonuç'!A76) ->  | B76: =IF('Arş.Gör. Sonuç'!B76="","",LEFT('Arş.Gör. Sonuç'!B76,3)&REPT("*",4)&RIGHT('Arş.Gör. Sonuç'!B76,2)) ->  | C76: =IF('Arş.Gör. Sonuç'!C76="","",IF(ISERR(FIND(" ",'Arş.Gör. Sonuç'!C76))=TRUE,LEFT('Arş.Gör. Sonuç'!C76,2)&REPT("*",3),LEFT('Arş.Gör. Sonuç'!C76,2)&REPT("*",3)&" "&MID('Arş.Gör. Sonuç'!C76,FIND(" ",'Arş.Gör. Sonuç'!C76)+1,2)&REPT("*",3))) ->  | D76: =IF('Arş.Gör. Sonuç'!D76="","",IF(ISERR(FIND(" ",'Arş.Gör. Sonuç'!D76))=TRUE,LEFT('Arş.Gör. Sonuç'!D76,2)&REPT("*",3),LEFT('Arş.Gör. Sonuç'!D76,2)&REPT("*",3)&" "&MID('Arş.Gör. Sonuç'!D76,FIND(" ",'Arş.Gör. Sonuç'!D76)+1,2)&REPT("*",3))) ->  | E76: =IF('Arş.Gör. Sonuç'!E76="","",'Arş.Gör. Sonuç'!E76) ->  | F76: =IF('Arş.Gör. Sonuç'!F76="","",'Arş.Gör. Sonuç'!F76) ->  | G76: =IF('Arş.Gör. Sonuç'!G76="","",'Arş.Gör. Sonuç'!G76) ->  | H76: =IF('Arş.Gör. Sonuç'!H76="","",'Arş.Gör. Sonuç'!H76) ->  | I76: =IF('Arş.Gör. Sonuç'!I76="","",'Arş.Gör. Sonuç'!I76) ->  | J76: =IF('Arş.Gör. Sonuç'!J76="","",'Arş.Gör. Sonuç'!J76) ->  | K76: =IF('Arş.Gör. Sonuç'!K76="","",'Arş.Gör. Sonuç'!K76) ->  | L76: =IF('Arş.Gör. Sonuç'!L76="","",'Arş.Gör. Sonuç'!L76) ->  | M76: =IF('Arş.Gör. Sonuç'!M76="","",'Arş.Gör. Sonuç'!M76) ->  | N76: =IF('Arş.Gör. Sonuç'!N76="","",'Arş.Gör. Sonuç'!N76) -> 
A77: =IF('Arş.Gör. Sonuç'!A77="","",'Arş.Gör. Sonuç'!A77) ->  | B77: =IF('Arş.Gör. Sonuç'!B77="","",LEFT('Arş.Gör. Sonuç'!B77,3)&REPT("*",4)&RIGHT('Arş.Gör. Sonuç'!B77,2)) ->  | C77: =IF('Arş.Gör. Sonuç'!C77="","",IF(ISERR(FIND(" ",'Arş.Gör. Sonuç'!C77))=TRUE,LEFT('Arş.Gör. Sonuç'!C77,2)&REPT("*",3),LEFT('Arş.Gör. Sonuç'!C77,2)&REPT("*",3)&" "&MID('Arş.Gör. Sonuç'!C77,FIND(" ",'Arş.Gör. Sonuç'!C77)+1,2)&REPT("*",3))) ->  | D77: =IF('Arş.Gör. Sonuç'!D77="","",IF(ISERR(FIND(" ",'Arş.Gör. Sonuç'!D77))=TRUE,LEFT('Arş.Gör. Sonuç'!D77,2)&REPT("*",3),LEFT('Arş.Gör. Sonuç'!D77,2)&REPT("*",3)&" "&MID('Arş.Gör. Sonuç'!D77,FIND(" ",'Arş.Gör. Sonuç'!D77)+1,2)&REPT("*",3))) ->  | E77: =IF('Arş.Gör. Sonuç'!E77="","",'Arş.Gör. Sonuç'!E77) ->  | F77: =IF('Arş.Gör. Sonuç'!F77="","",'Arş.Gör. Sonuç'!F77) ->  | G77: =IF('Arş.Gör. Sonuç'!G77="","",'Arş.Gör. Sonuç'!G77) ->  | H77: =IF('Arş.Gör. Sonuç'!H77="","",'Arş.Gör. Sonuç'!H77) ->  | I77: =IF('Arş.Gör. Sonuç'!I77="","",'Arş.Gör. Sonuç'!I77) ->  | J77: =IF('Arş.Gör. Sonuç'!J77="","",'Arş.Gör. Sonuç'!J77) ->  | K77: =IF('Arş.Gör. Sonuç'!K77="","",'Arş.Gör. Sonuç'!K77) ->  | L77: =IF('Arş.Gör. Sonuç'!L77="","",'Arş.Gör. Sonuç'!L77) ->  | M77: =IF('Arş.Gör. Sonuç'!M77="","",'Arş.Gör. Sonuç'!M77) ->  | N77: =IF('Arş.Gör. Sonuç'!N77="","",'Arş.Gör. Sonuç'!N77) -> 
A78: =IF('Arş.Gör. Sonuç'!A78="","",'Arş.Gör. Sonuç'!A78) ->  | B78: =IF('Arş.Gör. Sonuç'!B78="","",LEFT('Arş.Gör. Sonuç'!B78,3)&REPT("*",4)&RIGHT('Arş.Gör. Sonuç'!B78,2)) ->  | C78: =IF('Arş.Gör. Sonuç'!C78="","",IF(ISERR(FIND(" ",'Arş.Gör. Sonuç'!C78))=TRUE,LEFT('Arş.Gör. Sonuç'!C78,2)&REPT("*",3),LEFT('Arş.Gör. Sonuç'!C78,2)&REPT("*",3)&" "&MID('Arş.Gör. Sonuç'!C78,FIND(" ",'Arş.Gör. Sonuç'!C78)+1,2)&REPT("*",3))) ->  | D78: =IF('Arş.Gör. Sonuç'!D78="","",IF(ISERR(FIND(" ",'Arş.Gör. Sonuç'!D78))=TRUE,LEFT('Arş.Gör. Sonuç'!D78,2)&REPT("*",3),LEFT('Arş.Gör. Sonuç'!D78,2)&REPT("*",3)&" "&MID('Arş.Gör. Sonuç'!D78,FIND(" ",'Arş.Gör. Sonuç'!D78)+1,2)&REPT("*",3))) ->  | E78: =IF('Arş.Gör. Sonuç'!E78="","",'Arş.Gör. Sonuç'!E78) ->  | F78: =IF('Arş.Gör. Sonuç'!F78="","",'Arş.Gör. Sonuç'!F78) ->  | G78: =IF('Arş.Gör. Sonuç'!G78="","",'Arş.Gör. Sonuç'!G78) ->  | H78: =IF('Arş.Gör. Sonuç'!H78="","",'Arş.Gör. Sonuç'!H78) ->  | I78: =IF('Arş.Gör. Sonuç'!I78="","",'Arş.Gör. Sonuç'!I78) ->  | J78: =IF('Arş.Gör. Sonuç'!J78="","",'Arş.Gör. Sonuç'!J78) ->  | K78: =IF('Arş.Gör. Sonuç'!K78="","",'Arş.Gör. Sonuç'!K78) ->  | L78: =IF('Arş.Gör. Sonuç'!L78="","",'Arş.Gör. Sonuç'!L78) ->  | M78: =IF('Arş.Gör. Sonuç'!M78="","",'Arş.Gör. Sonuç'!M78) ->  | N78: =IF('Arş.Gör. Sonuç'!N78="","",'Arş.Gör. Sonuç'!N78) -> 
A79: =IF('Arş.Gör. Sonuç'!A79="","",'Arş.Gör. Sonuç'!A79) ->  | B79: =IF('Arş.Gör. Sonuç'!B79="","",LEFT('Arş.Gör. Sonuç'!B79,3)&REPT("*",4)&RIGHT('Arş.Gör. Sonuç'!B79,2)) ->  | C79: =IF('Arş.Gör. Sonuç'!C79="","",IF(ISERR(FIND(" ",'Arş.Gör. Sonuç'!C79))=TRUE,LEFT('Arş.Gör. Sonuç'!C79,2)&REPT("*",3),LEFT('Arş.Gör. Sonuç'!C79,2)&REPT("*",3)&" "&MID('Arş.Gör. Sonuç'!C79,FIND(" ",'Arş.Gör. Sonuç'!C79)+1,2)&REPT("*",3))) ->  | D79: =IF('Arş.Gör. Sonuç'!D79="","",IF(ISERR(FIND(" ",'Arş.Gör. Sonuç'!D79))=TRUE,LEFT('Arş.Gör. Sonuç'!D79,2)&REPT("*",3),LEFT('Arş.Gör. Sonuç'!D79,2)&REPT("*",3)&" "&MID('Arş.Gör. Sonuç'!D79,FIND(" ",'Arş.Gör. Sonuç'!D79)+1,2)&REPT("*",3))) ->  | E79: =IF('Arş.Gör. Sonuç'!E79="","",'Arş.Gör. Sonuç'!E79) ->  | F79: =IF('Arş.Gör. Sonuç'!F79="","",'Arş.Gör. Sonuç'!F79) ->  | G79: =IF('Arş.Gör. Sonuç'!G79="","",'Arş.Gör. Sonuç'!G79) ->  | H79: =IF('Arş.Gör. Sonuç'!H79="","",'Arş.Gör. Sonuç'!H79) ->  | I79: =IF('Arş.Gör. Sonuç'!I79="","",'Arş.Gör. Sonuç'!I79) ->  | J79: =IF('Arş.Gör. Sonuç'!J79="","",'Arş.Gör. Sonuç'!J79) ->  | K79: =IF('Arş.Gör. Sonuç'!K79="","",'Arş.Gör. Sonuç'!K79) ->  | L79: =IF('Arş.Gör. Sonuç'!L79="","",'Arş.Gör. Sonuç'!L79) ->  | M79: =IF('Arş.Gör. Sonuç'!M79="","",'Arş.Gör. Sonuç'!M79) ->  | N79: =IF('Arş.Gör. Sonuç'!N79="","",'Arş.Gör. Sonuç'!N79) -> 
A80: =IF('Arş.Gör. Sonuç'!A80="","",'Arş.Gör. Sonuç'!A80) ->  | B80: =IF('Arş.Gör. Sonuç'!B80="","",LEFT('Arş.Gör. Sonuç'!B80,3)&REPT("*",4)&RIGHT('Arş.Gör. Sonuç'!B80,2)) ->  | C80: =IF('Arş.Gör. Sonuç'!C80="","",IF(ISERR(FIND(" ",'Arş.Gör. Sonuç'!C80))=TRUE,LEFT('Arş.Gör. Sonuç'!C80,2)&REPT("*",3),LEFT('Arş.Gör. Sonuç'!C80,2)&REPT("*",3)&" "&MID('Arş.Gör. Sonuç'!C80,FIND(" ",'Arş.Gör. Sonuç'!C80)+1,2)&REPT("*",3))) ->  | D80: =IF('Arş.Gör. Sonuç'!D80="","",IF(ISERR(FIND(" ",'Arş.Gör. Sonuç'!D80))=TRUE,LEFT('Arş.Gör. Sonuç'!D80,2)&REPT("*",3),LEFT('Arş.Gör. Sonuç'!D80,2)&REPT("*",3)&" "&MID('Arş.Gör. Sonuç'!D80,FIND(" ",'Arş.Gör. Sonuç'!D80)+1,2)&REPT("*",3))) ->  | E80: =IF('Arş.Gör. Sonuç'!E80="","",'Arş.Gör. Sonuç'!E80) ->  | F80: =IF('Arş.Gör. Sonuç'!F80="","",'Arş.Gör. Sonuç'!F80) ->  | G80: =IF('Arş.Gör. Sonuç'!G80="","",'Arş.Gör. Sonuç'!G80) ->  | H80: =IF('Arş.Gör. Sonuç'!H80="","",'Arş.Gör. Sonuç'!H80) ->  | I80: =IF('Arş.Gör. Sonuç'!I80="","",'Arş.Gör. Sonuç'!I80) ->  | J80: =IF('Arş.Gör. Sonuç'!J80="","",'Arş.Gör. Sonuç'!J80) ->  | K80: =IF('Arş.Gör. Sonuç'!K80="","",'Arş.Gör. Sonuç'!K80) ->  | L80: =IF('Arş.Gör. Sonuç'!L80="","",'Arş.Gör. Sonuç'!L80) ->  | M80: =IF('Arş.Gör. Sonuç'!M80="","",'Arş.Gör. Sonuç'!M80) ->  | N80: =IF('Arş.Gör. Sonuç'!N80="","",'Arş.Gör. Sonuç'!N80) -> 
A81: =IF('Arş.Gör. Sonuç'!A81="","",'Arş.Gör. Sonuç'!A81) ->  | B81: =IF('Arş.Gör. Sonuç'!B81="","",LEFT('Arş.Gör. Sonuç'!B81,3)&REPT("*",4)&RIGHT('Arş.Gör. Sonuç'!B81,2)) ->  | C81: =IF('Arş.Gör. Sonuç'!C81="","",IF(ISERR(FIND(" ",'Arş.Gör. Sonuç'!C81))=TRUE,LEFT('Arş.Gör. Sonuç'!C81,2)&REPT("*",3),LEFT('Arş.Gör. Sonuç'!C81,2)&REPT("*",3)&" "&MID('Arş.Gör. Sonuç'!C81,FIND(" ",'Arş.Gör. Sonuç'!C81)+1,2)&REPT("*",3))) ->  | D81: =IF('Arş.Gör. Sonuç'!D81="","",IF(ISERR(FIND(" ",'Arş.Gör. Sonuç'!D81))=TRUE,LEFT('Arş.Gör. Sonuç'!D81,2)&REPT("*",3),LEFT('Arş.Gör. Sonuç'!D81,2)&REPT("*",3)&" "&MID('Arş.Gör. Sonuç'!D81,FIND(" ",'Arş.Gör. Sonuç'!D81)+1,2)&REPT("*",3))) ->  | E81: =IF('Arş.Gör. Sonuç'!E81="","",'Arş.Gör. Sonuç'!E81) ->  | F81: =IF('Arş.Gör. Sonuç'!F81="","",'Arş.Gör. Sonuç'!F81) ->  | G81: =IF('Arş.Gör. Sonuç'!G81="","",'Arş.Gör. Sonuç'!G81) ->  | H81: =IF('Arş.Gör. Sonuç'!H81="","",'Arş.Gör. Sonuç'!H81) ->  | I81: =IF('Arş.Gör. Sonuç'!I81="","",'Arş.Gör. Sonuç'!I81) ->  | J81: =IF('Arş.Gör. Sonuç'!J81="","",'Arş.Gör. Sonuç'!J81) ->  | K81: =IF('Arş.Gör. Sonuç'!K81="","",'Arş.Gör. Sonuç'!K81) ->  | L81: =IF('Arş.Gör. Sonuç'!L81="","",'Arş.Gör. Sonuç'!L81) ->  | M81: =IF('Arş.Gör. Sonuç'!M81="","",'Arş.Gör. Sonuç'!M81) ->  | N81: =IF('Arş.Gör. Sonuç'!N81="","",'Arş.Gör. Sonuç'!N81) -> 
A82: =IF('Arş.Gör. Sonuç'!A82="","",'Arş.Gör. Sonuç'!A82) ->  | B82: =IF('Arş.Gör. Sonuç'!B82="","",LEFT('Arş.Gör. Sonuç'!B82,3)&REPT("*",4)&RIGHT('Arş.Gör. Sonuç'!B82,2)) ->  | C82: =IF('Arş.Gör. Sonuç'!C82="","",IF(ISERR(FIND(" ",'Arş.Gör. Sonuç'!C82))=TRUE,LEFT('Arş.Gör. Sonuç'!C82,2)&REPT("*",3),LEFT('Arş.Gör. Sonuç'!C82,2)&REPT("*",3)&" "&MID('Arş.Gör. Sonuç'!C82,FIND(" ",'Arş.Gör. Sonuç'!C82)+1,2)&REPT("*",3))) ->  | D82: =IF('Arş.Gör. Sonuç'!D82="","",IF(ISERR(FIND(" ",'Arş.Gör. Sonuç'!D82))=TRUE,LEFT('Arş.Gör. Sonuç'!D82,2)&REPT("*",3),LEFT('Arş.Gör. Sonuç'!D82,2)&REPT("*",3)&" "&MID('Arş.Gör. Sonuç'!D82,FIND(" ",'Arş.Gör. Sonuç'!D82)+1,2)&REPT("*",3))) ->  | E82: =IF('Arş.Gör. Sonuç'!E82="","",'Arş.Gör. Sonuç'!E82) ->  | F82: =IF('Arş.Gör. Sonuç'!F82="","",'Arş.Gör. Sonuç'!F82) ->  | G82: =IF('Arş.Gör. Sonuç'!G82="","",'Arş.Gör. Sonuç'!G82) ->  | H82: =IF('Arş.Gör. Sonuç'!H82="","",'Arş.Gör. Sonuç'!H82) ->  | I82: =IF('Arş.Gör. Sonuç'!I82="","",'Arş.Gör. Sonuç'!I82) ->  | J82: =IF('Arş.Gör. Sonuç'!J82="","",'Arş.Gör. Sonuç'!J82) ->  | K82: =IF('Arş.Gör. Sonuç'!K82="","",'Arş.Gör. Sonuç'!K82) ->  | L82: =IF('Arş.Gör. Sonuç'!L82="","",'Arş.Gör. Sonuç'!L82) ->  | M82: =IF('Arş.Gör. Sonuç'!M82="","",'Arş.Gör. Sonuç'!M82) ->  | N82: =IF('Arş.Gör. Sonuç'!N82="","",'Arş.Gör. Sonuç'!N82) -> 
A83: =IF('Arş.Gör. Sonuç'!A83="","",'Arş.Gör. Sonuç'!A83) ->  | B83: =IF('Arş.Gör. Sonuç'!B83="","",LEFT('Arş.Gör. Sonuç'!B83,3)&REPT("*",4)&RIGHT('Arş.Gör. Sonuç'!B83,2)) ->  | C83: =IF('Arş.Gör. Sonuç'!C83="","",IF(ISERR(FIND(" ",'Arş.Gör. Sonuç'!C83))=TRUE,LEFT('Arş.Gör. Sonuç'!C83,2)&REPT("*",3),LEFT('Arş.Gör. Sonuç'!C83,2)&REPT("*",3)&" "&MID('Arş.Gör. Sonuç'!C83,FIND(" ",'Arş.Gör. Sonuç'!C83)+1,2)&REPT("*",3))) ->  | D83: =IF('Arş.Gör. Sonuç'!D83="","",IF(ISERR(FIND(" ",'Arş.Gör. Sonuç'!D83))=TRUE,LEFT('Arş.Gör. Sonuç'!D83,2)&REPT("*",3),LEFT('Arş.Gör. Sonuç'!D83,2)&REPT("*",3)&" "&MID('Arş.Gör. Sonuç'!D83,FIND(" ",'Arş.Gör. Sonuç'!D83)+1,2)&REPT("*",3))) ->  | E83: =IF('Arş.Gör. Sonuç'!E83="","",'Arş.Gör. Sonuç'!E83) ->  | F83: =IF('Arş.Gör. Sonuç'!F83="","",'Arş.Gör. Sonuç'!F83) ->  | G83: =IF('Arş.Gör. Sonuç'!G83="","",'Arş.Gör. Sonuç'!G83) ->  | H83: =IF('Arş.Gör. Sonuç'!H83="","",'Arş.Gör. Sonuç'!H83) ->  | I83: =IF('Arş.Gör. Sonuç'!I83="","",'Arş.Gör. Sonuç'!I83) ->  | J83: =IF('Arş.Gör. Sonuç'!J83="","",'Arş.Gör. Sonuç'!J83) ->  | K83: =IF('Arş.Gör. Sonuç'!K83="","",'Arş.Gör. Sonuç'!K83) ->  | L83: =IF('Arş.Gör. Sonuç'!L83="","",'Arş.Gör. Sonuç'!L83) ->  | M83: =IF('Arş.Gör. Sonuç'!M83="","",'Arş.Gör. Sonuç'!M83) ->  | N83: =IF('Arş.Gör. Sonuç'!N83="","",'Arş.Gör. Sonuç'!N83) -> 
A84: =IF('Arş.Gör. Sonuç'!A84="","",'Arş.Gör. Sonuç'!A84) ->  | B84: =IF('Arş.Gör. Sonuç'!B84="","",LEFT('Arş.Gör. Sonuç'!B84,3)&REPT("*",4)&RIGHT('Arş.Gör. Sonuç'!B84,2)) ->  | C84: =IF('Arş.Gör. Sonuç'!C84="","",IF(ISERR(FIND(" ",'Arş.Gör. Sonuç'!C84))=TRUE,LEFT('Arş.Gör. Sonuç'!C84,2)&REPT("*",3),LEFT('Arş.Gör. Sonuç'!C84,2)&REPT("*",3)&" "&MID('Arş.Gör. Sonuç'!C84,FIND(" ",'Arş.Gör. Sonuç'!C84)+1,2)&REPT("*",3))) ->  | D84: =IF('Arş.Gör. Sonuç'!D84="","",IF(ISERR(FIND(" ",'Arş.Gör. Sonuç'!D84))=TRUE,LEFT('Arş.Gör. Sonuç'!D84,2)&REPT("*",3),LEFT('Arş.Gör. Sonuç'!D84,2)&REPT("*",3)&" "&MID('Arş.Gör. Sonuç'!D84,FIND(" ",'Arş.Gör. Sonuç'!D84)+1,2)&REPT("*",3))) ->  | E84: =IF('Arş.Gör. Sonuç'!E84="","",'Arş.Gör. Sonuç'!E84) ->  | F84: =IF('Arş.Gör. Sonuç'!F84="","",'Arş.Gör. Sonuç'!F84) ->  | G84: =IF('Arş.Gör. Sonuç'!G84="","",'Arş.Gör. Sonuç'!G84) ->  | H84: =IF('Arş.Gör. Sonuç'!H84="","",'Arş.Gör. Sonuç'!H84) ->  | I84: =IF('Arş.Gör. Sonuç'!I84="","",'Arş.Gör. Sonuç'!I84) ->  | J84: =IF('Arş.Gör. Sonuç'!J84="","",'Arş.Gör. Sonuç'!J84) ->  | K84: =IF('Arş.Gör. Sonuç'!K84="","",'Arş.Gör. Sonuç'!K84) ->  | L84: =IF('Arş.Gör. Sonuç'!L84="","",'Arş.Gör. Sonuç'!L84) ->  | M84: =IF('Arş.Gör. Sonuç'!M84="","",'Arş.Gör. Sonuç'!M84) ->  | N84: =IF('Arş.Gör. Sonuç'!N84="","",'Arş.Gör. Sonuç'!N84) -> 
A85: =IF('Arş.Gör. Sonuç'!A85="","",'Arş.Gör. Sonuç'!A85) ->  | B85: =IF('Arş.Gör. Sonuç'!B85="","",LEFT('Arş.Gör. Sonuç'!B85,3)&REPT("*",4)&RIGHT('Arş.Gör. Sonuç'!B85,2)) ->  | C85: =IF('Arş.Gör. Sonuç'!C85="","",IF(ISERR(FIND(" ",'Arş.Gör. Sonuç'!C85))=TRUE,LEFT('Arş.Gör. Sonuç'!C85,2)&REPT("*",3),LEFT('Arş.Gör. Sonuç'!C85,2)&REPT("*",3)&" "&MID('Arş.Gör. Sonuç'!C85,FIND(" ",'Arş.Gör. Sonuç'!C85)+1,2)&REPT("*",3))) ->  | D85: =IF('Arş.Gör. Sonuç'!D85="","",IF(ISERR(FIND(" ",'Arş.Gör. Sonuç'!D85))=TRUE,LEFT('Arş.Gör. Sonuç'!D85,2)&REPT("*",3),LEFT('Arş.Gör. Sonuç'!D85,2)&REPT("*",3)&" "&MID('Arş.Gör. Sonuç'!D85,FIND(" ",'Arş.Gör. Sonuç'!D85)+1,2)&REPT("*",3))) ->  | E85: =IF('Arş.Gör. Sonuç'!E85="","",'Arş.Gör. Sonuç'!E85) ->  | F85: =IF('Arş.Gör. Sonuç'!F85="","",'Arş.Gör. Sonuç'!F85) ->  | G85: =IF('Arş.Gör. Sonuç'!G85="","",'Arş.Gör. Sonuç'!G85) ->  | H85: =IF('Arş.Gör. Sonuç'!H85="","",'Arş.Gör. Sonuç'!H85) ->  | I85: =IF('Arş.Gör. Sonuç'!I85="","",'Arş.Gör. Sonuç'!I85) ->  | J85: =IF('Arş.Gör. Sonuç'!J85="","",'Arş.Gör. Sonuç'!J85) ->  | K85: =IF('Arş.Gör. Sonuç'!K85="","",'Arş.Gör. Sonuç'!K85) ->  | L85: =IF('Arş.Gör. Sonuç'!L85="","",'Arş.Gör. Sonuç'!L85) ->  | M85: =IF('Arş.Gör. Sonuç'!M85="","",'Arş.Gör. Sonuç'!M85) ->  | N85: =IF('Arş.Gör. Sonuç'!N85="","",'Arş.Gör. Sonuç'!N85) -> 
A86: =IF('Arş.Gör. Sonuç'!A86="","",'Arş.Gör. Sonuç'!A86) ->  | B86: =IF('Arş.Gör. Sonuç'!B86="","",LEFT('Arş.Gör. Sonuç'!B86,3)&REPT("*",4)&RIGHT('Arş.Gör. Sonuç'!B86,2)) ->  | C86: =IF('Arş.Gör. Sonuç'!C86="","",IF(ISERR(FIND(" ",'Arş.Gör. Sonuç'!C86))=TRUE,LEFT('Arş.Gör. Sonuç'!C86,2)&REPT("*",3),LEFT('Arş.Gör. Sonuç'!C86,2)&REPT("*",3)&" "&MID('Arş.Gör. Sonuç'!C86,FIND(" ",'Arş.Gör. Sonuç'!C86)+1,2)&REPT("*",3))) ->  | D86: =IF('Arş.Gör. Sonuç'!D86="","",IF(ISERR(FIND(" ",'Arş.Gör. Sonuç'!D86))=TRUE,LEFT('Arş.Gör. Sonuç'!D86,2)&REPT("*",3),LEFT('Arş.Gör. Sonuç'!D86,2)&REPT("*",3)&" "&MID('Arş.Gör. Sonuç'!D86,FIND(" ",'Arş.Gör. Sonuç'!D86)+1,2)&REPT("*",3))) ->  | E86: =IF('Arş.Gör. Sonuç'!E86="","",'Arş.Gör. Sonuç'!E86) ->  | F86: =IF('Arş.Gör. Sonuç'!F86="","",'Arş.Gör. Sonuç'!F86) ->  | G86: =IF('Arş.Gör. Sonuç'!G86="","",'Arş.Gör. Sonuç'!G86) ->  | H86: =IF('Arş.Gör. Sonuç'!H86="","",'Arş.Gör. Sonuç'!H86) ->  | I86: =IF('Arş.Gör. Sonuç'!I86="","",'Arş.Gör. Sonuç'!I86) ->  | J86: =IF('Arş.Gör. Sonuç'!J86="","",'Arş.Gör. Sonuç'!J86) ->  | K86: =IF('Arş.Gör. Sonuç'!K86="","",'Arş.Gör. Sonuç'!K86) ->  | L86: =IF('Arş.Gör. Sonuç'!L86="","",'Arş.Gör. Sonuç'!L86) ->  | M86: =IF('Arş.Gör. Sonuç'!M86="","",'Arş.Gör. Sonuç'!M86) ->  | N86: =IF('Arş.Gör. Sonuç'!N86="","",'Arş.Gör. Sonuç'!N86) -> 
A87: =IF('Arş.Gör. Sonuç'!A87="","",'Arş.Gör. Sonuç'!A87) ->  | B87: =IF('Arş.Gör. Sonuç'!B87="","",LEFT('Arş.Gör. Sonuç'!B87,3)&REPT("*",4)&RIGHT('Arş.Gör. Sonuç'!B87,2)) ->  | C87: =IF('Arş.Gör. Sonuç'!C87="","",IF(ISERR(FIND(" ",'Arş.Gör. Sonuç'!C87))=TRUE,LEFT('Arş.Gör. Sonuç'!C87,2)&REPT("*",3),LEFT('Arş.Gör. Sonuç'!C87,2)&REPT("*",3)&" "&MID('Arş.Gör. Sonuç'!C87,FIND(" ",'Arş.Gör. Sonuç'!C87)+1,2)&REPT("*",3))) ->  | D87: =IF('Arş.Gör. Sonuç'!D87="","",IF(ISERR(FIND(" ",'Arş.Gör. Sonuç'!D87))=TRUE,LEFT('Arş.Gör. Sonuç'!D87,2)&REPT("*",3),LEFT('Arş.Gör. Sonuç'!D87,2)&REPT("*",3)&" "&MID('Arş.Gör. Sonuç'!D87,FIND(" ",'Arş.Gör. Sonuç'!D87)+1,2)&REPT("*",3))) ->  | E87: =IF('Arş.Gör. Sonuç'!E87="","",'Arş.Gör. Sonuç'!E87) ->  | F87: =IF('Arş.Gör. Sonuç'!F87="","",'Arş.Gör. Sonuç'!F87) ->  | G87: =IF('Arş.Gör. Sonuç'!G87="","",'Arş.Gör. Sonuç'!G87) ->  | H87: =IF('Arş.Gör. Sonuç'!H87="","",'Arş.Gör. Sonuç'!H87) ->  | I87: =IF('Arş.Gör. Sonuç'!I87="","",'Arş.Gör. Sonuç'!I87) ->  | J87: =IF('Arş.Gör. Sonuç'!J87="","",'Arş.Gör. Sonuç'!J87) ->  | K87: =IF('Arş.Gör. Sonuç'!K87="","",'Arş.Gör. Sonuç'!K87) ->  | L87: =IF('Arş.Gör. Sonuç'!L87="","",'Arş.Gör. Sonuç'!L87) ->  | M87: =IF('Arş.Gör. Sonuç'!M87="","",'Arş.Gör. Sonuç'!M87) ->  | N87: =IF('Arş.Gör. Sonuç'!N87="","",'Arş.Gör. Sonuç'!N87) -> 
A88: =IF('Arş.Gör. Sonuç'!A88="","",'Arş.Gör. Sonuç'!A88) ->  | B88: =IF('Arş.Gör. Sonuç'!B88="","",LEFT('Arş.Gör. Sonuç'!B88,3)&REPT("*",4)&RIGHT('Arş.Gör. Sonuç'!B88,2)) ->  | C88: =IF('Arş.Gör. Sonuç'!C88="","",IF(ISERR(FIND(" ",'Arş.Gör. Sonuç'!C88))=TRUE,LEFT('Arş.Gör. Sonuç'!C88,2)&REPT("*",3),LEFT('Arş.Gör. Sonuç'!C88,2)&REPT("*",3)&" "&MID('Arş.Gör. Sonuç'!C88,FIND(" ",'Arş.Gör. Sonuç'!C88)+1,2)&REPT("*",3))) ->  | D88: =IF('Arş.Gör. Sonuç'!D88="","",IF(ISERR(FIND(" ",'Arş.Gör. Sonuç'!D88))=TRUE,LEFT('Arş.Gör. Sonuç'!D88,2)&REPT("*",3),LEFT('Arş.Gör. Sonuç'!D88,2)&REPT("*",3)&" "&MID('Arş.Gör. Sonuç'!D88,FIND(" ",'Arş.Gör. Sonuç'!D88)+1,2)&REPT("*",3))) ->  | E88: =IF('Arş.Gör. Sonuç'!E88="","",'Arş.Gör. Sonuç'!E88) ->  | F88: =IF('Arş.Gör. Sonuç'!F88="","",'Arş.Gör. Sonuç'!F88) ->  | G88: =IF('Arş.Gör. Sonuç'!G88="","",'Arş.Gör. Sonuç'!G88) ->  | H88: =IF('Arş.Gör. Sonuç'!H88="","",'Arş.Gör. Sonuç'!H88) ->  | I88: =IF('Arş.Gör. Sonuç'!I88="","",'Arş.Gör. Sonuç'!I88) ->  | J88: =IF('Arş.Gör. Sonuç'!J88="","",'Arş.Gör. Sonuç'!J88) ->  | K88: =IF('Arş.Gör. Sonuç'!K88="","",'Arş.Gör. Sonuç'!K88) ->  | L88: =IF('Arş.Gör. Sonuç'!L88="","",'Arş.Gör. Sonuç'!L88) ->  | M88: =IF('Arş.Gör. Sonuç'!M88="","",'Arş.Gör. Sonuç'!M88) ->  | N88: =IF('Arş.Gör. Sonuç'!N88="","",'Arş.Gör. Sonuç'!N88) -> 
A89: =IF('Arş.Gör. Sonuç'!A89="","",'Arş.Gör. Sonuç'!A89) ->  | B89: =IF('Arş.Gör. Sonuç'!B89="","",LEFT('Arş.Gör. Sonuç'!B89,3)&REPT("*",4)&RIGHT('Arş.Gör. Sonuç'!B89,2)) ->  | C89: =IF('Arş.Gör. Sonuç'!C89="","",IF(ISERR(FIND(" ",'Arş.Gör. Sonuç'!C89))=TRUE,LEFT('Arş.Gör. Sonuç'!C89,2)&REPT("*",3),LEFT('Arş.Gör. Sonuç'!C89,2)&REPT("*",3)&" "&MID('Arş.Gör. Sonuç'!C89,FIND(" ",'Arş.Gör. Sonuç'!C89)+1,2)&REPT("*",3))) ->  | D89: =IF('Arş.Gör. Sonuç'!D89="","",IF(ISERR(FIND(" ",'Arş.Gör. Sonuç'!D89))=TRUE,LEFT('Arş.Gör. Sonuç'!D89,2)&REPT("*",3),LEFT('Arş.Gör. Sonuç'!D89,2)&REPT("*",3)&" "&MID('Arş.Gör. Sonuç'!D89,FIND(" ",'Arş.Gör. Sonuç'!D89)+1,2)&REPT("*",3))) ->  | E89: =IF('Arş.Gör. Sonuç'!E89="","",'Arş.Gör. Sonuç'!E89) ->  | F89: =IF('Arş.Gör. Sonuç'!F89="","",'Arş.Gör. Sonuç'!F89) ->  | G89: =IF('Arş.Gör. Sonuç'!G89="","",'Arş.Gör. Sonuç'!G89) ->  | H89: =IF('Arş.Gör. Sonuç'!H89="","",'Arş.Gör. Sonuç'!H89) ->  | I89: =IF('Arş.Gör. Sonuç'!I89="","",'Arş.Gör. Sonuç'!I89) ->  | J89: =IF('Arş.Gör. Sonuç'!J89="","",'Arş.Gör. Sonuç'!J89) ->  | K89: =IF('Arş.Gör. Sonuç'!K89="","",'Arş.Gör. Sonuç'!K89) ->  | L89: =IF('Arş.Gör. Sonuç'!L89="","",'Arş.Gör. Sonuç'!L89) ->  | M89: =IF('Arş.Gör. Sonuç'!M89="","",'Arş.Gör. Sonuç'!M89) ->  | N89: =IF('Arş.Gör. Sonuç'!N89="","",'Arş.Gör. Sonuç'!N89) -> 
A90: =IF('Arş.Gör. Sonuç'!A90="","",'Arş.Gör. Sonuç'!A90) ->  | B90: =IF('Arş.Gör. Sonuç'!B90="","",LEFT('Arş.Gör. Sonuç'!B90,3)&REPT("*",4)&RIGHT('Arş.Gör. Sonuç'!B90,2)) ->  | C90: =IF('Arş.Gör. Sonuç'!C90="","",IF(ISERR(FIND(" ",'Arş.Gör. Sonuç'!C90))=TRUE,LEFT('Arş.Gör. Sonuç'!C90,2)&REPT("*",3),LEFT('Arş.Gör. Sonuç'!C90,2)&REPT("*",3)&" "&MID('Arş.Gör. Sonuç'!C90,FIND(" ",'Arş.Gör. Sonuç'!C90)+1,2)&REPT("*",3))) ->  | D90: =IF('Arş.Gör. Sonuç'!D90="","",IF(ISERR(FIND(" ",'Arş.Gör. Sonuç'!D90))=TRUE,LEFT('Arş.Gör. Sonuç'!D90,2)&REPT("*",3),LEFT('Arş.Gör. Sonuç'!D90,2)&REPT("*",3)&" "&MID('Arş.Gör. Sonuç'!D90,FIND(" ",'Arş.Gör. Sonuç'!D90)+1,2)&REPT("*",3))) ->  | E90: =IF('Arş.Gör. Sonuç'!E90="","",'Arş.Gör. Sonuç'!E90) ->  | F90: =IF('Arş.Gör. Sonuç'!F90="","",'Arş.Gör. Sonuç'!F90) ->  | G90: =IF('Arş.Gör. Sonuç'!G90="","",'Arş.Gör. Sonuç'!G90) ->  | H90: =IF('Arş.Gör. Sonuç'!H90="","",'Arş.Gör. Sonuç'!H90) ->  | I90: =IF('Arş.Gör. Sonuç'!I90="","",'Arş.Gör. Sonuç'!I90) ->  | J90: =IF('Arş.Gör. Sonuç'!J90="","",'Arş.Gör. Sonuç'!J90) ->  | K90: =IF('Arş.Gör. Sonuç'!K90="","",'Arş.Gör. Sonuç'!K90) ->  | L90: =IF('Arş.Gör. Sonuç'!L90="","",'Arş.Gör. Sonuç'!L90) ->  | M90: =IF('Arş.Gör. Sonuç'!M90="","",'Arş.Gör. Sonuç'!M90) ->  | N90: =IF('Arş.Gör. Sonuç'!N90="","",'Arş.Gör. Sonuç'!N90) -> 
A91: =IF('Arş.Gör. Sonuç'!A91="","",'Arş.Gör. Sonuç'!A91) ->  | B91: =IF('Arş.Gör. Sonuç'!B91="","",LEFT('Arş.Gör. Sonuç'!B91,3)&REPT("*",4)&RIGHT('Arş.Gör. Sonuç'!B91,2)) ->  | C91: =IF('Arş.Gör. Sonuç'!C91="","",IF(ISERR(FIND(" ",'Arş.Gör. Sonuç'!C91))=TRUE,LEFT('Arş.Gör. Sonuç'!C91,2)&REPT("*",3),LEFT('Arş.Gör. Sonuç'!C91,2)&REPT("*",3)&" "&MID('Arş.Gör. Sonuç'!C91,FIND(" ",'Arş.Gör. Sonuç'!C91)+1,2)&REPT("*",3))) ->  | D91: =IF('Arş.Gör. Sonuç'!D91="","",IF(ISERR(FIND(" ",'Arş.Gör. Sonuç'!D91))=TRUE,LEFT('Arş.Gör. Sonuç'!D91,2)&REPT("*",3),LEFT('Arş.Gör. Sonuç'!D91,2)&REPT("*",3)&" "&MID('Arş.Gör. Sonuç'!D91,FIND(" ",'Arş.Gör. Sonuç'!D91)+1,2)&REPT("*",3))) ->  | E91: =IF('Arş.Gör. Sonuç'!E91="","",'Arş.Gör. Sonuç'!E91) ->  | F91: =IF('Arş.Gör. Sonuç'!F91="","",'Arş.Gör. Sonuç'!F91) ->  | G91: =IF('Arş.Gör. Sonuç'!G91="","",'Arş.Gör. Sonuç'!G91) ->  | H91: =IF('Arş.Gör. Sonuç'!H91="","",'Arş.Gör. Sonuç'!H91) ->  | I91: =IF('Arş.Gör. Sonuç'!I91="","",'Arş.Gör. Sonuç'!I91) ->  | J91: =IF('Arş.Gör. Sonuç'!J91="","",'Arş.Gör. Sonuç'!J91) ->  | K91: =IF('Arş.Gör. Sonuç'!K91="","",'Arş.Gör. Sonuç'!K91) ->  | L91: =IF('Arş.Gör. Sonuç'!L91="","",'Arş.Gör. Sonuç'!L91) ->  | M91: =IF('Arş.Gör. Sonuç'!M91="","",'Arş.Gör. Sonuç'!M91) ->  | N91: =IF('Arş.Gör. Sonuç'!N91="","",'Arş.Gör. Sonuç'!N91) -> 
A92: =IF('Arş.Gör. Sonuç'!A92="","",'Arş.Gör. Sonuç'!A92) ->  | B92: =IF('Arş.Gör. Sonuç'!B92="","",LEFT('Arş.Gör. Sonuç'!B92,3)&REPT("*",4)&RIGHT('Arş.Gör. Sonuç'!B92,2)) ->  | C92: =IF('Arş.Gör. Sonuç'!C92="","",IF(ISERR(FIND(" ",'Arş.Gör. Sonuç'!C92))=TRUE,LEFT('Arş.Gör. Sonuç'!C92,2)&REPT("*",3),LEFT('Arş.Gör. Sonuç'!C92,2)&REPT("*",3)&" "&MID('Arş.Gör. Sonuç'!C92,FIND(" ",'Arş.Gör. Sonuç'!C92)+1,2)&REPT("*",3))) ->  | D92: =IF('Arş.Gör. Sonuç'!D92="","",IF(ISERR(FIND(" ",'Arş.Gör. Sonuç'!D92))=TRUE,LEFT('Arş.Gör. Sonuç'!D92,2)&REPT("*",3),LEFT('Arş.Gör. Sonuç'!D92,2)&REPT("*",3)&" "&MID('Arş.Gör. Sonuç'!D92,FIND(" ",'Arş.Gör. Sonuç'!D92)+1,2)&REPT("*",3))) ->  | E92: =IF('Arş.Gör. Sonuç'!E92="","",'Arş.Gör. Sonuç'!E92) ->  | F92: =IF('Arş.Gör. Sonuç'!F92="","",'Arş.Gör. Sonuç'!F92) ->  | G92: =IF('Arş.Gör. Sonuç'!G92="","",'Arş.Gör. Sonuç'!G92) ->  | H92: =IF('Arş.Gör. Sonuç'!H92="","",'Arş.Gör. Sonuç'!H92) ->  | I92: =IF('Arş.Gör. Sonuç'!I92="","",'Arş.Gör. Sonuç'!I92) ->  | J92: =IF('Arş.Gör. Sonuç'!J92="","",'Arş.Gör. Sonuç'!J92) ->  | K92: =IF('Arş.Gör. Sonuç'!K92="","",'Arş.Gör. Sonuç'!K92) ->  | L92: =IF('Arş.Gör. Sonuç'!L92="","",'Arş.Gör. Sonuç'!L92) ->  | M92: =IF('Arş.Gör. Sonuç'!M92="","",'Arş.Gör. Sonuç'!M92) ->  | N92: =IF('Arş.Gör. Sonuç'!N92="","",'Arş.Gör. Sonuç'!N92) -> 
A93: =IF('Arş.Gör. Sonuç'!A93="","",'Arş.Gör. Sonuç'!A93) ->  | B93: =IF('Arş.Gör. Sonuç'!B93="","",LEFT('Arş.Gör. Sonuç'!B93,3)&REPT("*",4)&RIGHT('Arş.Gör. Sonuç'!B93,2)) ->  | C93: =IF('Arş.Gör. Sonuç'!C93="","",IF(ISERR(FIND(" ",'Arş.Gör. Sonuç'!C93))=TRUE,LEFT('Arş.Gör. Sonuç'!C93,2)&REPT("*",3),LEFT('Arş.Gör. Sonuç'!C93,2)&REPT("*",3)&" "&MID('Arş.Gör. Sonuç'!C93,FIND(" ",'Arş.Gör. Sonuç'!C93)+1,2)&REPT("*",3))) ->  | D93: =IF('Arş.Gör. Sonuç'!D93="","",IF(ISERR(FIND(" ",'Arş.Gör. Sonuç'!D93))=TRUE,LEFT('Arş.Gör. Sonuç'!D93,2)&REPT("*",3),LEFT('Arş.Gör. Sonuç'!D93,2)&REPT("*",3)&" "&MID('Arş.Gör. Sonuç'!D93,FIND(" ",'Arş.Gör. Sonuç'!D93)+1,2)&REPT("*",3))) ->  | E93: =IF('Arş.Gör. Sonuç'!E93="","",'Arş.Gör. Sonuç'!E93) ->  | F93: =IF('Arş.Gör. Sonuç'!F93="","",'Arş.Gör. Sonuç'!F93) ->  | G93: =IF('Arş.Gör. Sonuç'!G93="","",'Arş.Gör. Sonuç'!G93) ->  | H93: =IF('Arş.Gör. Sonuç'!H93="","",'Arş.Gör. Sonuç'!H93) ->  | I93: =IF('Arş.Gör. Sonuç'!I93="","",'Arş.Gör. Sonuç'!I93) ->  | J93: =IF('Arş.Gör. Sonuç'!J93="","",'Arş.Gör. Sonuç'!J93) ->  | K93: =IF('Arş.Gör. Sonuç'!K93="","",'Arş.Gör. Sonuç'!K93) ->  | L93: =IF('Arş.Gör. Sonuç'!L93="","",'Arş.Gör. Sonuç'!L93) ->  | M93: =IF('Arş.Gör. Sonuç'!M93="","",'Arş.Gör. Sonuç'!M93) ->  | N93: =IF('Arş.Gör. Sonuç'!N93="","",'Arş.Gör. Sonuç'!N93) -> 
A94: =IF('Arş.Gör. Sonuç'!A94="","",'Arş.Gör. Sonuç'!A94) ->  | B94: =IF('Arş.Gör. Sonuç'!B94="","",LEFT('Arş.Gör. Sonuç'!B94,3)&REPT("*",4)&RIGHT('Arş.Gör. Sonuç'!B94,2)) ->  | C94: =IF('Arş.Gör. Sonuç'!C94="","",IF(ISERR(FIND(" ",'Arş.Gör. Sonuç'!C94))=TRUE,LEFT('Arş.Gör. Sonuç'!C94,2)&REPT("*",3),LEFT('Arş.Gör. Sonuç'!C94,2)&REPT("*",3)&" "&MID('Arş.Gör. Sonuç'!C94,FIND(" ",'Arş.Gör. Sonuç'!C94)+1,2)&REPT("*",3))) ->  | D94: =IF('Arş.Gör. Sonuç'!D94="","",IF(ISERR(FIND(" ",'Arş.Gör. Sonuç'!D94))=TRUE,LEFT('Arş.Gör. Sonuç'!D94,2)&REPT("*",3),LEFT('Arş.Gör. Sonuç'!D94,2)&REPT("*",3)&" "&MID('Arş.Gör. Sonuç'!D94,FIND(" ",'Arş.Gör. Sonuç'!D94)+1,2)&REPT("*",3))) ->  | E94: =IF('Arş.Gör. Sonuç'!E94="","",'Arş.Gör. Sonuç'!E94) ->  | F94: =IF('Arş.Gör. Sonuç'!F94="","",'Arş.Gör. Sonuç'!F94) ->  | G94: =IF('Arş.Gör. Sonuç'!G94="","",'Arş.Gör. Sonuç'!G94) ->  | H94: =IF('Arş.Gör. Sonuç'!H94="","",'Arş.Gör. Sonuç'!H94) ->  | I94: =IF('Arş.Gör. Sonuç'!I94="","",'Arş.Gör. Sonuç'!I94) ->  | J94: =IF('Arş.Gör. Sonuç'!J94="","",'Arş.Gör. Sonuç'!J94) ->  | K94: =IF('Arş.Gör. Sonuç'!K94="","",'Arş.Gör. Sonuç'!K94) ->  | L94: =IF('Arş.Gör. Sonuç'!L94="","",'Arş.Gör. Sonuç'!L94) ->  | M94: =IF('Arş.Gör. Sonuç'!M94="","",'Arş.Gör. Sonuç'!M94) ->  | N94: =IF('Arş.Gör. Sonuç'!N94="","",'Arş.Gör. Sonuç'!N94) -> 
A95: =IF('Arş.Gör. Sonuç'!A95="","",'Arş.Gör. Sonuç'!A95) ->  | B95: =IF('Arş.Gör. Sonuç'!B95="","",LEFT('Arş.Gör. Sonuç'!B95,3)&REPT("*",4)&RIGHT('Arş.Gör. Sonuç'!B95,2)) ->  | C95: =IF('Arş.Gör. Sonuç'!C95="","",IF(ISERR(FIND(" ",'Arş.Gör. Sonuç'!C95))=TRUE,LEFT('Arş.Gör. Sonuç'!C95,2)&REPT("*",3),LEFT('Arş.Gör. Sonuç'!C95,2)&REPT("*",3)&" "&MID('Arş.Gör. Sonuç'!C95,FIND(" ",'Arş.Gör. Sonuç'!C95)+1,2)&REPT("*",3))) ->  | D95: =IF('Arş.Gör. Sonuç'!D95="","",IF(ISERR(FIND(" ",'Arş.Gör. Sonuç'!D95))=TRUE,LEFT('Arş.Gör. Sonuç'!D95,2)&REPT("*",3),LEFT('Arş.Gör. Sonuç'!D95,2)&REPT("*",3)&" "&MID('Arş.Gör. Sonuç'!D95,FIND(" ",'Arş.Gör. Sonuç'!D95)+1,2)&REPT("*",3))) ->  | E95: =IF('Arş.Gör. Sonuç'!E95="","",'Arş.Gör. Sonuç'!E95) ->  | F95: =IF('Arş.Gör. Sonuç'!F95="","",'Arş.Gör. Sonuç'!F95) ->  | G95: =IF('Arş.Gör. Sonuç'!G95="","",'Arş.Gör. Sonuç'!G95) ->  | H95: =IF('Arş.Gör. Sonuç'!H95="","",'Arş.Gör. Sonuç'!H95) ->  | I95: =IF('Arş.Gör. Sonuç'!I95="","",'Arş.Gör. Sonuç'!I95) ->  | J95: =IF('Arş.Gör. Sonuç'!J95="","",'Arş.Gör. Sonuç'!J95) ->  | K95: =IF('Arş.Gör. Sonuç'!K95="","",'Arş.Gör. Sonuç'!K95) ->  | L95: =IF('Arş.Gör. Sonuç'!L95="","",'Arş.Gör. Sonuç'!L95) ->  | M95: =IF('Arş.Gör. Sonuç'!M95="","",'Arş.Gör. Sonuç'!M95) ->  | N95: =IF('Arş.Gör. Sonuç'!N95="","",'Arş.Gör. Sonuç'!N95) -> 
A96: =IF('Arş.Gör. Sonuç'!A96="","",'Arş.Gör. Sonuç'!A96) ->  | B96: =IF('Arş.Gör. Sonuç'!B96="","",LEFT('Arş.Gör. Sonuç'!B96,3)&REPT("*",4)&RIGHT('Arş.Gör. Sonuç'!B96,2)) ->  | C96: =IF('Arş.Gör. Sonuç'!C96="","",IF(ISERR(FIND(" ",'Arş.Gör. Sonuç'!C96))=TRUE,LEFT('Arş.Gör. Sonuç'!C96,2)&REPT("*",3),LEFT('Arş.Gör. Sonuç'!C96,2)&REPT("*",3)&" "&MID('Arş.Gör. Sonuç'!C96,FIND(" ",'Arş.Gör. Sonuç'!C96)+1,2)&REPT("*",3))) ->  | D96: =IF('Arş.Gör. Sonuç'!D96="","",IF(ISERR(FIND(" ",'Arş.Gör. Sonuç'!D96))=TRUE,LEFT('Arş.Gör. Sonuç'!D96,2)&REPT("*",3),LEFT('Arş.Gör. Sonuç'!D96,2)&REPT("*",3)&" "&MID('Arş.Gör. Sonuç'!D96,FIND(" ",'Arş.Gör. Sonuç'!D96)+1,2)&REPT("*",3))) ->  | E96: =IF('Arş.Gör. Sonuç'!E96="","",'Arş.Gör. Sonuç'!E96) ->  | F96: =IF('Arş.Gör. Sonuç'!F96="","",'Arş.Gör. Sonuç'!F96) ->  | G96: =IF('Arş.Gör. Sonuç'!G96="","",'Arş.Gör. Sonuç'!G96) ->  | H96: =IF('Arş.Gör. Sonuç'!H96="","",'Arş.Gör. Sonuç'!H96) ->  | I96: =IF('Arş.Gör. Sonuç'!I96="","",'Arş.Gör. Sonuç'!I96) ->  | J96: =IF('Arş.Gör. Sonuç'!J96="","",'Arş.Gör. Sonuç'!J96) ->  | K96: =IF('Arş.Gör. Sonuç'!K96="","",'Arş.Gör. Sonuç'!K96) ->  | L96: =IF('Arş.Gör. Sonuç'!L96="","",'Arş.Gör. Sonuç'!L96) ->  | M96: =IF('Arş.Gör. Sonuç'!M96="","",'Arş.Gör. Sonuç'!M96) ->  | N96: =IF('Arş.Gör. Sonuç'!N96="","",'Arş.Gör. Sonuç'!N96) -> 
A97: =IF('Arş.Gör. Sonuç'!A97="","",'Arş.Gör. Sonuç'!A97) ->  | B97: =IF('Arş.Gör. Sonuç'!B97="","",LEFT('Arş.Gör. Sonuç'!B97,3)&REPT("*",4)&RIGHT('Arş.Gör. Sonuç'!B97,2)) ->  | C97: =IF('Arş.Gör. Sonuç'!C97="","",IF(ISERR(FIND(" ",'Arş.Gör. Sonuç'!C97))=TRUE,LEFT('Arş.Gör. Sonuç'!C97,2)&REPT("*",3),LEFT('Arş.Gör. Sonuç'!C97,2)&REPT("*",3)&" "&MID('Arş.Gör. Sonuç'!C97,FIND(" ",'Arş.Gör. Sonuç'!C97)+1,2)&REPT("*",3))) ->  | D97: =IF('Arş.Gör. Sonuç'!D97="","",IF(ISERR(FIND(" ",'Arş.Gör. Sonuç'!D97))=TRUE,LEFT('Arş.Gör. Sonuç'!D97,2)&REPT("*",3),LEFT('Arş.Gör. Sonuç'!D97,2)&REPT("*",3)&" "&MID('Arş.Gör. Sonuç'!D97,FIND(" ",'Arş.Gör. Sonuç'!D97)+1,2)&REPT("*",3))) ->  | E97: =IF('Arş.Gör. Sonuç'!E97="","",'Arş.Gör. Sonuç'!E97) ->  | F97: =IF('Arş.Gör. Sonuç'!F97="","",'Arş.Gör. Sonuç'!F97) ->  | G97: =IF('Arş.Gör. Sonuç'!G97="","",'Arş.Gör. Sonuç'!G97) ->  | H97: =IF('Arş.Gör. Sonuç'!H97="","",'Arş.Gör. Sonuç'!H97) ->  | I97: =IF('Arş.Gör. Sonuç'!I97="","",'Arş.Gör. Sonuç'!I97) ->  | J97: =IF('Arş.Gör. Sonuç'!J97="","",'Arş.Gör. Sonuç'!J97) ->  | K97: =IF('Arş.Gör. Sonuç'!K97="","",'Arş.Gör. Sonuç'!K97) ->  | L97: =IF('Arş.Gör. Sonuç'!L97="","",'Arş.Gör. Sonuç'!L97) ->  | M97: =IF('Arş.Gör. Sonuç'!M97="","",'Arş.Gör. Sonuç'!M97) ->  | N97: =IF('Arş.Gör. Sonuç'!N97="","",'Arş.Gör. Sonuç'!N97) -> 
A98: =IF('Arş.Gör. Sonuç'!A98="","",'Arş.Gör. Sonuç'!A98) ->  | B98: =IF('Arş.Gör. Sonuç'!B98="","",LEFT('Arş.Gör. Sonuç'!B98,3)&REPT("*",4)&RIGHT('Arş.Gör. Sonuç'!B98,2)) ->  | C98: =IF('Arş.Gör. Sonuç'!C98="","",IF(ISERR(FIND(" ",'Arş.Gör. Sonuç'!C98))=TRUE,LEFT('Arş.Gör. Sonuç'!C98,2)&REPT("*",3),LEFT('Arş.Gör. Sonuç'!C98,2)&REPT("*",3)&" "&MID('Arş.Gör. Sonuç'!C98,FIND(" ",'Arş.Gör. Sonuç'!C98)+1,2)&REPT("*",3))) ->  | D98: =IF('Arş.Gör. Sonuç'!D98="","",IF(ISERR(FIND(" ",'Arş.Gör. Sonuç'!D98))=TRUE,LEFT('Arş.Gör. Sonuç'!D98,2)&REPT("*",3),LEFT('Arş.Gör. Sonuç'!D98,2)&REPT("*",3)&" "&MID('Arş.Gör. Sonuç'!D98,FIND(" ",'Arş.Gör. Sonuç'!D98)+1,2)&REPT("*",3))) ->  | E98: =IF('Arş.Gör. Sonuç'!E98="","",'Arş.Gör. Sonuç'!E98) ->  | F98: =IF('Arş.Gör. Sonuç'!F98="","",'Arş.Gör. Sonuç'!F98) ->  | G98: =IF('Arş.Gör. Sonuç'!G98="","",'Arş.Gör. Sonuç'!G98) ->  | H98: =IF('Arş.Gör. Sonuç'!H98="","",'Arş.Gör. Sonuç'!H98) ->  | I98: =IF('Arş.Gör. Sonuç'!I98="","",'Arş.Gör. Sonuç'!I98) ->  | J98: =IF('Arş.Gör. Sonuç'!J98="","",'Arş.Gör. Sonuç'!J98) ->  | K98: =IF('Arş.Gör. Sonuç'!K98="","",'Arş.Gör. Sonuç'!K98) ->  | L98: =IF('Arş.Gör. Sonuç'!L98="","",'Arş.Gör. Sonuç'!L98) ->  | M98: =IF('Arş.Gör. Sonuç'!M98="","",'Arş.Gör. Sonuç'!M98) ->  | N98: =IF('Arş.Gör. Sonuç'!N98="","",'Arş.Gör. Sonuç'!N98) -> 
A99: =IF('Arş.Gör. Sonuç'!A99="","",'Arş.Gör. Sonuç'!A99) ->  | B99: =IF('Arş.Gör. Sonuç'!B99="","",LEFT('Arş.Gör. Sonuç'!B99,3)&REPT("*",4)&RIGHT('Arş.Gör. Sonuç'!B99,2)) ->  | C99: =IF('Arş.Gör. Sonuç'!C99="","",IF(ISERR(FIND(" ",'Arş.Gör. Sonuç'!C99))=TRUE,LEFT('Arş.Gör. Sonuç'!C99,2)&REPT("*",3),LEFT('Arş.Gör. Sonuç'!C99,2)&REPT("*",3)&" "&MID('Arş.Gör. Sonuç'!C99,FIND(" ",'Arş.Gör. Sonuç'!C99)+1,2)&REPT("*",3))) ->  | D99: =IF('Arş.Gör. Sonuç'!D99="","",IF(ISERR(FIND(" ",'Arş.Gör. Sonuç'!D99))=TRUE,LEFT('Arş.Gör. Sonuç'!D99,2)&REPT("*",3),LEFT('Arş.Gör. Sonuç'!D99,2)&REPT("*",3)&" "&MID('Arş.Gör. Sonuç'!D99,FIND(" ",'Arş.Gör. Sonuç'!D99)+1,2)&REPT("*",3))) ->  | E99: =IF('Arş.Gör. Sonuç'!E99="","",'Arş.Gör. Sonuç'!E99) ->  | F99: =IF('Arş.Gör. Sonuç'!F99="","",'Arş.Gör. Sonuç'!F99) ->  | G99: =IF('Arş.Gör. Sonuç'!G99="","",'Arş.Gör. Sonuç'!G99) ->  | H99: =IF('Arş.Gör. Sonuç'!H99="","",'Arş.Gör. Sonuç'!H99) ->  | I99: =IF('Arş.Gör. Sonuç'!I99="","",'Arş.Gör. Sonuç'!I99) ->  | J99: =IF('Arş.Gör. Sonuç'!J99="","",'Arş.Gör. Sonuç'!J99) ->  | K99: =IF('Arş.Gör. Sonuç'!K99="","",'Arş.Gör. Sonuç'!K99) ->  | L99: =IF('Arş.Gör. Sonuç'!L99="","",'Arş.Gör. Sonuç'!L99) ->  | M99: =IF('Arş.Gör. Sonuç'!M99="","",'Arş.Gör. Sonuç'!M99) ->  | N99: =IF('Arş.Gör. Sonuç'!N99="","",'Arş.Gör. Sonuç'!N99) -> 
A100: =IF('Arş.Gör. Sonuç'!A100="","",'Arş.Gör. Sonuç'!A100) ->  | B100: =IF('Arş.Gör. Sonuç'!B100="","",LEFT('Arş.Gör. Sonuç'!B100,3)&REPT("*",4)&RIGHT('Arş.Gör. Sonuç'!B100,2)) ->  | C100: =IF('Arş.Gör. Sonuç'!C100="","",IF(ISERR(FIND(" ",'Arş.Gör. Sonuç'!C100))=TRUE,LEFT('Arş.Gör. Sonuç'!C100,2)&REPT("*",3),LEFT('Arş.Gör. Sonuç'!C100,2)&REPT("*",3)&" "&MID('Arş.Gör. Sonuç'!C100,FIND(" ",'Arş.Gör. Sonuç'!C100)+1,2)&REPT("*",3))) ->  | D100: =IF('Arş.Gör. Sonuç'!D100="","",IF(ISERR(FIND(" ",'Arş.Gör. Sonuç'!D100))=TRUE,LEFT('Arş.Gör. Sonuç'!D100,2)&REPT("*",3),LEFT('Arş.Gör. Sonuç'!D100,2)&REPT("*",3)&" "&MID('Arş.Gör. Sonuç'!D100,FIND(" ",'Arş.Gör. Sonuç'!D100)+1,2)&REPT("*",3))) ->  | E100: =IF('Arş.Gör. Sonuç'!E100="","",'Arş.Gör. Sonuç'!E100) ->  | F100: =IF('Arş.Gör. Sonuç'!F100="","",'Arş.Gör. Sonuç'!F100) ->  | G100: =IF('Arş.Gör. Sonuç'!G100="","",'Arş.Gör. Sonuç'!G100) ->  | H100: =IF('Arş.Gör. Sonuç'!H100="","",'Arş.Gör. Sonuç'!H100) ->  | I100: =IF('Arş.Gör. Sonuç'!I100="","",'Arş.Gör. Sonuç'!I100) ->  | J100: =IF('Arş.Gör. Sonuç'!J100="","",'Arş.Gör. Sonuç'!J100) ->  | K100: =IF('Arş.Gör. Sonuç'!K100="","",'Arş.Gör. Sonuç'!K100) ->  | L100: =IF('Arş.Gör. Sonuç'!L100="","",'Arş.Gör. Sonuç'!L100) ->  | M100: =IF('Arş.Gör. Sonuç'!M100="","",'Arş.Gör. Sonuç'!M100) ->  | N100: =IF('Arş.Gör. Sonuç'!N100="","",'Arş.Gör. Sonuç'!N100) -> 
A101: =IF('Arş.Gör. Sonuç'!A101="","",'Arş.Gör. Sonuç'!A101) ->  | B101: =IF('Arş.Gör. Sonuç'!B101="","",LEFT('Arş.Gör. Sonuç'!B101,3)&REPT("*",4)&RIGHT('Arş.Gör. Sonuç'!B101,2)) ->  | C101: =IF('Arş.Gör. Sonuç'!C101="","",IF(ISERR(FIND(" ",'Arş.Gör. Sonuç'!C101))=TRUE,LEFT('Arş.Gör. Sonuç'!C101,2)&REPT("*",3),LEFT('Arş.Gör. Sonuç'!C101,2)&REPT("*",3)&" "&MID('Arş.Gör. Sonuç'!C101,FIND(" ",'Arş.Gör. Sonuç'!C101)+1,2)&REPT("*",3))) ->  | D101: =IF('Arş.Gör. Sonuç'!D101="","",IF(ISERR(FIND(" ",'Arş.Gör. Sonuç'!D101))=TRUE,LEFT('Arş.Gör. Sonuç'!D101,2)&REPT("*",3),LEFT('Arş.Gör. Sonuç'!D101,2)&REPT("*",3)&" "&MID('Arş.Gör. Sonuç'!D101,FIND(" ",'Arş.Gör. Sonuç'!D101)+1,2)&REPT("*",3))) ->  | E101: =IF('Arş.Gör. Sonuç'!E101="","",'Arş.Gör. Sonuç'!E101) ->  | F101: =IF('Arş.Gör. Sonuç'!F101="","",'Arş.Gör. Sonuç'!F101) ->  | G101: =IF('Arş.Gör. Sonuç'!G101="","",'Arş.Gör. Sonuç'!G101) ->  | H101: =IF('Arş.Gör. Sonuç'!H101="","",'Arş.Gör. Sonuç'!H101) ->  | I101: =IF('Arş.Gör. Sonuç'!I101="","",'Arş.Gör. Sonuç'!I101) ->  | J101: =IF('Arş.Gör. Sonuç'!J101="","",'Arş.Gör. Sonuç'!J101) ->  | K101: =IF('Arş.Gör. Sonuç'!K101="","",'Arş.Gör. Sonuç'!K101) ->  | L101: =IF('Arş.Gör. Sonuç'!L101="","",'Arş.Gör. Sonuç'!L101) ->  | M101: =IF('Arş.Gör. Sonuç'!M101="","",'Arş.Gör. Sonuç'!M101) ->  | N101: =IF('Arş.Gör. Sonuç'!N101="","",'Arş.Gör. Sonuç'!N101) -> 
A102: =IF('Arş.Gör. Sonuç'!A102="","",'Arş.Gör. Sonuç'!A102) ->  | B102: =IF('Arş.Gör. Sonuç'!B102="","",LEFT('Arş.Gör. Sonuç'!B102,3)&REPT("*",4)&RIGHT('Arş.Gör. Sonuç'!B102,2)) ->  | C102: =IF('Arş.Gör. Sonuç'!C102="","",IF(ISERR(FIND(" ",'Arş.Gör. Sonuç'!C102))=TRUE,LEFT('Arş.Gör. Sonuç'!C102,2)&REPT("*",3),LEFT('Arş.Gör. Sonuç'!C102,2)&REPT("*",3)&" "&MID('Arş.Gör. Sonuç'!C102,FIND(" ",'Arş.Gör. Sonuç'!C102)+1,2)&REPT("*",3))) ->  | D102: =IF('Arş.Gör. Sonuç'!D102="","",IF(ISERR(FIND(" ",'Arş.Gör. Sonuç'!D102))=TRUE,LEFT('Arş.Gör. Sonuç'!D102,2)&REPT("*",3),LEFT('Arş.Gör. Sonuç'!D102,2)&REPT("*",3)&" "&MID('Arş.Gör. Sonuç'!D102,FIND(" ",'Arş.Gör. Sonuç'!D102)+1,2)&REPT("*",3))) ->  | E102: =IF('Arş.Gör. Sonuç'!E102="","",'Arş.Gör. Sonuç'!E102) ->  | F102: =IF('Arş.Gör. Sonuç'!F102="","",'Arş.Gör. Sonuç'!F102) ->  | G102: =IF('Arş.Gör. Sonuç'!G102="","",'Arş.Gör. Sonuç'!G102) ->  | H102: =IF('Arş.Gör. Sonuç'!H102="","",'Arş.Gör. Sonuç'!H102) ->  | I102: =IF('Arş.Gör. Sonuç'!I102="","",'Arş.Gör. Sonuç'!I102) ->  | J102: =IF('Arş.Gör. Sonuç'!J102="","",'Arş.Gör. Sonuç'!J102) ->  | K102: =IF('Arş.Gör. Sonuç'!K102="","",'Arş.Gör. Sonuç'!K102) ->  | L102: =IF('Arş.Gör. Sonuç'!L102="","",'Arş.Gör. Sonuç'!L102) ->  | M102: =IF('Arş.Gör. Sonuç'!M102="","",'Arş.Gör. Sonuç'!M102) ->  | N102: =IF('Arş.Gör. Sonuç'!N102="","",'Arş.Gör. Sonuç'!N102) -> 
A103: =IF('Arş.Gör. Sonuç'!A103="","",'Arş.Gör. Sonuç'!A103) ->  | B103: =IF('Arş.Gör. Sonuç'!B103="","",LEFT('Arş.Gör. Sonuç'!B103,3)&REPT("*",4)&RIGHT('Arş.Gör. Sonuç'!B103,2)) ->  | C103: =IF('Arş.Gör. Sonuç'!C103="","",IF(ISERR(FIND(" ",'Arş.Gör. Sonuç'!C103))=TRUE,LEFT('Arş.Gör. Sonuç'!C103,2)&REPT("*",3),LEFT('Arş.Gör. Sonuç'!C103,2)&REPT("*",3)&" "&MID('Arş.Gör. Sonuç'!C103,FIND(" ",'Arş.Gör. Sonuç'!C103)+1,2)&REPT("*",3))) ->  | D103: =IF('Arş.Gör. Sonuç'!D103="","",IF(ISERR(FIND(" ",'Arş.Gör. Sonuç'!D103))=TRUE,LEFT('Arş.Gör. Sonuç'!D103,2)&REPT("*",3),LEFT('Arş.Gör. Sonuç'!D103,2)&REPT("*",3)&" "&MID('Arş.Gör. Sonuç'!D103,FIND(" ",'Arş.Gör. Sonuç'!D103)+1,2)&REPT("*",3))) ->  | E103: =IF('Arş.Gör. Sonuç'!E103="","",'Arş.Gör. Sonuç'!E103) ->  | F103: =IF('Arş.Gör. Sonuç'!F103="","",'Arş.Gör. Sonuç'!F103) ->  | G103: =IF('Arş.Gör. Sonuç'!G103="","",'Arş.Gör. Sonuç'!G103) ->  | H103: =IF('Arş.Gör. Sonuç'!H103="","",'Arş.Gör. Sonuç'!H103) ->  | I103: =IF('Arş.Gör. Sonuç'!I103="","",'Arş.Gör. Sonuç'!I103) ->  | J103: =IF('Arş.Gör. Sonuç'!J103="","",'Arş.Gör. Sonuç'!J103) ->  | K103: =IF('Arş.Gör. Sonuç'!K103="","",'Arş.Gör. Sonuç'!K103) ->  | L103: =IF('Arş.Gör. Sonuç'!L103="","",'Arş.Gör. Sonuç'!L103) ->  | M103: =IF('Arş.Gör. Sonuç'!M103="","",'Arş.Gör. Sonuç'!M103) ->  | N103: =IF('Arş.Gör. Sonuç'!N103="","",'Arş.Gör. Sonuç'!N103) -> 

Sheet Önc. Alan Sonuç
A1: T.C.
A2: BAYBURT ÜNİVERSİTESİ
A3: GİRİŞ SINAVI SONUÇ TUTANAĞI
A4: Üniversitemize bağlı birimlere, 2547 sayılı Kanunun ilgili maddeleri ve 09.11.2018 tarih ve 30590 sayılı Resmi Gazetede yayımlanan "Öğretim Üyesi Dışındaki Öğretim Elemanı Kadrolarına Naklen veya Açıktan Yapılacak Atamalarda Uygulanacak Merkezi Sınav ile Giriş Sınavlarına İlişkin Usul ve Esaslar Hakkında Yönetmelik” 11. ve 12. maddeleri hükümleri uyarınca yapılan Giriş Sınavında başarılı olan adayların isimleri aşağıda belirtilmiştir.
A5: İlan No: | G5: Birimi: | J5: ….. Fakültesi / Yüksekokulu
A6: İlan Tarihi: | C6: …/.../.... | G6: Bölümü: | J6: ….. Bölümü
A7: Kadro Unvanı: | C7: Araştırma Görevlisi (Öncelikli Alan) | G7: Anabili Dalı: | J7: …… Anabilim Dalı
A8: Kadro Adedi: | C8: 1 | G8: Sınav Tarihi: | J8: …/.../.... | L8: Sonuç Tarihi: | N8: …/.../....
A9: İlan Özel Şartı:
A10: Sıra No | B10: Başvuranın | E10: ALES | G10: Yabancı Dil | K10: Giriş (Sözlü) Sınavı | M10: (A+B+C+D) Değerlendirme Notu | N10: Sonuç
B11: T.C. Kimlik No | C11: Adı | D11: Soyadı | E11: Puanı | F11: (A) Puanın %30' u | G11: Puanı | H11: (B) Puanın %10' u | I11: 100' lük Sistem | J11: (C) Notun %30' u | K11: Sözlü Sınav Notu | L11: (D) Notunun %30' u
A12: 1 | B12: 11111111111 | C12: Örnek Örnek | D12: Örnek | E12: 82.51392 | F12: =E12*0.3 -> 24.754176 | G12: 62.5 | H12: =G12*0.1 -> 6.25 | I12: 76.66 | J12: =I12*0.3 -> 22.998 | K12: 95 | L12: =K12*0.3 -> 28.5 | M12: =F12+H12+J12+L12 -> 82.502176 | N12: BAŞARILI (ASIL)
A13: 2 | B13: 11111111111 | C13: Örnek | D13: Örnek Örnek | E13: 82.51392 | F13: =E13*0.3 -> 24.754176 | G13: 62.5 | H13: =G13*0.1 -> 6.25 | I13: 76.66 | J13: =I13*0.3 -> 22.998 | K13: 90 | L13: =K13*0.3 -> 27 | M13: =F13+H13+J13+L13 -> 81.002176 | N13: BAŞARILI (YEDEK)*
A14: 3 | B14: 11111111111 | C14: Örnek Örnek | D14: Örnek Örnek | E14: 85.03048 | F14: =E14*0.3 -> 25.509144 | G14: 52.5 | H14: =G14*0.1 -> 5.25 | I14: 76.66 | J14: =I14*0.3 -> 22.998 | K14: 85 | L14: =K14*0.3 -> 25.5 | M14: =F14+H14+J14+L14 -> 79.257144 | N14: YÖNETMELİK GEREĞİ ELENDİ**
A15: 4 | B15: 11111111111 | C15: Örnek | D15: Örnek | E15: 85.03048 | F15: =E15*0.3 -> 25.509144 | G15: 52.5 | H15: =G15*0.1 -> 5.25 | I15: 76.66 | J15: =I15*0.3 -> 22.998 | K15: 63 | L15: - | M15: - | N15: YÖNETMELİK GEREĞİ BAŞARISIZ***

Sheet Ön. Al. Sonuç Rapor
A1: T.C.
A2: BAYBURT ÜNİVERSİTESİ
A3: GİRİŞ SINAVI SONUÇ TUTANAĞI
A4: Üniversitemize bağlı birimlere, 2547 sayılı Kanunun ilgili maddeleri ve 09.11.2018 tarih ve 30590 sayılı Resmi Gazetede yayımlanan "Öğretim Üyesi Dışındaki Öğretim Elemanı Kadrolarına Naklen veya Açıktan Yapılacak Atamalarda Uygulanacak Merkezi Sınav ile Giriş Sınavlarına İlişkin Usul ve Esaslar Hakkında Yönetmelik” 11. ve 12. maddeleri hükümleri uyarınca yapılan Giriş Sınavında başarılı olan adayların isimleri aşağıda belirtilmiştir.
A5: İlan No: | C5: =IF('Önc. Alan Sonuç'!C5="","",'Önc. Alan Sonuç'!C5) ->  | G5: Birimi: | J5: =IF('Önc. Alan Sonuç'!J5="","",'Önc. Alan Sonuç'!J5) -> ….. Fakültesi / Yüksekokulu
A6: İlan Tarihi: | C6: =IF('Önc. Alan Sonuç'!C6="","",'Önc. Alan Sonuç'!C6) -> …/.../.... | G6: Bölümü: | J6: =IF('Önc. Alan Sonuç'!J6="","",'Önc. Alan Sonuç'!J6) -> ….. Bölümü
A7: Kadro Unvanı: | C7: =IF('Önc. Alan Sonuç'!C7="","",'Önc. Alan Sonuç'!C7) -> Araştırma Görevlisi (Öncelikli Alan) | G7: Anabili Dalı: | J7: =IF('Önc. Alan Sonuç'!J7="","",'Önc. Alan Sonuç'!J7) -> …… Anabilim Dalı
A8: Kadro Adedi: | C8: =IF('Önc. Alan Sonuç'!C8="","",'Önc. Alan Sonuç'!C8) -> 1 | G8: Sınav Tarihi: | J8: =IF('Önc. Alan Sonuç'!J8="","",'Önc. Alan Sonuç'!J8) -> …/.../.... | L8: Sonuç Tarihi: | N8: =IF('Önc. Alan Sonuç'!N8="","",'Önc. Alan Sonuç'!N8) -> …/.../....
A9: İlan Özel Şartı: | C9: =IF('Önc. Alan Sonuç'!C9="","",'Önc. Alan Sonuç'!C9) -> 
A10: Sıra No | B10: Başvuranın | E10: ALES Puanı | G10: Yabancı Dil Puanı | I10: Lisans Mezuniyet Notu | K10: Giriş Sınavı | M10: (A+B+C+D) Değerlendirme Notu | N10: Sonuç
B11: T.C. Kimlik No | C11: Adı | D11: Soyadı | E11: Puanı | F11: (A) Puanın %30' u | G11: Puanı | H11: (B) Puanın %10' u | I11: 100' lük Sistem | J11: (C) Notun %30' u | K11: Giriş Sınav Notu | L11: (D) Notunun %30' u
A12: =IF('Önc. Alan Sonuç'!A12="","",'Önc. Alan Sonuç'!A12) -> 1 | B12: =IF('Önc. Alan Sonuç'!B12="","",LEFT('Önc. Alan Sonuç'!B12,3)&REPT("*",4)&RIGHT('Önc. Alan Sonuç'!B12,2)) -> 111****11 | C12: =IF('Önc. Alan Sonuç'!C12="","",IF(ISERR(FIND(" ",'Önc. Alan Sonuç'!C12))=TRUE,LEFT('Önc. Alan Sonuç'!C12,2)&REPT("*",3),LEFT('Önc. Alan Sonuç'!C12,2)&REPT("*",3)&" "&MID('Önc. Alan Sonuç'!C12,FIND(" ",'Önc. Alan Sonuç'!C12)+1,2)&REPT("*",3))) -> Ör*** Ör*** | D12: =IF('Önc. Alan Sonuç'!D12="","",IF(ISERR(FIND(" ",'Önc. Alan Sonuç'!D12))=TRUE,LEFT('Önc. Alan Sonuç'!D12,2)&REPT("*",3),LEFT('Önc. Alan Sonuç'!D12,2)&REPT("*",3)&" "&MID('Önc. Alan Sonuç'!D12,FIND(" ",'Önc. Alan Sonuç'!D12)+1,2)&REPT("*",3))) -> Ör*** | E12: =IF('Önc. Alan Sonuç'!E12="","",'Önc. Alan Sonuç'!E12) -> 82.51392 | F12: =IF('Önc. Alan Sonuç'!F12="","",'Önc. Alan Sonuç'!F12) -> 24.754176 | G12: =IF('Önc. Alan Sonuç'!G12="","",'Önc. Alan Sonuç'!G12) -> 62.5 | H12: =IF('Önc. Alan Sonuç'!H12="","",'Önc. Alan Sonuç'!H12) -> 6.25 | I12: =IF('Önc. Alan Sonuç'!I12="","",'Önc. Alan Sonuç'!I12) -> 76.66 | J12: =IF('Önc. Alan Sonuç'!J12="","",'Önc. Alan Sonuç'!J12) -> 22.998 | K12: =IF('Önc. Alan Sonuç'!K12="","",'Önc. Alan Sonuç'!K12) -> 95 | L12: =IF('Önc. Alan Sonuç'!L12="","",'Önc. Alan Sonuç'!L12) -> 28.5 | M12: =IF('Önc. Alan Sonuç'!M12="","",'Önc. Alan Sonuç'!M12) -> 82.502176 | N12: =IF('Önc. Alan Sonuç'!N12="","",'Önc. Alan Sonuç'!N12) -> BAŞARILI (ASIL)
A13: =IF('Önc. Alan Sonuç'!A13="","",'Önc. Alan Sonuç'!A13) -> 2 | B13: =IF('Önc. Alan Sonuç'!B13="","",LEFT('Önc. Alan Sonuç'!B13,3)&REPT("*",4)&RIGHT('Önc. Alan Sonuç'!B13,2)) -> 111****11 | C13: =IF('Önc. Alan Sonuç'!C13="","",IF(ISERR(FIND(" ",'Önc. Alan Sonuç'!C13))=TRUE,LEFT('Önc. Alan Sonuç'!C13,2)&REPT("*",3),LEFT('Önc. Alan Sonuç'!C13,2)&REPT("*",3)&" "&MID('Önc. Alan Sonuç'!C13,FIND(" ",'Önc. Alan Sonuç'!C13)+1,2)&REPT("*",3))) -> Ör*** | D13: =IF('Önc. Alan Sonuç'!D13="","",IF(ISERR(FIND(" ",'Önc. Alan Sonuç'!D13))=TRUE,LEFT('Önc. Alan Sonuç'!D13,2)&REPT("*",3),LEFT('Önc. Alan Sonuç'!D13,2)&REPT("*",3)&" "&MID('Önc. Alan Sonuç'!D13,FIND(" ",'Önc. Alan Sonuç'!D13)+1,2)&REPT("*",3))) -> Ör*** Ör*** | E13: =IF('Önc. Alan Sonuç'!E13="","",'Önc. Alan Sonuç'!E13) -> 82.51392 | F13: =IF('Önc. Alan Sonuç'!F13="","",'Önc. Alan Sonuç'!F13) -> 24.754176 | G13: =IF('Önc. Alan Sonuç'!G13="","",'Önc. Alan Sonuç'!G13) -> 62.5 | H13: =IF('Önc. Alan Sonuç'!H13="","",'Önc. Alan Sonuç'!H13) -> 6.25 | I13: =IF('Önc. Alan Sonuç'!I13="","",'Önc. Alan Sonuç'!I13) -> 76.66 | J13: =IF('Önc. Alan Sonuç'!J13="","",'Önc. Alan Sonuç'!J13) -> 22.998 | K13: =IF('Önc. Alan Sonuç'!K13="","",'Önc. Alan Sonuç'!K13) -> 90 | L13: =IF('Önc. Alan Sonuç'!L13="","",'Önc. Alan Sonuç'!L13) -> 27 | M13: =IF('Önc. Alan Sonuç'!M13="","",'Önc. Alan Sonuç'!M13) -> 81.002176 | N13: =IF('Önc. Alan Sonuç'!N13="","",'Önc. Alan Sonuç'!N13) -> BAŞARILI (YEDEK)*
A14: =IF('Önc. Alan Sonuç'!A14="","",'Önc. Alan Sonuç'!A14) -> 3 | B14: =IF('Önc. Alan Sonuç'!B14="","",LEFT('Önc. Alan Sonuç'!B14,3)&REPT("*",4)&RIGHT('Önc. Alan Sonuç'!B14,2)) -> 111****11 | C14: =IF('Önc. Alan Sonuç'!C14="","",IF(ISERR(FIND(" ",'Önc. Alan Sonuç'!C14))=TRUE,LEFT('Önc. Alan Sonuç'!C14,2)&REPT("*",3),LEFT('Önc. Alan Sonuç'!C14,2)&REPT("*",3)&" "&MID('Önc. Alan Sonuç'!C14,FIND(" ",'Önc. Alan Sonuç'!C14)+1,2)&REPT("*",3))) -> Ör*** Ör*** | D14: =IF('Önc. Alan Sonuç'!D14="","",IF(ISERR(FIND(" ",'Önc. Alan Sonuç'!D14))=TRUE,LEFT('Önc. Alan Sonuç'!D14,2)&REPT("*",3),LEFT('Önc. Alan Sonuç'!D14,2)&REPT("*",3)&" "&MID('Önc. Alan Sonuç'!D14,FIND(" ",'Önc. Alan Sonuç'!D14)+1,2)&REPT("*",3))) -> Ör*** Ör*** | E14: =IF('Önc. Alan Sonuç'!E14="","",'Önc. Alan Sonuç'!E14) -> 85.03048 | F14: =IF('Önc. Alan Sonuç'!F14="","",'Önc. Alan Sonuç'!F14) -> 25.509144 | G14: =IF('Önc. Alan Sonuç'!G14="","",'Önc. Alan Sonuç'!G14) -> 52.5 | H14: =IF('Önc. Alan Sonuç'!H14="","",'Önc. Alan Sonuç'!H14) -> 5.25 | I14: =IF('Önc. Alan Sonuç'!I14="","",'Önc. Alan Sonuç'!I14) -> 76.66 | J14: =IF('Önc. Alan Sonuç'!J14="","",'Önc. Alan Sonuç'!J14) -> 22.998 | K14: =IF('Önc. Alan Sonuç'!K14="","",'Önc. Alan Sonuç'!K14) -> 85 | L14: =IF('Önc. Alan Sonuç'!L14="","",'Önc. Alan Sonuç'!L14) -> 25.5 | M14: =IF('Önc. Alan Sonuç'!M14="","",'Önc. Alan Sonuç'!M14) -> 79.257144 | N14: =IF('Önc. Alan Sonuç'!N14="","",'Önc. Alan Sonuç'!N14) -> YÖNETMELİK GEREĞİ ELENDİ**
A15: =IF('Önc. Alan Sonuç'!A15="","",'Önc. Alan Sonuç'!A15) -> 4 | B15: =IF('Önc. Alan Sonuç'!B15="","",LEFT('Önc. Alan Sonuç'!B15,3)&REPT("*",4)&RIGHT('Önc. Alan Sonuç'!B15,2)) -> 111****11 | C15: =IF('Önc. Alan Sonuç'!C15="","",IF(ISERR(FIND(" ",'Önc. Alan Sonuç'!C15))=TRUE,LEFT('Önc. Alan Sonuç'!C15,2)&REPT("*",3),LEFT('Önc. Alan Sonuç'!C15,2)&REPT("*",3)&" "&MID('Önc. Alan Sonuç'!C15,FIND(" ",'Önc. Alan Sonuç'!C15)+1,2)&REPT("*",3))) -> Ör*** | D15: =IF('Önc. Alan Sonuç'!D15="","",IF(ISERR(FIND(" ",'Önc. Alan Sonuç'!D15))=TRUE,LEFT('Önc. Alan Sonuç'!D15,2)&REPT("*",3),LEFT('Önc. Alan Sonuç'!D15,2)&REPT("*",3)&" "&MID('Önc. Alan Sonuç'!D15,FIND(" ",'Önc. Alan Sonuç'!D15)+1,2)&REPT("*",3))) -> Ör*** | E15: =IF('Önc. Alan Sonuç'!E15="","",'Önc. Alan Sonuç'!E15) -> 85.03048 | F15: =IF('Önc. Alan Sonuç'!F15="","",'Önc. Alan Sonuç'!F15) -> 25.509144 | G15: =IF('Önc. Alan Sonuç'!G15="","",'Önc. Alan Sonuç'!G15) -> 52.5 | H15: =IF('Önc. Alan Sonuç'!H15="","",'Önc. Alan Sonuç'!H15) -> 5.25 | I15: =IF('Önc. Alan Sonuç'!I15="","",'Önc. Alan Sonuç'!I15) -> 76.66 | J15: =IF('Önc. Alan Sonuç'!J15="","",'Önc. Alan Sonuç'!J15) -> 22.998 | K15: =IF('Önc. Alan Sonuç'!K15="","",'Önc. Alan Sonuç'!K15) -> 63 | L15: =IF('Önc. Alan Sonuç'!L15="","",'Önc. Alan Sonuç'!L15) -> - | M15: =IF('Önc. Alan Sonuç'!M15="","",'Önc. Alan Sonuç'!M15) -> - | N15: =IF('Önc. Alan Sonuç'!N15="","",'Önc. Alan Sonuç'!N15) -> YÖNETMELİK GEREĞİ BAŞARISIZ***
A16: =IF('Önc. Alan Sonuç'!A16="","",'Önc. Alan Sonuç'!A16) ->  | B16: =IF('Önc. Alan Sonuç'!B16="","",LEFT('Önc. Alan Sonuç'!B16,3)&REPT("*",4)&RIGHT('Önc. Alan Sonuç'!B16,2)) ->  | C16: =IF('Önc. Alan Sonuç'!C16="","",IF(ISERR(FIND(" ",'Önc. Alan Sonuç'!C16))=TRUE,LEFT('Önc. Alan Sonuç'!C16,2)&REPT("*",3),LEFT('Önc. Alan Sonuç'!C16,2)&REPT("*",3)&" "&MID('Önc. Alan Sonuç'!C16,FIND(" ",'Önc. Alan Sonuç'!C16)+1,2)&REPT("*",3))) ->  | D16: =IF('Önc. Alan Sonuç'!D16="","",IF(ISERR(FIND(" ",'Önc. Alan Sonuç'!D16))=TRUE,LEFT('Önc. Alan Sonuç'!D16,2)&REPT("*",3),LEFT('Önc. Alan Sonuç'!D16,2)&REPT("*",3)&" "&MID('Önc. Alan Sonuç'!D16,FIND(" ",'Önc. Alan Sonuç'!D16)+1,2)&REPT("*",3))) ->  | E16: =IF('Önc. Alan Sonuç'!E16="","",'Önc. Alan Sonuç'!E16) ->  | F16: =IF('Önc. Alan Sonuç'!F16="","",'Önc. Alan Sonuç'!F16) ->  | G16: =IF('Önc. Alan Sonuç'!G16="","",'Önc. Alan Sonuç'!G16) ->  | H16: =IF('Önc. Alan Sonuç'!H16="","",'Önc. Alan Sonuç'!H16) ->  | I16: =IF('Önc. Alan Sonuç'!I16="","",'Önc. Alan Sonuç'!I16) ->  | J16: =IF('Önc. Alan Sonuç'!J16="","",'Önc. Alan Sonuç'!J16) ->  | K16: =IF('Önc. Alan Sonuç'!K16="","",'Önc. Alan Sonuç'!K16) ->  | L16: =IF('Önc. Alan Sonuç'!L16="","",'Önc. Alan Sonuç'!L16) ->  | M16: =IF('Önc. Alan Sonuç'!M16="","",'Önc. Alan Sonuç'!M16) ->  | N16: =IF('Önc. Alan Sonuç'!N16="","",'Önc. Alan Sonuç'!N16) -> 
A17: =IF('Önc. Alan Sonuç'!A17="","",'Önc. Alan Sonuç'!A17) ->  | B17: =IF('Önc. Alan Sonuç'!B17="","",LEFT('Önc. Alan Sonuç'!B17,3)&REPT("*",4)&RIGHT('Önc. Alan Sonuç'!B17,2)) ->  | C17: =IF('Önc. Alan Sonuç'!C17="","",IF(ISERR(FIND(" ",'Önc. Alan Sonuç'!C17))=TRUE,LEFT('Önc. Alan Sonuç'!C17,2)&REPT("*",3),LEFT('Önc. Alan Sonuç'!C17,2)&REPT("*",3)&" "&MID('Önc. Alan Sonuç'!C17,FIND(" ",'Önc. Alan Sonuç'!C17)+1,2)&REPT("*",3))) ->  | D17: =IF('Önc. Alan Sonuç'!D17="","",IF(ISERR(FIND(" ",'Önc. Alan Sonuç'!D17))=TRUE,LEFT('Önc. Alan Sonuç'!D17,2)&REPT("*",3),LEFT('Önc. Alan Sonuç'!D17,2)&REPT("*",3)&" "&MID('Önc. Alan Sonuç'!D17,FIND(" ",'Önc. Alan Sonuç'!D17)+1,2)&REPT("*",3))) ->  | E17: =IF('Önc. Alan Sonuç'!E17="","",'Önc. Alan Sonuç'!E17) ->  | F17: =IF('Önc. Alan Sonuç'!F17="","",'Önc. Alan Sonuç'!F17) ->  | G17: =IF('Önc. Alan Sonuç'!G17="","",'Önc. Alan Sonuç'!G17) ->  | H17: =IF('Önc. Alan Sonuç'!H17="","",'Önc. Alan Sonuç'!H17) ->  | I17: =IF('Önc. Alan Sonuç'!I17="","",'Önc. Alan Sonuç'!I17) ->  | J17: =IF('Önc. Alan Sonuç'!J17="","",'Önc. Alan Sonuç'!J17) ->  | K17: =IF('Önc. Alan Sonuç'!K17="","",'Önc. Alan Sonuç'!K17) ->  | L17: =IF('Önc. Alan Sonuç'!L17="","",'Önc. Alan Sonuç'!L17) ->  | M17: =IF('Önc. Alan Sonuç'!M17="","",'Önc. Alan Sonuç'!M17) ->  | N17: =IF('Önc. Alan Sonuç'!N17="","",'Önc. Alan Sonuç'!N17) -> 
A18: =IF('Önc. Alan Sonuç'!A18="","",'Önc. Alan Sonuç'!A18) ->  | B18: =IF('Önc. Alan Sonuç'!B18="","",LEFT('Önc. Alan Sonuç'!B18,3)&REPT("*",4)&RIGHT('Önc. Alan Sonuç'!B18,2)) ->  | C18: =IF('Önc. Alan Sonuç'!C18="","",IF(ISERR(FIND(" ",'Önc. Alan Sonuç'!C18))=TRUE,LEFT('Önc. Alan Sonuç'!C18,2)&REPT("*",3),LEFT('Önc. Alan Sonuç'!C18,2)&REPT("*",3)&" "&MID('Önc. Alan Sonuç'!C18,FIND(" ",'Önc. Alan Sonuç'!C18)+1,2)&REPT("*",3))) ->  | D18: =IF('Önc. Alan Sonuç'!D18="","",IF(ISERR(FIND(" ",'Önc. Alan Sonuç'!D18))=TRUE,LEFT('Önc. Alan Sonuç'!D18,2)&REPT("*",3),LEFT('Önc. Alan Sonuç'!D18,2)&REPT("*",3)&" "&MID('Önc. Alan Sonuç'!D18,FIND(" ",'Önc. Alan Sonuç'!D18)+1,2)&REPT("*",3))) ->  | E18: =IF('Önc. Alan Sonuç'!E18="","",'Önc. Alan Sonuç'!E18) ->  | F18: =IF('Önc. Alan Sonuç'!F18="","",'Önc. Alan Sonuç'!F18) ->  | G18: =IF('Önc. Alan Sonuç'!G18="","",'Önc. Alan Sonuç'!G18) ->  | H18: =IF('Önc. Alan Sonuç'!H18="","",'Önc. Alan Sonuç'!H18) ->  | I18: =IF('Önc. Alan Sonuç'!I18="","",'Önc. Alan Sonuç'!I18) ->  | J18: =IF('Önc. Alan Sonuç'!J18="","",'Önc. Alan Sonuç'!J18) ->  | K18: =IF('Önc. Alan Sonuç'!K18="","",'Önc. Alan Sonuç'!K18) ->  | L18: =IF('Önc. Alan Sonuç'!L18="","",'Önc. Alan Sonuç'!L18) ->  | M18: =IF('Önc. Alan Sonuç'!M18="","",'Önc. Alan Sonuç'!M18) ->  | N18: =IF('Önc. Alan Sonuç'!N18="","",'Önc. Alan Sonuç'!N18) -> 
A19: =IF('Önc. Alan Sonuç'!A19="","",'Önc. Alan Sonuç'!A19) ->  | B19: =IF('Önc. Alan Sonuç'!B19="","",LEFT('Önc. Alan Sonuç'!B19,3)&REPT("*",4)&RIGHT('Önc. Alan Sonuç'!B19,2)) ->  | C19: =IF('Önc. Alan Sonuç'!C19="","",IF(ISERR(FIND(" ",'Önc. Alan Sonuç'!C19))=TRUE,LEFT('Önc. Alan Sonuç'!C19,2)&REPT("*",3),LEFT('Önc. Alan Sonuç'!C19,2)&REPT("*",3)&" "&MID('Önc. Alan Sonuç'!C19,FIND(" ",'Önc. Alan Sonuç'!C19)+1,2)&REPT("*",3))) ->  | D19: =IF('Önc. Alan Sonuç'!D19="","",IF(ISERR(FIND(" ",'Önc. Alan Sonuç'!D19))=TRUE,LEFT('Önc. Alan Sonuç'!D19,2)&REPT("*",3),LEFT('Önc. Alan Sonuç'!D19,2)&REPT("*",3)&" "&MID('Önc. Alan Sonuç'!D19,FIND(" ",'Önc. Alan Sonuç'!D19)+1,2)&REPT("*",3))) ->  | E19: =IF('Önc. Alan Sonuç'!E19="","",'Önc. Alan Sonuç'!E19) ->  | F19: =IF('Önc. Alan Sonuç'!F19="","",'Önc. Alan Sonuç'!F19) ->  | G19: =IF('Önc. Alan Sonuç'!G19="","",'Önc. Alan Sonuç'!G19) ->  | H19: =IF('Önc. Alan Sonuç'!H19="","",'Önc. Alan Sonuç'!H19) ->  | I19: =IF('Önc. Alan Sonuç'!I19="","",'Önc. Alan Sonuç'!I19) ->  | J19: =IF('Önc. Alan Sonuç'!J19="","",'Önc. Alan Sonuç'!J19) ->  | K19: =IF('Önc. Alan Sonuç'!K19="","",'Önc. Alan Sonuç'!K19) ->  | L19: =IF('Önc. Alan Sonuç'!L19="","",'Önc. Alan Sonuç'!L19) ->  | M19: =IF('Önc. Alan Sonuç'!M19="","",'Önc. Alan Sonuç'!M19) ->  | N19: =IF('Önc. Alan Sonuç'!N19="","",'Önc. Alan Sonuç'!N19) -> 
A20: =IF('Önc. Alan Sonuç'!A20="","",'Önc. Alan Sonuç'!A20) ->  | B20: =IF('Önc. Alan Sonuç'!B20="","",LEFT('Önc. Alan Sonuç'!B20,3)&REPT("*",4)&RIGHT('Önc. Alan Sonuç'!B20,2)) ->  | C20: =IF('Önc. Alan Sonuç'!C20="","",IF(ISERR(FIND(" ",'Önc. Alan Sonuç'!C20))=TRUE,LEFT('Önc. Alan Sonuç'!C20,2)&REPT("*",3),LEFT('Önc. Alan Sonuç'!C20,2)&REPT("*",3)&" "&MID('Önc. Alan Sonuç'!C20,FIND(" ",'Önc. Alan Sonuç'!C20)+1,2)&REPT("*",3))) ->  | D20: =IF('Önc. Alan Sonuç'!D20="","",IF(ISERR(FIND(" ",'Önc. Alan Sonuç'!D20))=TRUE,LEFT('Önc. Alan Sonuç'!D20,2)&REPT("*",3),LEFT('Önc. Alan Sonuç'!D20,2)&REPT("*",3)&" "&MID('Önc. Alan Sonuç'!D20,FIND(" ",'Önc. Alan Sonuç'!D20)+1,2)&REPT("*",3))) ->  | E20: =IF('Önc. Alan Sonuç'!E20="","",'Önc. Alan Sonuç'!E20) ->  | F20: =IF('Önc. Alan Sonuç'!F20="","",'Önc. Alan Sonuç'!F20) ->  | G20: =IF('Önc. Alan Sonuç'!G20="","",'Önc. Alan Sonuç'!G20) ->  | H20: =IF('Önc. Alan Sonuç'!H20="","",'Önc. Alan Sonuç'!H20) ->  | I20: =IF('Önc. Alan Sonuç'!I20="","",'Önc. Alan Sonuç'!I20) ->  | J20: =IF('Önc. Alan Sonuç'!J20="","",'Önc. Alan Sonuç'!J20) ->  | K20: =IF('Önc. Alan Sonuç'!K20="","",'Önc. Alan Sonuç'!K20) ->  | L20: =IF('Önc. Alan Sonuç'!L20="","",'Önc. Alan Sonuç'!L20) ->  | M20: =IF('Önc. Alan Sonuç'!M20="","",'Önc. Alan Sonuç'!M20) ->  | N20: =IF('Önc. Alan Sonuç'!N20="","",'Önc. Alan Sonuç'!N20) -> 
A21: =IF('Önc. Alan Sonuç'!A21="","",'Önc. Alan Sonuç'!A21) ->  | B21: =IF('Önc. Alan Sonuç'!B21="","",LEFT('Önc. Alan Sonuç'!B21,3)&REPT("*",4)&RIGHT('Önc. Alan Sonuç'!B21,2)) ->  | C21: =IF('Önc. Alan Sonuç'!C21="","",IF(ISERR(FIND(" ",'Önc. Alan Sonuç'!C21))=TRUE,LEFT('Önc. Alan Sonuç'!C21,2)&REPT("*",3),LEFT('Önc. Alan Sonuç'!C21,2)&REPT("*",3)&" "&MID('Önc. Alan Sonuç'!C21,FIND(" ",'Önc. Alan Sonuç'!C21)+1,2)&REPT("*",3))) ->  | D21: =IF('Önc. Alan Sonuç'!D21="","",IF(ISERR(FIND(" ",'Önc. Alan Sonuç'!D21))=TRUE,LEFT('Önc. Alan Sonuç'!D21,2)&REPT("*",3),LEFT('Önc. Alan Sonuç'!D21,2)&REPT("*",3)&" "&MID('Önc. Alan Sonuç'!D21,FIND(" ",'Önc. Alan Sonuç'!D21)+1,2)&REPT("*",3))) ->  | E21: =IF('Önc. Alan Sonuç'!E21="","",'Önc. Alan Sonuç'!E21) ->  | F21: =IF('Önc. Alan Sonuç'!F21="","",'Önc. Alan Sonuç'!F21) ->  | G21: =IF('Önc. Alan Sonuç'!G21="","",'Önc. Alan Sonuç'!G21) ->  | H21: =IF('Önc. Alan Sonuç'!H21="","",'Önc. Alan Sonuç'!H21) ->  | I21: =IF('Önc. Alan Sonuç'!I21="","",'Önc. Alan Sonuç'!I21) ->  | J21: =IF('Önc. Alan Sonuç'!J21="","",'Önc. Alan Sonuç'!J21) ->  | K21: =IF('Önc. Alan Sonuç'!K21="","",'Önc. Alan Sonuç'!K21) ->  | L21: =IF('Önc. Alan Sonuç'!L21="","",'Önc. Alan Sonuç'!L21) ->  | M21: =IF('Önc. Alan Sonuç'!M21="","",'Önc. Alan Sonuç'!M21) ->  | N21: =IF('Önc. Alan Sonuç'!N21="","",'Önc. Alan Sonuç'!N21) -> 
A22: =IF('Önc. Alan Sonuç'!A22="","",'Önc. Alan Sonuç'!A22) ->  | B22: =IF('Önc. Alan Sonuç'!B22="","",LEFT('Önc. Alan Sonuç'!B22,3)&REPT("*",4)&RIGHT('Önc. Alan Sonuç'!B22,2)) ->  | C22: =IF('Önc. Alan Sonuç'!C22="","",IF(ISERR(FIND(" ",'Önc. Alan Sonuç'!C22))=TRUE,LEFT('Önc. Alan Sonuç'!C22,2)&REPT("*",3),LEFT('Önc. Alan Sonuç'!C22,2)&REPT("*",3)&" "&MID('Önc. Alan Sonuç'!C22,FIND(" ",'Önc. Alan Sonuç'!C22)+1,2)&REPT("*",3))) ->  | D22: =IF('Önc. Alan Sonuç'!D22="","",IF(ISERR(FIND(" ",'Önc. Alan Sonuç'!D22))=TRUE,LEFT('Önc. Alan Sonuç'!D22,2)&REPT("*",3),LEFT('Önc. Alan Sonuç'!D22,2)&REPT("*",3)&" "&MID('Önc. Alan Sonuç'!D22,FIND(" ",'Önc. Alan Sonuç'!D22)+1,2)&REPT("*",3))) ->  | E22: =IF('Önc. Alan Sonuç'!E22="","",'Önc. Alan Sonuç'!E22) ->  | F22: =IF('Önc. Alan Sonuç'!F22="","",'Önc. Alan Sonuç'!F22) ->  | G22: =IF('Önc. Alan Sonuç'!G22="","",'Önc. Alan Sonuç'!G22) ->  | H22: =IF('Önc. Alan Sonuç'!H22="","",'Önc. Alan Sonuç'!H22) ->  | I22: =IF('Önc. Alan Sonuç'!I22="","",'Önc. Alan Sonuç'!I22) ->  | J22: =IF('Önc. Alan Sonuç'!J22="","",'Önc. Alan Sonuç'!J22) ->  | K22: =IF('Önc. Alan Sonuç'!K22="","",'Önc. Alan Sonuç'!K22) ->  | L22: =IF('Önc. Alan Sonuç'!L22="","",'Önc. Alan Sonuç'!L22) ->  | M22: =IF('Önc. Alan Sonuç'!M22="","",'Önc. Alan Sonuç'!M22) ->  | N22: =IF('Önc. Alan Sonuç'!N22="","",'Önc. Alan Sonuç'!N22) -> 
A23: =IF('Önc. Alan Sonuç'!A23="","",'Önc. Alan Sonuç'!A23) ->  | B23: =IF('Önc. Alan Sonuç'!B23="","",LEFT('Önc. Alan Sonuç'!B23,3)&REPT("*",4)&RIGHT('Önc. Alan Sonuç'!B23,2)) ->  | C23: =IF('Önc. Alan Sonuç'!C23="","",IF(ISERR(FIND(" ",'Önc. Alan Sonuç'!C23))=TRUE,LEFT('Önc. Alan Sonuç'!C23,2)&REPT("*",3),LEFT('Önc. Alan Sonuç'!C23,2)&REPT("*",3)&" "&MID('Önc. Alan Sonuç'!C23,FIND(" ",'Önc. Alan Sonuç'!C23)+1,2)&REPT("*",3))) ->  | D23: =IF('Önc. Alan Sonuç'!D23="","",IF(ISERR(FIND(" ",'Önc. Alan Sonuç'!D23))=TRUE,LEFT('Önc. Alan Sonuç'!D23,2)&REPT("*",3),LEFT('Önc. Alan Sonuç'!D23,2)&REPT("*",3)&" "&MID('Önc. Alan Sonuç'!D23,FIND(" ",'Önc. Alan Sonuç'!D23)+1,2)&REPT("*",3))) ->  | E23: =IF('Önc. Alan Sonuç'!E23="","",'Önc. Alan Sonuç'!E23) ->  | F23: =IF('Önc. Alan Sonuç'!F23="","",'Önc. Alan Sonuç'!F23) ->  | G23: =IF('Önc. Alan Sonuç'!G23="","",'Önc. Alan Sonuç'!G23) ->  | H23: =IF('Önc. Alan Sonuç'!H23="","",'Önc. Alan Sonuç'!H23) ->  | I23: =IF('Önc. Alan Sonuç'!I23="","",'Önc. Alan Sonuç'!I23) ->  | J23: =IF('Önc. Alan Sonuç'!J23="","",'Önc. Alan Sonuç'!J23) ->  | K23: =IF('Önc. Alan Sonuç'!K23="","",'Önc. Alan Sonuç'!K23) ->  | L23: =IF('Önc. Alan Sonuç'!L23="","",'Önc. Alan Sonuç'!L23) ->  | M23: =IF('Önc. Alan Sonuç'!M23="","",'Önc. Alan Sonuç'!M23) ->  | N23: =IF('Önc. Alan Sonuç'!N23="","",'Önc. Alan Sonuç'!N23) -> 
A24: =IF('Önc. Alan Sonuç'!A24="","",'Önc. Alan Sonuç'!A24) ->  | B24: =IF('Önc. Alan Sonuç'!B24="","",LEFT('Önc. Alan Sonuç'!B24,3)&REPT("*",4)&RIGHT('Önc. Alan Sonuç'!B24,2)) ->  | C24: =IF('Önc. Alan Sonuç'!C24="","",IF(ISERR(FIND(" ",'Önc. Alan Sonuç'!C24))=TRUE,LEFT('Önc. Alan Sonuç'!C24,2)&REPT("*",3),LEFT('Önc. Alan Sonuç'!C24,2)&REPT("*",3)&" "&MID('Önc. Alan Sonuç'!C24,FIND(" ",'Önc. Alan Sonuç'!C24)+1,2)&REPT("*",3))) ->  | D24: =IF('Önc. Alan Sonuç'!D24="","",IF(ISERR(FIND(" ",'Önc. Alan Sonuç'!D24))=TRUE,LEFT('Önc. Alan Sonuç'!D24,2)&REPT("*",3),LEFT('Önc. Alan Sonuç'!D24,2)&REPT("*",3)&" "&MID('Önc. Alan Sonuç'!D24,FIND(" ",'Önc. Alan Sonuç'!D24)+1,2)&REPT("*",3))) ->  | E24: =IF('Önc. Alan Sonuç'!E24="","",'Önc. Alan Sonuç'!E24) ->  | F24: =IF('Önc. Alan Sonuç'!F24="","",'Önc. Alan Sonuç'!F24) ->  | G24: =IF('Önc. Alan Sonuç'!G24="","",'Önc. Alan Sonuç'!G24) ->  | H24: =IF('Önc. Alan Sonuç'!H24="","",'Önc. Alan Sonuç'!H24) ->  | I24: =IF('Önc. Alan Sonuç'!I24="","",'Önc. Alan Sonuç'!I24) ->  | J24: =IF('Önc. Alan Sonuç'!J24="","",'Önc. Alan Sonuç'!J24) ->  | K24: =IF('Önc. Alan Sonuç'!K24="","",'Önc. Alan Sonuç'!K24) ->  | L24: =IF('Önc. Alan Sonuç'!L24="","",'Önc. Alan Sonuç'!L24) ->  | M24: =IF('Önc. Alan Sonuç'!M24="","",'Önc. Alan Sonuç'!M24) ->  | N24: =IF('Önc. Alan Sonuç'!N24="","",'Önc. Alan Sonuç'!N24) -> 
A25: =IF('Önc. Alan Sonuç'!A25="","",'Önc. Alan Sonuç'!A25) ->  | B25: =IF('Önc. Alan Sonuç'!B25="","",LEFT('Önc. Alan Sonuç'!B25,3)&REPT("*",4)&RIGHT('Önc. Alan Sonuç'!B25,2)) ->  | C25: =IF('Önc. Alan Sonuç'!C25="","",IF(ISERR(FIND(" ",'Önc. Alan Sonuç'!C25))=TRUE,LEFT('Önc. Alan Sonuç'!C25,2)&REPT("*",3),LEFT('Önc. Alan Sonuç'!C25,2)&REPT("*",3)&" "&MID('Önc. Alan Sonuç'!C25,FIND(" ",'Önc. Alan Sonuç'!C25)+1,2)&REPT("*",3))) ->  | D25: =IF('Önc. Alan Sonuç'!D25="","",IF(ISERR(FIND(" ",'Önc. Alan Sonuç'!D25))=TRUE,LEFT('Önc. Alan Sonuç'!D25,2)&REPT("*",3),LEFT('Önc. Alan Sonuç'!D25,2)&REPT("*",3)&" "&MID('Önc. Alan Sonuç'!D25,FIND(" ",'Önc. Alan Sonuç'!D25)+1,2)&REPT("*",3))) ->  | E25: =IF('Önc. Alan Sonuç'!E25="","",'Önc. Alan Sonuç'!E25) ->  | F25: =IF('Önc. Alan Sonuç'!F25="","",'Önc. Alan Sonuç'!F25) ->  | G25: =IF('Önc. Alan Sonuç'!G25="","",'Önc. Alan Sonuç'!G25) ->  | H25: =IF('Önc. Alan Sonuç'!H25="","",'Önc. Alan Sonuç'!H25) ->  | I25: =IF('Önc. Alan Sonuç'!I25="","",'Önc. Alan Sonuç'!I25) ->  | J25: =IF('Önc. Alan Sonuç'!J25="","",'Önc. Alan Sonuç'!J25) ->  | K25: =IF('Önc. Alan Sonuç'!K25="","",'Önc. Alan Sonuç'!K25) ->  | L25: =IF('Önc. Alan Sonuç'!L25="","",'Önc. Alan Sonuç'!L25) ->  | M25: =IF('Önc. Alan Sonuç'!M25="","",'Önc. Alan Sonuç'!M25) ->  | N25: =IF('Önc. Alan Sonuç'!N25="","",'Önc. Alan Sonuç'!N25) -> 
A26: =IF('Önc. Alan Sonuç'!A26="","",'Önc. Alan Sonuç'!A26) ->  | B26: =IF('Önc. Alan Sonuç'!B26="","",LEFT('Önc. Alan Sonuç'!B26,3)&REPT("*",4)&RIGHT('Önc. Alan Sonuç'!B26,2)) ->  | C26: =IF('Önc. Alan Sonuç'!C26="","",IF(ISERR(FIND(" ",'Önc. Alan Sonuç'!C26))=TRUE,LEFT('Önc. Alan Sonuç'!C26,2)&REPT("*",3),LEFT('Önc. Alan Sonuç'!C26,2)&REPT("*",3)&" "&MID('Önc. Alan Sonuç'!C26,FIND(" ",'Önc. Alan Sonuç'!C26)+1,2)&REPT("*",3))) ->  | D26: =IF('Önc. Alan Sonuç'!D26="","",IF(ISERR(FIND(" ",'Önc. Alan Sonuç'!D26))=TRUE,LEFT('Önc. Alan Sonuç'!D26,2)&REPT("*",3),LEFT('Önc. Alan Sonuç'!D26,2)&REPT("*",3)&" "&MID('Önc. Alan Sonuç'!D26,FIND(" ",'Önc. Alan Sonuç'!D26)+1,2)&REPT("*",3))) ->  | E26: =IF('Önc. Alan Sonuç'!E26="","",'Önc. Alan Sonuç'!E26) ->  | F26: =IF('Önc. Alan Sonuç'!F26="","",'Önc. Alan Sonuç'!F26) ->  | G26: =IF('Önc. Alan Sonuç'!G26="","",'Önc. Alan Sonuç'!G26) ->  | H26: =IF('Önc. Alan Sonuç'!H26="","",'Önc. Alan Sonuç'!H26) ->  | I26: =IF('Önc. Alan Sonuç'!I26="","",'Önc. Alan Sonuç'!I26) ->  | J26: =IF('Önc. Alan Sonuç'!J26="","",'Önc. Alan Sonuç'!J26) ->  | K26: =IF('Önc. Alan Sonuç'!K26="","",'Önc. Alan Sonuç'!K26) ->  | L26: =IF('Önc. Alan Sonuç'!L26="","",'Önc. Alan Sonuç'!L26) ->  | M26: =IF('Önc. Alan Sonuç'!M26="","",'Önc. Alan Sonuç'!M26) ->  | N26: =IF('Önc. Alan Sonuç'!N26="","",'Önc. Alan Sonuç'!N26) -> 
A27: =IF('Önc. Alan Sonuç'!A27="","",'Önc. Alan Sonuç'!A27) ->  | B27: =IF('Önc. Alan Sonuç'!B27="","",LEFT('Önc. Alan Sonuç'!B27,3)&REPT("*",4)&RIGHT('Önc. Alan Sonuç'!B27,2)) ->  | C27: =IF('Önc. Alan Sonuç'!C27="","",IF(ISERR(FIND(" ",'Önc. Alan Sonuç'!C27))=TRUE,LEFT('Önc. Alan Sonuç'!C27,2)&REPT("*",3),LEFT('Önc. Alan Sonuç'!C27,2)&REPT("*",3)&" "&MID('Önc. Alan Sonuç'!C27,FIND(" ",'Önc. Alan Sonuç'!C27)+1,2)&REPT("*",3))) ->  | D27: =IF('Önc. Alan Sonuç'!D27="","",IF(ISERR(FIND(" ",'Önc. Alan Sonuç'!D27))=TRUE,LEFT('Önc. Alan Sonuç'!D27,2)&REPT("*",3),LEFT('Önc. Alan Sonuç'!D27,2)&REPT("*",3)&" "&MID('Önc. Alan Sonuç'!D27,FIND(" ",'Önc. Alan Sonuç'!D27)+1,2)&REPT("*",3))) ->  | E27: =IF('Önc. Alan Sonuç'!E27="","",'Önc. Alan Sonuç'!E27) ->  | F27: =IF('Önc. Alan Sonuç'!F27="","",'Önc. Alan Sonuç'!F27) ->  | G27: =IF('Önc. Alan Sonuç'!G27="","",'Önc. Alan Sonuç'!G27) ->  | H27: =IF('Önc. Alan Sonuç'!H27="","",'Önc. Alan Sonuç'!H27) ->  | I27: =IF('Önc. Alan Sonuç'!I27="","",'Önc. Alan Sonuç'!I27) ->  | J27: =IF('Önc. Alan Sonuç'!J27="","",'Önc. Alan Sonuç'!J27) ->  | K27: =IF('Önc. Alan Sonuç'!K27="","",'Önc. Alan Sonuç'!K27) ->  | L27: =IF('Önc. Alan Sonuç'!L27="","",'Önc. Alan Sonuç'!L27) ->  | M27: =IF('Önc. Alan Sonuç'!M27="","",'Önc. Alan Sonuç'!M27) ->  | N27: =IF('Önc. Alan Sonuç'!N27="","",'Önc. Alan Sonuç'!N27) -> 
A28: =IF('Önc. Alan Sonuç'!A28="","",'Önc. Alan Sonuç'!A28) ->  | B28: =IF('Önc. Alan Sonuç'!B28="","",LEFT('Önc. Alan Sonuç'!B28,3)&REPT("*",4)&RIGHT('Önc. Alan Sonuç'!B28,2)) ->  | C28: =IF('Önc. Alan Sonuç'!C28="","",IF(ISERR(FIND(" ",'Önc. Alan Sonuç'!C28))=TRUE,LEFT('Önc. Alan Sonuç'!C28,2)&REPT("*",3),LEFT('Önc. Alan Sonuç'!C28,2)&REPT("*",3)&" "&MID('Önc. Alan Sonuç'!C28,FIND(" ",'Önc. Alan Sonuç'!C28)+1,2)&REPT("*",3))) ->  | D28: =IF('Önc. Alan Sonuç'!D28="","",IF(ISERR(FIND(" ",'Önc. Alan Sonuç'!D28))=TRUE,LEFT('Önc. Alan Sonuç'!D28,2)&REPT("*",3),LEFT('Önc. Alan Sonuç'!D28,2)&REPT("*",3)&" "&MID('Önc. Alan Sonuç'!D28,FIND(" ",'Önc. Alan Sonuç'!D28)+1,2)&REPT("*",3))) ->  | E28: =IF('Önc. Alan Sonuç'!E28="","",'Önc. Alan Sonuç'!E28) ->  | F28: =IF('Önc. Alan Sonuç'!F28="","",'Önc. Alan Sonuç'!F28) ->  | G28: =IF('Önc. Alan Sonuç'!G28="","",'Önc. Alan Sonuç'!G28) ->  | H28: =IF('Önc. Alan Sonuç'!H28="","",'Önc. Alan Sonuç'!H28) ->  | I28: =IF('Önc. Alan Sonuç'!I28="","",'Önc. Alan Sonuç'!I28) ->  | J28: =IF('Önc. Alan Sonuç'!J28="","",'Önc. Alan Sonuç'!J28) ->  | K28: =IF('Önc. Alan Sonuç'!K28="","",'Önc. Alan Sonuç'!K28) ->  | L28: =IF('Önc. Alan Sonuç'!L28="","",'Önc. Alan Sonuç'!L28) ->  | M28: =IF('Önc. Alan Sonuç'!M28="","",'Önc. Alan Sonuç'!M28) ->  | N28: =IF('Önc. Alan Sonuç'!N28="","",'Önc. Alan Sonuç'!N28) -> 
A29: =IF('Önc. Alan Sonuç'!A29="","",'Önc. Alan Sonuç'!A29) ->  | B29: =IF('Önc. Alan Sonuç'!B29="","",LEFT('Önc. Alan Sonuç'!B29,3)&REPT("*",4)&RIGHT('Önc. Alan Sonuç'!B29,2)) ->  | C29: =IF('Önc. Alan Sonuç'!C29="","",IF(ISERR(FIND(" ",'Önc. Alan Sonuç'!C29))=TRUE,LEFT('Önc. Alan Sonuç'!C29,2)&REPT("*",3),LEFT('Önc. Alan Sonuç'!C29,2)&REPT("*",3)&" "&MID('Önc. Alan Sonuç'!C29,FIND(" ",'Önc. Alan Sonuç'!C29)+1,2)&REPT("*",3))) ->  | D29: =IF('Önc. Alan Sonuç'!D29="","",IF(ISERR(FIND(" ",'Önc. Alan Sonuç'!D29))=TRUE,LEFT('Önc. Alan Sonuç'!D29,2)&REPT("*",3),LEFT('Önc. Alan Sonuç'!D29,2)&REPT("*",3)&" "&MID('Önc. Alan Sonuç'!D29,FIND(" ",'Önc. Alan Sonuç'!D29)+1,2)&REPT("*",3))) ->  | E29: =IF('Önc. Alan Sonuç'!E29="","",'Önc. Alan Sonuç'!E29) ->  | F29: =IF('Önc. Alan Sonuç'!F29="","",'Önc. Alan Sonuç'!F29) ->  | G29: =IF('Önc. Alan Sonuç'!G29="","",'Önc. Alan Sonuç'!G29) ->  | H29: =IF('Önc. Alan Sonuç'!H29="","",'Önc. Alan Sonuç'!H29) ->  | I29: =IF('Önc. Alan Sonuç'!I29="","",'Önc. Alan Sonuç'!I29) ->  | J29: =IF('Önc. Alan Sonuç'!J29="","",'Önc. Alan Sonuç'!J29) ->  | K29: =IF('Önc. Alan Sonuç'!K29="","",'Önc. Alan Sonuç'!K29) ->  | L29: =IF('Önc. Alan Sonuç'!L29="","",'Önc. Alan Sonuç'!L29) ->  | M29: =IF('Önc. Alan Sonuç'!M29="","",'Önc. Alan Sonuç'!M29) ->  | N29: =IF('Önc. Alan Sonuç'!N29="","",'Önc. Alan Sonuç'!N29) -> 
A30: =IF('Önc. Alan Sonuç'!A30="","",'Önc. Alan Sonuç'!A30) ->  | B30: =IF('Önc. Alan Sonuç'!B30="","",LEFT('Önc. Alan Sonuç'!B30,3)&REPT("*",4)&RIGHT('Önc. Alan Sonuç'!B30,2)) ->  | C30: =IF('Önc. Alan Sonuç'!C30="","",IF(ISERR(FIND(" ",'Önc. Alan Sonuç'!C30))=TRUE,LEFT('Önc. Alan Sonuç'!C30,2)&REPT("*",3),LEFT('Önc. Alan Sonuç'!C30,2)&REPT("*",3)&" "&MID('Önc. Alan Sonuç'!C30,FIND(" ",'Önc. Alan Sonuç'!C30)+1,2)&REPT("*",3))) ->  | D30: =IF('Önc. Alan Sonuç'!D30="","",IF(ISERR(FIND(" ",'Önc. Alan Sonuç'!D30))=TRUE,LEFT('Önc. Alan Sonuç'!D30,2)&REPT("*",3),LEFT('Önc. Alan Sonuç'!D30,2)&REPT("*",3)&" "&MID('Önc. Alan Sonuç'!D30,FIND(" ",'Önc. Alan Sonuç'!D30)+1,2)&REPT("*",3))) ->  | E30: =IF('Önc. Alan Sonuç'!E30="","",'Önc. Alan Sonuç'!E30) ->  | F30: =IF('Önc. Alan Sonuç'!F30="","",'Önc. Alan Sonuç'!F30) ->  | G30: =IF('Önc. Alan Sonuç'!G30="","",'Önc. Alan Sonuç'!G30) ->  | H30: =IF('Önc. Alan Sonuç'!H30="","",'Önc. Alan Sonuç'!H30) ->  | I30: =IF('Önc. Alan Sonuç'!I30="","",'Önc. Alan Sonuç'!I30) ->  | J30: =IF('Önc. Alan Sonuç'!J30="","",'Önc. Alan Sonuç'!J30) ->  | K30: =IF('Önc. Alan Sonuç'!K30="","",'Önc. Alan Sonuç'!K30) ->  | L30: =IF('Önc. Alan Sonuç'!L30="","",'Önc. Alan Sonuç'!L30) ->  | M30: =IF('Önc. Alan Sonuç'!M30="","",'Önc. Alan Sonuç'!M30) ->  | N30: =IF('Önc. Alan Sonuç'!N30="","",'Önc. Alan Sonuç'!N30) -> 
A31: =IF('Önc. Alan Sonuç'!A31="","",'Önc. Alan Sonuç'!A31) ->  | B31: =IF('Önc. Alan Sonuç'!B31="","",LEFT('Önc. Alan Sonuç'!B31,3)&REPT("*",4)&RIGHT('Önc. Alan Sonuç'!B31,2)) ->  | C31: =IF('Önc. Alan Sonuç'!C31="","",IF(ISERR(FIND(" ",'Önc. Alan Sonuç'!C31))=TRUE,LEFT('Önc. Alan Sonuç'!C31,2)&REPT("*",3),LEFT('Önc. Alan Sonuç'!C31,2)&REPT("*",3)&" "&MID('Önc. Alan Sonuç'!C31,FIND(" ",'Önc. Alan Sonuç'!C31)+1,2)&REPT("*",3))) ->  | D31: =IF('Önc. Alan Sonuç'!D31="","",IF(ISERR(FIND(" ",'Önc. Alan Sonuç'!D31))=TRUE,LEFT('Önc. Alan Sonuç'!D31,2)&REPT("*",3),LEFT('Önc. Alan Sonuç'!D31,2)&REPT("*",3)&" "&MID('Önc. Alan Sonuç'!D31,FIND(" ",'Önc. Alan Sonuç'!D31)+1,2)&REPT("*",3))) ->  | E31: =IF('Önc. Alan Sonuç'!E31="","",'Önc. Alan Sonuç'!E31) ->  | F31: =IF('Önc. Alan Sonuç'!F31="","",'Önc. Alan Sonuç'!F31) ->  | G31: =IF('Önc. Alan Sonuç'!G31="","",'Önc. Alan Sonuç'!G31) ->  | H31: =IF('Önc. Alan Sonuç'!H31="","",'Önc. Alan Sonuç'!H31) ->  | I31: =IF('Önc. Alan Sonuç'!I31="","",'Önc. Alan Sonuç'!I31) ->  | J31: =IF('Önc. Alan Sonuç'!J31="","",'Önc. Alan Sonuç'!J31) ->  | K31: =IF('Önc. Alan Sonuç'!K31="","",'Önc. Alan Sonuç'!K31) ->  | L31: =IF('Önc. Alan Sonuç'!L31="","",'Önc. Alan Sonuç'!L31) ->  | M31: =IF('Önc. Alan Sonuç'!M31="","",'Önc. Alan Sonuç'!M31) ->  | N31: =IF('Önc. Alan Sonuç'!N31="","",'Önc. Alan Sonuç'!N31) -> 
A32: =IF('Önc. Alan Sonuç'!A32="","",'Önc. Alan Sonuç'!A32) ->  | B32: =IF('Önc. Alan Sonuç'!B32="","",LEFT('Önc. Alan Sonuç'!B32,3)&REPT("*",4)&RIGHT('Önc. Alan Sonuç'!B32,2)) ->  | C32: =IF('Önc. Alan Sonuç'!C32="","",IF(ISERR(FIND(" ",'Önc. Alan Sonuç'!C32))=TRUE,LEFT('Önc. Alan Sonuç'!C32,2)&REPT("*",3),LEFT('Önc. Alan Sonuç'!C32,2)&REPT("*",3)&" "&MID('Önc. Alan Sonuç'!C32,FIND(" ",'Önc. Alan Sonuç'!C32)+1,2)&REPT("*",3))) ->  | D32: =IF('Önc. Alan Sonuç'!D32="","",IF(ISERR(FIND(" ",'Önc. Alan Sonuç'!D32))=TRUE,LEFT('Önc. Alan Sonuç'!D32,2)&REPT("*",3),LEFT('Önc. Alan Sonuç'!D32,2)&REPT("*",3)&" "&MID('Önc. Alan Sonuç'!D32,FIND(" ",'Önc. Alan Sonuç'!D32)+1,2)&REPT("*",3))) ->  | E32: =IF('Önc. Alan Sonuç'!E32="","",'Önc. Alan Sonuç'!E32) ->  | F32: =IF('Önc. Alan Sonuç'!F32="","",'Önc. Alan Sonuç'!F32) ->  | G32: =IF('Önc. Alan Sonuç'!G32="","",'Önc. Alan Sonuç'!G32) ->  | H32: =IF('Önc. Alan Sonuç'!H32="","",'Önc. Alan Sonuç'!H32) ->  | I32: =IF('Önc. Alan Sonuç'!I32="","",'Önc. Alan Sonuç'!I32) ->  | J32: =IF('Önc. Alan Sonuç'!J32="","",'Önc. Alan Sonuç'!J32) ->  | K32: =IF('Önc. Alan Sonuç'!K32="","",'Önc. Alan Sonuç'!K32) ->  | L32: =IF('Önc. Alan Sonuç'!L32="","",'Önc. Alan Sonuç'!L32) ->  | M32: =IF('Önc. Alan Sonuç'!M32="","",'Önc. Alan Sonuç'!M32) ->  | N32: =IF('Önc. Alan Sonuç'!N32="","",'Önc. Alan Sonuç'!N32) -> 
A33: =IF('Önc. Alan Sonuç'!A33="","",'Önc. Alan Sonuç'!A33) ->  | B33: =IF('Önc. Alan Sonuç'!B33="","",LEFT('Önc. Alan Sonuç'!B33,3)&REPT("*",4)&RIGHT('Önc. Alan Sonuç'!B33,2)) ->  | C33: =IF('Önc. Alan Sonuç'!C33="","",IF(ISERR(FIND(" ",'Önc. Alan Sonuç'!C33))=TRUE,LEFT('Önc. Alan Sonuç'!C33,2)&REPT("*",3),LEFT('Önc. Alan Sonuç'!C33,2)&REPT("*",3)&" "&MID('Önc. Alan Sonuç'!C33,FIND(" ",'Önc. Alan Sonuç'!C33)+1,2)&REPT("*",3))) ->  | D33: =IF('Önc. Alan Sonuç'!D33="","",IF(ISERR(FIND(" ",'Önc. Alan Sonuç'!D33))=TRUE,LEFT('Önc. Alan Sonuç'!D33,2)&REPT("*",3),LEFT('Önc. Alan Sonuç'!D33,2)&REPT("*",3)&" "&MID('Önc. Alan Sonuç'!D33,FIND(" ",'Önc. Alan Sonuç'!D33)+1,2)&REPT("*",3))) ->  | E33: =IF('Önc. Alan Sonuç'!E33="","",'Önc. Alan Sonuç'!E33) ->  | F33: =IF('Önc. Alan Sonuç'!F33="","",'Önc. Alan Sonuç'!F33) ->  | G33: =IF('Önc. Alan Sonuç'!G33="","",'Önc. Alan Sonuç'!G33) ->  | H33: =IF('Önc. Alan Sonuç'!H33="","",'Önc. Alan Sonuç'!H33) ->  | I33: =IF('Önc. Alan Sonuç'!I33="","",'Önc. Alan Sonuç'!I33) ->  | J33: =IF('Önc. Alan Sonuç'!J33="","",'Önc. Alan Sonuç'!J33) ->  | K33: =IF('Önc. Alan Sonuç'!K33="","",'Önc. Alan Sonuç'!K33) ->  | L33: =IF('Önc. Alan Sonuç'!L33="","",'Önc. Alan Sonuç'!L33) ->  | M33: =IF('Önc. Alan Sonuç'!M33="","",'Önc. Alan Sonuç'!M33) ->  | N33: =IF('Önc. Alan Sonuç'!N33="","",'Önc. Alan Sonuç'!N33) -> 
A34: =IF('Önc. Alan Sonuç'!A34="","",'Önc. Alan Sonuç'!A34) ->  | B34: =IF('Önc. Alan Sonuç'!B34="","",LEFT('Önc. Alan Sonuç'!B34,3)&REPT("*",4)&RIGHT('Önc. Alan Sonuç'!B34,2)) ->  | C34: =IF('Önc. Alan Sonuç'!C34="","",IF(ISERR(FIND(" ",'Önc. Alan Sonuç'!C34))=TRUE,LEFT('Önc. Alan Sonuç'!C34,2)&REPT("*",3),LEFT('Önc. Alan Sonuç'!C34,2)&REPT("*",3)&" "&MID('Önc. Alan Sonuç'!C34,FIND(" ",'Önc. Alan Sonuç'!C34)+1,2)&REPT("*",3))) ->  | D34: =IF('Önc. Alan Sonuç'!D34="","",IF(ISERR(FIND(" ",'Önc. Alan Sonuç'!D34))=TRUE,LEFT('Önc. Alan Sonuç'!D34,2)&REPT("*",3),LEFT('Önc. Alan Sonuç'!D34,2)&REPT("*",3)&" "&MID('Önc. Alan Sonuç'!D34,FIND(" ",'Önc. Alan Sonuç'!D34)+1,2)&REPT("*",3))) ->  | E34: =IF('Önc. Alan Sonuç'!E34="","",'Önc. Alan Sonuç'!E34) ->  | F34: =IF('Önc. Alan Sonuç'!F34="","",'Önc. Alan Sonuç'!F34) ->  | G34: =IF('Önc. Alan Sonuç'!G34="","",'Önc. Alan Sonuç'!G34) ->  | H34: =IF('Önc. Alan Sonuç'!H34="","",'Önc. Alan Sonuç'!H34) ->  | I34: =IF('Önc. Alan Sonuç'!I34="","",'Önc. Alan Sonuç'!I34) ->  | J34: =IF('Önc. Alan Sonuç'!J34="","",'Önc. Alan Sonuç'!J34) ->  | K34: =IF('Önc. Alan Sonuç'!K34="","",'Önc. Alan Sonuç'!K34) ->  | L34: =IF('Önc. Alan Sonuç'!L34="","",'Önc. Alan Sonuç'!L34) ->  | M34: =IF('Önc. Alan Sonuç'!M34="","",'Önc. Alan Sonuç'!M34) ->  | N34: =IF('Önc. Alan Sonuç'!N34="","",'Önc. Alan Sonuç'!N34) -> 
A35: =IF('Önc. Alan Sonuç'!A35="","",'Önc. Alan Sonuç'!A35) ->  | B35: =IF('Önc. Alan Sonuç'!B35="","",LEFT('Önc. Alan Sonuç'!B35,3)&REPT("*",4)&RIGHT('Önc. Alan Sonuç'!B35,2)) ->  | C35: =IF('Önc. Alan Sonuç'!C35="","",IF(ISERR(FIND(" ",'Önc. Alan Sonuç'!C35))=TRUE,LEFT('Önc. Alan Sonuç'!C35,2)&REPT("*",3),LEFT('Önc. Alan Sonuç'!C35,2)&REPT("*",3)&" "&MID('Önc. Alan Sonuç'!C35,FIND(" ",'Önc. Alan Sonuç'!C35)+1,2)&REPT("*",3))) ->  | D35: =IF('Önc. Alan Sonuç'!D35="","",IF(ISERR(FIND(" ",'Önc. Alan Sonuç'!D35))=TRUE,LEFT('Önc. Alan Sonuç'!D35,2)&REPT("*",3),LEFT('Önc. Alan Sonuç'!D35,2)&REPT("*",3)&" "&MID('Önc. Alan Sonuç'!D35,FIND(" ",'Önc. Alan Sonuç'!D35)+1,2)&REPT("*",3))) ->  | E35: =IF('Önc. Alan Sonuç'!E35="","",'Önc. Alan Sonuç'!E35) ->  | F35: =IF('Önc. Alan Sonuç'!F35="","",'Önc. Alan Sonuç'!F35) ->  | G35: =IF('Önc. Alan Sonuç'!G35="","",'Önc. Alan Sonuç'!G35) ->  | H35: =IF('Önc. Alan Sonuç'!H35="","",'Önc. Alan Sonuç'!H35) ->  | I35: =IF('Önc. Alan Sonuç'!I35="","",'Önc. Alan Sonuç'!I35) ->  | J35: =IF('Önc. Alan Sonuç'!J35="","",'Önc. Alan Sonuç'!J35) ->  | K35: =IF('Önc. Alan Sonuç'!K35="","",'Önc. Alan Sonuç'!K35) ->  | L35: =IF('Önc. Alan Sonuç'!L35="","",'Önc. Alan Sonuç'!L35) ->  | M35: =IF('Önc. Alan Sonuç'!M35="","",'Önc. Alan Sonuç'!M35) ->  | N35: =IF('Önc. Alan Sonuç'!N35="","",'Önc. Alan Sonuç'!N35) -> 
A36: =IF('Önc. Alan Sonuç'!A36="","",'Önc. Alan Sonuç'!A36) ->  | B36: =IF('Önc. Alan Sonuç'!B36="","",LEFT('Önc. Alan Sonuç'!B36,3)&REPT("*",4)&RIGHT('Önc. Alan Sonuç'!B36,2)) ->  | C36: =IF('Önc. Alan Sonuç'!C36="","",IF(ISERR(FIND(" ",'Önc. Alan Sonuç'!C36))=TRUE,LEFT('Önc. Alan Sonuç'!C36,2)&REPT("*",3),LEFT('Önc. Alan Sonuç'!C36,2)&REPT("*",3)&" "&MID('Önc. Alan Sonuç'!C36,FIND(" ",'Önc. Alan Sonuç'!C36)+1,2)&REPT("*",3))) ->  | D36: =IF('Önc. Alan Sonuç'!D36="","",IF(ISERR(FIND(" ",'Önc. Alan Sonuç'!D36))=TRUE,LEFT('Önc. Alan Sonuç'!D36,2)&REPT("*",3),LEFT('Önc. Alan Sonuç'!D36,2)&REPT("*",3)&" "&MID('Önc. Alan Sonuç'!D36,FIND(" ",'Önc. Alan Sonuç'!D36)+1,2)&REPT("*",3))) ->  | E36: =IF('Önc. Alan Sonuç'!E36="","",'Önc. Alan Sonuç'!E36) ->  | F36: =IF('Önc. Alan Sonuç'!F36="","",'Önc. Alan Sonuç'!F36) ->  | G36: =IF('Önc. Alan Sonuç'!G36="","",'Önc. Alan Sonuç'!G36) ->  | H36: =IF('Önc. Alan Sonuç'!H36="","",'Önc. Alan Sonuç'!H36) ->  | I36: =IF('Önc. Alan Sonuç'!I36="","",'Önc. Alan Sonuç'!I36) ->  | J36: =IF('Önc. Alan Sonuç'!J36="","",'Önc. Alan Sonuç'!J36) ->  | K36: =IF('Önc. Alan Sonuç'!K36="","",'Önc. Alan Sonuç'!K36) ->  | L36: =IF('Önc. Alan Sonuç'!L36="","",'Önc. Alan Sonuç'!L36) ->  | M36: =IF('Önc. Alan Sonuç'!M36="","",'Önc. Alan Sonuç'!M36) ->  | N36: =IF('Önc. Alan Sonuç'!N36="","",'Önc. Alan Sonuç'!N36) -> 
A37: =IF('Önc. Alan Sonuç'!A37="","",'Önc. Alan Sonuç'!A37) ->  | B37: =IF('Önc. Alan Sonuç'!B37="","",LEFT('Önc. Alan Sonuç'!B37,3)&REPT("*",4)&RIGHT('Önc. Alan Sonuç'!B37,2)) ->  | C37: =IF('Önc. Alan Sonuç'!C37="","",IF(ISERR(FIND(" ",'Önc. Alan Sonuç'!C37))=TRUE,LEFT('Önc. Alan Sonuç'!C37,2)&REPT("*",3),LEFT('Önc. Alan Sonuç'!C37,2)&REPT("*",3)&" "&MID('Önc. Alan Sonuç'!C37,FIND(" ",'Önc. Alan Sonuç'!C37)+1,2)&REPT("*",3))) ->  | D37: =IF('Önc. Alan Sonuç'!D37="","",IF(ISERR(FIND(" ",'Önc. Alan Sonuç'!D37))=TRUE,LEFT('Önc. Alan Sonuç'!D37,2)&REPT("*",3),LEFT('Önc. Alan Sonuç'!D37,2)&REPT("*",3)&" "&MID('Önc. Alan Sonuç'!D37,FIND(" ",'Önc. Alan Sonuç'!D37)+1,2)&REPT("*",3))) ->  | E37: =IF('Önc. Alan Sonuç'!E37="","",'Önc. Alan Sonuç'!E37) ->  | F37: =IF('Önc. Alan Sonuç'!F37="","",'Önc. Alan Sonuç'!F37) ->  | G37: =IF('Önc. Alan Sonuç'!G37="","",'Önc. Alan Sonuç'!G37) ->  | H37: =IF('Önc. Alan Sonuç'!H37="","",'Önc. Alan Sonuç'!H37) ->  | I37: =IF('Önc. Alan Sonuç'!I37="","",'Önc. Alan Sonuç'!I37) ->  | J37: =IF('Önc. Alan Sonuç'!J37="","",'Önc. Alan Sonuç'!J37) ->  | K37: =IF('Önc. Alan Sonuç'!K37="","",'Önc. Alan Sonuç'!K37) ->  | L37: =IF('Önc. Alan Sonuç'!L37="","",'Önc. Alan Sonuç'!L37) ->  | M37: =IF('Önc. Alan Sonuç'!M37="","",'Önc. Alan Sonuç'!M37) ->  | N37: =IF('Önc. Alan Sonuç'!N37="","",'Önc. Alan Sonuç'!N37) -> 
A38: =IF('Önc. Alan Sonuç'!A38="","",'Önc. Alan Sonuç'!A38) ->  | B38: =IF('Önc. Alan Sonuç'!B38="","",LEFT('Önc. Alan Sonuç'!B38,3)&REPT("*",4)&RIGHT('Önc. Alan Sonuç'!B38,2)) ->  | C38: =IF('Önc. Alan Sonuç'!C38="","",IF(ISERR(FIND(" ",'Önc. Alan Sonuç'!C38))=TRUE,LEFT('Önc. Alan Sonuç'!C38,2)&REPT("*",3),LEFT('Önc. Alan Sonuç'!C38,2)&REPT("*",3)&" "&MID('Önc. Alan Sonuç'!C38,FIND(" ",'Önc. Alan Sonuç'!C38)+1,2)&REPT("*",3))) ->  | D38: =IF('Önc. Alan Sonuç'!D38="","",IF(ISERR(FIND(" ",'Önc. Alan Sonuç'!D38))=TRUE,LEFT('Önc. Alan Sonuç'!D38,2)&REPT("*",3),LEFT('Önc. Alan Sonuç'!D38,2)&REPT("*",3)&" "&MID('Önc. Alan Sonuç'!D38,FIND(" ",'Önc. Alan Sonuç'!D38)+1,2)&REPT("*",3))) ->  | E38: =IF('Önc. Alan Sonuç'!E38="","",'Önc. Alan Sonuç'!E38) ->  | F38: =IF('Önc. Alan Sonuç'!F38="","",'Önc. Alan Sonuç'!F38) ->  | G38: =IF('Önc. Alan Sonuç'!G38="","",'Önc. Alan Sonuç'!G38) ->  | H38: =IF('Önc. Alan Sonuç'!H38="","",'Önc. Alan Sonuç'!H38) ->  | I38: =IF('Önc. Alan Sonuç'!I38="","",'Önc. Alan Sonuç'!I38) ->  | J38: =IF('Önc. Alan Sonuç'!J38="","",'Önc. Alan Sonuç'!J38) ->  | K38: =IF('Önc. Alan Sonuç'!K38="","",'Önc. Alan Sonuç'!K38) ->  | L38: =IF('Önc. Alan Sonuç'!L38="","",'Önc. Alan Sonuç'!L38) ->  | M38: =IF('Önc. Alan Sonuç'!M38="","",'Önc. Alan Sonuç'!M38) ->  | N38: =IF('Önc. Alan Sonuç'!N38="","",'Önc. Alan Sonuç'!N38) -> 
A39: =IF('Önc. Alan Sonuç'!A39="","",'Önc. Alan Sonuç'!A39) ->  | B39: =IF('Önc. Alan Sonuç'!B39="","",LEFT('Önc. Alan Sonuç'!B39,3)&REPT("*",4)&RIGHT('Önc. Alan Sonuç'!B39,2)) ->  | C39: =IF('Önc. Alan Sonuç'!C39="","",IF(ISERR(FIND(" ",'Önc. Alan Sonuç'!C39))=TRUE,LEFT('Önc. Alan Sonuç'!C39,2)&REPT("*",3),LEFT('Önc. Alan Sonuç'!C39,2)&REPT("*",3)&" "&MID('Önc. Alan Sonuç'!C39,FIND(" ",'Önc. Alan Sonuç'!C39)+1,2)&REPT("*",3))) ->  | D39: =IF('Önc. Alan Sonuç'!D39="","",IF(ISERR(FIND(" ",'Önc. Alan Sonuç'!D39))=TRUE,LEFT('Önc. Alan Sonuç'!D39,2)&REPT("*",3),LEFT('Önc. Alan Sonuç'!D39,2)&REPT("*",3)&" "&MID('Önc. Alan Sonuç'!D39,FIND(" ",'Önc. Alan Sonuç'!D39)+1,2)&REPT("*",3))) ->  | E39: =IF('Önc. Alan Sonuç'!E39="","",'Önc. Alan Sonuç'!E39) ->  | F39: =IF('Önc. Alan Sonuç'!F39="","",'Önc. Alan Sonuç'!F39) ->  | G39: =IF('Önc. Alan Sonuç'!G39="","",'Önc. Alan Sonuç'!G39) ->  | H39: =IF('Önc. Alan Sonuç'!H39="","",'Önc. Alan Sonuç'!H39) ->  | I39: =IF('Önc. Alan Sonuç'!I39="","",'Önc. Alan Sonuç'!I39) ->  | J39: =IF('Önc. Alan Sonuç'!J39="","",'Önc. Alan Sonuç'!J39) ->  | K39: =IF('Önc. Alan Sonuç'!K39="","",'Önc. Alan Sonuç'!K39) ->  | L39: =IF('Önc. Alan Sonuç'!L39="","",'Önc. Alan Sonuç'!L39) ->  | M39: =IF('Önc. Alan Sonuç'!M39="","",'Önc. Alan Sonuç'!M39) ->  | N39: =IF('Önc. Alan Sonuç'!N39="","",'Önc. Alan Sonuç'!N39) -> 
A40: =IF('Önc. Alan Sonuç'!A40="","",'Önc. Alan Sonuç'!A40) ->  | B40: =IF('Önc. Alan Sonuç'!B40="","",LEFT('Önc. Alan Sonuç'!B40,3)&REPT("*",4)&RIGHT('Önc. Alan Sonuç'!B40,2)) ->  | C40: =IF('Önc. Alan Sonuç'!C40="","",IF(ISERR(FIND(" ",'Önc. Alan Sonuç'!C40))=TRUE,LEFT('Önc. Alan Sonuç'!C40,2)&REPT("*",3),LEFT('Önc. Alan Sonuç'!C40,2)&REPT("*",3)&" "&MID('Önc. Alan Sonuç'!C40,FIND(" ",'Önc. Alan Sonuç'!C40)+1,2)&REPT("*",3))) ->  | D40: =IF('Önc. Alan Sonuç'!D40="","",IF(ISERR(FIND(" ",'Önc. Alan Sonuç'!D40))=TRUE,LEFT('Önc. Alan Sonuç'!D40,2)&REPT("*",3),LEFT('Önc. Alan Sonuç'!D40,2)&REPT("*",3)&" "&MID('Önc. Alan Sonuç'!D40,FIND(" ",'Önc. Alan Sonuç'!D40)+1,2)&REPT("*",3))) ->  | E40: =IF('Önc. Alan Sonuç'!E40="","",'Önc. Alan Sonuç'!E40) ->  | F40: =IF('Önc. Alan Sonuç'!F40="","",'Önc. Alan Sonuç'!F40) ->  | G40: =IF('Önc. Alan Sonuç'!G40="","",'Önc. Alan Sonuç'!G40) ->  | H40: =IF('Önc. Alan Sonuç'!H40="","",'Önc. Alan Sonuç'!H40) ->  | I40: =IF('Önc. Alan Sonuç'!I40="","",'Önc. Alan Sonuç'!I40) ->  | J40: =IF('Önc. Alan Sonuç'!J40="","",'Önc. Alan Sonuç'!J40) ->  | K40: =IF('Önc. Alan Sonuç'!K40="","",'Önc. Alan Sonuç'!K40) ->  | L40: =IF('Önc. Alan Sonuç'!L40="","",'Önc. Alan Sonuç'!L40) ->  | M40: =IF('Önc. Alan Sonuç'!M40="","",'Önc. Alan Sonuç'!M40) ->  | N40: =IF('Önc. Alan Sonuç'!N40="","",'Önc. Alan Sonuç'!N40) -> 
A41: =IF('Önc. Alan Sonuç'!A41="","",'Önc. Alan Sonuç'!A41) ->  | B41: =IF('Önc. Alan Sonuç'!B41="","",LEFT('Önc. Alan Sonuç'!B41,3)&REPT("*",4)&RIGHT('Önc. Alan Sonuç'!B41,2)) ->  | C41: =IF('Önc. Alan Sonuç'!C41="","",IF(ISERR(FIND(" ",'Önc. Alan Sonuç'!C41))=TRUE,LEFT('Önc. Alan Sonuç'!C41,2)&REPT("*",3),LEFT('Önc. Alan Sonuç'!C41,2)&REPT("*",3)&" "&MID('Önc. Alan Sonuç'!C41,FIND(" ",'Önc. Alan Sonuç'!C41)+1,2)&REPT("*",3))) ->  | D41: =IF('Önc. Alan Sonuç'!D41="","",IF(ISERR(FIND(" ",'Önc. Alan Sonuç'!D41))=TRUE,LEFT('Önc. Alan Sonuç'!D41,2)&REPT("*",3),LEFT('Önc. Alan Sonuç'!D41,2)&REPT("*",3)&" "&MID('Önc. Alan Sonuç'!D41,FIND(" ",'Önc. Alan Sonuç'!D41)+1,2)&REPT("*",3))) ->  | E41: =IF('Önc. Alan Sonuç'!E41="","",'Önc. Alan Sonuç'!E41) ->  | F41: =IF('Önc. Alan Sonuç'!F41="","",'Önc. Alan Sonuç'!F41) ->  | G41: =IF('Önc. Alan Sonuç'!G41="","",'Önc. Alan Sonuç'!G41) ->  | H41: =IF('Önc. Alan Sonuç'!H41="","",'Önc. Alan Sonuç'!H41) ->  | I41: =IF('Önc. Alan Sonuç'!I41="","",'Önc. Alan Sonuç'!I41) ->  | J41: =IF('Önc. Alan Sonuç'!J41="","",'Önc. Alan Sonuç'!J41) ->  | K41: =IF('Önc. Alan Sonuç'!K41="","",'Önc. Alan Sonuç'!K41) ->  | L41: =IF('Önc. Alan Sonuç'!L41="","",'Önc. Alan Sonuç'!L41) ->  | M41: =IF('Önc. Alan Sonuç'!M41="","",'Önc. Alan Sonuç'!M41) ->  | N41: =IF('Önc. Alan Sonuç'!N41="","",'Önc. Alan Sonuç'!N41) -> 
A42: =IF('Önc. Alan Sonuç'!A42="","",'Önc. Alan Sonuç'!A42) ->  | B42: =IF('Önc. Alan Sonuç'!B42="","",LEFT('Önc. Alan Sonuç'!B42,3)&REPT("*",4)&RIGHT('Önc. Alan Sonuç'!B42,2)) ->  | C42: =IF('Önc. Alan Sonuç'!C42="","",IF(ISERR(FIND(" ",'Önc. Alan Sonuç'!C42))=TRUE,LEFT('Önc. Alan Sonuç'!C42,2)&REPT("*",3),LEFT('Önc. Alan Sonuç'!C42,2)&REPT("*",3)&" "&MID('Önc. Alan Sonuç'!C42,FIND(" ",'Önc. Alan Sonuç'!C42)+1,2)&REPT("*",3))) ->  | D42: =IF('Önc. Alan Sonuç'!D42="","",IF(ISERR(FIND(" ",'Önc. Alan Sonuç'!D42))=TRUE,LEFT('Önc. Alan Sonuç'!D42,2)&REPT("*",3),LEFT('Önc. Alan Sonuç'!D42,2)&REPT("*",3)&" "&MID('Önc. Alan Sonuç'!D42,FIND(" ",'Önc. Alan Sonuç'!D42)+1,2)&REPT("*",3))) ->  | E42: =IF('Önc. Alan Sonuç'!E42="","",'Önc. Alan Sonuç'!E42) ->  | F42: =IF('Önc. Alan Sonuç'!F42="","",'Önc. Alan Sonuç'!F42) ->  | G42: =IF('Önc. Alan Sonuç'!G42="","",'Önc. Alan Sonuç'!G42) ->  | H42: =IF('Önc. Alan Sonuç'!H42="","",'Önc. Alan Sonuç'!H42) ->  | I42: =IF('Önc. Alan Sonuç'!I42="","",'Önc. Alan Sonuç'!I42) ->  | J42: =IF('Önc. Alan Sonuç'!J42="","",'Önc. Alan Sonuç'!J42) ->  | K42: =IF('Önc. Alan Sonuç'!K42="","",'Önc. Alan Sonuç'!K42) ->  | L42: =IF('Önc. Alan Sonuç'!L42="","",'Önc. Alan Sonuç'!L42) ->  | M42: =IF('Önc. Alan Sonuç'!M42="","",'Önc. Alan Sonuç'!M42) ->  | N42: =IF('Önc. Alan Sonuç'!N42="","",'Önc. Alan Sonuç'!N42) -> 
A43: =IF('Önc. Alan Sonuç'!A43="","",'Önc. Alan Sonuç'!A43) ->  | B43: =IF('Önc. Alan Sonuç'!B43="","",LEFT('Önc. Alan Sonuç'!B43,3)&REPT("*",4)&RIGHT('Önc. Alan Sonuç'!B43,2)) ->  | C43: =IF('Önc. Alan Sonuç'!C43="","",IF(ISERR(FIND(" ",'Önc. Alan Sonuç'!C43))=TRUE,LEFT('Önc. Alan Sonuç'!C43,2)&REPT("*",3),LEFT('Önc. Alan Sonuç'!C43,2)&REPT("*",3)&" "&MID('Önc. Alan Sonuç'!C43,FIND(" ",'Önc. Alan Sonuç'!C43)+1,2)&REPT("*",3))) ->  | D43: =IF('Önc. Alan Sonuç'!D43="","",IF(ISERR(FIND(" ",'Önc. Alan Sonuç'!D43))=TRUE,LEFT('Önc. Alan Sonuç'!D43,2)&REPT("*",3),LEFT('Önc. Alan Sonuç'!D43,2)&REPT("*",3)&" "&MID('Önc. Alan Sonuç'!D43,FIND(" ",'Önc. Alan Sonuç'!D43)+1,2)&REPT("*",3))) ->  | E43: =IF('Önc. Alan Sonuç'!E43="","",'Önc. Alan Sonuç'!E43) ->  | F43: =IF('Önc. Alan Sonuç'!F43="","",'Önc. Alan Sonuç'!F43) ->  | G43: =IF('Önc. Alan Sonuç'!G43="","",'Önc. Alan Sonuç'!G43) ->  | H43: =IF('Önc. Alan Sonuç'!H43="","",'Önc. Alan Sonuç'!H43) ->  | I43: =IF('Önc. Alan Sonuç'!I43="","",'Önc. Alan Sonuç'!I43) ->  | J43: =IF('Önc. Alan Sonuç'!J43="","",'Önc. Alan Sonuç'!J43) ->  | K43: =IF('Önc. Alan Sonuç'!K43="","",'Önc. Alan Sonuç'!K43) ->  | L43: =IF('Önc. Alan Sonuç'!L43="","",'Önc. Alan Sonuç'!L43) ->  | M43: =IF('Önc. Alan Sonuç'!M43="","",'Önc. Alan Sonuç'!M43) ->  | N43: =IF('Önc. Alan Sonuç'!N43="","",'Önc. Alan Sonuç'!N43) -> 
A44: =IF('Önc. Alan Sonuç'!A44="","",'Önc. Alan Sonuç'!A44) ->  | B44: =IF('Önc. Alan Sonuç'!B44="","",LEFT('Önc. Alan Sonuç'!B44,3)&REPT("*",4)&RIGHT('Önc. Alan Sonuç'!B44,2)) ->  | C44: =IF('Önc. Alan Sonuç'!C44="","",IF(ISERR(FIND(" ",'Önc. Alan Sonuç'!C44))=TRUE,LEFT('Önc. Alan Sonuç'!C44,2)&REPT("*",3),LEFT('Önc. Alan Sonuç'!C44,2)&REPT("*",3)&" "&MID('Önc. Alan Sonuç'!C44,FIND(" ",'Önc. Alan Sonuç'!C44)+1,2)&REPT("*",3))) ->  | D44: =IF('Önc. Alan Sonuç'!D44="","",IF(ISERR(FIND(" ",'Önc. Alan Sonuç'!D44))=TRUE,LEFT('Önc. Alan Sonuç'!D44,2)&REPT("*",3),LEFT('Önc. Alan Sonuç'!D44,2)&REPT("*",3)&" "&MID('Önc. Alan Sonuç'!D44,FIND(" ",'Önc. Alan Sonuç'!D44)+1,2)&REPT("*",3))) ->  | E44: =IF('Önc. Alan Sonuç'!E44="","",'Önc. Alan Sonuç'!E44) ->  | F44: =IF('Önc. Alan Sonuç'!F44="","",'Önc. Alan Sonuç'!F44) ->  | G44: =IF('Önc. Alan Sonuç'!G44="","",'Önc. Alan Sonuç'!G44) ->  | H44: =IF('Önc. Alan Sonuç'!H44="","",'Önc. Alan Sonuç'!H44) ->  | I44: =IF('Önc. Alan Sonuç'!I44="","",'Önc. Alan Sonuç'!I44) ->  | J44: =IF('Önc. Alan Sonuç'!J44="","",'Önc. Alan Sonuç'!J44) ->  | K44: =IF('Önc. Alan Sonuç'!K44="","",'Önc. Alan Sonuç'!K44) ->  | L44: =IF('Önc. Alan Sonuç'!L44="","",'Önc. Alan Sonuç'!L44) ->  | M44: =IF('Önc. Alan Sonuç'!M44="","",'Önc. Alan Sonuç'!M44) ->  | N44: =IF('Önc. Alan Sonuç'!N44="","",'Önc. Alan Sonuç'!N44) -> 
A45: =IF('Önc. Alan Sonuç'!A45="","",'Önc. Alan Sonuç'!A45) ->  | B45: =IF('Önc. Alan Sonuç'!B45="","",LEFT('Önc. Alan Sonuç'!B45,3)&REPT("*",4)&RIGHT('Önc. Alan Sonuç'!B45,2)) ->  | C45: =IF('Önc. Alan Sonuç'!C45="","",IF(ISERR(FIND(" ",'Önc. Alan Sonuç'!C45))=TRUE,LEFT('Önc. Alan Sonuç'!C45,2)&REPT("*",3),LEFT('Önc. Alan Sonuç'!C45,2)&REPT("*",3)&" "&MID('Önc. Alan Sonuç'!C45,FIND(" ",'Önc. Alan Sonuç'!C45)+1,2)&REPT("*",3))) ->  | D45: =IF('Önc. Alan Sonuç'!D45="","",IF(ISERR(FIND(" ",'Önc. Alan Sonuç'!D45))=TRUE,LEFT('Önc. Alan Sonuç'!D45,2)&REPT("*",3),LEFT('Önc. Alan Sonuç'!D45,2)&REPT("*",3)&" "&MID('Önc. Alan Sonuç'!D45,FIND(" ",'Önc. Alan Sonuç'!D45)+1,2)&REPT("*",3))) ->  | E45: =IF('Önc. Alan Sonuç'!E45="","",'Önc. Alan Sonuç'!E45) ->  | F45: =IF('Önc. Alan Sonuç'!F45="","",'Önc. Alan Sonuç'!F45) ->  | G45: =IF('Önc. Alan Sonuç'!G45="","",'Önc. Alan Sonuç'!G45) ->  | H45: =IF('Önc. Alan Sonuç'!H45="","",'Önc. Alan Sonuç'!H45) ->  | I45: =IF('Önc. Alan Sonuç'!I45="","",'Önc. Alan Sonuç'!I45) ->  | J45: =IF('Önc. Alan Sonuç'!J45="","",'Önc. Alan Sonuç'!J45) ->  | K45: =IF('Önc. Alan Sonuç'!K45="","",'Önc. Alan Sonuç'!K45) ->  | L45: =IF('Önc. Alan Sonuç'!L45="","",'Önc. Alan Sonuç'!L45) ->  | M45: =IF('Önc. Alan Sonuç'!M45="","",'Önc. Alan Sonuç'!M45) ->  | N45: =IF('Önc. Alan Sonuç'!N45="","",'Önc. Alan Sonuç'!N45) -> 
A46: =IF('Önc. Alan Sonuç'!A46="","",'Önc. Alan Sonuç'!A46) ->  | B46: =IF('Önc. Alan Sonuç'!B46="","",LEFT('Önc. Alan Sonuç'!B46,3)&REPT("*",4)&RIGHT('Önc. Alan Sonuç'!B46,2)) ->  | C46: =IF('Önc. Alan Sonuç'!C46="","",IF(ISERR(FIND(" ",'Önc. Alan Sonuç'!C46))=TRUE,LEFT('Önc. Alan Sonuç'!C46,2)&REPT("*",3),LEFT('Önc. Alan Sonuç'!C46,2)&REPT("*",3)&" "&MID('Önc. Alan Sonuç'!C46,FIND(" ",'Önc. Alan Sonuç'!C46)+1,2)&REPT("*",3))) ->  | D46: =IF('Önc. Alan Sonuç'!D46="","",IF(ISERR(FIND(" ",'Önc. Alan Sonuç'!D46))=TRUE,LEFT('Önc. Alan Sonuç'!D46,2)&REPT("*",3),LEFT('Önc. Alan Sonuç'!D46,2)&REPT("*",3)&" "&MID('Önc. Alan Sonuç'!D46,FIND(" ",'Önc. Alan Sonuç'!D46)+1,2)&REPT("*",3))) ->  | E46: =IF('Önc. Alan Sonuç'!E46="","",'Önc. Alan Sonuç'!E46) ->  | F46: =IF('Önc. Alan Sonuç'!F46="","",'Önc. Alan Sonuç'!F46) ->  | G46: =IF('Önc. Alan Sonuç'!G46="","",'Önc. Alan Sonuç'!G46) ->  | H46: =IF('Önc. Alan Sonuç'!H46="","",'Önc. Alan Sonuç'!H46) ->  | I46: =IF('Önc. Alan Sonuç'!I46="","",'Önc. Alan Sonuç'!I46) ->  | J46: =IF('Önc. Alan Sonuç'!J46="","",'Önc. Alan Sonuç'!J46) ->  | K46: =IF('Önc. Alan Sonuç'!K46="","",'Önc. Alan Sonuç'!K46) ->  | L46: =IF('Önc. Alan Sonuç'!L46="","",'Önc. Alan Sonuç'!L46) ->  | M46: =IF('Önc. Alan Sonuç'!M46="","",'Önc. Alan Sonuç'!M46) ->  | N46: =IF('Önc. Alan Sonuç'!N46="","",'Önc. Alan Sonuç'!N46) -> 
A47: =IF('Önc. Alan Sonuç'!A47="","",'Önc. Alan Sonuç'!A47) ->  | B47: =IF('Önc. Alan Sonuç'!B47="","",LEFT('Önc. Alan Sonuç'!B47,3)&REPT("*",4)&RIGHT('Önc. Alan Sonuç'!B47,2)) ->  | C47: =IF('Önc. Alan Sonuç'!C47="","",IF(ISERR(FIND(" ",'Önc. Alan Sonuç'!C47))=TRUE,LEFT('Önc. Alan Sonuç'!C47,2)&REPT("*",3),LEFT('Önc. Alan Sonuç'!C47,2)&REPT("*",3)&" "&MID('Önc. Alan Sonuç'!C47,FIND(" ",'Önc. Alan Sonuç'!C47)+1,2)&REPT("*",3))) ->  | D47: =IF('Önc. Alan Sonuç'!D47="","",IF(ISERR(FIND(" ",'Önc. Alan Sonuç'!D47))=TRUE,LEFT('Önc. Alan Sonuç'!D47,2)&REPT("*",3),LEFT('Önc. Alan Sonuç'!D47,2)&REPT("*",3)&" "&MID('Önc. Alan Sonuç'!D47,FIND(" ",'Önc. Alan Sonuç'!D47)+1,2)&REPT("*",3))) ->  | E47: =IF('Önc. Alan Sonuç'!E47="","",'Önc. Alan Sonuç'!E47) ->  | F47: =IF('Önc. Alan Sonuç'!F47="","",'Önc. Alan Sonuç'!F47) ->  | G47: =IF('Önc. Alan Sonuç'!G47="","",'Önc. Alan Sonuç'!G47) ->  | H47: =IF('Önc. Alan Sonuç'!H47="","",'Önc. Alan Sonuç'!H47) ->  | I47: =IF('Önc. Alan Sonuç'!I47="","",'Önc. Alan Sonuç'!I47) ->  | J47: =IF('Önc. Alan Sonuç'!J47="","",'Önc. Alan Sonuç'!J47) ->  | K47: =IF('Önc. Alan Sonuç'!K47="","",'Önc. Alan Sonuç'!K47) ->  | L47: =IF('Önc. Alan Sonuç'!L47="","",'Önc. Alan Sonuç'!L47) ->  | M47: =IF('Önc. Alan Sonuç'!M47="","",'Önc. Alan Sonuç'!M47) ->  | N47: =IF('Önc. Alan Sonuç'!N47="","",'Önc. Alan Sonuç'!N47) -> 
A48: =IF('Önc. Alan Sonuç'!A48="","",'Önc. Alan Sonuç'!A48) ->  | B48: =IF('Önc. Alan Sonuç'!B48="","",LEFT('Önc. Alan Sonuç'!B48,3)&REPT("*",4)&RIGHT('Önc. Alan Sonuç'!B48,2)) ->  | C48: =IF('Önc. Alan Sonuç'!C48="","",IF(ISERR(FIND(" ",'Önc. Alan Sonuç'!C48))=TRUE,LEFT('Önc. Alan Sonuç'!C48,2)&REPT("*",3),LEFT('Önc. Alan Sonuç'!C48,2)&REPT("*",3)&" "&MID('Önc. Alan Sonuç'!C48,FIND(" ",'Önc. Alan Sonuç'!C48)+1,2)&REPT("*",3))) ->  | D48: =IF('Önc. Alan Sonuç'!D48="","",IF(ISERR(FIND(" ",'Önc. Alan Sonuç'!D48))=TRUE,LEFT('Önc. Alan Sonuç'!D48,2)&REPT("*",3),LEFT('Önc. Alan Sonuç'!D48,2)&REPT("*",3)&" "&MID('Önc. Alan Sonuç'!D48,FIND(" ",'Önc. Alan Sonuç'!D48)+1,2)&REPT("*",3))) ->  | E48: =IF('Önc. Alan Sonuç'!E48="","",'Önc. Alan Sonuç'!E48) ->  | F48: =IF('Önc. Alan Sonuç'!F48="","",'Önc. Alan Sonuç'!F48) ->  | G48: =IF('Önc. Alan Sonuç'!G48="","",'Önc. Alan Sonuç'!G48) ->  | H48: =IF('Önc. Alan Sonuç'!H48="","",'Önc. Alan Sonuç'!H48) ->  | I48: =IF('Önc. Alan Sonuç'!I48="","",'Önc. Alan Sonuç'!I48) ->  | J48: =IF('Önc. Alan Sonuç'!J48="","",'Önc. Alan Sonuç'!J48) ->  | K48: =IF('Önc. Alan Sonuç'!K48="","",'Önc. Alan Sonuç'!K48) ->  | L48: =IF('Önc. Alan Sonuç'!L48="","",'Önc. Alan Sonuç'!L48) ->  | M48: =IF('Önc. Alan Sonuç'!M48="","",'Önc. Alan Sonuç'!M48) ->  | N48: =IF('Önc. Alan Sonuç'!N48="","",'Önc. Alan Sonuç'!N48) -> 
A49: =IF('Önc. Alan Sonuç'!A49="","",'Önc. Alan Sonuç'!A49) ->  | B49: =IF('Önc. Alan Sonuç'!B49="","",LEFT('Önc. Alan Sonuç'!B49,3)&REPT("*",4)&RIGHT('Önc. Alan Sonuç'!B49,2)) ->  | C49: =IF('Önc. Alan Sonuç'!C49="","",IF(ISERR(FIND(" ",'Önc. Alan Sonuç'!C49))=TRUE,LEFT('Önc. Alan Sonuç'!C49,2)&REPT("*",3),LEFT('Önc. Alan Sonuç'!C49,2)&REPT("*",3)&" "&MID('Önc. Alan Sonuç'!C49,FIND(" ",'Önc. Alan Sonuç'!C49)+1,2)&REPT("*",3))) ->  | D49: =IF('Önc. Alan Sonuç'!D49="","",IF(ISERR(FIND(" ",'Önc. Alan Sonuç'!D49))=TRUE,LEFT('Önc. Alan Sonuç'!D49,2)&REPT("*",3),LEFT('Önc. Alan Sonuç'!D49,2)&REPT("*",3)&" "&MID('Önc. Alan Sonuç'!D49,FIND(" ",'Önc. Alan Sonuç'!D49)+1,2)&REPT("*",3))) ->  | E49: =IF('Önc. Alan Sonuç'!E49="","",'Önc. Alan Sonuç'!E49) ->  | F49: =IF('Önc. Alan Sonuç'!F49="","",'Önc. Alan Sonuç'!F49) ->  | G49: =IF('Önc. Alan Sonuç'!G49="","",'Önc. Alan Sonuç'!G49) ->  | H49: =IF('Önc. Alan Sonuç'!H49="","",'Önc. Alan Sonuç'!H49) ->  | I49: =IF('Önc. Alan Sonuç'!I49="","",'Önc. Alan Sonuç'!I49) ->  | J49: =IF('Önc. Alan Sonuç'!J49="","",'Önc. Alan Sonuç'!J49) ->  | K49: =IF('Önc. Alan Sonuç'!K49="","",'Önc. Alan Sonuç'!K49) ->  | L49: =IF('Önc. Alan Sonuç'!L49="","",'Önc. Alan Sonuç'!L49) ->  | M49: =IF('Önc. Alan Sonuç'!M49="","",'Önc. Alan Sonuç'!M49) ->  | N49: =IF('Önc. Alan Sonuç'!N49="","",'Önc. Alan Sonuç'!N49) -> 
A50: =IF('Önc. Alan Sonuç'!A50="","",'Önc. Alan Sonuç'!A50) ->  | B50: =IF('Önc. Alan Sonuç'!B50="","",LEFT('Önc. Alan Sonuç'!B50,3)&REPT("*",4)&RIGHT('Önc. Alan Sonuç'!B50,2)) ->  | C50: =IF('Önc. Alan Sonuç'!C50="","",IF(ISERR(FIND(" ",'Önc. Alan Sonuç'!C50))=TRUE,LEFT('Önc. Alan Sonuç'!C50,2)&REPT("*",3),LEFT('Önc. Alan Sonuç'!C50,2)&REPT("*",3)&" "&MID('Önc. Alan Sonuç'!C50,FIND(" ",'Önc. Alan Sonuç'!C50)+1,2)&REPT("*",3))) ->  | D50: =IF('Önc. Alan Sonuç'!D50="","",IF(ISERR(FIND(" ",'Önc. Alan Sonuç'!D50))=TRUE,LEFT('Önc. Alan Sonuç'!D50,2)&REPT("*",3),LEFT('Önc. Alan Sonuç'!D50,2)&REPT("*",3)&" "&MID('Önc. Alan Sonuç'!D50,FIND(" ",'Önc. Alan Sonuç'!D50)+1,2)&REPT("*",3))) ->  | E50: =IF('Önc. Alan Sonuç'!E50="","",'Önc. Alan Sonuç'!E50) ->  | F50: =IF('Önc. Alan Sonuç'!F50="","",'Önc. Alan Sonuç'!F50) ->  | G50: =IF('Önc. Alan Sonuç'!G50="","",'Önc. Alan Sonuç'!G50) ->  | H50: =IF('Önc. Alan Sonuç'!H50="","",'Önc. Alan Sonuç'!H50) ->  | I50: =IF('Önc. Alan Sonuç'!I50="","",'Önc. Alan Sonuç'!I50) ->  | J50: =IF('Önc. Alan Sonuç'!J50="","",'Önc. Alan Sonuç'!J50) ->  | K50: =IF('Önc. Alan Sonuç'!K50="","",'Önc. Alan Sonuç'!K50) ->  | L50: =IF('Önc. Alan Sonuç'!L50="","",'Önc. Alan Sonuç'!L50) ->  | M50: =IF('Önc. Alan Sonuç'!M50="","",'Önc. Alan Sonuç'!M50) ->  | N50: =IF('Önc. Alan Sonuç'!N50="","",'Önc. Alan Sonuç'!N50) -> 
A51: =IF('Önc. Alan Sonuç'!A51="","",'Önc. Alan Sonuç'!A51) ->  | B51: =IF('Önc. Alan Sonuç'!B51="","",LEFT('Önc. Alan Sonuç'!B51,3)&REPT("*",4)&RIGHT('Önc. Alan Sonuç'!B51,2)) ->  | C51: =IF('Önc. Alan Sonuç'!C51="","",IF(ISERR(FIND(" ",'Önc. Alan Sonuç'!C51))=TRUE,LEFT('Önc. Alan Sonuç'!C51,2)&REPT("*",3),LEFT('Önc. Alan Sonuç'!C51,2)&REPT("*",3)&" "&MID('Önc. Alan Sonuç'!C51,FIND(" ",'Önc. Alan Sonuç'!C51)+1,2)&REPT("*",3))) ->  | D51: =IF('Önc. Alan Sonuç'!D51="","",IF(ISERR(FIND(" ",'Önc. Alan Sonuç'!D51))=TRUE,LEFT('Önc. Alan Sonuç'!D51,2)&REPT("*",3),LEFT('Önc. Alan Sonuç'!D51,2)&REPT("*",3)&" "&MID('Önc. Alan Sonuç'!D51,FIND(" ",'Önc. Alan Sonuç'!D51)+1,2)&REPT("*",3))) ->  | E51: =IF('Önc. Alan Sonuç'!E51="","",'Önc. Alan Sonuç'!E51) ->  | F51: =IF('Önc. Alan Sonuç'!F51="","",'Önc. Alan Sonuç'!F51) ->  | G51: =IF('Önc. Alan Sonuç'!G51="","",'Önc. Alan Sonuç'!G51) ->  | H51: =IF('Önc. Alan Sonuç'!H51="","",'Önc. Alan Sonuç'!H51) ->  | I51: =IF('Önc. Alan Sonuç'!I51="","",'Önc. Alan Sonuç'!I51) ->  | J51: =IF('Önc. Alan Sonuç'!J51="","",'Önc. Alan Sonuç'!J51) ->  | K51: =IF('Önc. Alan Sonuç'!K51="","",'Önc. Alan Sonuç'!K51) ->  | L51: =IF('Önc. Alan Sonuç'!L51="","",'Önc. Alan Sonuç'!L51) ->  | M51: =IF('Önc. Alan Sonuç'!M51="","",'Önc. Alan Sonuç'!M51) ->  | N51: =IF('Önc. Alan Sonuç'!N51="","",'Önc. Alan Sonuç'!N51) -> 
A52: =IF('Önc. Alan Sonuç'!A52="","",'Önc. Alan Sonuç'!A52) ->  | B52: =IF('Önc. Alan Sonuç'!B52="","",LEFT('Önc. Alan Sonuç'!B52,3)&REPT("*",4)&RIGHT('Önc. Alan Sonuç'!B52,2)) ->  | C52: =IF('Önc. Alan Sonuç'!C52="","",IF(ISERR(FIND(" ",'Önc. Alan Sonuç'!C52))=TRUE,LEFT('Önc. Alan Sonuç'!C52,2)&REPT("*",3),LEFT('Önc. Alan Sonuç'!C52,2)&REPT("*",3)&" "&MID('Önc. Alan Sonuç'!C52,FIND(" ",'Önc. Alan Sonuç'!C52)+1,2)&REPT("*",3))) ->  | D52: =IF('Önc. Alan Sonuç'!D52="","",IF(ISERR(FIND(" ",'Önc. Alan Sonuç'!D52))=TRUE,LEFT('Önc. Alan Sonuç'!D52,2)&REPT("*",3),LEFT('Önc. Alan Sonuç'!D52,2)&REPT("*",3)&" "&MID('Önc. Alan Sonuç'!D52,FIND(" ",'Önc. Alan Sonuç'!D52)+1,2)&REPT("*",3))) ->  | E52: =IF('Önc. Alan Sonuç'!E52="","",'Önc. Alan Sonuç'!E52) ->  | F52: =IF('Önc. Alan Sonuç'!F52="","",'Önc. Alan Sonuç'!F52) ->  | G52: =IF('Önc. Alan Sonuç'!G52="","",'Önc. Alan Sonuç'!G52) ->  | H52: =IF('Önc. Alan Sonuç'!H52="","",'Önc. Alan Sonuç'!H52) ->  | I52: =IF('Önc. Alan Sonuç'!I52="","",'Önc. Alan Sonuç'!I52) ->  | J52: =IF('Önc. Alan Sonuç'!J52="","",'Önc. Alan Sonuç'!J52) ->  | K52: =IF('Önc. Alan Sonuç'!K52="","",'Önc. Alan Sonuç'!K52) ->  | L52: =IF('Önc. Alan Sonuç'!L52="","",'Önc. Alan Sonuç'!L52) ->  | M52: =IF('Önc. Alan Sonuç'!M52="","",'Önc. Alan Sonuç'!M52) ->  | N52: =IF('Önc. Alan Sonuç'!N52="","",'Önc. Alan Sonuç'!N52) -> 
A53: =IF('Önc. Alan Sonuç'!A53="","",'Önc. Alan Sonuç'!A53) ->  | B53: =IF('Önc. Alan Sonuç'!B53="","",LEFT('Önc. Alan Sonuç'!B53,3)&REPT("*",4)&RIGHT('Önc. Alan Sonuç'!B53,2)) ->  | C53: =IF('Önc. Alan Sonuç'!C53="","",IF(ISERR(FIND(" ",'Önc. Alan Sonuç'!C53))=TRUE,LEFT('Önc. Alan Sonuç'!C53,2)&REPT("*",3),LEFT('Önc. Alan Sonuç'!C53,2)&REPT("*",3)&" "&MID('Önc. Alan Sonuç'!C53,FIND(" ",'Önc. Alan Sonuç'!C53)+1,2)&REPT("*",3))) ->  | D53: =IF('Önc. Alan Sonuç'!D53="","",IF(ISERR(FIND(" ",'Önc. Alan Sonuç'!D53))=TRUE,LEFT('Önc. Alan Sonuç'!D53,2)&REPT("*",3),LEFT('Önc. Alan Sonuç'!D53,2)&REPT("*",3)&" "&MID('Önc. Alan Sonuç'!D53,FIND(" ",'Önc. Alan Sonuç'!D53)+1,2)&REPT("*",3))) ->  | E53: =IF('Önc. Alan Sonuç'!E53="","",'Önc. Alan Sonuç'!E53) ->  | F53: =IF('Önc. Alan Sonuç'!F53="","",'Önc. Alan Sonuç'!F53) ->  | G53: =IF('Önc. Alan Sonuç'!G53="","",'Önc. Alan Sonuç'!G53) ->  | H53: =IF('Önc. Alan Sonuç'!H53="","",'Önc. Alan Sonuç'!H53) ->  | I53: =IF('Önc. Alan Sonuç'!I53="","",'Önc. Alan Sonuç'!I53) ->  | J53: =IF('Önc. Alan Sonuç'!J53="","",'Önc. Alan Sonuç'!J53) ->  | K53: =IF('Önc. Alan Sonuç'!K53="","",'Önc. Alan Sonuç'!K53) ->  | L53: =IF('Önc. Alan Sonuç'!L53="","",'Önc. Alan Sonuç'!L53) ->  | M53: =IF('Önc. Alan Sonuç'!M53="","",'Önc. Alan Sonuç'!M53) ->  | N53: =IF('Önc. Alan Sonuç'!N53="","",'Önc. Alan Sonuç'!N53) -> 
A54: =IF('Önc. Alan Sonuç'!A54="","",'Önc. Alan Sonuç'!A54) ->  | B54: =IF('Önc. Alan Sonuç'!B54="","",LEFT('Önc. Alan Sonuç'!B54,3)&REPT("*",4)&RIGHT('Önc. Alan Sonuç'!B54,2)) ->  | C54: =IF('Önc. Alan Sonuç'!C54="","",IF(ISERR(FIND(" ",'Önc. Alan Sonuç'!C54))=TRUE,LEFT('Önc. Alan Sonuç'!C54,2)&REPT("*",3),LEFT('Önc. Alan Sonuç'!C54,2)&REPT("*",3)&" "&MID('Önc. Alan Sonuç'!C54,FIND(" ",'Önc. Alan Sonuç'!C54)+1,2)&REPT("*",3))) ->  | D54: =IF('Önc. Alan Sonuç'!D54="","",IF(ISERR(FIND(" ",'Önc. Alan Sonuç'!D54))=TRUE,LEFT('Önc. Alan Sonuç'!D54,2)&REPT("*",3),LEFT('Önc. Alan Sonuç'!D54,2)&REPT("*",3)&" "&MID('Önc. Alan Sonuç'!D54,FIND(" ",'Önc. Alan Sonuç'!D54)+1,2)&REPT("*",3))) ->  | E54: =IF('Önc. Alan Sonuç'!E54="","",'Önc. Alan Sonuç'!E54) ->  | F54: =IF('Önc. Alan Sonuç'!F54="","",'Önc. Alan Sonuç'!F54) ->  | G54: =IF('Önc. Alan Sonuç'!G54="","",'Önc. Alan Sonuç'!G54) ->  | H54: =IF('Önc. Alan Sonuç'!H54="","",'Önc. Alan Sonuç'!H54) ->  | I54: =IF('Önc. Alan Sonuç'!I54="","",'Önc. Alan Sonuç'!I54) ->  | J54: =IF('Önc. Alan Sonuç'!J54="","",'Önc. Alan Sonuç'!J54) ->  | K54: =IF('Önc. Alan Sonuç'!K54="","",'Önc. Alan Sonuç'!K54) ->  | L54: =IF('Önc. Alan Sonuç'!L54="","",'Önc. Alan Sonuç'!L54) ->  | M54: =IF('Önc. Alan Sonuç'!M54="","",'Önc. Alan Sonuç'!M54) ->  | N54: =IF('Önc. Alan Sonuç'!N54="","",'Önc. Alan Sonuç'!N54) -> 
A55: =IF('Önc. Alan Sonuç'!A55="","",'Önc. Alan Sonuç'!A55) ->  | B55: =IF('Önc. Alan Sonuç'!B55="","",LEFT('Önc. Alan Sonuç'!B55,3)&REPT("*",4)&RIGHT('Önc. Alan Sonuç'!B55,2)) ->  | C55: =IF('Önc. Alan Sonuç'!C55="","",IF(ISERR(FIND(" ",'Önc. Alan Sonuç'!C55))=TRUE,LEFT('Önc. Alan Sonuç'!C55,2)&REPT("*",3),LEFT('Önc. Alan Sonuç'!C55,2)&REPT("*",3)&" "&MID('Önc. Alan Sonuç'!C55,FIND(" ",'Önc. Alan Sonuç'!C55)+1,2)&REPT("*",3))) ->  | D55: =IF('Önc. Alan Sonuç'!D55="","",IF(ISERR(FIND(" ",'Önc. Alan Sonuç'!D55))=TRUE,LEFT('Önc. Alan Sonuç'!D55,2)&REPT("*",3),LEFT('Önc. Alan Sonuç'!D55,2)&REPT("*",3)&" "&MID('Önc. Alan Sonuç'!D55,FIND(" ",'Önc. Alan Sonuç'!D55)+1,2)&REPT("*",3))) ->  | E55: =IF('Önc. Alan Sonuç'!E55="","",'Önc. Alan Sonuç'!E55) ->  | F55: =IF('Önc. Alan Sonuç'!F55="","",'Önc. Alan Sonuç'!F55) ->  | G55: =IF('Önc. Alan Sonuç'!G55="","",'Önc. Alan Sonuç'!G55) ->  | H55: =IF('Önc. Alan Sonuç'!H55="","",'Önc. Alan Sonuç'!H55) ->  | I55: =IF('Önc. Alan Sonuç'!I55="","",'Önc. Alan Sonuç'!I55) ->  | J55: =IF('Önc. Alan Sonuç'!J55="","",'Önc. Alan Sonuç'!J55) ->  | K55: =IF('Önc. Alan Sonuç'!K55="","",'Önc. Alan Sonuç'!K55) ->  | L55: =IF('Önc. Alan Sonuç'!L55="","",'Önc. Alan Sonuç'!L55) ->  | M55: =IF('Önc. Alan Sonuç'!M55="","",'Önc. Alan Sonuç'!M55) ->  | N55: =IF('Önc. Alan Sonuç'!N55="","",'Önc. Alan Sonuç'!N55) -> 
A56: =IF('Önc. Alan Sonuç'!A56="","",'Önc. Alan Sonuç'!A56) ->  | B56: =IF('Önc. Alan Sonuç'!B56="","",LEFT('Önc. Alan Sonuç'!B56,3)&REPT("*",4)&RIGHT('Önc. Alan Sonuç'!B56,2)) ->  | C56: =IF('Önc. Alan Sonuç'!C56="","",IF(ISERR(FIND(" ",'Önc. Alan Sonuç'!C56))=TRUE,LEFT('Önc. Alan Sonuç'!C56,2)&REPT("*",3),LEFT('Önc. Alan Sonuç'!C56,2)&REPT("*",3)&" "&MID('Önc. Alan Sonuç'!C56,FIND(" ",'Önc. Alan Sonuç'!C56)+1,2)&REPT("*",3))) ->  | D56: =IF('Önc. Alan Sonuç'!D56="","",IF(ISERR(FIND(" ",'Önc. Alan Sonuç'!D56))=TRUE,LEFT('Önc. Alan Sonuç'!D56,2)&REPT("*",3),LEFT('Önc. Alan Sonuç'!D56,2)&REPT("*",3)&" "&MID('Önc. Alan Sonuç'!D56,FIND(" ",'Önc. Alan Sonuç'!D56)+1,2)&REPT("*",3))) ->  | E56: =IF('Önc. Alan Sonuç'!E56="","",'Önc. Alan Sonuç'!E56) ->  | F56: =IF('Önc. Alan Sonuç'!F56="","",'Önc. Alan Sonuç'!F56) ->  | G56: =IF('Önc. Alan Sonuç'!G56="","",'Önc. Alan Sonuç'!G56) ->  | H56: =IF('Önc. Alan Sonuç'!H56="","",'Önc. Alan Sonuç'!H56) ->  | I56: =IF('Önc. Alan Sonuç'!I56="","",'Önc. Alan Sonuç'!I56) ->  | J56: =IF('Önc. Alan Sonuç'!J56="","",'Önc. Alan Sonuç'!J56) ->  | K56: =IF('Önc. Alan Sonuç'!K56="","",'Önc. Alan Sonuç'!K56) ->  | L56: =IF('Önc. Alan Sonuç'!L56="","",'Önc. Alan Sonuç'!L56) ->  | M56: =IF('Önc. Alan Sonuç'!M56="","",'Önc. Alan Sonuç'!M56) ->  | N56: =IF('Önc. Alan Sonuç'!N56="","",'Önc. Alan Sonuç'!N56) -> 
A57: =IF('Önc. Alan Sonuç'!A57="","",'Önc. Alan Sonuç'!A57) ->  | B57: =IF('Önc. Alan Sonuç'!B57="","",LEFT('Önc. Alan Sonuç'!B57,3)&REPT("*",4)&RIGHT('Önc. Alan Sonuç'!B57,2)) ->  | C57: =IF('Önc. Alan Sonuç'!C57="","",IF(ISERR(FIND(" ",'Önc. Alan Sonuç'!C57))=TRUE,LEFT('Önc. Alan Sonuç'!C57,2)&REPT("*",3),LEFT('Önc. Alan Sonuç'!C57,2)&REPT("*",3)&" "&MID('Önc. Alan Sonuç'!C57,FIND(" ",'Önc. Alan Sonuç'!C57)+1,2)&REPT("*",3))) ->  | D57: =IF('Önc. Alan Sonuç'!D57="","",IF(ISERR(FIND(" ",'Önc. Alan Sonuç'!D57))=TRUE,LEFT('Önc. Alan Sonuç'!D57,2)&REPT("*",3),LEFT('Önc. Alan Sonuç'!D57,2)&REPT("*",3)&" "&MID('Önc. Alan Sonuç'!D57,FIND(" ",'Önc. Alan Sonuç'!D57)+1,2)&REPT("*",3))) ->  | E57: =IF('Önc. Alan Sonuç'!E57="","",'Önc. Alan Sonuç'!E57) ->  | F57: =IF('Önc. Alan Sonuç'!F57="","",'Önc. Alan Sonuç'!F57) ->  | G57: =IF('Önc. Alan Sonuç'!G57="","",'Önc. Alan Sonuç'!G57) ->  | H57: =IF('Önc. Alan Sonuç'!H57="","",'Önc. Alan Sonuç'!H57) ->  | I57: =IF('Önc. Alan Sonuç'!I57="","",'Önc. Alan Sonuç'!I57) ->  | J57: =IF('Önc. Alan Sonuç'!J57="","",'Önc. Alan Sonuç'!J57) ->  | K57: =IF('Önc. Alan Sonuç'!K57="","",'Önc. Alan Sonuç'!K57) ->  | L57: =IF('Önc. Alan Sonuç'!L57="","",'Önc. Alan Sonuç'!L57) ->  | M57: =IF('Önc. Alan Sonuç'!M57="","",'Önc. Alan Sonuç'!M57) ->  | N57: =IF('Önc. Alan Sonuç'!N57="","",'Önc. Alan Sonuç'!N57) -> 
A58: =IF('Önc. Alan Sonuç'!A58="","",'Önc. Alan Sonuç'!A58) ->  | B58: =IF('Önc. Alan Sonuç'!B58="","",LEFT('Önc. Alan Sonuç'!B58,3)&REPT("*",4)&RIGHT('Önc. Alan Sonuç'!B58,2)) ->  | C58: =IF('Önc. Alan Sonuç'!C58="","",IF(ISERR(FIND(" ",'Önc. Alan Sonuç'!C58))=TRUE,LEFT('Önc. Alan Sonuç'!C58,2)&REPT("*",3),LEFT('Önc. Alan Sonuç'!C58,2)&REPT("*",3)&" "&MID('Önc. Alan Sonuç'!C58,FIND(" ",'Önc. Alan Sonuç'!C58)+1,2)&REPT("*",3))) ->  | D58: =IF('Önc. Alan Sonuç'!D58="","",IF(ISERR(FIND(" ",'Önc. Alan Sonuç'!D58))=TRUE,LEFT('Önc. Alan Sonuç'!D58,2)&REPT("*",3),LEFT('Önc. Alan Sonuç'!D58,2)&REPT("*",3)&" "&MID('Önc. Alan Sonuç'!D58,FIND(" ",'Önc. Alan Sonuç'!D58)+1,2)&REPT("*",3))) ->  | E58: =IF('Önc. Alan Sonuç'!E58="","",'Önc. Alan Sonuç'!E58) ->  | F58: =IF('Önc. Alan Sonuç'!F58="","",'Önc. Alan Sonuç'!F58) ->  | G58: =IF('Önc. Alan Sonuç'!G58="","",'Önc. Alan Sonuç'!G58) ->  | H58: =IF('Önc. Alan Sonuç'!H58="","",'Önc. Alan Sonuç'!H58) ->  | I58: =IF('Önc. Alan Sonuç'!I58="","",'Önc. Alan Sonuç'!I58) ->  | J58: =IF('Önc. Alan Sonuç'!J58="","",'Önc. Alan Sonuç'!J58) ->  | K58: =IF('Önc. Alan Sonuç'!K58="","",'Önc. Alan Sonuç'!K58) ->  | L58: =IF('Önc. Alan Sonuç'!L58="","",'Önc. Alan Sonuç'!L58) ->  | M58: =IF('Önc. Alan Sonuç'!M58="","",'Önc. Alan Sonuç'!M58) ->  | N58: =IF('Önc. Alan Sonuç'!N58="","",'Önc. Alan Sonuç'!N58) -> 
A59: =IF('Önc. Alan Sonuç'!A59="","",'Önc. Alan Sonuç'!A59) ->  | B59: =IF('Önc. Alan Sonuç'!B59="","",LEFT('Önc. Alan Sonuç'!B59,3)&REPT("*",4)&RIGHT('Önc. Alan Sonuç'!B59,2)) ->  | C59: =IF('Önc. Alan Sonuç'!C59="","",IF(ISERR(FIND(" ",'Önc. Alan Sonuç'!C59))=TRUE,LEFT('Önc. Alan Sonuç'!C59,2)&REPT("*",3),LEFT('Önc. Alan Sonuç'!C59,2)&REPT("*",3)&" "&MID('Önc. Alan Sonuç'!C59,FIND(" ",'Önc. Alan Sonuç'!C59)+1,2)&REPT("*",3))) ->  | D59: =IF('Önc. Alan Sonuç'!D59="","",IF(ISERR(FIND(" ",'Önc. Alan Sonuç'!D59))=TRUE,LEFT('Önc. Alan Sonuç'!D59,2)&REPT("*",3),LEFT('Önc. Alan Sonuç'!D59,2)&REPT("*",3)&" "&MID('Önc. Alan Sonuç'!D59,FIND(" ",'Önc. Alan Sonuç'!D59)+1,2)&REPT("*",3))) ->  | E59: =IF('Önc. Alan Sonuç'!E59="","",'Önc. Alan Sonuç'!E59) ->  | F59: =IF('Önc. Alan Sonuç'!F59="","",'Önc. Alan Sonuç'!F59) ->  | G59: =IF('Önc. Alan Sonuç'!G59="","",'Önc. Alan Sonuç'!G59) ->  | H59: =IF('Önc. Alan Sonuç'!H59="","",'Önc. Alan Sonuç'!H59) ->  | I59: =IF('Önc. Alan Sonuç'!I59="","",'Önc. Alan Sonuç'!I59) ->  | J59: =IF('Önc. Alan Sonuç'!J59="","",'Önc. Alan Sonuç'!J59) ->  | K59: =IF('Önc. Alan Sonuç'!K59="","",'Önc. Alan Sonuç'!K59) ->  | L59: =IF('Önc. Alan Sonuç'!L59="","",'Önc. Alan Sonuç'!L59) ->  | M59: =IF('Önc. Alan Sonuç'!M59="","",'Önc. Alan Sonuç'!M59) ->  | N59: =IF('Önc. Alan Sonuç'!N59="","",'Önc. Alan Sonuç'!N59) -> 
A60: =IF('Önc. Alan Sonuç'!A60="","",'Önc. Alan Sonuç'!A60) ->  | B60: =IF('Önc. Alan Sonuç'!B60="","",LEFT('Önc. Alan Sonuç'!B60,3)&REPT("*",4)&RIGHT('Önc. Alan Sonuç'!B60,2)) ->  | C60: =IF('Önc. Alan Sonuç'!C60="","",IF(ISERR(FIND(" ",'Önc. Alan Sonuç'!C60))=TRUE,LEFT('Önc. Alan Sonuç'!C60,2)&REPT("*",3),LEFT('Önc. Alan Sonuç'!C60,2)&REPT("*",3)&" "&MID('Önc. Alan Sonuç'!C60,FIND(" ",'Önc. Alan Sonuç'!C60)+1,2)&REPT("*",3))) ->  | D60: =IF('Önc. Alan Sonuç'!D60="","",IF(ISERR(FIND(" ",'Önc. Alan Sonuç'!D60))=TRUE,LEFT('Önc. Alan Sonuç'!D60,2)&REPT("*",3),LEFT('Önc. Alan Sonuç'!D60,2)&REPT("*",3)&" "&MID('Önc. Alan Sonuç'!D60,FIND(" ",'Önc. Alan Sonuç'!D60)+1,2)&REPT("*",3))) ->  | E60: =IF('Önc. Alan Sonuç'!E60="","",'Önc. Alan Sonuç'!E60) ->  | F60: =IF('Önc. Alan Sonuç'!F60="","",'Önc. Alan Sonuç'!F60) ->  | G60: =IF('Önc. Alan Sonuç'!G60="","",'Önc. Alan Sonuç'!G60) ->  | H60: =IF('Önc. Alan Sonuç'!H60="","",'Önc. Alan Sonuç'!H60) ->  | I60: =IF('Önc. Alan Sonuç'!I60="","",'Önc. Alan Sonuç'!I60) ->  | J60: =IF('Önc. Alan Sonuç'!J60="","",'Önc. Alan Sonuç'!J60) ->  | K60: =IF('Önc. Alan Sonuç'!K60="","",'Önc. Alan Sonuç'!K60) ->  | L60: =IF('Önc. Alan Sonuç'!L60="","",'Önc. Alan Sonuç'!L60) ->  | M60: =IF('Önc. Alan Sonuç'!M60="","",'Önc. Alan Sonuç'!M60) ->  | N60: =IF('Önc. Alan Sonuç'!N60="","",'Önc. Alan Sonuç'!N60) -> 
A61: =IF('Önc. Alan Sonuç'!A61="","",'Önc. Alan Sonuç'!A61) ->  | B61: =IF('Önc. Alan Sonuç'!B61="","",LEFT('Önc. Alan Sonuç'!B61,3)&REPT("*",4)&RIGHT('Önc. Alan Sonuç'!B61,2)) ->  | C61: =IF('Önc. Alan Sonuç'!C61="","",IF(ISERR(FIND(" ",'Önc. Alan Sonuç'!C61))=TRUE,LEFT('Önc. Alan Sonuç'!C61,2)&REPT("*",3),LEFT('Önc. Alan Sonuç'!C61,2)&REPT("*",3)&" "&MID('Önc. Alan Sonuç'!C61,FIND(" ",'Önc. Alan Sonuç'!C61)+1,2)&REPT("*",3))) ->  | D61: =IF('Önc. Alan Sonuç'!D61="","",IF(ISERR(FIND(" ",'Önc. Alan Sonuç'!D61))=TRUE,LEFT('Önc. Alan Sonuç'!D61,2)&REPT("*",3),LEFT('Önc. Alan Sonuç'!D61,2)&REPT("*",3)&" "&MID('Önc. Alan Sonuç'!D61,FIND(" ",'Önc. Alan Sonuç'!D61)+1,2)&REPT("*",3))) ->  | E61: =IF('Önc. Alan Sonuç'!E61="","",'Önc. Alan Sonuç'!E61) ->  | F61: =IF('Önc. Alan Sonuç'!F61="","",'Önc. Alan Sonuç'!F61) ->  | G61: =IF('Önc. Alan Sonuç'!G61="","",'Önc. Alan Sonuç'!G61) ->  | H61: =IF('Önc. Alan Sonuç'!H61="","",'Önc. Alan Sonuç'!H61) ->  | I61: =IF('Önc. Alan Sonuç'!I61="","",'Önc. Alan Sonuç'!I61) ->  | J61: =IF('Önc. Alan Sonuç'!J61="","",'Önc. Alan Sonuç'!J61) ->  | K61: =IF('Önc. Alan Sonuç'!K61="","",'Önc. Alan Sonuç'!K61) ->  | L61: =IF('Önc. Alan Sonuç'!L61="","",'Önc. Alan Sonuç'!L61) ->  | M61: =IF('Önc. Alan Sonuç'!M61="","",'Önc. Alan Sonuç'!M61) ->  | N61: =IF('Önc. Alan Sonuç'!N61="","",'Önc. Alan Sonuç'!N61) -> 
A62: =IF('Önc. Alan Sonuç'!A62="","",'Önc. Alan Sonuç'!A62) ->  | B62: =IF('Önc. Alan Sonuç'!B62="","",LEFT('Önc. Alan Sonuç'!B62,3)&REPT("*",4)&RIGHT('Önc. Alan Sonuç'!B62,2)) ->  | C62: =IF('Önc. Alan Sonuç'!C62="","",IF(ISERR(FIND(" ",'Önc. Alan Sonuç'!C62))=TRUE,LEFT('Önc. Alan Sonuç'!C62,2)&REPT("*",3),LEFT('Önc. Alan Sonuç'!C62,2)&REPT("*",3)&" "&MID('Önc. Alan Sonuç'!C62,FIND(" ",'Önc. Alan Sonuç'!C62)+1,2)&REPT("*",3))) ->  | D62: =IF('Önc. Alan Sonuç'!D62="","",IF(ISERR(FIND(" ",'Önc. Alan Sonuç'!D62))=TRUE,LEFT('Önc. Alan Sonuç'!D62,2)&REPT("*",3),LEFT('Önc. Alan Sonuç'!D62,2)&REPT("*",3)&" "&MID('Önc. Alan Sonuç'!D62,FIND(" ",'Önc. Alan Sonuç'!D62)+1,2)&REPT("*",3))) ->  | E62: =IF('Önc. Alan Sonuç'!E62="","",'Önc. Alan Sonuç'!E62) ->  | F62: =IF('Önc. Alan Sonuç'!F62="","",'Önc. Alan Sonuç'!F62) ->  | G62: =IF('Önc. Alan Sonuç'!G62="","",'Önc. Alan Sonuç'!G62) ->  | H62: =IF('Önc. Alan Sonuç'!H62="","",'Önc. Alan Sonuç'!H62) ->  | I62: =IF('Önc. Alan Sonuç'!I62="","",'Önc. Alan Sonuç'!I62) ->  | J62: =IF('Önc. Alan Sonuç'!J62="","",'Önc. Alan Sonuç'!J62) ->  | K62: =IF('Önc. Alan Sonuç'!K62="","",'Önc. Alan Sonuç'!K62) ->  | L62: =IF('Önc. Alan Sonuç'!L62="","",'Önc. Alan Sonuç'!L62) ->  | M62: =IF('Önc. Alan Sonuç'!M62="","",'Önc. Alan Sonuç'!M62) ->  | N62: =IF('Önc. Alan Sonuç'!N62="","",'Önc. Alan Sonuç'!N62) -> 
A63: =IF('Önc. Alan Sonuç'!A63="","",'Önc. Alan Sonuç'!A63) ->  | B63: =IF('Önc. Alan Sonuç'!B63="","",LEFT('Önc. Alan Sonuç'!B63,3)&REPT("*",4)&RIGHT('Önc. Alan Sonuç'!B63,2)) ->  | C63: =IF('Önc. Alan Sonuç'!C63="","",IF(ISERR(FIND(" ",'Önc. Alan Sonuç'!C63))=TRUE,LEFT('Önc. Alan Sonuç'!C63,2)&REPT("*",3),LEFT('Önc. Alan Sonuç'!C63,2)&REPT("*",3)&" "&MID('Önc. Alan Sonuç'!C63,FIND(" ",'Önc. Alan Sonuç'!C63)+1,2)&REPT("*",3))) ->  | D63: =IF('Önc. Alan Sonuç'!D63="","",IF(ISERR(FIND(" ",'Önc. Alan Sonuç'!D63))=TRUE,LEFT('Önc. Alan Sonuç'!D63,2)&REPT("*",3),LEFT('Önc. Alan Sonuç'!D63,2)&REPT("*",3)&" "&MID('Önc. Alan Sonuç'!D63,FIND(" ",'Önc. Alan Sonuç'!D63)+1,2)&REPT("*",3))) ->  | E63: =IF('Önc. Alan Sonuç'!E63="","",'Önc. Alan Sonuç'!E63) ->  | F63: =IF('Önc. Alan Sonuç'!F63="","",'Önc. Alan Sonuç'!F63) ->  | G63: =IF('Önc. Alan Sonuç'!G63="","",'Önc. Alan Sonuç'!G63) ->  | H63: =IF('Önc. Alan Sonuç'!H63="","",'Önc. Alan Sonuç'!H63) ->  | I63: =IF('Önc. Alan Sonuç'!I63="","",'Önc. Alan Sonuç'!I63) ->  | J63: =IF('Önc. Alan Sonuç'!J63="","",'Önc. Alan Sonuç'!J63) ->  | K63: =IF('Önc. Alan Sonuç'!K63="","",'Önc. Alan Sonuç'!K63) ->  | L63: =IF('Önc. Alan Sonuç'!L63="","",'Önc. Alan Sonuç'!L63) ->  | M63: =IF('Önc. Alan Sonuç'!M63="","",'Önc. Alan Sonuç'!M63) ->  | N63: =IF('Önc. Alan Sonuç'!N63="","",'Önc. Alan Sonuç'!N63) -> 
A64: =IF('Önc. Alan Sonuç'!A64="","",'Önc. Alan Sonuç'!A64) ->  | B64: =IF('Önc. Alan Sonuç'!B64="","",LEFT('Önc. Alan Sonuç'!B64,3)&REPT("*",4)&RIGHT('Önc. Alan Sonuç'!B64,2)) ->  | C64: =IF('Önc. Alan Sonuç'!C64="","",IF(ISERR(FIND(" ",'Önc. Alan Sonuç'!C64))=TRUE,LEFT('Önc. Alan Sonuç'!C64,2)&REPT("*",3),LEFT('Önc. Alan Sonuç'!C64,2)&REPT("*",3)&" "&MID('Önc. Alan Sonuç'!C64,FIND(" ",'Önc. Alan Sonuç'!C64)+1,2)&REPT("*",3))) ->  | D64: =IF('Önc. Alan Sonuç'!D64="","",IF(ISERR(FIND(" ",'Önc. Alan Sonuç'!D64))=TRUE,LEFT('Önc. Alan Sonuç'!D64,2)&REPT("*",3),LEFT('Önc. Alan Sonuç'!D64,2)&REPT("*",3)&" "&MID('Önc. Alan Sonuç'!D64,FIND(" ",'Önc. Alan Sonuç'!D64)+1,2)&REPT("*",3))) ->  | E64: =IF('Önc. Alan Sonuç'!E64="","",'Önc. Alan Sonuç'!E64) ->  | F64: =IF('Önc. Alan Sonuç'!F64="","",'Önc. Alan Sonuç'!F64) ->  | G64: =IF('Önc. Alan Sonuç'!G64="","",'Önc. Alan Sonuç'!G64) ->  | H64: =IF('Önc. Alan Sonuç'!H64="","",'Önc. Alan Sonuç'!H64) ->  | I64: =IF('Önc. Alan Sonuç'!I64="","",'Önc. Alan Sonuç'!I64) ->  | J64: =IF('Önc. Alan Sonuç'!J64="","",'Önc. Alan Sonuç'!J64) ->  | K64: =IF('Önc. Alan Sonuç'!K64="","",'Önc. Alan Sonuç'!K64) ->  | L64: =IF('Önc. Alan Sonuç'!L64="","",'Önc. Alan Sonuç'!L64) ->  | M64: =IF('Önc. Alan Sonuç'!M64="","",'Önc. Alan Sonuç'!M64) ->  | N64: =IF('Önc. Alan Sonuç'!N64="","",'Önc. Alan Sonuç'!N64) -> 
A65: =IF('Önc. Alan Sonuç'!A65="","",'Önc. Alan Sonuç'!A65) ->  | B65: =IF('Önc. Alan Sonuç'!B65="","",LEFT('Önc. Alan Sonuç'!B65,3)&REPT("*",4)&RIGHT('Önc. Alan Sonuç'!B65,2)) ->  | C65: =IF('Önc. Alan Sonuç'!C65="","",IF(ISERR(FIND(" ",'Önc. Alan Sonuç'!C65))=TRUE,LEFT('Önc. Alan Sonuç'!C65,2)&REPT("*",3),LEFT('Önc. Alan Sonuç'!C65,2)&REPT("*",3)&" "&MID('Önc. Alan Sonuç'!C65,FIND(" ",'Önc. Alan Sonuç'!C65)+1,2)&REPT("*",3))) ->  | D65: =IF('Önc. Alan Sonuç'!D65="","",IF(ISERR(FIND(" ",'Önc. Alan Sonuç'!D65))=TRUE,LEFT('Önc. Alan Sonuç'!D65,2)&REPT("*",3),LEFT('Önc. Alan Sonuç'!D65,2)&REPT("*",3)&" "&MID('Önc. Alan Sonuç'!D65,FIND(" ",'Önc. Alan Sonuç'!D65)+1,2)&REPT("*",3))) ->  | E65: =IF('Önc. Alan Sonuç'!E65="","",'Önc. Alan Sonuç'!E65) ->  | F65: =IF('Önc. Alan Sonuç'!F65="","",'Önc. Alan Sonuç'!F65) ->  | G65: =IF('Önc. Alan Sonuç'!G65="","",'Önc. Alan Sonuç'!G65) ->  | H65: =IF('Önc. Alan Sonuç'!H65="","",'Önc. Alan Sonuç'!H65) ->  | I65: =IF('Önc. Alan Sonuç'!I65="","",'Önc. Alan Sonuç'!I65) ->  | J65: =IF('Önc. Alan Sonuç'!J65="","",'Önc. Alan Sonuç'!J65) ->  | K65: =IF('Önc. Alan Sonuç'!K65="","",'Önc. Alan Sonuç'!K65) ->  | L65: =IF('Önc. Alan Sonuç'!L65="","",'Önc. Alan Sonuç'!L65) ->  | M65: =IF('Önc. Alan Sonuç'!M65="","",'Önc. Alan Sonuç'!M65) ->  | N65: =IF('Önc. Alan Sonuç'!N65="","",'Önc. Alan Sonuç'!N65) -> 
A66: =IF('Önc. Alan Sonuç'!A66="","",'Önc. Alan Sonuç'!A66) ->  | B66: =IF('Önc. Alan Sonuç'!B66="","",LEFT('Önc. Alan Sonuç'!B66,3)&REPT("*",4)&RIGHT('Önc. Alan Sonuç'!B66,2)) ->  | C66: =IF('Önc. Alan Sonuç'!C66="","",IF(ISERR(FIND(" ",'Önc. Alan Sonuç'!C66))=TRUE,LEFT('Önc. Alan Sonuç'!C66,2)&REPT("*",3),LEFT('Önc. Alan Sonuç'!C66,2)&REPT("*",3)&" "&MID('Önc. Alan Sonuç'!C66,FIND(" ",'Önc. Alan Sonuç'!C66)+1,2)&REPT("*",3))) ->  | D66: =IF('Önc. Alan Sonuç'!D66="","",IF(ISERR(FIND(" ",'Önc. Alan Sonuç'!D66))=TRUE,LEFT('Önc. Alan Sonuç'!D66,2)&REPT("*",3),LEFT('Önc. Alan Sonuç'!D66,2)&REPT("*",3)&" "&MID('Önc. Alan Sonuç'!D66,FIND(" ",'Önc. Alan Sonuç'!D66)+1,2)&REPT("*",3))) ->  | E66: =IF('Önc. Alan Sonuç'!E66="","",'Önc. Alan Sonuç'!E66) ->  | F66: =IF('Önc. Alan Sonuç'!F66="","",'Önc. Alan Sonuç'!F66) ->  | G66: =IF('Önc. Alan Sonuç'!G66="","",'Önc. Alan Sonuç'!G66) ->  | H66: =IF('Önc. Alan Sonuç'!H66="","",'Önc. Alan Sonuç'!H66) ->  | I66: =IF('Önc. Alan Sonuç'!I66="","",'Önc. Alan Sonuç'!I66) ->  | J66: =IF('Önc. Alan Sonuç'!J66="","",'Önc. Alan Sonuç'!J66) ->  | K66: =IF('Önc. Alan Sonuç'!K66="","",'Önc. Alan Sonuç'!K66) ->  | L66: =IF('Önc. Alan Sonuç'!L66="","",'Önc. Alan Sonuç'!L66) ->  | M66: =IF('Önc. Alan Sonuç'!M66="","",'Önc. Alan Sonuç'!M66) ->  | N66: =IF('Önc. Alan Sonuç'!N66="","",'Önc. Alan Sonuç'!N66) -> 
A67: =IF('Önc. Alan Sonuç'!A67="","",'Önc. Alan Sonuç'!A67) ->  | B67: =IF('Önc. Alan Sonuç'!B67="","",LEFT('Önc. Alan Sonuç'!B67,3)&REPT("*",4)&RIGHT('Önc. Alan Sonuç'!B67,2)) ->  | C67: =IF('Önc. Alan Sonuç'!C67="","",IF(ISERR(FIND(" ",'Önc. Alan Sonuç'!C67))=TRUE,LEFT('Önc. Alan Sonuç'!C67,2)&REPT("*",3),LEFT('Önc. Alan Sonuç'!C67,2)&REPT("*",3)&" "&MID('Önc. Alan Sonuç'!C67,FIND(" ",'Önc. Alan Sonuç'!C67)+1,2)&REPT("*",3))) ->  | D67: =IF('Önc. Alan Sonuç'!D67="","",IF(ISERR(FIND(" ",'Önc. Alan Sonuç'!D67))=TRUE,LEFT('Önc. Alan Sonuç'!D67,2)&REPT("*",3),LEFT('Önc. Alan Sonuç'!D67,2)&REPT("*",3)&" "&MID('Önc. Alan Sonuç'!D67,FIND(" ",'Önc. Alan Sonuç'!D67)+1,2)&REPT("*",3))) ->  | E67: =IF('Önc. Alan Sonuç'!E67="","",'Önc. Alan Sonuç'!E67) ->  | F67: =IF('Önc. Alan Sonuç'!F67="","",'Önc. Alan Sonuç'!F67) ->  | G67: =IF('Önc. Alan Sonuç'!G67="","",'Önc. Alan Sonuç'!G67) ->  | H67: =IF('Önc. Alan Sonuç'!H67="","",'Önc. Alan Sonuç'!H67) ->  | I67: =IF('Önc. Alan Sonuç'!I67="","",'Önc. Alan Sonuç'!I67) ->  | J67: =IF('Önc. Alan Sonuç'!J67="","",'Önc. Alan Sonuç'!J67) ->  | K67: =IF('Önc. Alan Sonuç'!K67="","",'Önc. Alan Sonuç'!K67) ->  | L67: =IF('Önc. Alan Sonuç'!L67="","",'Önc. Alan Sonuç'!L67) ->  | M67: =IF('Önc. Alan Sonuç'!M67="","",'Önc. Alan Sonuç'!M67) ->  | N67: =IF('Önc. Alan Sonuç'!N67="","",'Önc. Alan Sonuç'!N67) -> 
A68: =IF('Önc. Alan Sonuç'!A68="","",'Önc. Alan Sonuç'!A68) ->  | B68: =IF('Önc. Alan Sonuç'!B68="","",LEFT('Önc. Alan Sonuç'!B68,3)&REPT("*",4)&RIGHT('Önc. Alan Sonuç'!B68,2)) ->  | C68: =IF('Önc. Alan Sonuç'!C68="","",IF(ISERR(FIND(" ",'Önc. Alan Sonuç'!C68))=TRUE,LEFT('Önc. Alan Sonuç'!C68,2)&REPT("*",3),LEFT('Önc. Alan Sonuç'!C68,2)&REPT("*",3)&" "&MID('Önc. Alan Sonuç'!C68,FIND(" ",'Önc. Alan Sonuç'!C68)+1,2)&REPT("*",3))) ->  | D68: =IF('Önc. Alan Sonuç'!D68="","",IF(ISERR(FIND(" ",'Önc. Alan Sonuç'!D68))=TRUE,LEFT('Önc. Alan Sonuç'!D68,2)&REPT("*",3),LEFT('Önc. Alan Sonuç'!D68,2)&REPT("*",3)&" "&MID('Önc. Alan Sonuç'!D68,FIND(" ",'Önc. Alan Sonuç'!D68)+1,2)&REPT("*",3))) ->  | E68: =IF('Önc. Alan Sonuç'!E68="","",'Önc. Alan Sonuç'!E68) ->  | F68: =IF('Önc. Alan Sonuç'!F68="","",'Önc. Alan Sonuç'!F68) ->  | G68: =IF('Önc. Alan Sonuç'!G68="","",'Önc. Alan Sonuç'!G68) ->  | H68: =IF('Önc. Alan Sonuç'!H68="","",'Önc. Alan Sonuç'!H68) ->  | I68: =IF('Önc. Alan Sonuç'!I68="","",'Önc. Alan Sonuç'!I68) ->  | J68: =IF('Önc. Alan Sonuç'!J68="","",'Önc. Alan Sonuç'!J68) ->  | K68: =IF('Önc. Alan Sonuç'!K68="","",'Önc. Alan Sonuç'!K68) ->  | L68: =IF('Önc. Alan Sonuç'!L68="","",'Önc. Alan Sonuç'!L68) ->  | M68: =IF('Önc. Alan Sonuç'!M68="","",'Önc. Alan Sonuç'!M68) ->  | N68: =IF('Önc. Alan Sonuç'!N68="","",'Önc. Alan Sonuç'!N68) -> 
A69: =IF('Önc. Alan Sonuç'!A69="","",'Önc. Alan Sonuç'!A69) ->  | B69: =IF('Önc. Alan Sonuç'!B69="","",LEFT('Önc. Alan Sonuç'!B69,3)&REPT("*",4)&RIGHT('Önc. Alan Sonuç'!B69,2)) ->  | C69: =IF('Önc. Alan Sonuç'!C69="","",IF(ISERR(FIND(" ",'Önc. Alan Sonuç'!C69))=TRUE,LEFT('Önc. Alan Sonuç'!C69,2)&REPT("*",3),LEFT('Önc. Alan Sonuç'!C69,2)&REPT("*",3)&" "&MID('Önc. Alan Sonuç'!C69,FIND(" ",'Önc. Alan Sonuç'!C69)+1,2)&REPT("*",3))) ->  | D69: =IF('Önc. Alan Sonuç'!D69="","",IF(ISERR(FIND(" ",'Önc. Alan Sonuç'!D69))=TRUE,LEFT('Önc. Alan Sonuç'!D69,2)&REPT("*",3),LEFT('Önc. Alan Sonuç'!D69,2)&REPT("*",3)&" "&MID('Önc. Alan Sonuç'!D69,FIND(" ",'Önc. Alan Sonuç'!D69)+1,2)&REPT("*",3))) ->  | E69: =IF('Önc. Alan Sonuç'!E69="","",'Önc. Alan Sonuç'!E69) ->  | F69: =IF('Önc. Alan Sonuç'!F69="","",'Önc. Alan Sonuç'!F69) ->  | G69: =IF('Önc. Alan Sonuç'!G69="","",'Önc. Alan Sonuç'!G69) ->  | H69: =IF('Önc. Alan Sonuç'!H69="","",'Önc. Alan Sonuç'!H69) ->  | I69: =IF('Önc. Alan Sonuç'!I69="","",'Önc. Alan Sonuç'!I69) ->  | J69: =IF('Önc. Alan Sonuç'!J69="","",'Önc. Alan Sonuç'!J69) ->  | K69: =IF('Önc. Alan Sonuç'!K69="","",'Önc. Alan Sonuç'!K69) ->  | L69: =IF('Önc. Alan Sonuç'!L69="","",'Önc. Alan Sonuç'!L69) ->  | M69: =IF('Önc. Alan Sonuç'!M69="","",'Önc. Alan Sonuç'!M69) ->  | N69: =IF('Önc. Alan Sonuç'!N69="","",'Önc. Alan Sonuç'!N69) -> 
A70: =IF('Önc. Alan Sonuç'!A70="","",'Önc. Alan Sonuç'!A70) ->  | B70: =IF('Önc. Alan Sonuç'!B70="","",LEFT('Önc. Alan Sonuç'!B70,3)&REPT("*",4)&RIGHT('Önc. Alan Sonuç'!B70,2)) ->  | C70: =IF('Önc. Alan Sonuç'!C70="","",IF(ISERR(FIND(" ",'Önc. Alan Sonuç'!C70))=TRUE,LEFT('Önc. Alan Sonuç'!C70,2)&REPT("*",3),LEFT('Önc. Alan Sonuç'!C70,2)&REPT("*",3)&" "&MID('Önc. Alan Sonuç'!C70,FIND(" ",'Önc. Alan Sonuç'!C70)+1,2)&REPT("*",3))) ->  | D70: =IF('Önc. Alan Sonuç'!D70="","",IF(ISERR(FIND(" ",'Önc. Alan Sonuç'!D70))=TRUE,LEFT('Önc. Alan Sonuç'!D70,2)&REPT("*",3),LEFT('Önc. Alan Sonuç'!D70,2)&REPT("*",3)&" "&MID('Önc. Alan Sonuç'!D70,FIND(" ",'Önc. Alan Sonuç'!D70)+1,2)&REPT("*",3))) ->  | E70: =IF('Önc. Alan Sonuç'!E70="","",'Önc. Alan Sonuç'!E70) ->  | F70: =IF('Önc. Alan Sonuç'!F70="","",'Önc. Alan Sonuç'!F70) ->  | G70: =IF('Önc. Alan Sonuç'!G70="","",'Önc. Alan Sonuç'!G70) ->  | H70: =IF('Önc. Alan Sonuç'!H70="","",'Önc. Alan Sonuç'!H70) ->  | I70: =IF('Önc. Alan Sonuç'!I70="","",'Önc. Alan Sonuç'!I70) ->  | J70: =IF('Önc. Alan Sonuç'!J70="","",'Önc. Alan Sonuç'!J70) ->  | K70: =IF('Önc. Alan Sonuç'!K70="","",'Önc. Alan Sonuç'!K70) ->  | L70: =IF('Önc. Alan Sonuç'!L70="","",'Önc. Alan Sonuç'!L70) ->  | M70: =IF('Önc. Alan Sonuç'!M70="","",'Önc. Alan Sonuç'!M70) ->  | N70: =IF('Önc. Alan Sonuç'!N70="","",'Önc. Alan Sonuç'!N70) -> 
A71: =IF('Önc. Alan Sonuç'!A71="","",'Önc. Alan Sonuç'!A71) ->  | B71: =IF('Önc. Alan Sonuç'!B71="","",LEFT('Önc. Alan Sonuç'!B71,3)&REPT("*",4)&RIGHT('Önc. Alan Sonuç'!B71,2)) ->  | C71: =IF('Önc. Alan Sonuç'!C71="","",IF(ISERR(FIND(" ",'Önc. Alan Sonuç'!C71))=TRUE,LEFT('Önc. Alan Sonuç'!C71,2)&REPT("*",3),LEFT('Önc. Alan Sonuç'!C71,2)&REPT("*",3)&" "&MID('Önc. Alan Sonuç'!C71,FIND(" ",'Önc. Alan Sonuç'!C71)+1,2)&REPT("*",3))) ->  | D71: =IF('Önc. Alan Sonuç'!D71="","",IF(ISERR(FIND(" ",'Önc. Alan Sonuç'!D71))=TRUE,LEFT('Önc. Alan Sonuç'!D71,2)&REPT("*",3),LEFT('Önc. Alan Sonuç'!D71,2)&REPT("*",3)&" "&MID('Önc. Alan Sonuç'!D71,FIND(" ",'Önc. Alan Sonuç'!D71)+1,2)&REPT("*",3))) ->  | E71: =IF('Önc. Alan Sonuç'!E71="","",'Önc. Alan Sonuç'!E71) ->  | F71: =IF('Önc. Alan Sonuç'!F71="","",'Önc. Alan Sonuç'!F71) ->  | G71: =IF('Önc. Alan Sonuç'!G71="","",'Önc. Alan Sonuç'!G71) ->  | H71: =IF('Önc. Alan Sonuç'!H71="","",'Önc. Alan Sonuç'!H71) ->  | I71: =IF('Önc. Alan Sonuç'!I71="","",'Önc. Alan Sonuç'!I71) ->  | J71: =IF('Önc. Alan Sonuç'!J71="","",'Önc. Alan Sonuç'!J71) ->  | K71: =IF('Önc. Alan Sonuç'!K71="","",'Önc. Alan Sonuç'!K71) ->  | L71: =IF('Önc. Alan Sonuç'!L71="","",'Önc. Alan Sonuç'!L71) ->  | M71: =IF('Önc. Alan Sonuç'!M71="","",'Önc. Alan Sonuç'!M71) ->  | N71: =IF('Önc. Alan Sonuç'!N71="","",'Önc. Alan Sonuç'!N71) -> 
A72: =IF('Önc. Alan Sonuç'!A72="","",'Önc. Alan Sonuç'!A72) ->  | B72: =IF('Önc. Alan Sonuç'!B72="","",LEFT('Önc. Alan Sonuç'!B72,3)&REPT("*",4)&RIGHT('Önc. Alan Sonuç'!B72,2)) ->  | C72: =IF('Önc. Alan Sonuç'!C72="","",IF(ISERR(FIND(" ",'Önc. Alan Sonuç'!C72))=TRUE,LEFT('Önc. Alan Sonuç'!C72,2)&REPT("*",3),LEFT('Önc. Alan Sonuç'!C72,2)&REPT("*",3)&" "&MID('Önc. Alan Sonuç'!C72,FIND(" ",'Önc. Alan Sonuç'!C72)+1,2)&REPT("*",3))) ->  | D72: =IF('Önc. Alan Sonuç'!D72="","",IF(ISERR(FIND(" ",'Önc. Alan Sonuç'!D72))=TRUE,LEFT('Önc. Alan Sonuç'!D72,2)&REPT("*",3),LEFT('Önc. Alan Sonuç'!D72,2)&REPT("*",3)&" "&MID('Önc. Alan Sonuç'!D72,FIND(" ",'Önc. Alan Sonuç'!D72)+1,2)&REPT("*",3))) ->  | E72: =IF('Önc. Alan Sonuç'!E72="","",'Önc. Alan Sonuç'!E72) ->  | F72: =IF('Önc. Alan Sonuç'!F72="","",'Önc. Alan Sonuç'!F72) ->  | G72: =IF('Önc. Alan Sonuç'!G72="","",'Önc. Alan Sonuç'!G72) ->  | H72: =IF('Önc. Alan Sonuç'!H72="","",'Önc. Alan Sonuç'!H72) ->  | I72: =IF('Önc. Alan Sonuç'!I72="","",'Önc. Alan Sonuç'!I72) ->  | J72: =IF('Önc. Alan Sonuç'!J72="","",'Önc. Alan Sonuç'!J72) ->  | K72: =IF('Önc. Alan Sonuç'!K72="","",'Önc. Alan Sonuç'!K72) ->  | L72: =IF('Önc. Alan Sonuç'!L72="","",'Önc. Alan Sonuç'!L72) ->  | M72: =IF('Önc. Alan Sonuç'!M72="","",'Önc. Alan Sonuç'!M72) ->  | N72: =IF('Önc. Alan Sonuç'!N72="","",'Önc. Alan Sonuç'!N72) -> 
